Workbook

Sheet START
A1: =muni -> KZN434 Ubuhlebezwe

Sheet Instructions
D2: 2020
X4: Yes
X5: No
W7: Type of Entities Range: | X7: Parent Municipality
X8: Consolidated Information
W10: Date linked | X10: 13
W11: Date | X11: =VLOOKUP(X10,W39:X55,2) -> Q1 First Quarter | Y11: 2013-08-01
W19: MTREF Range: | X19: 2008
X20: 2009
X21: 2010
X22: 2011
X23: 2012
X24: 2013
X25: 2014
X26: 2015
X27: 2016
X28: 2017
X29: 2018
X30: 2019
X31: 2020
X32: 2021
X33: 2022
W34: MTREF Linked:
W35: MTREF: | X35: 11
X36: =INDEX(X19:X33,X35,1) -> 2018
W37: Fin Year:
X38: =MTREF&"/"&RIGHT(MTREF,2)+1 -> 2018/19
V39: Date/type of report | W39: 1 | X39: M01 July
W40: 2 | X40: M02 August
W41: 3 | X41: M03 September
W42: 4 | X42: M04 October
W43: 5 | X43: M05 November
W44: 6 | X44: M06 December
W45: 7 | X45: M07 January
W46: 8 | X46: M08 February
W47: 9 | X47: M09 March
W48: 10 | X48: M10 April
W49: 11 | X49: M11 May
W50: 12 | X50: M12 June
W51: 13 | X51: Q1 First Quarter
W52: 14 | X52: Q2 Second Quarter
W53: 15 | X53: Q3 Third Quarter
W54: 16 | X54: Q4 Fourth Quarter
W55: 17 | X55: Mid-Year Assessment

Sheet Template names (hidden)
A1: Common sheet headings
A2: Head1 | B2: =HLOOKUP(MTREF,Headings,2) -> 2017/18 | C2: Prior year -1
A3: Head2 | B3: =HLOOKUP(MTREF,Headings,5) -> Budget Year 2018/19 | C3: Year of approved budget
A4: Head2A | B4: =HLOOKUP(MTREF,Headings,4) -> 2018/19 | C4: Approved budget year
A5: Head3 | B5: =HLOOKUP(MTREF,Headings,3) -> 2018/19 Medium Term Revenue & Expenditure Framework | C5: MTREF header name
A6: Head5 | B6: Audited Outcome
A7: Head5A | B7: Outcome
A8: Head5B | B8: Pre-audit outcome
A9: Head6 | B9: Original Budget
A10: Head7 | B10: Adjusted Budget
A11: Head8 | B11: Full Year Forecast
A12: Head9 | B12: =HLOOKUP(MTREF,Headings,5) -> Budget Year 2018/19 | C12: 1st year of MTREF | D12: Year1
A13: Head10 | B13: =HLOOKUP(MTREF,Headings,6) -> Budget Year +1 2019/20 | C13: 2nd year of MTREF | D13: Year2
A14: Head11 | B14: =HLOOKUP(MTREF,Headings,7) -> Budget Year +2 2020/21 | C14: 3rd year of MTREF | D14: Year3
A15: Head12 | B15: Forecast 2010/11 | D15: Year4
A16: Head13 | B16: Forecast 2011/12 | D16: Year5
A17: Head14 | B17: Forecast 2012/13 | D17: Year6
A18: Head15 | B18: Forecast 2013/14 | D18: Year7
A19: Head16 | B19: Forecast 2014/15 | D19: Year8
A20: Head17 | B20: Forecast 2015/16 | D20: Year9
A21: Head18 | B21: Forecast 2016/17 | D21: Year10
A22: Head19 | B22: Forecast 2017/18 | D22: Year11
A23: Head20 | B23: Forecast 2018/19 | D23: Year12
A24: Head21 | B24: Forecast 2019/20 | D24: Year13
A25: Head22 | B25: Forecast 2020/21 | D25: Year14
A26: Head23 | B26: Forecast 2021/22 | D26: Year15
A27: Head24 | B27: Description | D27: Desc
A28: Head25 | B28: Schedule of funding diligence | D28: fdil
A29: Head26 | B29: Vote Description | D29: VDesc
A30: Head27 | B30: Ref
A31: Head27a | B31: References
A32: Head28 | B32: Surplus/ (Deficit) for the year | D32: Result
A33: Head29 | B33: Annual target 2007/08
A34: Head30 | B34: Revised target 2007/08
A35: Head31 | B35: Quarter ended 30 September
A36: Head32 | B36: Quarter ended 31 December
A37: Head33 | B37: Quarter ended 31 March
A38: Head34 | B38: Quarter ended 30 June
A39: Head35 | B39: Variance explanation
A40: Head36 | B40: YTD Actual 31 Dec
A41: Head37 | B41: YTD Budget 31 Dec
A42: Head38 | B42: Monthly actual
A43: Head39 | B43: YearTD actual
A44: Head40 | B44: YearTD budget
A45: Head41 | B45: YTD variance
A46: Head42 | B46: Surplus/ (Deficit) for the yr/period
A47: Head43 | B47: =Head3&" Summary" -> 2018/19 Medium Term Revenue & Expenditure Framework Summary
A48: Head44 | B48: 1996 Census
A49: Head45 | B49: 2001 Census
A50: Head46 | B50: - Adjustments Budget - Month YYYY
A51: Head47 | B51: Previous target year to complete
A52: Head48 | B52: Present value
A53: Head49 | B53: Virement
A54: Head50 | B54: Other Adjusts.
A55: Head51 | B55: Accum. Funds
A56: Head52 | B56: Multi-year capital
A57: Head53 | B57: Unfore. Unavoid.
A58: Head54 | B58: Prior Adjusted
A59: Head55 | B59: Nat. or Prov. Govt
A60: Head56 | B60: Total Adjusts.
A61: Head57 | B61: =date -> Q1 First Quarter
A62: Head58 | B62: Parent muni.
A63: Head59 | B63: Downward adjusts
A64: Head60 | B64: Month | C64: Report header part name | D64: =MONTH(date) -> 
A65: SFPerf1 | B65: Budgeted Financial Performance
A66: SFPerf2 | B66: Forecast Financial Performance
A67: SFPos1 | B67: Budgeted Financial Position
A68: SFPos2 | B68: Forecast Financial Position
A69: Cash1 | B69: Budget Cash Flow
A70: Cash2 | B70: Forecast Cash Flow
A71: RandM | B71: Expenditure includes repairs & maintenance of R'000
A72: Standard nomenclature
A73: Muni | B73: ='Lookup and lists'!B27 -> KZN434 Ubuhlebezwe
A74: Municipal Entities | B74: 2 | C74: Type of report: | D74: 5
A75: =IF((MuniEntities=1)*(MuniType=2),"YES","NO") -> NO | B75: Does this municipality have entities (consolidated budget and entity budgets required)? YES/NO
A76: s71 (Monthly Mayor report) schedules and charts
A77: S71sum | B77: =IF(Consolques="YES",E77,F77) -> Table C1 Monthly Budget Statement Summary | D77: Table C1 | E77: =D77&"Consolidated Monthly Budget Statement Summary" -> Table C1 Consolidated Monthly Budget Statement Summary | F77: =D77&"Monthly Budget Statement Summary" -> Table C1 Monthly Budget Statement Summary
A78: S71C | B78: Table C3 Monthly Budget Statement - Financial Performance (revenue and expenditure by municipal vote) | D78: Table C3 | E78: =D78&"Consolidated Monthly Budget Statement - Financial Performance (revenue and expenditure by municipal vote) " -> Table C3 Consolidated Monthly Budget Statement - Financial Performance (revenue and expenditure by municipal vote) | F78: =D78&"Monthly Budget Statement - Financial Performance (revenue and expenditure by municipal vote)" -> Table C3 Monthly Budget Statement - Financial Performance (revenue and expenditure by municipal vote)
A79: S71A | B79: =IF(Consolques="YES",E79,F79) -> Table C2 Monthly Budget Statement - Financial Performance (functional classification) | D79: Table C2 | E79: =D79&"Consolidated Monthly Budget Statement - Financial Performance (functional classification) " -> Table C2 Consolidated Monthly Budget Statement - Financial Performance (functional classification) | F79: =D79&"Monthly Budget Statement - Financial Performance (functional classification)" -> Table C2 Monthly Budget Statement - Financial Performance (functional classification)
A80: S71B | B80: =IF(Consolques="YES",E80,F80) -> Table C4 Monthly Budget Statement - Financial Performance (revenue and expenditure) | D80: Table C4 | E80: =D80&"Consolidated Monthly Budget Statement - Financial Performance (revenue and expenditure) " -> Table C4 Consolidated Monthly Budget Statement - Financial Performance (revenue and expenditure) | F80: =D80&"Monthly Budget Statement - Financial Performance (revenue and expenditure)" -> Table C4 Monthly Budget Statement - Financial Performance (revenue and expenditure)
A81: S71D | B81: =IF(Consolques="YES",E81,F81) -> Table C5 Monthly Budget Statement - Capital Expenditure (municipal vote, functional classification and funding) | D81: Table C5 | E81: =D81&"Consolidated Monthly Budget Statement - Capital Expenditure (municipal vote, functional classification and funding " -> Table C5 Consolidated Monthly Budget Statement - Capital Expenditure (municipal vote, functional classification and funding | F81: =D81&"Monthly Budget Statement - Capital Expenditure (municipal vote, functional classification and funding)" -> Table C5 Monthly Budget Statement - Capital Expenditure (municipal vote, functional classification and funding)
A82: S71E | B82: Table C6 Monthly Budget Statement - Financial Position | D82: Table C6 | E82: =D82&"Consolidated Monthly Budget Statement - Financial Position " -> Table C6 Consolidated Monthly Budget Statement - Financial Position | F82: =D82&"Monthly Budget Statement - Financial Position" -> Table C6 Monthly Budget Statement - Financial Position
A83: S71F | B83: Table C7 Monthly Budget Statement - Cash Flow | D83: Table C7 | E83: =D83&"Consolidated Monthly Budget Statement - Cash Flow " -> Table C7 Consolidated Monthly Budget Statement - Cash Flow | F83: =D83&"Monthly Budget Statement - Cash Flow " -> Table C7 Monthly Budget Statement - Cash Flow
A84: S71G | B84: =D84&"Material variance explanations " -> Supporting Table SC1 Material variance explanations | D84: Supporting Table SC1
A85: S71H | B85: =D85&"Monthly Budget Statement - performance indicators " -> Supporting Table SC2 Monthly Budget Statement - performance indicators | D85: Supporting Table SC2
A86: S71I | B86: =D86&"Monthly Budget Statement - aged debtors" -> Supporting Table SC3 Monthly Budget Statement - aged debtors | D86: Supporting Table SC3
A87: S71J | B87: =D87&"Monthly Budget Statement - aged creditors " -> Supporting Table SC4 Monthly Budget Statement - aged creditors | D87: Supporting Table SC4
A88: S71K | B88: =D88&"Monthly Budget Statement - investment portfolio " -> Supporting Table SC5 Monthly Budget Statement - investment portfolio | D88: Supporting Table SC5
A89: S71L | B89: =D89&"Monthly Budget Statement - transfers and grant receipts " -> Supporting Table SC6 Monthly Budget Statement - transfers and grant receipts | D89: Supporting Table SC6
A90: S71M | B90: =D90&" Monthly Budget Statement - transfers and grant expenditure " -> Supporting Table SC7(1) Monthly Budget Statement - transfers and grant expenditure | D90: Supporting Table SC7(1)
A91: S71N | B91: =D91&"Monthly Budget Statement - councillor and staff benefits " -> Supporting Table SC8 Monthly Budget Statement - councillor and staff benefits | D91: Supporting Table SC8
A92: S71O | B92: =D92&"Monthly Budget Statement - actuals and revised targets for cash receipts" -> Supporting Table SC9 Monthly Budget Statement - actuals and revised targets for cash receipts | D92: Supporting Table SC9
A93: S71P | B93: =IF(Consolques="YES",E93,F93) -> NOT REQUIRED - municipality does not have entities or this is the parent municipality's budget | D93: Supporting Table SC10 | E93: =D93&"Monthly Budget Statement - Parent Municipality Financial Performance (revenue and expenditure) " -> Supporting Table SC10 Monthly Budget Statement - Parent Municipality Financial Performance (revenue and expenditure) | F93: NOT REQUIRED - municipality does not have entities or this is the parent municipality's budget
A94: S71Q | B94: NOT REQUIRED - municipality does not have entities or this is the parent municipality's budget | D94: Supporting Table SC11 | E94: =D94&"Monthly Budget Statement - summary of municipal entities" -> Supporting Table SC11 Monthly Budget Statement - summary of municipal entities | F94: NOT REQUIRED - municipality does not have entities or this is the parent municipality's budget
A95: S71R | B95: Supporting Table SC12 Monthly Budget Statement - capital expenditure trend | D95: Supporting Table SC12 | E95: =D95&"Consolidated Monthly Budget Statement - capital expenditure trend " -> Supporting Table SC12 Consolidated Monthly Budget Statement - capital expenditure trend | F95: =D95&"Monthly Budget Statement - capital expenditure trend" -> Supporting Table SC12 Monthly Budget Statement - capital expenditure trend
A96: S71Sa | B96: Supporting Table SC13a Monthly Budget Statement - capital expenditure on new assets by asset class | D96: Supporting Table SC13a | E96: =D96&"Consolidated Monthly Budget Statement - capital expenditure on new assets by asset class" -> Supporting Table SC13a Consolidated Monthly Budget Statement - capital expenditure on new assets by asset class | F96: =D96&"Monthly Budget Statement - capital expenditure on new assets by asset class" -> Supporting Table SC13a Monthly Budget Statement - capital expenditure on new assets by asset class
A97: S71Sb | B97: Supporting Table SC13b Monthly Budget Statement - capital expenditure on renewal of existing assets by asset class | D97: Supporting Table SC13b | E97: =D97&"Consolidated Monthly Budget Statement - capital expenditure on renewal of existing assets by asset class" -> Supporting Table SC13b Consolidated Monthly Budget Statement - capital expenditure on renewal of existing assets by asset class | F97: =D97&"Monthly Budget Statement - capital expenditure on renewal of existing assets by asset class" -> Supporting Table SC13b Monthly Budget Statement - capital expenditure on renewal of existing assets by asset class
A98: S71Sc | B98: Supporting Table SC13c Monthly Budget Statement - expenditure on repairs and maintenance by asset class | D98: Supporting Table SC13c | E98: =D98&"Consolidated Monthly Budget Statement - expenditure on repairs and maintenance by asset class" -> Supporting Table SC13c Consolidated Monthly Budget Statement - expenditure on repairs and maintenance by asset class | F98: =D98&"Monthly Budget Statement - expenditure on repairs and maintenance by asset class" -> Supporting Table SC13c Monthly Budget Statement - expenditure on repairs and maintenance by asset class
A99: S71Sd | B99: Supporting Table SC13d Monthly Budget Statement - depreciation by asset class | D99: Supporting Table SC13d | E99: =D99&"Consolidated Monthly Budget Statement - depreciation by asset class" -> Supporting Table SC13d Consolidated Monthly Budget Statement - depreciation by asset class | F99: =D99&"Monthly Budget Statement - depreciation by asset class" -> Supporting Table SC13d Monthly Budget Statement - depreciation by asset class
A100: S71Se | B100: =IF(Consolques="YES",E100,F100) -> Supporting Table SC13e Monthly Budget Statement - capital expenditure on upgrading of existing assets by asset class | D100: Supporting Table SC13e | E100: =D100&"Consolidated Monthly Budget Statement - capital expenditure on upgrading of existing assets by asset class" -> Supporting Table SC13e Consolidated Monthly Budget Statement - capital expenditure on upgrading of existing assets by asset class | F100: =D100&"Monthly Budget Statement - capital expenditure on upgrading of existing assets by asset class" -> Supporting Table SC13e Monthly Budget Statement - capital expenditure on upgrading of existing assets by asset class
B101: s71 charts listing
B102: =D102&Head2A&" Capital Expenditure Monthly Trend: actual v target" -> Chart C1 2018/19 Capital Expenditure Monthly Trend: actual v target | D102: Chart C1
B103: =D103&Head2A&" Capital Expenditure: YTD actual v YTD target" -> Chart C2 2018/19 Capital Expenditure: YTD actual v YTD target | D103: Chart C2
B104: =D104&"Aged Consumer Debtors Analysis" -> Chart C3 Aged Consumer Debtors Analysis | D104: Chart C3
B105: =D105&"Consumer Debtors (total by Debtor Customer Category)" -> Chart C4 Consumer Debtors (total by Debtor Customer Category) | D105: Chart C4
B106: =D106&"Aged Creditors Analysis" -> Chart C5 Aged Creditors Analysis | D106: Chart C5
A107: S71T | B107: =D107&" Monthly Budget Statement - Expenditure against approved rollovers" -> Supporting Table SC7(2) Monthly Budget Statement - Expenditure against approved rollovers | D107: Supporting Table SC7(2)

Sheet Lookup and lists (hidden)
A1: Description | B1: 2007 | C1: 2008 | D1: 2009 | E1: 2010 | F1: 2011 | G1: 2012 | H1: 2013 | I1: 2014 | J1: 2015 | K1: 2016 | L1: 2017 | M1: 2018 | N1: 2019 | O1: 2020 | Q1: Grants: | R1: National - opex | S1: Provincial - opex | T1: National - capex | U1: Provincial - capex | V1: YESNO
A2: ='Template names'!C2 -> Prior year -1 | B2: 2006/07 | C2: 2007/08 | D2: 2008/09 | E2: =E1-1&"/"&RIGHT(E1,2)-0 -> 2009/10 | F2: =F1-1&"/"&RIGHT(F1,2)-0 -> 2010/11 | G2: 2011/12 | H2: 2012/13 | I2: 2013/14 | J2: 2014/15 | K2: 2015/16 | L2: 2016/17 | M2: 2017/18 | N2: 2018/19 | O2: 2019/20 | R2: Local Government Equitable Share | S2: Health subsidy | T2: Municipal Infrastructure Grant (MIG) | U2: Agriculture | V2: Yes
A3: ='Template names'!C5 -> MTREF header name | B3: 2007/08 Medium Term Revenue & Expenditure Framework | C3: 2008/09 Medium Term Revenue & Expenditure Framework | D3: 2009/10 Medium Term Revenue & Expenditure Framework | E3: =E1&"/"&RIGHT(E1,2)+1&" Medium Term Revenue & Expenditure Framework" -> 2010/11 Medium Term Revenue & Expenditure Framework | F3: =F1&"/"&RIGHT(F1,2)+1&" Medium Term Revenue & Expenditure Framework" -> 2011/12 Medium Term Revenue & Expenditure Framework | G3: 2012/13 Medium Term Revenue & Expenditure Framework | H3: 2013/14 Medium Term Revenue & Expenditure Framework | I3: 2014/15 Medium Term Revenue & Expenditure Framework | J3: 2015/16 Medium Term Revenue & Expenditure Framework | K3: 2016/17 Medium Term Revenue & Expenditure Framework | L3: 2017/18 Medium Term Revenue & Expenditure Framework | M3: 2018/19 Medium Term Revenue & Expenditure Framework | N3: 2019/20 Medium Term Revenue & Expenditure Framework | O3: 2020/21 Medium Term Revenue & Expenditure Framework | R3: RSC Levy Replacement | S3: Ambulance subsidy | T3: Public Transport and Systems | U3: Education | V3: No
A4: ='Template names'!C4 -> Approved budget year | B4: 2007/08 | C4: 2008/09 | D4: 2009/10 | E4: =E1&"/"&RIGHT(E1,2)+1 -> 2010/11 | F4: =F1&"/"&RIGHT(F1,2)+1 -> 2011/12 | G4: 2012/13 | H4: 2013/14 | I4: 2014/15 | J4: 2015/16 | K4: 2016/17 | L4: 2017/18 | M4: 2018/19 | N4: 2019/20 | O4: 2020/21 | R4: Finance Management | S4: Housing | T4: Rural Transport Services and Infrastructure | U4: Health
A5: ='Template names'!C12 -> 1st year of MTREF | B5: Budget Year 2007/08 | C5: Budget Year 2008/09 | D5: Budget Year 2009/10 | E5: ="Budget Year "&E1&"/"&RIGHT(E1,2)+1 -> Budget Year 2010/11 | F5: ="Budget Year "&F1&"/"&RIGHT(F1,2)+1 -> Budget Year 2011/12 | G5: Budget Year 2012/13 | H5: Budget Year 2013/14 | I5: Budget Year 2014/15 | J5: Budget Year 2015/16 | K5: Budget Year 2016/17 | L5: Budget Year 2017/18 | M5: Budget Year 2018/19 | N5: Budget Year 2019/20 | O5: Budget Year 2020/21 | R5: Municipal Systems Improvement | S5: Sport and Recreation | T5: Regional Bulk Infrastructure | U5: Housing and Local Government
A6: ='Template names'!C13 -> 2nd year of MTREF | B6: Budget Year +1 2008/09 | C6: Budget Year +1 2009/10 | D6: Budget Year +1 2010/11 | E6: ="Budget Year +1 "&E1+1&"/"&RIGHT(E1,2)+2 -> Budget Year +1 2011/12 | F6: ="Budget Year +1 "&F1+1&"/"&RIGHT(F1,2)+2 -> Budget Year +1 2012/13 | G6: Budget Year +1 2013/14 | H6: Budget Year +1 2014/15 | I6: Budget Year +1 2015/16 | J6: Budget Year +1 2016/17 | K6: Budget Year +1 2017/18 | L6: Budget Year +1 2018/19 | M6: Budget Year +1 2019/20 | N6: Budget Year +1 2020/21 | O6: Budget Year +1 2021/22 | R6: Water Services Operating Subsidy | T6: Rural Households Infrastructure | U6: Other Departments
A7: ='Template names'!C14 -> 3rd year of MTREF | B7: Budget Year +2 2009/10 | C7: Budget Year +2 2010/11 | D7: Budget Year +2 2011/12 | E7: ="Budget Year +2 "&E1+2&"/"&RIGHT(E1,2)+3 -> Budget Year +2 2012/13 | F7: ="Budget Year +2 "&F1+2&"/"&RIGHT(F1,2)+3 -> Budget Year +2 2013/14 | G7: Budget Year +2 2014/15 | H7: Budget Year +2 2015/16 | I7: Budget Year +2 2016/17 | J7: Budget Year +2 2017/18 | K7: Budget Year +2 2018/19 | L7: Budget Year +2 2019/20 | M7: Budget Year +2 2020/21 | N7: Budget Year +2 2021/22 | O7: Budget Year +2 2022/23 | R7: Energy Efficiency and Demand Management | T7: Neighbourhood Development Partnership | U7: Public Works, Roads, Transport
A8: NOTE: This sheet should not be directly amended - select headings from sheet 'S' | R8: Integrated National Electrification Programme | T8: 2010 FIFA World Cup Stadiums Development | U8: Sport and Recreation
R9: Municipal Drought Relief
R10: 2010 FIFA World Cup Operating
R11: Electricity Demand Side Management
R12: EPWP Incentive
A26: Name link | B26: 125
A27: Name of Muni | B27: =INDEX(B28:B311,B26,1) -> KZN434 Ubuhlebezwe
B28: Choose name from list | C28: Set name on 'Instructions' sheet
B29: BUF Buffalo City | C29: Eastern Cape
B30: NMA Nelson Mandela Bay | C30: Eastern Cape
B31: EC101 Dr. Beyers Naude | C31: Eastern Cape
B32: EC102 Blue Crane Route | C32: Eastern Cape
B33: EC104 Makana | C33: Eastern Cape
B34: EC105 Ndlambe | C34: Eastern Cape
B35: EC106 Sundays River Valley | C35: Eastern Cape
B36: EC108 Kouga | C36: Eastern Cape
B37: EC109 Kou-Kamma | C37: Eastern Cape
B38: DC10 Sarah Baartman | C38: Eastern Cape
B39: EC121 Mbhashe | C39: Eastern Cape
B40: EC122 Mnquma | C40: Eastern Cape
B41: EC123 Great Kei | C41: Eastern Cape
B42: EC124 Amahlathi | C42: Eastern Cape
B43: EC126 Ngqushwa | C43: Eastern Cape
B44: EC129 Raymond Mhlaba | C44: Eastern Cape
B45: DC12 Amathole | C45: Eastern Cape
B46: EC131 Inxuba Yethemba | C46: Eastern Cape
B47: EC135 Intsika Yethu | C47: Eastern Cape
B48: EC136 Emalahleni (Ec) | C48: Eastern Cape
B49: EC137 Engcobo | C49: Eastern Cape
B50: EC138 Sakhisizwe | C50: Eastern Cape
B51: EC139 Enoch Mgijima | C51: Eastern Cape
B52: DC13 Chris Hani | C52: Eastern Cape
B53: EC141 Elundini | C53: Eastern Cape
B54: EC142 Senqu | C54: Eastern Cape
B55: EC145 Walter Sisulu | C55: Eastern Cape
B56: DC14 Joe Gqabi | C56: Eastern Cape
B57: EC153 Ngquza Hills | C57: Eastern Cape
B58: EC154 Port St Johns | C58: Eastern Cape
B59: EC155 Nyandeni | C59: Eastern Cape
B60: EC156 Mhlontlo | C60: Eastern Cape
B61: EC157 King Sabata Dalindyebo | C61: Eastern Cape
B62: DC15 O .R. Tambo | C62: Eastern Cape
B63: EC441 Matatiele | C63: Eastern Cape
B64: EC442 Umzimvubu | C64: Eastern Cape
B65: EC443 Mbizana | C65: Eastern Cape
B66: EC444 Ntabankulu | C66: Eastern Cape
B67: DC44 Alfred Nzo | C67: Eastern Cape
B68: MAN Mangaung | C68: Free State
B69: FS161 Letsemeng | C69: Free State
B70: FS162 Kopanong | C70: Free State
B71: FS163 Mohokare | C71: Free State
B72: DC16 Xhariep | C72: Free State
B73: FS181 Masilonyana | C73: Free State
B74: FS182 Tokologo | C74: Free State
B75: FS183 Tswelopele | C75: Free State
B76: FS184 Matjhabeng | C76: Free State
B77: FS185 Nala | C77: Free State
B78: DC18 Lejweleputswa | C78: Free State
B79: FS191 Setsoto | C79: Free State
B80: FS192 Dihlabeng | C80: Free State
B81: FS193 Nketoana | C81: Free State
B82: FS194 Maluti-a-Phofung | C82: Free State
B83: FS195 Phumelela | C83: Free State
B84: FS196 Mantsopa | C84: Free State
B85: DC19 Thabo Mofutsanyana | C85: Free State
B86: FS201 Moqhaka | C86: Free State
B87: FS203 Ngwathe | C87: Free State
B88: FS204 Metsimaholo | C88: Free State
B89: FS205 Mafube | C89: Free State
B90: DC20 Fezile Dabi | C90: Free State
B91: EKU Ekurhuleni Metro | C91: Gauteng
B92: JHB City Of Johannesburg | C92: Gauteng
B93: TSH City Of Tshwane | C93: Gauteng
B94: GT421 Emfuleni | C94: Gauteng
B95: GT422 Midvaal | C95: Gauteng
B96: GT423 Lesedi | C96: Gauteng
B97: DC42 Sedibeng | C97: Gauteng
B98: GT481 Mogale City | C98: Gauteng
B99: GT484 Merafong City | C99: Gauteng
B100: GT485 GT485 | C100: Gauteng
B101: DC48 West Rand | C101: Gauteng
B102: ETH eThekwini | C102: Kwazulu-Natal
B103: KZN212 Umdoni | C103: Kwazulu-Natal
B104: KZN213 Umzumbe | C104: Kwazulu-Natal
B105: KZN214 uMuziwabantu | C105: Kwazulu-Natal
B106: KZN216 Ray Nkonyeni | C106: Kwazulu-Natal
B107: DC21 Ugu | C107: Kwazulu-Natal
B108: KZN221 uMshwathi | C108: Kwazulu-Natal
B109: KZN222 uMngeni | C109: Kwazulu-Natal
B110: KZN223 Mpofana | C110: Kwazulu-Natal
B111: KZN224 Impendle | C111: Kwazulu-Natal
B112: KZN225 Msunduzi | C112: Kwazulu-Natal
B113: KZN226 Mkhambathini | C113: Kwazulu-Natal
B114: KZN227 Richmond | C114: Kwazulu-Natal
B115: DC22 uMgungundlovu | C115: Kwazulu-Natal
B116: KZN235 Okhahlamba | C116: Kwazulu-Natal
B117: KZN237 Inkosi Langalibalele | C117: Kwazulu-Natal
B118: KZN238 Alfred Duma | C118: Kwazulu-Natal
B119: DC23 Uthukela | C119: Kwazulu-Natal
B120: KZN241 Endumeni | C120: Kwazulu-Natal
B121: KZN242 Nquthu | C121: Kwazulu-Natal
B122: KZN244 Msinga | C122: Kwazulu-Natal
B123: KZN245 Umvoti | C123: Kwazulu-Natal
B124: DC24 Umzinyathi | C124: Kwazulu-Natal
B125: KZN252 Newcastle | C125: Kwazulu-Natal
B126: KZN253 eMadlangeni | C126: Kwazulu-Natal
B127: KZN254 Dannhauser | C127: Kwazulu-Natal
B128: DC25 Amajuba | C128: Kwazulu-Natal
B129: KZN261 eDumbe | C129: Kwazulu-Natal
B130: KZN262 uPhongolo | C130: Kwazulu-Natal
B131: KZN263 Abaqulusi | C131: Kwazulu-Natal
B132: KZN265 Nongoma | C132: Kwazulu-Natal
B133: KZN266 Ulundi | C133: Kwazulu-Natal
B134: DC26 Zululand | C134: Kwazulu-Natal
B135: KZN271 Umhlabuyalingana | C135: Kwazulu-Natal
B136: KZN272 Jozini | C136: Kwazulu-Natal
B137: KZN275 Mtubatuba | C137: Kwazulu-Natal
B138: KZN276 The New Big 5 False Bay | C138: Kwazulu-Natal
B139: DC27 Umkhanyakude | C139: Kwazulu-Natal
B140: KZN281 Mfolozi | C140: Kwazulu-Natal
B141: KZN282 uMhlathuze | C141: Kwazulu-Natal
B142: KZN284 uMlalazi | C142: Kwazulu-Natal
B143: KZN285 Mthonjaneni | C143: Kwazulu-Natal
B144: KZN286 Nkandla | C144: Kwazulu-Natal
B145: DC28 King Cetshwayo | C145: Kwazulu-Natal
B146: KZN291 Mandeni | C146: Kwazulu-Natal
B147: KZN292 KwaDukuza | C147: Kwazulu-Natal
B148: KZN293 Ndwedwe | C148: Kwazulu-Natal
B149: KZN294 Maphumulo | C149: Kwazulu-Natal
B150: DC29 iLembe | C150: Kwazulu-Natal
B151: KZN433 Greater Kokstad | C151: Kwazulu-Natal
B152: KZN434 Ubuhlebezwe | C152: Kwazulu-Natal
B153: KZN435 Umzimkhulu | C153: Kwazulu-Natal
B154: KZN436 Dr Nkosazana Dlamini Zuma | C154: Kwazulu-Natal
B155: DC43 Harry Gwala | C155: Kwazulu-Natal
B156: LIM331 Greater Giyani | C156: Limpopo
B157: LIM332 Greater Letaba | C157: Limpopo
B158: LIM333 Greater Tzaneen | C158: Limpopo
B159: LIM334 Ba-Phalaborwa | C159: Limpopo
B160: LIM335 Maruleng | C160: Limpopo
B161: DC33 Mopani | C161: Limpopo
B162: LIM341 Musina | C162: Limpopo
B163: LIM343 Thulamela | C163: Limpopo
B164: LIM344 Makhado | C164: Limpopo
B165: LIM345 LIM345 | C165: Limpopo
B166: DC34 Vhembe | C166: Limpopo
B167: LIM351 Blouberg | C167: Limpopo
B168: LIM353 Molemole | C168: Limpopo
B169: LIM354 Polokwane | C169: Limpopo
B170: LIM355 Lepelle-Nkumpi | C170: Limpopo
B171: DC35 Capricorn | C171: Limpopo
B172: LIM361 Thabazimbi | C172: Limpopo
B173: LIM362 Lephalale | C173: Limpopo
B174: LIM366 Bela Bela | C174: Limpopo
B175: LIM367 Mogalakwena | C175: Limpopo
B176: LIM368 LIM368 | C176: Limpopo
B177: DC36 Waterberg | C177: Limpopo
B178: LIM471 Ephraim Mogale | C178: Limpopo
B179: LIM472 Elias Motsoaledi | C179: Limpopo
B180: LIM473 Makhuduthamaga | C180: Limpopo
B181: LIM476 LIM476 | C181: Limpopo
B182: DC47 Sekhukhune | C182: Limpopo
B183: MP301 Albert Luthuli | C183: Mpumalanga
B184: MP302 Msukaligwa | C184: Mpumalanga
B185: MP303 Mkhondo | C185: Mpumalanga
B186: MP304 Pixley Ka Seme (MP) | C186: Mpumalanga
B187: MP305 Lekwa | C187: Mpumalanga
B188: MP306 Dipaleseng | C188: Mpumalanga
B189: MP307 Govan Mbeki | C189: Mpumalanga
B190: DC30 Gert Sibande | C190: Mpumalanga
B191: MP311 Victor Khanye | C191: Mpumalanga
B192: MP312 Emalahleni (Mp) | C192: Mpumalanga
B193: MP313 Steve Tshwete | C193: Mpumalanga
B194: MP314 Emakhazeni | C194: Mpumalanga
B195: MP315 Thembisile Hani | C195: Mpumalanga
B196: MP316 Dr J.S. Moroka | C196: Mpumalanga
B197: DC31 Nkangala | C197: Mpumalanga
B198: MP321 Thaba Chweu | C198: Mpumalanga
B199: MP324 Nkomazi | C199: Mpumalanga
B200: MP325 Bushbuckridge | C200: Mpumalanga
B201: MP326 City of Mbombela | C201: Mpumalanga
B202: DC32 Ehlanzeni | C202: Mpumalanga
B203: NC451 Joe Morolong | C203: Northern Cape
B204: NC452 Ga-Segonyana | C204: Northern Cape
B205: NC453 Gamagara | C205: Northern Cape
B206: DC45 John Taolo Gaetsewe | C206: Northern Cape
B207: NC061 Richtersveld | C207: Northern Cape
B208: NC062 Nama Khoi | C208: Northern Cape
B209: NC064 Kamiesberg | C209: Northern Cape
B210: NC065 Hantam | C210: Northern Cape
B211: NC066 Karoo Hoogland | C211: Northern Cape
B212: NC067 Khai-Ma | C212: Northern Cape
B213: DC6 Namakwa | C213: Northern Cape
... 73 more rows

Sheet Org structure
A1: Organisational Structure Votes | C1: Organisational Structure Sub-Votes | E1: Display Sub-Votes
A2: =B2&" - "&C2 -> Vote 1 - EXECUTIVE & COUNCIL | B2: Vote 1 | C2: EXECUTIVE & COUNCIL
A3: =B13&" - "& C13 -> Vote 2 - BUDGET & TREASURY | B3: 1.1 | C3: Council | D3: =CONCATENATE(B3, " - ", C3) -> 1.1 - Council | E3: =IF(C3="[Name of sub-vote]"," ",D3) -> 1.1 - Council
A4: =B24&" - "&C24 -> Vote 3 - CORPORATE SERVCES | B4: 1.2 | C4: Municipal Manager | D4: 1.2 - Municipal Manager | E4: =IF(C4="[Name of sub-vote]"," ",D4) -> 1.2 - Municipal Manager
A5: =B35&" - "&C35 -> Vote 4 - COMMUNITY & SOCIAL SERVICES | B5: 1.3 | C5: [Name of sub-vote] | D5: 1.3 - [Name of sub-vote]
A6: =B46&" - "&C46 -> Vote 5 - SPORT & RECREATION/PARKS | B6: 1.4 | C6: [Name of sub-vote] | D6: 1.4 - [Name of sub-vote]
A7: =B57&" - "&C57 -> Vote 6 - PUBLIC SAFETY | B7: 1.5 | C7: [Name of sub-vote] | D7: 1.5 - [Name of sub-vote]
A8: =B68&" - "&C68 -> Vote 7 - HOUSING | B8: 1.6 | C8: [Name of sub-vote] | D8: 1.6 - [Name of sub-vote]
A9: =B79&" - "&C79 -> Vote 8 - INFRASTRUCTURE, PLANNING & DEVELOPMENT | B9: 1.7 | C9: [Name of sub-vote] | D9: 1.7 - [Name of sub-vote]
A10: =B90&" - "&C90 -> Vote 9 - ROADS TRANSPORT | B10: 1.8 | C10: [Name of sub-vote] | D10: 1.8 - [Name of sub-vote]
A11: =B101&" - "&C101 -> Vote 10 - [NAME OF VOTE 10] | B11: 1.9 | C11: [Name of sub-vote] | D11: 1.9 - [Name of sub-vote]
A12: =B112&" - "&C112 -> Vote 11 - [NAME OF VOTE 11] | B12: 1.10 | C12: [Name of sub-vote] | D12: 1.10 - [Name of sub-vote]
A13: =B123&" - "&C123 -> Vote 12 - [NAME OF VOTE 12] | B13: Vote 2 | C13: BUDGET & TREASURY
A14: =B134&" - "&C134 -> Vote 13 - [NAME OF VOTE 13] | B14: 2.1 | C14: Budget & Treasury | D14: =CONCATENATE(B14, " - ", C14) -> 2.1 - Budget & Treasury | E14: =IF(C14="[Name of sub-vote]"," ",D14) -> 2.1 - Budget & Treasury
A15: =B145&" - "&C145 -> Vote 14 - [NAME OF VOTE 14] | B15: 2.2 | C15: [Name of sub-vote] | D15: 2.2 - [Name of sub-vote] | E15: =IF(C15="[Name of sub-vote]"," ",D15) -> 
A16: =B156&" - "&C156 -> Vote 15 - [NAME OF VOTE 15] | B16: 2.3 | C16: [Name of sub-vote] | D16: 2.3 - [Name of sub-vote]
B17: 2.4 | C17: [Name of sub-vote] | D17: 2.4 - [Name of sub-vote]
B18: 2.5 | C18: [Name of sub-vote] | D18: 2.5 - [Name of sub-vote]
B19: 2.6 | C19: [Name of sub-vote] | D19: 2.6 - [Name of sub-vote]
B20: 2.7 | C20: [Name of sub-vote] | D20: 2.7 - [Name of sub-vote]
B21: 2.8 | C21: [Name of sub-vote] | D21: 2.8 - [Name of sub-vote]
B22: 2.9 | C22: [Name of sub-vote] | D22: 2.9 - [Name of sub-vote]
B23: 2.10 | C23: [Name of sub-vote] | D23: 2.10 - [Name of sub-vote]
B24: Vote 3 | C24: CORPORATE SERVCES
B25: 3.1 | C25: Corporate Services/Other Admin | D25: =CONCATENATE(B25, " - ", C25) -> 3.1 - Corporate Services/Other Admin | E25: =IF(C25="[Name of sub-vote]"," ",D25) -> 3.1 - Corporate Services/Other Admin
B26: 3.2 | C26: Muncipal Estates/Property Services | D26: 3.2 - Muncipal Estates/Property Services | E26: =IF(C26="[Name of sub-vote]"," ",D26) -> 3.2 - Muncipal Estates/Property Services
B27: 3.3 | C27: [Name of sub-vote] | D27: 3.3 - [Name of sub-vote]
B28: 3.4 | C28: [Name of sub-vote] | D28: 3.4 - [Name of sub-vote]
B29: 3.5 | C29: [Name of sub-vote] | D29: 3.5 - [Name of sub-vote]
B30: 3.6 | C30: [Name of sub-vote] | D30: 3.6 - [Name of sub-vote]
B31: 3.7 | C31: [Name of sub-vote] | D31: 3.7 - [Name of sub-vote]
B32: 3.8 | C32: [Name of sub-vote] | D32: 3.8 - [Name of sub-vote]
B33: 3.9 | C33: [Name of sub-vote] | D33: 3.9 - [Name of sub-vote]
B34: 3.10 | C34: [Name of sub-vote] | D34: 3.10 - [Name of sub-vote]
B35: Vote 4 | C35: COMMUNITY & SOCIAL SERVICES
B36: 4.1 | C36: Libraries | D36: =CONCATENATE(B36, " - ", C36) -> 4.1 - Libraries | E36: =IF(C36="[Name of sub-vote]"," ",D36) -> 4.1 - Libraries
B37: 4.2 | C37: Community Halls & Facilities | D37: 4.2 - Community Halls & Facilities | E37: =IF(C37="[Name of sub-vote]"," ",D37) -> 4.2 - Community Halls & Facilities
B38: 4.3 | C38: Cemeteries | D38: 4.3 - Cemeteries | E38: 4.3 - Cemeteries
B39: 4.4 | C39: Child Care | D39: 4.4 - Child Care | E39: 4.4 - Child Care
B40: 4.5 | C40: Thusong Centre | D40: 4.5 - Thusong Centre | E40: 4.5 - Thusong Centre
B41: 4.6 | C41: Social Development | D41: 4.6 - Social Development | E41: 4.6 - Social Development
B42: 4.7 | C42: Solid Waste Removal (Refuse) | D42: 4.7 - Solid Waste Removal (Refuse) | E42: 4.7 - Solid Waste Removal (Refuse)
B43: 4.8 | C43: [Name of sub-vote] | D43: 4.8 - [Name of sub-vote]
B44: 4.9 | C44: [Name of sub-vote] | D44: 4.9 - [Name of sub-vote]
B45: 4.10 | C45: [Name of sub-vote] | D45: 4.10 - [Name of sub-vote]
B46: Vote 5 | C46: SPORT & RECREATION/PARKS
B47: 5.1 | C47: Sport & Recreation | D47: =CONCATENATE(B47, " - ", C47) -> 5.1 - Sport & Recreation | E47: =IF(C47="[Name of sub-vote]"," ",D47) -> 5.1 - Sport & Recreation
B48: 5.2 | C48: Parks | D48: 5.2 - Parks | E48: =IF(C48="[Name of sub-vote]"," ",D48) -> 5.2 - Parks
B49: 5.3 | C49: [Name of sub-vote] | D49: 5.3 - [Name of sub-vote]
B50: 5.4 | C50: [Name of sub-vote] | D50: 5.4 - [Name of sub-vote]
B51: 5.5 | C51: [Name of sub-vote] | D51: 5.5 - [Name of sub-vote]
B52: 5.6 | C52: [Name of sub-vote] | D52: 5.6 - [Name of sub-vote]
B53: 5.7 | C53: [Name of sub-vote] | D53: 5.7 - [Name of sub-vote]
B54: 5.8 | C54: [Name of sub-vote] | D54: 5.8 - [Name of sub-vote]
B55: 5.9 | C55: [Name of sub-vote] | D55: 5.9 - [Name of sub-vote]
B56: 5.10 | C56: [Name of sub-vote] | D56: 5.10 - [Name of sub-vote]
B57: Vote 6 | C57: PUBLIC SAFETY
B58: 6.1 | C58: Law Enforcement/Traffic | D58: =CONCATENATE(B58, " - ", C58) -> 6.1 - Law Enforcement/Traffic | E58: =IF(C58="[Name of sub-vote]"," ",D58) -> 6.1 - Law Enforcement/Traffic
B59: 6.2 | C59: Disaster Management - Fire | D59: 6.2 - Disaster Management - Fire | E59: =IF(C59="[Name of sub-vote]"," ",D59) -> 6.2 - Disaster Management - Fire
B60: 6.3 | C60: [Name of sub-vote] | D60: 6.3 - [Name of sub-vote]
B61: 6.4 | C61: [Name of sub-vote] | D61: 6.4 - [Name of sub-vote]
B62: 6.5 | C62: [Name of sub-vote] | D62: 6.5 - [Name of sub-vote]
B63: 6.6 | C63: [Name of sub-vote] | D63: 6.6 - [Name of sub-vote]
B64: 6.7 | C64: [Name of sub-vote] | D64: 6.7 - [Name of sub-vote]
B65: 6.8 | C65: [Name of sub-vote] | D65: 6.8 - [Name of sub-vote]
B66: 6.9 | C66: [Name of sub-vote] | D66: 6.9 - [Name of sub-vote]
B67: 6.10 | C67: [Name of sub-vote] | D67: 6.10 - [Name of sub-vote]
B68: Vote 7 | C68: HOUSING
B69: 7.1 | C69: Housing | D69: =CONCATENATE(B69, " - ", C69) -> 7.1 - Housing | E69: =IF(C69="[Name of sub-vote]"," ",D69) -> 7.1 - Housing
B70: 7.2 | C70: [Name of sub-vote] | D70: 7.2 - [Name of sub-vote] | E70: =IF(C70="[Name of sub-vote]"," ",D70) -> 
B71: 7.3 | C71: [Name of sub-vote] | D71: 7.3 - [Name of sub-vote]
B72: 7.4 | C72: [Name of sub-vote] | D72: 7.4 - [Name of sub-vote]
B73: 7.5 | C73: [Name of sub-vote] | D73: 7.5 - [Name of sub-vote]
B74: 7.6 | C74: [Name of sub-vote] | D74: 7.6 - [Name of sub-vote]
B75: 7.7 | C75: [Name of sub-vote] | D75: 7.7 - [Name of sub-vote]
B76: 7.8 | C76: [Name of sub-vote] | D76: 7.8 - [Name of sub-vote]
B77: 7.9 | C77: [Name of sub-vote] | D77: 7.9 - [Name of sub-vote]
B78: 7.10 | C78: [Name of sub-vote] | D78: 7.10 - [Name of sub-vote]
B79: Vote 8 | C79: INFRASTRUCTURE, PLANNING & DEVELOPMENT
B80: 8.1 | C80: Economic Planning & Development | D80: =CONCATENATE(B80, " - ", C80) -> 8.1 - Economic Planning & Development | E80: =IF(C80="[Name of sub-vote]"," ",D80) -> 8.1 - Economic Planning & Development
B81: 8.2 | C81: Town Planning | D81: 8.2 - Town Planning | E81: =IF(C81="[Name of sub-vote]"," ",D81) -> 8.2 - Town Planning
B82: 8.3 | C82: [Name of sub-vote] | D82: 8.3 - [Name of sub-vote]
B83: 8.4 | C83: [Name of sub-vote] | D83: 8.4 - [Name of sub-vote]
B84: 8.5 | C84: [Name of sub-vote] | D84: 8.5 - [Name of sub-vote]
B85: 8.6 | C85: [Name of sub-vote] | D85: 8.6 - [Name of sub-vote]
B86: 8.7 | C86: [Name of sub-vote] | D86: 8.7 - [Name of sub-vote]
B87: 8.8 | C87: [Name of sub-vote] | D87: 8.8 - [Name of sub-vote]
B88: 8.9 | C88: [Name of sub-vote] | D88: 8.9 - [Name of sub-vote]
B89: 8.10 | C89: [Name of sub-vote] | D89: 8.10 - [Name of sub-vote]
B90: Vote 9 | C90: ROADS TRANSPORT
B91: 9.1 | C91: Roads | D91: =CONCATENATE(B91, " - ", C91) -> 9.1 - Roads | E91: =IF(C91="[Name of sub-vote]"," ",D91) -> 9.1 - Roads
B92: 9.2 | C92: Vehicle Licencing & Testing | D92: 9.2 - Vehicle Licencing & Testing | E92: =IF(C92="[Name of sub-vote]"," ",D92) -> 9.2 - Vehicle Licencing & Testing
B93: 9.3 | C93: Technical Services | D93: 9.3 - Technical Services | E93: 9.3 - Technical Services
B94: 9.4 | C94: [Name of sub-vote] | D94: 9.4 - [Name of sub-vote]
B95: 9.5 | C95: [Name of sub-vote] | D95: 9.5 - [Name of sub-vote]
B96: 9.6 | C96: [Name of sub-vote] | D96: 9.6 - [Name of sub-vote]
B97: 9.7 | C97: [Name of sub-vote] | D97: 9.7 - [Name of sub-vote]
B98: 9.8 | C98: [Name of sub-vote] | D98: 9.8 - [Name of sub-vote]
B99: 9.9 | C99: [Name of sub-vote] | D99: 9.9 - [Name of sub-vote]
B100: 9.10 | C100: [Name of sub-vote] | D100: 9.10 - [Name of sub-vote]
B101: Vote 10 | C101: [NAME OF VOTE 10]
B102: 10.1 | C102: [Name of sub-vote] | D102: =CONCATENATE(B102, " - ", C102) -> 10.1 - [Name of sub-vote] | E102: =IF(C102="[Name of sub-vote]"," ",D102) -> 
B103: 10.2 | C103: [Name of sub-vote] | D103: 10.2 - [Name of sub-vote] | E103: =IF(C103="[Name of sub-vote]"," ",D103) -> 
B104: 10.3 | C104: [Name of sub-vote] | D104: 10.3 - [Name of sub-vote]
B105: 10.4 | C105: [Name of sub-vote] | D105: 10.4 - [Name of sub-vote]
B106: 10.5 | C106: [Name of sub-vote] | D106: 10.5 - [Name of sub-vote]
B107: 10.6 | C107: [Name of sub-vote] | D107: 10.6 - [Name of sub-vote]
B108: 10.7 | C108: [Name of sub-vote] | D108: 10.7 - [Name of sub-vote]
B109: 10.8 | C109: [Name of sub-vote] | D109: 10.8 - [Name of sub-vote]
B110: 10.9 | C110: [Name of sub-vote] | D110: 10.9 - [Name of sub-vote]
B111: 10.10 | C111: [Name of sub-vote] | D111: 10.10 - [Name of sub-vote]
B112: Vote 11 | C112: [NAME OF VOTE 11]
B113: 11.1 | C113: [Name of sub-vote] | D113: =CONCATENATE(B113, " - ", C113) -> 11.1 - [Name of sub-vote] | E113: =IF(C113="[Name of sub-vote]"," ",D113) -> 
B114: 11.2 | C114: [Name of sub-vote] | D114: 11.2 - [Name of sub-vote] | E114: =IF(C114="[Name of sub-vote]"," ",D114) -> 
B115: 11.3 | C115: [Name of sub-vote] | D115: 11.3 - [Name of sub-vote]
B116: 11.4 | C116: [Name of sub-vote] | D116: 11.4 - [Name of sub-vote]
B117: 11.5 | C117: [Name of sub-vote] | D117: 11.5 - [Name of sub-vote]
B118: 11.6 | C118: [Name of sub-vote] | D118: 11.6 - [Name of sub-vote]
B119: 11.7 | C119: [Name of sub-vote] | D119: 11.7 - [Name of sub-vote]
B120: 11.8 | C120: [Name of sub-vote] | D120: 11.8 - [Name of sub-vote]
B121: 11.9 | C121: [Name of sub-vote] | D121: 11.9 - [Name of sub-vote]
B122: 11.10 | C122: [Name of sub-vote] | D122: 11.10 - [Name of sub-vote]
B123: Vote 12 | C123: [NAME OF VOTE 12]
B124: 12.1 | C124: [Name of sub-vote] | D124: =CONCATENATE(B124, " - ", C124) -> 12.1 - [Name of sub-vote] | E124: =IF(C124="[Name of sub-vote]"," ",D124) -> 
B125: 12.2 | C125: [Name of sub-vote] | D125: 12.2 - [Name of sub-vote] | E125: =IF(C125="[Name of sub-vote]"," ",D125) -> 
B126: 12.3 | C126: [Name of sub-vote] | D126: 12.3 - [Name of sub-vote]
B127: 12.4 | C127: [Name of sub-vote] | D127: 12.4 - [Name of sub-vote]
B128: 12.5 | C128: [Name of sub-vote] | D128: 12.5 - [Name of sub-vote]
B129: 12.6 | C129: [Name of sub-vote] | D129: 12.6 - [Name of sub-vote]
B130: 12.7 | C130: [Name of sub-vote] | D130: 12.7 - [Name of sub-vote]
B131: 12.8 | C131: [Name of sub-vote] | D131: 12.8 - [Name of sub-vote]
B132: 12.9 | C132: [Name of sub-vote] | D132: 12.9 - [Name of sub-vote]
B133: 12.10 | C133: [Name of sub-vote] | D133: 12.10 - [Name of sub-vote]
B134: Vote 13 | C134: [NAME OF VOTE 13]
B135: 13.1 | C135: [Name of sub-vote] | D135: =CONCATENATE(B135, " - ", C135) -> 13.1 - [Name of sub-vote] | E135: =IF(C135="[Name of sub-vote]"," ",D135) -> 
B136: 13.2 | C136: [Name of sub-vote] | D136: 13.2 - [Name of sub-vote] | E136: =IF(C136="[Name of sub-vote]"," ",D136) -> 
B137: 13.3 | C137: [Name of sub-vote] | D137: 13.3 - [Name of sub-vote]
B138: 13.4 | C138: [Name of sub-vote] | D138: 13.4 - [Name of sub-vote]
B139: 13.5 | C139: [Name of sub-vote] | D139: 13.5 - [Name of sub-vote]
B140: 13.6 | C140: [Name of sub-vote] | D140: 13.6 - [Name of sub-vote]
B141: 13.7 | C141: [Name of sub-vote] | D141: 13.7 - [Name of sub-vote]
B142: 13.8 | C142: [Name of sub-vote] | D142: 13.8 - [Name of sub-vote]
B143: 13.9 | C143: [Name of sub-vote] | D143: 13.9 - [Name of sub-vote]
B144: 13.10 | C144: [Name of sub-vote] | D144: 13.10 - [Name of sub-vote]
B145: Vote 14 | C145: [NAME OF VOTE 14]
B146: 14.1 | C146: [Name of sub-vote] | D146: =CONCATENATE(B146, " - ", C146) -> 14.1 - [Name of sub-vote] | E146: =IF(C146="[Name of sub-vote]"," ",D146) -> 
B147: 14.2 | C147: [Name of sub-vote] | D147: 14.2 - [Name of sub-vote] | E147: =IF(C147="[Name of sub-vote]"," ",D147) -> 
B148: 14.3 | C148: [Name of sub-vote] | D148: 14.3 - [Name of sub-vote]
B149: 14.4 | C149: [Name of sub-vote] | D149: 14.4 - [Name of sub-vote]
B150: 14.5 | C150: [Name of sub-vote] | D150: 14.5 - [Name of sub-vote]
B151: 14.6 | C151: [Name of sub-vote] | D151: 14.6 - [Name of sub-vote]
B152: 14.7 | C152: [Name of sub-vote] | D152: 14.7 - [Name of sub-vote]
B153: 14.8 | C153: [Name of sub-vote] | D153: 14.8 - [Name of sub-vote]
B154: 14.9 | C154: [Name of sub-vote] | D154: 14.9 - [Name of sub-vote]
B155: 14.10 | C155: [Name of sub-vote] | D155: 14.10 - [Name of sub-vote]
B156: Vote 15 | C156: [NAME OF VOTE 15]
B157: 15.1 | C157: [Name of sub-vote] | D157: =CONCATENATE(B157, " - ", C157) -> 15.1 - [Name of sub-vote] | E157: =IF(C157="[Name of sub-vote]"," ",D157) -> 
B158: 15.2 | C158: [Name of sub-vote] | D158: 15.2 - [Name of sub-vote] | E158: =IF(C158="[Name of sub-vote]"," ",D158) -> 
B159: 15.3 | C159: [Name of sub-vote] | D159: 15.3 - [Name of sub-vote] | E159: =IF(C159="[Name of sub-vote]"," ",D159) -> 
B160: 15.4 | C160: [Name of sub-vote] | D160: 15.4 - [Name of sub-vote]
B161: 15.5 | C161: [Name of sub-vote] | D161: 15.5 - [Name of sub-vote]
B162: 15.6 | C162: [Name of sub-vote] | D162: 15.6 - [Name of sub-vote]
B163: 15.7 | C163: [Name of sub-vote] | D163: 15.7 - [Name of sub-vote]
B164: 15.8 | C164: [Name of sub-vote] | D164: 15.8 - [Name of sub-vote]
B165: 15.9 | C165: [Name of sub-vote] | D165: 15.9 - [Name of sub-vote]
B166: 15.10 | C166: [Name of sub-vote] | D166: 15.10 - [Name of sub-vote]

Sheet Contacts
A1: =muni&" - "&" Contact Information" -> KZN434 Ubuhlebezwe - Contact Information
A3: A. GENERAL INFORMATION
A4: Municipality | B4: =muni -> KZN434 Ubuhlebezwe | C4: Set name on 'Instructions' sheet
A6: Grade | B6: grade 3 | C6: 1 Grade in terms of the Remuneration of Public Office Bearers Act.
A8: Province | B8: =IF(B4>" ",VLOOKUP(B4,'Lookup and lists'!B28:C311,2, FALSE)," ") -> Kwazulu-Natal
A10: Web Address | B10: www.ubuhlebezwe.gov.za
A12: e-mail Address | B12: admin@ubuhlebezwe.gov.za
A14: B. CONTACT INFORMATION
A15: Postal address:
A16: P.O. Box | B16: 132
A17: City / Town | B17: ixopo
A18: Postal Code | B18: 3276
A20: Street address
A21: Building | B21: Ubuhlebezwe Local Municipality
A22: Street No. & Name | B22: 29 Margaret Street
A23: City / Town | B23: ixopo
A24: Postal Code | B24: 3276
A26: General Contacts
A27: Telephone number | B27: 0398347700
A28: Fax number | B28: 0398341168
A30: C. POLITICAL LEADERSHIP
A31: Speaker: | C31: Secretary/PA to the Speaker:
A32: ID Number | B32: 8210085550082 | C32: ID Number | D32: 8711251243089
A33: Title | B33: MR | C33: Title | D33: MS
A34: Name | B34: CZ MNGONYAMA | C34: Name | D34: Z DLAMINI
A35: Telephone number | B35: 0398347700 | C35: Telephone number | D35: 0398347700
A36: Cell number | B36: 0763810379 | C36: Cell number | D36: 0729469852
A37: Fax number | B37: 0398341168 | C37: Fax number | D37: 0398341168
A38: E-mail address | B38: CZMNGONYAMA@UBUHLEBEZWE.GOV.ZA | C38: E-mail address | D38: ZDLAMINI@UBUHLEBEZWE.GOV.ZA
A40: Mayor/Executive Mayor: | C40: Secretary/PA to the Mayor/Executive Mayor:
A41: ID Number | B41: 7001235370088 | C41: ID Number | D41: 8405280610083
A42: Title | B42: MR | C42: Title | D42: MS
A43: Name | B43: ZD NXUMALO | C43: Name | D43: NI CHILIZA
A44: Telephone number | B44: 0398347700 | C44: Telephone number | D44: 0398347700
A45: Cell number | B45: 0834643726 | C45: Cell number | D45: 0729449067
A46: Fax number | B46: 0398341168 | C46: Fax number | D46: 0398341168
A47: E-mail address | B47: MAYOR@UBUHLEBEZWE.GOV.ZA | C47: E-mail address | D47: NCHILIZA@UBUHLEBEZWE.GOV.ZA
A49: Deputy Mayor/Executive Mayor: | C49: Secretary/PA to the Deputy Mayor/Executive Mayor:
A50: ID Number | B50: 7002020544085 | C50: ID Number | D50: 8711251243089
A51: Title | B51: MS | C51: Title | D51: MS
A52: Name | B52: EB NGUBO | C52: Name | D52: Z DLAMINI
A53: Telephone number | B53: 0398347700 | C53: Telephone number | D53: 0398347700
A54: Cell number | B54: 0839465761 | C54: Cell number | D54: 0729469852
A55: Fax number | B55: 0398341168 | C55: Fax number | D55: 0398341168
A56: E-mail address | B56: ZDLAMINI@UBUHLEBEZWE.GOV.ZA | C56: E-mail address | D56: ZDLAMINI@UBUHLEBEZWE.GOV.ZA
A58: D. MANAGEMENT LEADERSHIP
A59: Municipal Manager: | C59: Secretary/PA to the Municipal Manager:
A60: ID Number | C60: ID Number
A61: Title | B61: MR | C61: Title | D61: MS
A62: Name | B62: Gamakulu Sineke | C62: Name
A63: Telephone number | B63: 0398347700 | C63: Telephone number
A64: Cell number | B64: 0767947046 | C64: Cell number
A65: Fax number | B65: 0398341168 | C65: Fax number
A66: E-mail address | B66: mm@ubuhlebezwe.org.za | C66: E-mail address
A68: Chief Financial Officer | C68: Secretary/PA to the Chief Financial Officer
A69: ID Number | C69: ID Number
A70: Title | C70: Title
A71: Name | B71: NK SIBOBI | C71: Name
A72: Telephone number | B72: 0398347700 | C72: Telephone number
A73: Cell number | C73: Cell number
A74: Fax number | B74: 0398341168 | C74: Fax number
A75: E-mail address | B75: NKSIBOBI@UBUHLEBEZWE.GOV.ZA | C75: E-mail address
A77: Official responsible for submitting financial information | C77: Official responsible for submitting financial information
A78: ID Number | C78: ID Number
A79: Title | C79: Title
A80: Name | C80: Name
A81: Telephone number | C81: Telephone number
A82: Cell number | C82: Cell number
A83: Fax number | C83: Fax number
A84: E-mail address | C84: E-mail address
A85: Official responsible for submitting financial information | C85: Official responsible for submitting financial information
A86: ID Number | C86: ID Number
A87: Title | C87: Title
A88: Name | C88: Name
A89: Telephone number | C89: Telephone number
A90: Cell number | C90: Cell number
A91: Fax number | C91: Fax number
A92: E-mail address | C92: E-mail address
A93: Official responsible for submitting financial information | C93: Official responsible for submitting financial information
A94: ID Number | C94: ID Number
A95: Title | C95: Title
A96: Name | C96: Name
A97: Telephone number | C97: Telephone number
A98: Cell number | C98: Cell number
A99: Fax number | C99: Fax number
A100: E-mail address | C100: E-mail address
A101: Official responsible for submitting financial information | C101: Official responsible for submitting financial information
A102: ID Number | C102: ID Number
A103: Title | C103: Title
A104: Name | C104: Name
A105: Telephone number | C105: Telephone number
A106: Cell number | C106: Cell number
A107: Fax number | C107: Fax number
A108: E-mail address | C108: E-mail address
A109: Official responsible for submitting financial information | C109: Official responsible for submitting financial information
A110: ID Number | C110: ID Number
A111: Title | C111: Title
A112: Name | C112: Name
A113: Telephone number | C113: Telephone number
A114: Cell number | C114: Cell number
A115: Fax number | C115: Fax number
A116: E-mail address | C116: E-mail address
A117: Official responsible for submitting financial information | C117: Official responsible for submitting financial information
A118: ID Number | C118: ID Number
A119: Title | C119: Title
A120: Name | C120: Name
A121: Telephone number | C121: Telephone number
A122: Cell number | C122: Cell number
A123: Fax number | C123: Fax number
A124: E-mail address | C124: E-mail address
A125: Official responsible for submitting financial information | C125: Official responsible for submitting financial information
A126: ID Number | C126: ID Number
A127: Title | C127: Title
A128: Name | C128: Name
A129: Telephone number | C129: Telephone number
A130: Cell number | C130: Cell number
A131: Fax number | C131: Fax number
A132: E-mail address | C132: E-mail address
A133: Official responsible for submitting financial information
A134: ID Number
A135: Title
A136: Name
A137: Telephone number
A138: Cell number
A139: Fax number
A140: E-mail address

Sheet C1-Sum
A1: =muni& " - "&s71sum& " - "&date -> KZN434 Ubuhlebezwe - Table C1 Monthly Budget Statement Summary - Q1 First Quarter
A2: =desc -> Description | B2: =Head1 -> 2017/18 | C2: =Head2 -> Budget Year 2018/19
B3: =Head5 -> Audited Outcome | C3: =Head6 -> Original Budget | D3: =Head7 -> Adjusted Budget | E3: =Head38 -> Monthly actual | F3: =Head39 -> YearTD actual | G3: =Head40 -> YearTD budget | H3: =Head41 -> YTD variance | I3: =Head41 -> YTD variance | J3: =Head8 -> Full Year Forecast
A4: R thousands | I4: %
A5: Financial Performance
A6: Property rates | B6: =SUM('C4-FinPerf RE'!C6:C6) -> 0 | C6: =SUM('C4-FinPerf RE'!D6:D6) -> 36001948 | D6: =SUM('C4-FinPerf RE'!E6:E6) -> 36001948 | E6: =SUM('C4-FinPerf RE'!F6:F6) -> 1900711.91 | F6: =SUM('C4-FinPerf RE'!G6:G6) -> 5129773.54 | G6: =SUM('C4-FinPerf RE'!H6:H6) -> 9000480 | H6: =F6-G6 -> -3870706.46 | I6: =IF(H6=0,"",H6/G6) -> -0.4300555593 | J6: =SUM('C4-FinPerf RE'!K6:K6) -> 36001948
A7: Service charges | B7: =SUM('C4-FinPerf RE'!C7:C11) -> 0 | C7: =SUM('C4-FinPerf RE'!D7:D11) -> 2090247 | D7: =SUM('C4-FinPerf RE'!E7:E11) -> 2090247 | E7: =SUM('C4-FinPerf RE'!F7:F11) -> 124916.59 | F7: =SUM('C4-FinPerf RE'!G7:G11) -> 446891.92 | G7: =SUM('C4-FinPerf RE'!H7:H11) -> 522561 | H7: =F7-G7 -> -75669.08 | I7: =IF(H7=0,"",H7/G7) -> -0.1448043004 | J7: =SUM('C4-FinPerf RE'!K7:K11) -> 2090247
A8: Investment revenue | B8: ='C4-FinPerf RE'!C13 -> 0 | C8: ='C4-FinPerf RE'!D13 -> 10000000 | D8: ='C4-FinPerf RE'!E13 -> 10000000 | E8: ='C4-FinPerf RE'!F13 -> 419621.77 | F8: ='C4-FinPerf RE'!G13 -> 2140656.91 | G8: ='C4-FinPerf RE'!H13 -> 2499999 | H8: =F8-G8 -> -359342.09 | I8: =IF(H8=0,"",H8/G8) -> -0.1437368935 | J8: ='C4-FinPerf RE'!K13 -> 10000000
A9: Transfers and subsidies | B9: ='C4-FinPerf RE'!C19 -> 0 | C9: ='C4-FinPerf RE'!D19 -> 122380096 | D9: ='C4-FinPerf RE'!E19 -> 122380096 | E9: ='C4-FinPerf RE'!F19 -> 364916.62 | F9: ='C4-FinPerf RE'!G19 -> 42783892.32 | G9: ='C4-FinPerf RE'!H19 -> 30595017 | H9: =F9-G9 -> 12188875.32 | I9: =IF(H9=0,"",H9/G9) -> 0.3983941346 | J9: ='C4-FinPerf RE'!K19 -> 122380096
A10: Other own revenue | B10: ='C4-FinPerf RE'!C12+'C4-FinPerf RE'!C14+'C4-FinPerf RE'!C15+'C4-FinPerf RE'!C16+'C4-FinPerf RE'!C17+'C4-FinPerf RE'!C18+'C4-FinPerf RE'!C20+'C4-FinPerf RE'!C21 -> 0 | C10: ='C4-FinPerf RE'!D12+'C4-FinPerf RE'!D14+'C4-FinPerf RE'!D15+'C4-FinPerf RE'!D16+'C4-FinPerf RE'!D17+'C4-FinPerf RE'!D18+'C4-FinPerf RE'!D20+'C4-FinPerf RE'!D21 -> 7000392 | D10: ='C4-FinPerf RE'!E12+'C4-FinPerf RE'!E14+'C4-FinPerf RE'!E15+'C4-FinPerf RE'!E16+'C4-FinPerf RE'!E17+'C4-FinPerf RE'!E18+'C4-FinPerf RE'!E20+'C4-FinPerf RE'!E21 -> 7000392 | E10: ='C4-FinPerf RE'!F12+'C4-FinPerf RE'!F14+'C4-FinPerf RE'!F15+'C4-FinPerf RE'!F16+'C4-FinPerf RE'!F17+'C4-FinPerf RE'!F18+'C4-FinPerf RE'!F20+'C4-FinPerf RE'!F21 -> 433635.61 | F10: ='C4-FinPerf RE'!G12+'C4-FinPerf RE'!G14+'C4-FinPerf RE'!G15+'C4-FinPerf RE'!G16+'C4-FinPerf RE'!G17+'C4-FinPerf RE'!G18+'C4-FinPerf RE'!G20+'C4-FinPerf RE'!G21 -> 1085852.94 | G10: ='C4-FinPerf RE'!H12+'C4-FinPerf RE'!H14+'C4-FinPerf RE'!H15+'C4-FinPerf RE'!H16+'C4-FinPerf RE'!H17+'C4-FinPerf RE'!H18+'C4-FinPerf RE'!H20+'C4-FinPerf RE'!H21 -> 1750083 | H10: =F10-G10 -> -664230.06 | I10: =IF(H10=0,"",H10/G10) -> -0.3795420331 | J10: ='C4-FinPerf RE'!K12+'C4-FinPerf RE'!K14+'C4-FinPerf RE'!K15+'C4-FinPerf RE'!K16+'C4-FinPerf RE'!K17+'C4-FinPerf RE'!K18+'C4-FinPerf RE'!K20+'C4-FinPerf RE'!K21 -> 7000392
A11: Total Revenue (excluding capital transfers and contributions) | B11: =SUM(B6:B10) -> 0 | C11: 177472683 | D11: 177472683 | E11: 3243802.5 | F11: 51587067.63 | G11: 44368140 | H11: =F11-G11 -> 7218927.63 | I11: =IF(H11=0,"",H11/G11) -> 0.1627052121 | J11: 177472683
A12: Employee costs | B12: ='C4-FinPerf RE'!C25 -> 0 | C12: ='C4-FinPerf RE'!D25 -> 68426559 | D12: ='C4-FinPerf RE'!E25 -> 68426558 | E12: ='C4-FinPerf RE'!F25 -> 5165105.38 | F12: ='C4-FinPerf RE'!G25 -> 14353760.07 | G12: ='C4-FinPerf RE'!H25 -> 17106417 | H12: -2752656.93 | I12: -0.1609137045 | J12: ='C4-FinPerf RE'!K25 -> 68426559
A13: Remuneration of Councillors | B13: ='C4-FinPerf RE'!C26 -> 0 | C13: ='C4-FinPerf RE'!D26 -> 9862407 | D13: ='C4-FinPerf RE'!E26 -> 9862408 | E13: ='C4-FinPerf RE'!F26 -> 824327.45 | F13: ='C4-FinPerf RE'!G26 -> 2472982.35 | G13: ='C4-FinPerf RE'!H26 -> 2465577 | H13: 7405.35 | I13: 0.003003495733 | J13: ='C4-FinPerf RE'!K26 -> 9862407
A14: Depreciation & asset impairment | B14: ='C4-FinPerf RE'!C28 -> 0 | C14: ='C4-FinPerf RE'!D28 -> 20000000 | D14: ='C4-FinPerf RE'!E28 -> 20000000 | E14: ='C4-FinPerf RE'!F28 -> 0 | F14: ='C4-FinPerf RE'!G28 -> 0 | G14: ='C4-FinPerf RE'!H28 -> 4999989 | H14: -4999989 | I14: -1 | J14: ='C4-FinPerf RE'!K28 -> 20000000
A15: Finance charges | B15: ='C4-FinPerf RE'!C29 -> 0 | C15: ='C4-FinPerf RE'!D29 -> 0 | D15: ='C4-FinPerf RE'!E29 -> 0 | E15: ='C4-FinPerf RE'!F29 -> 0 | F15: ='C4-FinPerf RE'!G29 -> 0 | G15: ='C4-FinPerf RE'!H29 -> 0 | H15: 0 | J15: ='C4-FinPerf RE'!K29 -> 0
A16: Materials and bulk purchases | B16: =SUM('C4-FinPerf RE'!C30:C31) -> 0 | C16: =SUM('C4-FinPerf RE'!D30:D31) -> 756454 | D16: =SUM('C4-FinPerf RE'!E30:E31) -> 756454 | E16: =SUM('C4-FinPerf RE'!F30:F31) -> 39201.19 | F16: =SUM('C4-FinPerf RE'!G30:G31) -> 74368.2 | G16: =SUM('C4-FinPerf RE'!H30:H31) -> 189096 | H16: -114727.8 | I16: -0.606717223 | J16: =SUM('C4-FinPerf RE'!K30:K31) -> 756454
A17: Transfers and subsidies | B17: ='C4-FinPerf RE'!C33 -> 0 | C17: ='C4-FinPerf RE'!D33 -> 20152096 | D17: ='C4-FinPerf RE'!E33 -> 20152096 | E17: ='C4-FinPerf RE'!F33 -> 266953.83 | F17: ='C4-FinPerf RE'!G33 -> 663215.81 | G17: ='C4-FinPerf RE'!H33 -> 5038014 | H17: -4374798.19 | I17: -0.8683576882 | J17: ='C4-FinPerf RE'!K33 -> 20152096
A18: Other expenditure | B18: ='C4-FinPerf RE'!C36-SUM('C1-Sum'!B12:B17) -> 0 | C18: ='C4-FinPerf RE'!D36-SUM('C1-Sum'!C12:C17) -> 46750636 | D18: ='C4-FinPerf RE'!E36-SUM('C1-Sum'!D12:D17) -> 46750636 | E18: ='C4-FinPerf RE'!F36-SUM('C1-Sum'!E12:E17) -> 2507220.92 | F18: ='C4-FinPerf RE'!G36-SUM('C1-Sum'!F12:F17) -> 5371683.35 | G18: ='C4-FinPerf RE'!H36-SUM('C1-Sum'!G12:G17) -> 11687367 | H18: -6315683.65 | I18: -0.5403854991 | J18: ='C4-FinPerf RE'!K36-SUM('C1-Sum'!J12:J17) -> 46750636
A19: Total Expenditure | B19: =SUM(B12:B18) -> 0 | C19: 165948152 | D19: 165948152 | E19: 8802808.77 | F19: 22936009.78 | G19: 41486460 | H19: -18550450.22 | I19: -0.4471446882 | J19: =SUM(J12:J18) -> 165948152
A20: Surplus/(Deficit) | B20: =B11-B19 -> 0 | C20: 11524531 | D20: 11524531 | E20: -5559006.27 | F20: 28651057.85 | G20: 2881680 | H20: 25769377.85 | I20: 8.942484193 | J20: =J11-J19 -> 11524531
A21: ='C4-FinPerf RE'!A39 -> Transfers and subsidies - capital (monetary allocations) (National / Provincial and District) | B21: ='C4-FinPerf RE'!C39 -> 0 | C21: ='C4-FinPerf RE'!D39 -> 26439000 | D21: ='C4-FinPerf RE'!E39 -> 26439000 | E21: ='C4-FinPerf RE'!F39 -> 445046.79 | F21: ='C4-FinPerf RE'!G39 -> 1865298.24 | G21: ='C4-FinPerf RE'!H39 -> 6609750 | H21: -4744451.76 | I21: -0.7177959469 | J21: ='C4-FinPerf RE'!K39 -> 26439000
A22: Contributions & Contributed assets | B22: =SUM('C4-FinPerf RE'!C40:C41) -> 0 | C22: =SUM('C4-FinPerf RE'!D40:D41) -> 0 | D22: =SUM('C4-FinPerf RE'!E40:E41) -> 0 | E22: =SUM('C4-FinPerf RE'!F40:F41) -> 0 | F22: =SUM('C4-FinPerf RE'!G40:G41) -> 0 | G22: =SUM('C4-FinPerf RE'!H40:H41) -> 0 | H22: 0 | J22: =SUM('C4-FinPerf RE'!K40:K41) -> 0
A23: Surplus/(Deficit) after capital transfers & contributions | B23: =B20+B21+B22 -> 0 | C23: 37963531 | D23: 37963531 | E23: -5113959.48 | F23: 30516356.09 | G23: 9491430 | H23: 21024926.09 | I23: 2.215148412 | J23: =J20+J21+J22 -> 37963531
A24: Share of surplus/ (deficit) of associate | B24: ='C4-FinPerf RE'!C47 -> 0 | C24: ='C4-FinPerf RE'!D47 -> 0 | D24: ='C4-FinPerf RE'!E47 -> 0 | E24: ='C4-FinPerf RE'!F47 -> 0 | F24: ='C4-FinPerf RE'!G47 -> 0 | G24: ='C4-FinPerf RE'!H47 -> 0 | H24: 0 | J24: ='C4-FinPerf RE'!K47 -> 0
A25: Surplus/ (Deficit) for the year | B25: =B23+B24 -> 0 | C25: 37963531 | D25: 37963531 | E25: -5113959.48 | F25: 30516356.09 | G25: 9491430 | H25: 21024926.09 | I25: 2.215148412 | J25: =J23+J24 -> 37963531
A27: Capital expenditure & funds sources
A28: Capital expenditure | B28: ='C5-Capex'!C40 -> 0 | C28: ='C5-Capex'!D40 -> 67260989 | D28: ='C5-Capex'!E40 -> 67260989 | E28: ='C5-Capex'!F40 -> 0 | F28: ='C5-Capex'!G40 -> 200865.7 | G28: ='C5-Capex'!H40 -> 16815183 | H28: =F28-G28 -> -16614317.3 | I28: =IF(H28=0,"",H28/G28) -> -0.9880545041 | J28: ='C5-Capex'!K40 -> 67260989
A29: Capital transfers recognised | B29: ='C5-Capex'!C70 -> 0 | C29: ='C5-Capex'!D70 -> 26439003 | D29: ='C5-Capex'!E70 -> 26439003 | E29: ='C5-Capex'!F70 -> 0 | F29: ='C5-Capex'!G70 -> 0 | G29: ='C5-Capex'!H70 -> 6609726 | H29: -6609726 | I29: -1 | J29: ='C5-Capex'!K70 -> 26439003
A30: Public contributions & donations | B30: ='C5-Capex'!C71 -> 0 | C30: ='C5-Capex'!D71 -> 0 | D30: ='C5-Capex'!E71 -> 0 | E30: ='C5-Capex'!F71 -> 0 | F30: ='C5-Capex'!G71 -> 0 | G30: ='C5-Capex'!H71 -> 0 | H30: 0 | J30: ='C5-Capex'!K71 -> 0
A31: Borrowing | B31: ='C5-Capex'!C72 -> 0 | C31: ='C5-Capex'!D72 -> 0 | D31: ='C5-Capex'!E72 -> 0 | E31: ='C5-Capex'!F72 -> 0 | F31: ='C5-Capex'!G72 -> 0 | G31: ='C5-Capex'!H72 -> 0 | H31: 0 | J31: ='C5-Capex'!K72 -> 0
A32: Internally generated funds | B32: ='C5-Capex'!C73 -> 0 | C32: ='C5-Capex'!D73 -> 40821986 | D32: ='C5-Capex'!E73 -> 40821986 | E32: ='C5-Capex'!F73 -> 0 | F32: ='C5-Capex'!G73 -> 200865.7 | G32: ='C5-Capex'!H73 -> 1806801 | H32: -1605935.3 | I32: -0.8888279894 | J32: ='C5-Capex'!K73 -> 7227218
A33: Total sources of capital funds | B33: =SUM(B29:B32) -> 0 | C33: 67260989 | D33: 67260989 | E33: =SUM(E29:E32) -> 0 | F33: =SUM(F29:F32) -> 200865.7 | G33: =SUM(G29:G32) -> 8416527 | H33: -8215661.3 | I33: -0.9761343723 | J33: 33666221
A35: Financial position
A36: Total current assets | B36: ='C6-FinPos'!C13 -> 0 | C36: ='C6-FinPos'!D13 -> 0 | D36: ='C6-FinPos'!E13 -> 0 | F36: ='C6-FinPos'!F13 -> 27029664.57 | J36: ='C6-FinPos'!G13 -> 0
A37: Total non current assets | B37: ='C6-FinPos'!C25 -> 0 | C37: ='C6-FinPos'!D25 -> 67260989 | D37: ='C6-FinPos'!E25 -> 67260989 | F37: ='C6-FinPos'!F25 -> 4411619.67 | J37: ='C6-FinPos'!G25 -> 67260989
A38: Total current liabilities | B38: ='C6-FinPos'!C35 -> 0 | C38: ='C6-FinPos'!D35 -> 0 | D38: ='C6-FinPos'!E35 -> 0 | F38: ='C6-FinPos'!F35 -> 1592354.15 | J38: ='C6-FinPos'!G35 -> 0
A39: Total non current liabilities | B39: ='C6-FinPos'!C40 -> 0 | C39: ='C6-FinPos'!D40 -> 0 | D39: ='C6-FinPos'!E40 -> 0 | F39: ='C6-FinPos'!F40 -> 0 | J39: ='C6-FinPos'!G40 -> 0
A40: Community wealth/Equity | B40: ='C6-FinPos'!C48 -> 0 | C40: ='C6-FinPos'!D48 -> 0 | D40: ='C6-FinPos'!E48 -> 0 | F40: ='C6-FinPos'!F48 -> -308793.99 | J40: ='C6-FinPos'!G48 -> 0
A42: Cash flows
A43: Net cash from (used) operating | B43: ='C7-CFlow'!C18 -> 0 | C43: ='C7-CFlow'!D18 -> 138228694 | D43: ='C7-CFlow'!E18 -> 138228694 | E43: ='C7-CFlow'!F18 -> 6303544.7 | F43: ='C7-CFlow'!G18 -> 58947707.94 | G43: ='C7-CFlow'!H18 -> 34557207 | H43: =G43-F43 -> -24390500.94 | I43: =IF(H43=0,"",H43/G43) -> -0.7058007014 | J43: ='C7-CFlow'!K18 -> 138228694
A44: Net cash from (used) investing | B44: ='C7-CFlow'!C28 -> 0 | C44: ='C7-CFlow'!D28 -> 0 | D44: ='C7-CFlow'!E28 -> 0 | E44: ='C7-CFlow'!F28 -> 0 | F44: ='C7-CFlow'!G28 -> 0 | G44: ='C7-CFlow'!H28 -> 0 | H44: =G44-F44 -> 0 | I44: =IF(H44=0,"",H44/G44) ->  | J44: ='C7-CFlow'!K28 -> 0
A45: Net cash from (used) financing | B45: ='C7-CFlow'!C37 -> 0 | C45: ='C7-CFlow'!D37 -> 0 | D45: ='C7-CFlow'!E37 -> 0 | E45: ='C7-CFlow'!F37 -> 0 | F45: ='C7-CFlow'!G37 -> 0 | G45: ='C7-CFlow'!H37 -> 0 | H45: =G45-F45 -> 0 | I45: =IF(H45=0,"",H45/G45) ->  | J45: ='C7-CFlow'!K37 -> 0
A46: Cash/cash equivalents at the month/year end | B46: ='C7-CFlow'!C41 -> 0 | C46: ='C7-CFlow'!D41 -> 138228694 | D46: ='C7-CFlow'!E41 -> 138228694 | E46: ='C7-CFlow'!F41 -> 0 | F46: ='C7-CFlow'!G41 -> 58947707.94 | G46: ='C7-CFlow'!H41 -> 34557207 | H46: =G46-F46 -> -24390500.94 | I46: =IF(H46=0,"",H46/G46) -> -0.7058007014 | J46: ='C7-CFlow'!K41 -> 138228694
A48: Debtors & creditors analysis | B48: ='SC3'!C3 -> 0-30 Days | C48: ='SC3'!D3 -> 31-60 Days | D48: ='SC3'!E3 -> 61-90 Days | E48: ='SC3'!F3 -> 91-120 Days | F48: ='SC3'!G3 -> 121-150 Dys | G48: ='SC3'!H3 -> 151-180 Dys | H48: ='SC3'!I3 -> 181 Dys-1 Yr | I48: ='SC3'!J3 -> Over 1Yr | J48: Total
A49: =LEFT('SC3'!A4,20) -> Debtors Age Analysis
A50: ='SC3'!A14 -> Total By Income Source | B50: ='SC3'!C14 -> -6029803.41 | C50: ='SC3'!D14 -> 1328763.83 | D50: ='SC3'!E14 -> 675107.57 | E50: ='SC3'!F14 -> 654967.66 | F50: ='SC3'!G14 -> 634494.69 | G50: ='SC3'!H14 -> 577051.12 | H50: ='SC3'!I14 -> 4696662.61 | I50: ='SC3'!J14 -> 28377987.52 | J50: ='SC3'!K14 -> 30915231.59
A51: =LEFT('SC4'!A5,22) -> Creditors Age Analysis
A52: Total Creditors | B52: ='SC4'!C15 -> 177765.25 | C52: ='SC4'!D15 -> 0 | D52: ='SC4'!E15 -> 0 | E52: ='SC4'!F15 -> 0 | F52: ='SC4'!G15 -> 0 | G52: ='SC4'!H15 -> 0 | H52: ='SC4'!I15 -> 0 | I52: ='SC4'!J15 -> 941682.5 | J52: ='SC4'!K15 -> 1119447.75

Sheet C2-FinPerf SC
A1: =muni& " - "&S71A& " - "&date -> KZN434 Ubuhlebezwe - Table C2 Monthly Budget Statement - Financial Performance (functional classification) - Q1 First Quarter
A2: =desc -> Description | B2: =head27 -> Ref | C2: =Head1 -> 2017/18 | D2: =Head2 -> Budget Year 2018/19
C3: =Head5 -> Audited Outcome | D3: =Head6 -> Original Budget | E3: =Head7 -> Adjusted Budget | F3: =Head38 -> Monthly actual | G3: =Head39 -> YearTD actual | H3: =Head40 -> YearTD budget | I3: =Head41 -> YTD variance | J3: =Head41 -> YTD variance | K3: =Head8 -> Full Year Forecast
A4: R thousands | B4: 1 | J4: %
A5: Revenue - Functional
A6: Governance and administration | C6: =SUM(C7:C9) -> 0 | D6: 148649244 | E6: 148649244 | F6: 2517697.31 | G6: 49018097.41 | H6: 37162299 | I6: =G6-H6 -> 11855798.41 | J6: =IF(I6=0,"",I6/H6) -> 0.3190275825 | K6: =SUM(K7:K9) -> 148649244
A7: Executive and council | C7: ='C2C'!C7 -> 0 | D7: ='C2C'!D7 -> 0 | E7: ='C2C'!E7 -> 0 | F7: ='C2C'!F7 -> 0 | G7: ='C2C'!G7 -> 0 | H7: ='C2C'!H7 -> 0 | I7: 0 | J7: =IF(I7=0,"",I7/H7) ->  | K7: ='C2C'!K7 -> 0
A8: Finance and administration | C8: ='C2C'!C10 -> 0 | D8: ='C2C'!D10 -> 148649244 | E8: ='C2C'!E10 -> 148649244 | F8: ='C2C'!F10 -> 2517697.31 | G8: ='C2C'!G10 -> 49018097.41 | H8: ='C2C'!H10 -> 37162299 | I8: 11855798.41 | J8: 0.3190275825 | K8: ='C2C'!K10 -> 148649244
A9: Internal audit | C9: ='C2C'!C25 -> 0 | D9: ='C2C'!D25 -> 0 | E9: ='C2C'!E25 -> 0 | F9: ='C2C'!F25 -> 0 | G9: ='C2C'!G25 -> 0 | H9: ='C2C'!H25 -> 0 | I9: 0 | K9: ='C2C'!K25 -> 0
A10: Community and public safety | C10: =SUM(C11:C15) -> 0 | D10: 7227892 | E10: 7227892 | F10: 424489.35 | G10: 1630254.37 | H10: 1806963 | I10: -176708.63 | J10: -0.09779316455 | K10: =SUM(K11:K15) -> 7227892
A11: Community and social services | C11: ='C2C'!C28 -> 0 | D11: ='C2C'!D28 -> 2491496 | E11: ='C2C'!E28 -> 2491496 | F11: ='C2C'!F28 -> 228907.15 | G11: ='C2C'!G28 -> 370131.69 | H11: ='C2C'!H28 -> 622869 | I11: -252737.31 | J11: -0.4057631862 | K11: ='C2C'!K28 -> 2491496
A12: Sport and recreation | C12: ='C2C'!C50 -> 0 | D12: ='C2C'!D50 -> 58000 | E12: ='C2C'!E50 -> 58000 | F12: ='C2C'!F50 -> 0 | G12: ='C2C'!G50 -> 0 | H12: ='C2C'!H50 -> 14499 | I12: -14499 | J12: -1 | K12: ='C2C'!K50 -> 58000
A13: Public safety | C13: ='C2C'!C56 -> 0 | D13: ='C2C'!D56 -> 3826300 | E13: ='C2C'!E56 -> 3826300 | F13: ='C2C'!F56 -> 178800.09 | G13: ='C2C'!G56 -> 666940.67 | H13: ='C2C'!H56 -> 956571 | I13: -289630.33 | J13: -0.3027797518 | K13: ='C2C'!K56 -> 3826300
A14: Housing | C14: ='C2C'!C63 -> 0 | D14: ='C2C'!D63 -> 852096 | E14: ='C2C'!E63 -> 852096 | F14: ='C2C'!F63 -> 16782.11 | G14: ='C2C'!G63 -> 593182.01 | H14: ='C2C'!H63 -> 213024 | I14: =G14-H14 -> 380158.01 | J14: =IF(I14=0,"",I14/H14) -> 1.78457831 | K14: ='C2C'!K63 -> 852096
A15: Health | C15: ='C2C'!C66 -> 0 | D15: ='C2C'!D66 -> 0 | E15: ='C2C'!E66 -> 0 | F15: ='C2C'!F66 -> 0 | G15: ='C2C'!G66 -> 0 | H15: ='C2C'!H66 -> 0 | I15: 0 | K15: ='C2C'!K66 -> 0
A16: Economic and environmental services | C16: =SUM(C17:C19) -> 0 | D16: 29944300 | E16: 29944300 | F16: 621746.04 | G16: 2357122.17 | H16: 7486068 | I16: -5128945.83 | J16: -0.6851321455 | K16: =SUM(K17:K19) -> 29944300
A17: Planning and development | C17: ='C2C'!C75 -> 0 | D17: ='C2C'!D75 -> 27554780 | E17: ='C2C'!E75 -> 27554780 | F17: ='C2C'!F75 -> 450526.74 | G17: ='C2C'!G75 -> 450833.87 | H17: ='C2C'!H75 -> 6888693 | I17: -6437859.13 | J17: -0.9345545127 | K17: ='C2C'!K75 -> 27554780
A18: Road transport | C18: ='C2C'!C86 -> 0 | D18: ='C2C'!D86 -> 2389520 | E18: ='C2C'!E86 -> 2389520 | F18: ='C2C'!F86 -> 171219.3 | G18: ='C2C'!G86 -> 1906288.3 | H18: ='C2C'!H86 -> 597375 | I18: 1308913.3 | J18: 2.191108265 | K18: ='C2C'!K86 -> 2389520
A19: Environmental protection | C19: ='C2C'!C93 -> 0 | D19: ='C2C'!D93 -> 0 | E19: ='C2C'!E93 -> 0 | F19: ='C2C'!F93 -> 0 | G19: ='C2C'!G93 -> 0 | H19: ='C2C'!H93 -> 0 | I19: 0 | K19: ='C2C'!K93 -> 0
A20: Trading services | C20: =SUM(C21:C24) -> 0 | D20: =SUM(D21:D24) -> 18090247 | E20: 18090247 | F20: 124916.59 | G20: 446891.92 | H20: 4522560 | I20: -4075668.08 | J20: -0.9011860716 | K20: =SUM(K21:K24) -> 18090247
A21: Energy sources | C21: ='C2C'!C101 -> 0 | D21: ='C2C'!D101 -> 16000000 | E21: ='C2C'!E101 -> 16000000 | F21: ='C2C'!F101 -> 0 | G21: ='C2C'!G101 -> 0 | H21: ='C2C'!H101 -> 3999999 | I21: =G21-H21 -> -3999999 | J21: -1 | K21: ='C2C'!K101 -> 16000000
A22: Water management | C22: ='C2C'!C105 -> 0 | D22: ='C2C'!D105 -> 0 | E22: ='C2C'!E105 -> 0 | F22: ='C2C'!F105 -> 0 | G22: ='C2C'!G105 -> 0 | H22: ='C2C'!H105 -> 0 | I22: =G22-H22 -> 0 | K22: ='C2C'!K105 -> 0
A23: Waste water management | C23: ='C2C'!C109 -> 0 | D23: ='C2C'!D109 -> 0 | E23: ='C2C'!E109 -> 0 | F23: ='C2C'!F109 -> 0 | G23: ='C2C'!G109 -> 0 | H23: ='C2C'!H109 -> 0 | I23: =G23-H23 -> 0 | K23: ='C2C'!K109 -> 0
A24: Waste management | C24: ='C2C'!C114 -> 0 | D24: ='C2C'!D114 -> 2090247 | E24: ='C2C'!E114 -> 2090247 | F24: ='C2C'!F114 -> 124916.59 | G24: ='C2C'!G114 -> 446891.92 | H24: ='C2C'!H114 -> 522561 | I24: =G24-H24 -> -75669.08 | J24: -0.1448043004 | K24: ='C2C'!K114 -> 2090247
A25: Other | B25: 4 | C25: ='C2C'!C119 -> 0 | D25: ='C2C'!D119 -> 0 | E25: ='C2C'!E119 -> 0 | F25: ='C2C'!F119 -> 0 | G25: ='C2C'!G119 -> 0 | H25: ='C2C'!H119 -> 0 | I25: =G25-H25 -> 0 | K25: ='C2C'!K119 -> 0
A26: Total Revenue - Functional | B26: 2 | C26: =C6+C10+C16+C20+C25 -> 0 | D26: =D6+D10+D16+D20+D25 -> 203911683 | E26: 203911683 | F26: 3688849.29 | G26: 53452365.87 | H26: 50977890 | I26: 2474475.87 | J26: 0.0485401783 | K26: =K6+K10+K16+K20+K25 -> 203911683
A28: Expenditure - Functional
A29: Governance and administration | C29: =SUM(C30:C32) -> 0 | D29: 86037200 | E29: 86067200 | F29: 4203800.47 | G29: 11405371.59 | H29: 21516552 | I29: =G29-H29 -> -10111180.41 | J29: =IF(I29=0,"",I29/H29) -> -0.4699256837 | K29: =SUM(K30:K32) -> 86037200
A30: Executive and council | C30: ='C2C'!C130 -> 0 | D30: ='C2C'!D130 -> 22589288 | E30: ='C2C'!E130 -> 22589288 | F30: ='C2C'!F130 -> 1566513.33 | G30: ='C2C'!G130 -> 3839796.16 | H30: ='C2C'!H130 -> 5647209 | I30: -1807412.84 | J30: =IF(I30=0,"",I30/H30) -> -0.320054179 | K30: ='C2C'!K130 -> 22589288
A31: Finance and administration | C31: ='C2C'!C133 -> 0 | D31: ='C2C'!D133 -> 63341867 | E31: ='C2C'!E133 -> 63371867 | F31: ='C2C'!F133 -> 2337915.97 | G31: ='C2C'!G133 -> 6762077.71 | H31: ='C2C'!H133 -> 15842832 | I31: -9080754.29 | J31: -0.5731774654 | K31: ='C2C'!K133 -> 63341867
A32: Internal audit | C32: ='C2C'!C148 -> 0 | D32: ='C2C'!D148 -> 106045 | E32: ='C2C'!E148 -> 106045 | F32: ='C2C'!F148 -> 299371.17 | G32: ='C2C'!G148 -> 803497.72 | H32: ='C2C'!H148 -> 26511 | I32: 776986.72 | J32: 29.30808796 | K32: ='C2C'!K148 -> 106045
A33: Community and public safety | C33: =SUM(C34:C38) -> 0 | D33: 26660324 | E33: 26660324 | F33: 2051433.95 | G33: 5200784.09 | H33: 6664899 | I33: -1464114.91 | J33: -0.2196754835 | K33: =SUM(K34:K38) -> 26660324
A34: Community and social services | C34: ='C2C'!C151 -> 0 | D34: ='C2C'!D151 -> 9048809 | E34: ='C2C'!E151 -> 9048809 | F34: ='C2C'!F151 -> 689050.65 | G34: ='C2C'!G151 -> 1738170.97 | H34: ='C2C'!H151 -> 2262102 | I34: -523931.03 | J34: -0.2316124693 | K34: ='C2C'!K151 -> 9048809
A35: Sport and recreation | C35: ='C2C'!C173 -> 0 | D35: ='C2C'!D173 -> 585355 | E35: ='C2C'!E173 -> 585355 | F35: ='C2C'!F173 -> 3625.75 | G35: ='C2C'!G173 -> 6347.01 | H35: ='C2C'!H173 -> 146322 | I35: -139974.99 | J35: -0.9566229959 | K35: ='C2C'!K173 -> 585355
A36: Public safety | C36: ='C2C'!C179 -> 0 | D36: ='C2C'!D179 -> 14966986 | E36: ='C2C'!E179 -> 14966986 | F36: ='C2C'!F179 -> 1129589.42 | G36: ='C2C'!G179 -> 3057047.17 | H36: ='C2C'!H179 -> 3741693 | I36: -684645.83 | J36: -0.1829775532 | K36: ='C2C'!K179 -> 14966986
A37: Housing | C37: ='C2C'!C186 -> 0 | D37: ='C2C'!D186 -> 2059174 | E37: ='C2C'!E186 -> 2059174 | F37: ='C2C'!F186 -> 229168.13 | G37: ='C2C'!G186 -> 399218.94 | H37: ='C2C'!H186 -> 514782 | I37: -115563.06 | J37: -0.2244893178 | K37: ='C2C'!K186 -> 2059174
A38: Health | C38: ='C2C'!C189 -> 0 | D38: ='C2C'!D189 -> 0 | E38: ='C2C'!E189 -> 0 | F38: ='C2C'!F189 -> 0 | G38: ='C2C'!G189 -> 0 | H38: ='C2C'!H189 -> 0 | I38: 0 | K38: ='C2C'!K189 -> 0
A39: Economic and environmental services | C39: =SUM(C40:C42) -> 0 | D39: 26361556 | E39: 26331557 | F39: 1675628.33 | G39: 4033699.58 | H39: 6582765 | I39: -2549065.42 | J39: -0.3872332401 | K39: =SUM(K40:K42) -> 26361556
A40: Planning and development | C40: ='C2C'!C198 -> 0 | D40: ='C2C'!D198 -> 9141241 | E40: ='C2C'!E198 -> 9111241 | F40: ='C2C'!F198 -> 497900.27 | G40: ='C2C'!G198 -> 1238998.11 | H40: ='C2C'!H198 -> 2277753 | I40: -1038754.89 | J40: -0.4560436931 | K40: ='C2C'!K198 -> 9141241
A41: Road transport | C41: ='C2C'!C209 -> 0 | D41: ='C2C'!D209 -> 17220315 | E41: ='C2C'!E209 -> 17220316 | F41: ='C2C'!F209 -> 1177728.06 | G41: ='C2C'!G209 -> 2794701.47 | H41: ='C2C'!H209 -> 4305012 | I41: -1510310.53 | J41: -0.3508260906 | K41: ='C2C'!K209 -> 17220315
A42: Environmental protection | C42: ='C2C'!C216 -> 0 | D42: ='C2C'!D216 -> 0 | E42: ='C2C'!E216 -> 0 | F42: ='C2C'!F216 -> 0 | G42: ='C2C'!G216 -> 0 | H42: ='C2C'!H216 -> 0 | I42: 0 | K42: ='C2C'!K216 -> 0
A43: Trading services | C43: =SUM(C44:C47) -> 0 | D43: =SUM(D44:D47) -> 26889072 | E43: 26889071 | F43: 871946.02 | G43: 2296154.52 | H43: 6722244 | I43: -4426089.48 | J43: -0.6584244011 | K43: =SUM(K44:K47) -> 26889072
A44: Energy sources | C44: ='C2C'!C224 -> 0 | D44: ='C2C'!D224 -> 16000000 | E44: ='C2C'!E224 -> 16000000 | F44: ='C2C'!F224 -> 0 | G44: ='C2C'!G224 -> 49402.14 | H44: ='C2C'!H224 -> 3999996 | I44: -3950593.86 | J44: -0.9876494526 | K44: ='C2C'!K224 -> 16000000
A45: Water management | C45: ='C2C'!C228 -> 0 | D45: ='C2C'!D228 -> 0 | E45: ='C2C'!E228 -> 0 | F45: ='C2C'!F228 -> 0 | G45: ='C2C'!G228 -> 0 | H45: ='C2C'!H228 -> 0 | I45: 0 | K45: ='C2C'!K228 -> 0
A46: Waste water management | C46: ='C2C'!C232 -> 0 | D46: ='C2C'!D232 -> 0 | E46: ='C2C'!E232 -> 0 | F46: ='C2C'!F232 -> 0 | G46: ='C2C'!G232 -> 0 | H46: ='C2C'!H232 -> 0 | I46: 0 | K46: ='C2C'!K232 -> 0
A47: Waste management | C47: ='C2C'!C237 -> 0 | D47: ='C2C'!D237 -> 10889072 | E47: ='C2C'!E237 -> 10889071 | F47: ='C2C'!F237 -> 871946.02 | G47: ='C2C'!G237 -> 2246752.38 | H47: ='C2C'!H237 -> 2722248 | I47: -475495.62 | J47: -0.1746702064 | K47: ='C2C'!K237 -> 10889072
A48: Other | C48: ='C2C'!C242 -> 0 | D48: ='C2C'!D242 -> 0 | E48: ='C2C'!E242 -> 0 | F48: ='C2C'!F242 -> 0 | G48: ='C2C'!G242 -> 0 | H48: ='C2C'!H242 -> 0 | I48: 0 | K48: ='C2C'!K242 -> 0
A49: Total Expenditure - Functional | B49: 3 | C49: =C29+C33+C39+C43+C48 -> 0 | D49: =D29+D33+D39+D43+D48 -> 165948152 | E49: 165948152 | F49: 8802808.77 | G49: 22936009.78 | H49: 41486460 | I49: -18550450.22 | J49: -0.4471446882 | K49: =K29+K33+K39+K43+K48 -> 165948152
A50: Surplus/ (Deficit) for the year | C50: =C26-C49 -> 0 | D50: 37963531 | E50: 37963531 | F50: -5113959.48 | G50: 30516356.09 | H50: 9491430 | I50: =I26-I49 -> 21024926.09 | J50: =IF(I50=0,"",I50/H50) -> 2.215148412 | K50: =K26-K49 -> 37963531
A51: =head27a -> References
A52: 1. Government Finance Statistics Functions and Sub-functions are standardised to assist the compilation of national and international accounts for comparison purposes
A53: 2. Total Revenue by functional classification must reconcile to Total Operating Revenue shown in the Financial Performance Statement
A54: 3. Total Expenditure by functional classification must reconcile to total operating expenditure shown in 'Financial Performance Statement'
A55: 4. All amounts must be classified under a functional classification (modified GFS). The GFS function 'Other' is only for Abbatoirs, Air Transport, Licensing and Regulation, Markets and Tourism - and if used must be supported by footnotes. Nothing else may be placed under 'Other'. Assign associate share to relevant classification

Sheet C2C
A1: =muni& " - "&S71A& " - "&date -> KZN434 Ubuhlebezwe - Table C2 Monthly Budget Statement - Financial Performance (functional classification) - Q1 First Quarter
A2: =desc -> Description | B2: =head27 -> Ref | C2: =Head1 -> 2017/18 | D2: =Head2 -> Budget Year 2018/19
C3: =Head5 -> Audited Outcome | D3: =Head6 -> Original Budget | E3: =Head7 -> Adjusted Budget | F3: =Head38 -> Monthly actual | G3: =Head39 -> YearTD actual | H3: =Head40 -> YearTD budget | I3: =Head41 -> YTD variance | J3: =Head41 -> YTD variance | K3: =Head8 -> Full Year Forecast | L3: C2C
A4: R thousands | B4: 1 | J4: %
A5: Revenue - Functional
A6: Municipal governance and administration | C6: =C7+C10+C25 -> 0 | D6: =D7+D10+D25 -> 148649244 | E6: 148649244 | F6: 2517697.31 | G6: 49018097.41 | H6: 37162299 | I6: =G6-H6 -> 11855798.41 | J6: =IF(I6=0,"",I6/H6) -> 0.3190275825 | K6: 148649244 | L6: 1000 REV
A7: Executive and council | C7: =SUM(C8:C9) -> 0 | D7: =SUM(D8:D9) -> 0 | E7: 0 | F7: 0 | G7: 0 | H7: 0 | I7: =G7-H7 -> 0 | J7: =IF(I7=0,"",I7/H7) ->  | K7: 0 | L7: 1100 REV
A8: Mayor and Council | C8: =-SUMIFS('C Schedule Import Data'!T:T,'C Schedule Import Data'!$A:$A,$L$3,'C Schedule Import Data'!$B:$B,$L8) -> 0 | D8: =-SUMIFS('C Schedule Import Data'!U:U,'C Schedule Import Data'!$A:$A,$L$3,'C Schedule Import Data'!$B:$B,$L8) -> 0 | E8: =-SUMIFS('C Schedule Import Data'!V:V,'C Schedule Import Data'!$A:$A,$L$3,'C Schedule Import Data'!$B:$B,$L8) -> 0 | F8: =-SUMIFS('C Schedule Import Data'!W:W,'C Schedule Import Data'!$A:$A,$L$3,'C Schedule Import Data'!$B:$B,$L8) -> 0 | G8: =-SUMIFS('C Schedule Import Data'!X:X,'C Schedule Import Data'!$A:$A,$L$3,'C Schedule Import Data'!$B:$B,$L8) -> 0 | H8: =-SUMIFS('C Schedule Import Data'!Y:Y,'C Schedule Import Data'!$A:$A,$L$3,'C Schedule Import Data'!$B:$B,$L8) -> 0 | I8: 0 | K8: =-SUMIFS('C Schedule Import Data'!Z:Z,'C Schedule Import Data'!$A:$A,$L$3,'C Schedule Import Data'!$B:$B,$L8) -> 0 | L8: 1110 REV
A9: Municipal Manager, Town Secretary and Chief Executive | C9: =-SUMIFS('C Schedule Import Data'!T:T,'C Schedule Import Data'!$A:$A,$L$3,'C Schedule Import Data'!$B:$B,$L9) -> 0 | D9: =-SUMIFS('C Schedule Import Data'!U:U,'C Schedule Import Data'!$A:$A,$L$3,'C Schedule Import Data'!$B:$B,$L9) -> 0 | E9: =-SUMIFS('C Schedule Import Data'!V:V,'C Schedule Import Data'!$A:$A,$L$3,'C Schedule Import Data'!$B:$B,$L9) -> 0 | F9: =-SUMIFS('C Schedule Import Data'!W:W,'C Schedule Import Data'!$A:$A,$L$3,'C Schedule Import Data'!$B:$B,$L9) -> 0 | G9: =-SUMIFS('C Schedule Import Data'!X:X,'C Schedule Import Data'!$A:$A,$L$3,'C Schedule Import Data'!$B:$B,$L9) -> 0 | H9: =-SUMIFS('C Schedule Import Data'!Y:Y,'C Schedule Import Data'!$A:$A,$L$3,'C Schedule Import Data'!$B:$B,$L9) -> 0 | I9: 0 | K9: =-SUMIFS('C Schedule Import Data'!Z:Z,'C Schedule Import Data'!$A:$A,$L$3,'C Schedule Import Data'!$B:$B,$L9) -> 0 | L9: 1120 REV
A10: Finance and administration | C10: =SUM(C11:C24) -> 0 | D10: 148649244 | E10: 148649244 | F10: 2517697.31 | G10: 49018097.41 | H10: 37162299 | I10: =G10-H10 -> 11855798.41 | J10: =IF(I10=0,"",I10/H10) -> 0.3190275825 | K10: =SUM(K11:K24) -> 148649244 | L10: 1200 REV
A11: Administrative and Corporate Support | C11: =-SUMIFS('C Schedule Import Data'!T:T,'C Schedule Import Data'!$A:$A,$L$3,'C Schedule Import Data'!$B:$B,$L11) -> 0 | D11: =-SUMIFS('C Schedule Import Data'!U:U,'C Schedule Import Data'!$A:$A,$L$3,'C Schedule Import Data'!$B:$B,$L11) -> 1000000 | E11: =-SUMIFS('C Schedule Import Data'!V:V,'C Schedule Import Data'!$A:$A,$L$3,'C Schedule Import Data'!$B:$B,$L11) -> 1000000 | F11: =-SUMIFS('C Schedule Import Data'!W:W,'C Schedule Import Data'!$A:$A,$L$3,'C Schedule Import Data'!$B:$B,$L11) -> 82182.03 | G11: =-SUMIFS('C Schedule Import Data'!X:X,'C Schedule Import Data'!$A:$A,$L$3,'C Schedule Import Data'!$B:$B,$L11) -> 125942.3 | H11: =-SUMIFS('C Schedule Import Data'!Y:Y,'C Schedule Import Data'!$A:$A,$L$3,'C Schedule Import Data'!$B:$B,$L11) -> 249999 | I11: =G11-H11 -> -124056.7 | J11: =IF(I11=0,"",I11/H11) -> -0.4962287849 | K11: =-SUMIFS('C Schedule Import Data'!Z:Z,'C Schedule Import Data'!$A:$A,$L$3,'C Schedule Import Data'!$B:$B,$L11) -> 1000000 | L11: 1201 REV
A12: Asset Management | C12: =-SUMIFS('C Schedule Import Data'!T:T,'C Schedule Import Data'!$A:$A,$L$3,'C Schedule Import Data'!$B:$B,$L12) -> 0 | D12: =-SUMIFS('C Schedule Import Data'!U:U,'C Schedule Import Data'!$A:$A,$L$3,'C Schedule Import Data'!$B:$B,$L12) -> 0 | E12: =-SUMIFS('C Schedule Import Data'!V:V,'C Schedule Import Data'!$A:$A,$L$3,'C Schedule Import Data'!$B:$B,$L12) -> 0 | F12: =-SUMIFS('C Schedule Import Data'!W:W,'C Schedule Import Data'!$A:$A,$L$3,'C Schedule Import Data'!$B:$B,$L12) -> 0 | G12: =-SUMIFS('C Schedule Import Data'!X:X,'C Schedule Import Data'!$A:$A,$L$3,'C Schedule Import Data'!$B:$B,$L12) -> 0 | H12: =-SUMIFS('C Schedule Import Data'!Y:Y,'C Schedule Import Data'!$A:$A,$L$3,'C Schedule Import Data'!$B:$B,$L12) -> 0 | I12: 0 | K12: =-SUMIFS('C Schedule Import Data'!Z:Z,'C Schedule Import Data'!$A:$A,$L$3,'C Schedule Import Data'!$B:$B,$L12) -> 0 | L12: 1202 REV
A13: Budget and Treasury Office | C13: =-SUMIFS('C Schedule Import Data'!T:T,'C Schedule Import Data'!$A:$A,$L$3,'C Schedule Import Data'!$B:$B,$L13) -> 0 | D13: =-SUMIFS('C Schedule Import Data'!U:U,'C Schedule Import Data'!$A:$A,$L$3,'C Schedule Import Data'!$B:$B,$L13) -> 147499244 | E13: =-SUMIFS('C Schedule Import Data'!V:V,'C Schedule Import Data'!$A:$A,$L$3,'C Schedule Import Data'!$B:$B,$L13) -> 147499244 | F13: =-SUMIFS('C Schedule Import Data'!W:W,'C Schedule Import Data'!$A:$A,$L$3,'C Schedule Import Data'!$B:$B,$L13) -> 2434015.28 | G13: =-SUMIFS('C Schedule Import Data'!X:X,'C Schedule Import Data'!$A:$A,$L$3,'C Schedule Import Data'!$B:$B,$L13) -> 48889506.57 | H13: =-SUMIFS('C Schedule Import Data'!Y:Y,'C Schedule Import Data'!$A:$A,$L$3,'C Schedule Import Data'!$B:$B,$L13) -> 36874800 | I13: 12014706.57 | J13: 0.3258243182 | K13: =-SUMIFS('C Schedule Import Data'!Z:Z,'C Schedule Import Data'!$A:$A,$L$3,'C Schedule Import Data'!$B:$B,$L13) -> 147499244 | L13: 1203 REV
A14: Finance | C14: =-SUMIFS('C Schedule Import Data'!T:T,'C Schedule Import Data'!$A:$A,$L$3,'C Schedule Import Data'!$B:$B,$L14) -> 0 | D14: =-SUMIFS('C Schedule Import Data'!U:U,'C Schedule Import Data'!$A:$A,$L$3,'C Schedule Import Data'!$B:$B,$L14) -> 0 | E14: =-SUMIFS('C Schedule Import Data'!V:V,'C Schedule Import Data'!$A:$A,$L$3,'C Schedule Import Data'!$B:$B,$L14) -> 0 | F14: =-SUMIFS('C Schedule Import Data'!W:W,'C Schedule Import Data'!$A:$A,$L$3,'C Schedule Import Data'!$B:$B,$L14) -> 0 | G14: =-SUMIFS('C Schedule Import Data'!X:X,'C Schedule Import Data'!$A:$A,$L$3,'C Schedule Import Data'!$B:$B,$L14) -> -351.46 | H14: =-SUMIFS('C Schedule Import Data'!Y:Y,'C Schedule Import Data'!$A:$A,$L$3,'C Schedule Import Data'!$B:$B,$L14) -> 0 | I14: -351.46 | K14: =-SUMIFS('C Schedule Import Data'!Z:Z,'C Schedule Import Data'!$A:$A,$L$3,'C Schedule Import Data'!$B:$B,$L14) -> 0 | L14: 1204 REV
A15: Fleet Management | C15: =-SUMIFS('C Schedule Import Data'!T:T,'C Schedule Import Data'!$A:$A,$L$3,'C Schedule Import Data'!$B:$B,$L15) -> 0 | D15: =-SUMIFS('C Schedule Import Data'!U:U,'C Schedule Import Data'!$A:$A,$L$3,'C Schedule Import Data'!$B:$B,$L15) -> 0 | E15: =-SUMIFS('C Schedule Import Data'!V:V,'C Schedule Import Data'!$A:$A,$L$3,'C Schedule Import Data'!$B:$B,$L15) -> 0 | F15: =-SUMIFS('C Schedule Import Data'!W:W,'C Schedule Import Data'!$A:$A,$L$3,'C Schedule Import Data'!$B:$B,$L15) -> 0 | G15: =-SUMIFS('C Schedule Import Data'!X:X,'C Schedule Import Data'!$A:$A,$L$3,'C Schedule Import Data'!$B:$B,$L15) -> 0 | H15: =-SUMIFS('C Schedule Import Data'!Y:Y,'C Schedule Import Data'!$A:$A,$L$3,'C Schedule Import Data'!$B:$B,$L15) -> 0 | I15: 0 | K15: =-SUMIFS('C Schedule Import Data'!Z:Z,'C Schedule Import Data'!$A:$A,$L$3,'C Schedule Import Data'!$B:$B,$L15) -> 0 | L15: 1205 REV
A16: Human Resources | C16: =-SUMIFS('C Schedule Import Data'!T:T,'C Schedule Import Data'!$A:$A,$L$3,'C Schedule Import Data'!$B:$B,$L16) -> 0 | D16: =-SUMIFS('C Schedule Import Data'!U:U,'C Schedule Import Data'!$A:$A,$L$3,'C Schedule Import Data'!$B:$B,$L16) -> 0 | E16: =-SUMIFS('C Schedule Import Data'!V:V,'C Schedule Import Data'!$A:$A,$L$3,'C Schedule Import Data'!$B:$B,$L16) -> 0 | F16: =-SUMIFS('C Schedule Import Data'!W:W,'C Schedule Import Data'!$A:$A,$L$3,'C Schedule Import Data'!$B:$B,$L16) -> 0 | G16: =-SUMIFS('C Schedule Import Data'!X:X,'C Schedule Import Data'!$A:$A,$L$3,'C Schedule Import Data'!$B:$B,$L16) -> 0 | H16: =-SUMIFS('C Schedule Import Data'!Y:Y,'C Schedule Import Data'!$A:$A,$L$3,'C Schedule Import Data'!$B:$B,$L16) -> 0 | I16: 0 | K16: =-SUMIFS('C Schedule Import Data'!Z:Z,'C Schedule Import Data'!$A:$A,$L$3,'C Schedule Import Data'!$B:$B,$L16) -> 0 | L16: 1206 REV
A17: Information Technology | C17: =-SUMIFS('C Schedule Import Data'!T:T,'C Schedule Import Data'!$A:$A,$L$3,'C Schedule Import Data'!$B:$B,$L17) -> 0 | D17: =-SUMIFS('C Schedule Import Data'!U:U,'C Schedule Import Data'!$A:$A,$L$3,'C Schedule Import Data'!$B:$B,$L17) -> 0 | E17: =-SUMIFS('C Schedule Import Data'!V:V,'C Schedule Import Data'!$A:$A,$L$3,'C Schedule Import Data'!$B:$B,$L17) -> 0 | F17: =-SUMIFS('C Schedule Import Data'!W:W,'C Schedule Import Data'!$A:$A,$L$3,'C Schedule Import Data'!$B:$B,$L17) -> 0 | G17: =-SUMIFS('C Schedule Import Data'!X:X,'C Schedule Import Data'!$A:$A,$L$3,'C Schedule Import Data'!$B:$B,$L17) -> 0 | H17: =-SUMIFS('C Schedule Import Data'!Y:Y,'C Schedule Import Data'!$A:$A,$L$3,'C Schedule Import Data'!$B:$B,$L17) -> 0 | I17: =G17-H17 -> 0 | J17: =IF(I17=0,"",I17/H17) ->  | K17: =-SUMIFS('C Schedule Import Data'!Z:Z,'C Schedule Import Data'!$A:$A,$L$3,'C Schedule Import Data'!$B:$B,$L17) -> 0 | L17: 1207 REV
A18: Legal Services | C18: =-SUMIFS('C Schedule Import Data'!T:T,'C Schedule Import Data'!$A:$A,$L$3,'C Schedule Import Data'!$B:$B,$L18) -> 0 | D18: =-SUMIFS('C Schedule Import Data'!U:U,'C Schedule Import Data'!$A:$A,$L$3,'C Schedule Import Data'!$B:$B,$L18) -> 0 | E18: =-SUMIFS('C Schedule Import Data'!V:V,'C Schedule Import Data'!$A:$A,$L$3,'C Schedule Import Data'!$B:$B,$L18) -> 0 | F18: =-SUMIFS('C Schedule Import Data'!W:W,'C Schedule Import Data'!$A:$A,$L$3,'C Schedule Import Data'!$B:$B,$L18) -> 0 | G18: =-SUMIFS('C Schedule Import Data'!X:X,'C Schedule Import Data'!$A:$A,$L$3,'C Schedule Import Data'!$B:$B,$L18) -> 0 | H18: =-SUMIFS('C Schedule Import Data'!Y:Y,'C Schedule Import Data'!$A:$A,$L$3,'C Schedule Import Data'!$B:$B,$L18) -> 0 | I18: 0 | K18: =-SUMIFS('C Schedule Import Data'!Z:Z,'C Schedule Import Data'!$A:$A,$L$3,'C Schedule Import Data'!$B:$B,$L18) -> 0 | L18: 1208 REV
A19: Marketing, Customer Relations, Publicity and Media Co-ordination | C19: =-SUMIFS('C Schedule Import Data'!T:T,'C Schedule Import Data'!$A:$A,$L$3,'C Schedule Import Data'!$B:$B,$L19) -> 0 | D19: =-SUMIFS('C Schedule Import Data'!U:U,'C Schedule Import Data'!$A:$A,$L$3,'C Schedule Import Data'!$B:$B,$L19) -> 0 | E19: =-SUMIFS('C Schedule Import Data'!V:V,'C Schedule Import Data'!$A:$A,$L$3,'C Schedule Import Data'!$B:$B,$L19) -> 0 | F19: =-SUMIFS('C Schedule Import Data'!W:W,'C Schedule Import Data'!$A:$A,$L$3,'C Schedule Import Data'!$B:$B,$L19) -> 0 | G19: =-SUMIFS('C Schedule Import Data'!X:X,'C Schedule Import Data'!$A:$A,$L$3,'C Schedule Import Data'!$B:$B,$L19) -> 0 | H19: =-SUMIFS('C Schedule Import Data'!Y:Y,'C Schedule Import Data'!$A:$A,$L$3,'C Schedule Import Data'!$B:$B,$L19) -> 0 | I19: 0 | K19: =-SUMIFS('C Schedule Import Data'!Z:Z,'C Schedule Import Data'!$A:$A,$L$3,'C Schedule Import Data'!$B:$B,$L19) -> 0 | L19: 1209 REV
A20: Property Services | C20: =-SUMIFS('C Schedule Import Data'!T:T,'C Schedule Import Data'!$A:$A,$L$3,'C Schedule Import Data'!$B:$B,$L20) -> 0 | D20: =-SUMIFS('C Schedule Import Data'!U:U,'C Schedule Import Data'!$A:$A,$L$3,'C Schedule Import Data'!$B:$B,$L20) -> 150000 | E20: =-SUMIFS('C Schedule Import Data'!V:V,'C Schedule Import Data'!$A:$A,$L$3,'C Schedule Import Data'!$B:$B,$L20) -> 150000 | F20: =-SUMIFS('C Schedule Import Data'!W:W,'C Schedule Import Data'!$A:$A,$L$3,'C Schedule Import Data'!$B:$B,$L20) -> 1500 | G20: =-SUMIFS('C Schedule Import Data'!X:X,'C Schedule Import Data'!$A:$A,$L$3,'C Schedule Import Data'!$B:$B,$L20) -> 3000 | H20: =-SUMIFS('C Schedule Import Data'!Y:Y,'C Schedule Import Data'!$A:$A,$L$3,'C Schedule Import Data'!$B:$B,$L20) -> 37500 | I20: -34500 | J20: -0.92 | K20: =-SUMIFS('C Schedule Import Data'!Z:Z,'C Schedule Import Data'!$A:$A,$L$3,'C Schedule Import Data'!$B:$B,$L20) -> 150000 | L20: 1210 REV
A21: Risk Management | C21: =-SUMIFS('C Schedule Import Data'!T:T,'C Schedule Import Data'!$A:$A,$L$3,'C Schedule Import Data'!$B:$B,$L21) -> 0 | D21: =-SUMIFS('C Schedule Import Data'!U:U,'C Schedule Import Data'!$A:$A,$L$3,'C Schedule Import Data'!$B:$B,$L21) -> 0 | E21: =-SUMIFS('C Schedule Import Data'!V:V,'C Schedule Import Data'!$A:$A,$L$3,'C Schedule Import Data'!$B:$B,$L21) -> 0 | F21: =-SUMIFS('C Schedule Import Data'!W:W,'C Schedule Import Data'!$A:$A,$L$3,'C Schedule Import Data'!$B:$B,$L21) -> 0 | G21: =-SUMIFS('C Schedule Import Data'!X:X,'C Schedule Import Data'!$A:$A,$L$3,'C Schedule Import Data'!$B:$B,$L21) -> 0 | H21: =-SUMIFS('C Schedule Import Data'!Y:Y,'C Schedule Import Data'!$A:$A,$L$3,'C Schedule Import Data'!$B:$B,$L21) -> 0 | I21: 0 | K21: =-SUMIFS('C Schedule Import Data'!Z:Z,'C Schedule Import Data'!$A:$A,$L$3,'C Schedule Import Data'!$B:$B,$L21) -> 0 | L21: 1211 REV
A22: Security Services | C22: =-SUMIFS('C Schedule Import Data'!T:T,'C Schedule Import Data'!$A:$A,$L$3,'C Schedule Import Data'!$B:$B,$L22) -> 0 | D22: =-SUMIFS('C Schedule Import Data'!U:U,'C Schedule Import Data'!$A:$A,$L$3,'C Schedule Import Data'!$B:$B,$L22) -> 0 | E22: =-SUMIFS('C Schedule Import Data'!V:V,'C Schedule Import Data'!$A:$A,$L$3,'C Schedule Import Data'!$B:$B,$L22) -> 0 | F22: =-SUMIFS('C Schedule Import Data'!W:W,'C Schedule Import Data'!$A:$A,$L$3,'C Schedule Import Data'!$B:$B,$L22) -> 0 | G22: =-SUMIFS('C Schedule Import Data'!X:X,'C Schedule Import Data'!$A:$A,$L$3,'C Schedule Import Data'!$B:$B,$L22) -> 0 | H22: =-SUMIFS('C Schedule Import Data'!Y:Y,'C Schedule Import Data'!$A:$A,$L$3,'C Schedule Import Data'!$B:$B,$L22) -> 0 | I22: 0 | K22: =-SUMIFS('C Schedule Import Data'!Z:Z,'C Schedule Import Data'!$A:$A,$L$3,'C Schedule Import Data'!$B:$B,$L22) -> 0 | L22: 1212 REV
A23: Supply Chain Management | C23: =-SUMIFS('C Schedule Import Data'!T:T,'C Schedule Import Data'!$A:$A,$L$3,'C Schedule Import Data'!$B:$B,$L23) -> 0 | D23: =-SUMIFS('C Schedule Import Data'!U:U,'C Schedule Import Data'!$A:$A,$L$3,'C Schedule Import Data'!$B:$B,$L23) -> 0 | E23: =-SUMIFS('C Schedule Import Data'!V:V,'C Schedule Import Data'!$A:$A,$L$3,'C Schedule Import Data'!$B:$B,$L23) -> 0 | F23: =-SUMIFS('C Schedule Import Data'!W:W,'C Schedule Import Data'!$A:$A,$L$3,'C Schedule Import Data'!$B:$B,$L23) -> 0 | G23: =-SUMIFS('C Schedule Import Data'!X:X,'C Schedule Import Data'!$A:$A,$L$3,'C Schedule Import Data'!$B:$B,$L23) -> 0 | H23: =-SUMIFS('C Schedule Import Data'!Y:Y,'C Schedule Import Data'!$A:$A,$L$3,'C Schedule Import Data'!$B:$B,$L23) -> 0 | I23: 0 | K23: =-SUMIFS('C Schedule Import Data'!Z:Z,'C Schedule Import Data'!$A:$A,$L$3,'C Schedule Import Data'!$B:$B,$L23) -> 0 | L23: 1213 REV
A24: Valuation Service | C24: =-SUMIFS('C Schedule Import Data'!T:T,'C Schedule Import Data'!$A:$A,$L$3,'C Schedule Import Data'!$B:$B,$L24) -> 0 | D24: =-SUMIFS('C Schedule Import Data'!U:U,'C Schedule Import Data'!$A:$A,$L$3,'C Schedule Import Data'!$B:$B,$L24) -> 0 | E24: =-SUMIFS('C Schedule Import Data'!V:V,'C Schedule Import Data'!$A:$A,$L$3,'C Schedule Import Data'!$B:$B,$L24) -> 0 | F24: =-SUMIFS('C Schedule Import Data'!W:W,'C Schedule Import Data'!$A:$A,$L$3,'C Schedule Import Data'!$B:$B,$L24) -> 0 | G24: =-SUMIFS('C Schedule Import Data'!X:X,'C Schedule Import Data'!$A:$A,$L$3,'C Schedule Import Data'!$B:$B,$L24) -> 0 | H24: =-SUMIFS('C Schedule Import Data'!Y:Y,'C Schedule Import Data'!$A:$A,$L$3,'C Schedule Import Data'!$B:$B,$L24) -> 0 | I24: 0 | K24: =-SUMIFS('C Schedule Import Data'!Z:Z,'C Schedule Import Data'!$A:$A,$L$3,'C Schedule Import Data'!$B:$B,$L24) -> 0 | L24: 1214 REV
A25: Internal audit | C25: =SUM(C26:C26) -> 0 | D25: 0 | E25: 0 | F25: 0 | G25: 0 | H25: 0 | I25: 0 | K25: =SUM(K26:K26) -> 0 | L25: 1300 REV
A26: Governance Function | C26: =-SUMIFS('C Schedule Import Data'!T:T,'C Schedule Import Data'!$A:$A,$L$3,'C Schedule Import Data'!$B:$B,$L26) -> 0 | D26: =-SUMIFS('C Schedule Import Data'!U:U,'C Schedule Import Data'!$A:$A,$L$3,'C Schedule Import Data'!$B:$B,$L26) -> 0 | E26: =-SUMIFS('C Schedule Import Data'!V:V,'C Schedule Import Data'!$A:$A,$L$3,'C Schedule Import Data'!$B:$B,$L26) -> 0 | F26: =-SUMIFS('C Schedule Import Data'!W:W,'C Schedule Import Data'!$A:$A,$L$3,'C Schedule Import Data'!$B:$B,$L26) -> 0 | G26: =-SUMIFS('C Schedule Import Data'!X:X,'C Schedule Import Data'!$A:$A,$L$3,'C Schedule Import Data'!$B:$B,$L26) -> 0 | H26: =-SUMIFS('C Schedule Import Data'!Y:Y,'C Schedule Import Data'!$A:$A,$L$3,'C Schedule Import Data'!$B:$B,$L26) -> 0 | I26: 0 | K26: =-SUMIFS('C Schedule Import Data'!Z:Z,'C Schedule Import Data'!$A:$A,$L$3,'C Schedule Import Data'!$B:$B,$L26) -> 0 | L26: 1301 REV
A27: Community and public safety | C27: =C28+C50+C56+C63+C66 -> 0 | D27: =D28+D50+D56+D63+D66 -> 7227892 | E27: 7227892 | F27: 424489.35 | G27: 1630254.37 | H27: 1806963 | I27: -176708.63 | J27: -0.09779316455 | K27: 7227892 | L27: 2000 REV
A28: Community and social services | C28: =SUM(C29:C49) -> 0 | D28: 2491496 | E28: 2491496 | F28: 228907.15 | G28: 370131.69 | H28: 622869 | I28: -252737.31 | J28: -0.4057631862 | K28: =SUM(K29:K49) -> 2491496 | L28: 2100 REV
A29: Aged Care | C29: =-SUMIFS('C Schedule Import Data'!T:T,'C Schedule Import Data'!$A:$A,$L$3,'C Schedule Import Data'!$B:$B,$L29) -> 0 | D29: =-SUMIFS('C Schedule Import Data'!U:U,'C Schedule Import Data'!$A:$A,$L$3,'C Schedule Import Data'!$B:$B,$L29) -> 0 | E29: =-SUMIFS('C Schedule Import Data'!V:V,'C Schedule Import Data'!$A:$A,$L$3,'C Schedule Import Data'!$B:$B,$L29) -> 0 | F29: =-SUMIFS('C Schedule Import Data'!W:W,'C Schedule Import Data'!$A:$A,$L$3,'C Schedule Import Data'!$B:$B,$L29) -> 0 | G29: =-SUMIFS('C Schedule Import Data'!X:X,'C Schedule Import Data'!$A:$A,$L$3,'C Schedule Import Data'!$B:$B,$L29) -> 0 | H29: =-SUMIFS('C Schedule Import Data'!Y:Y,'C Schedule Import Data'!$A:$A,$L$3,'C Schedule Import Data'!$B:$B,$L29) -> 0 | I29: =G29-H29 -> 0 | J29: =IF(I29=0,"",I29/H29) ->  | K29: =-SUMIFS('C Schedule Import Data'!Z:Z,'C Schedule Import Data'!$A:$A,$L$3,'C Schedule Import Data'!$B:$B,$L29) -> 0 | L29: 2101 REV
A30: Agricultural | C30: =-SUMIFS('C Schedule Import Data'!T:T,'C Schedule Import Data'!$A:$A,$L$3,'C Schedule Import Data'!$B:$B,$L30) -> 0 | D30: =-SUMIFS('C Schedule Import Data'!U:U,'C Schedule Import Data'!$A:$A,$L$3,'C Schedule Import Data'!$B:$B,$L30) -> 0 | E30: =-SUMIFS('C Schedule Import Data'!V:V,'C Schedule Import Data'!$A:$A,$L$3,'C Schedule Import Data'!$B:$B,$L30) -> 0 | F30: =-SUMIFS('C Schedule Import Data'!W:W,'C Schedule Import Data'!$A:$A,$L$3,'C Schedule Import Data'!$B:$B,$L30) -> 0 | G30: =-SUMIFS('C Schedule Import Data'!X:X,'C Schedule Import Data'!$A:$A,$L$3,'C Schedule Import Data'!$B:$B,$L30) -> 0 | H30: =-SUMIFS('C Schedule Import Data'!Y:Y,'C Schedule Import Data'!$A:$A,$L$3,'C Schedule Import Data'!$B:$B,$L30) -> 0 | I30: 0 | K30: =-SUMIFS('C Schedule Import Data'!Z:Z,'C Schedule Import Data'!$A:$A,$L$3,'C Schedule Import Data'!$B:$B,$L30) -> 0 | L30: 2102 REV
A31: Animal Care and Diseases | C31: =-SUMIFS('C Schedule Import Data'!T:T,'C Schedule Import Data'!$A:$A,$L$3,'C Schedule Import Data'!$B:$B,$L31) -> 0 | D31: =-SUMIFS('C Schedule Import Data'!U:U,'C Schedule Import Data'!$A:$A,$L$3,'C Schedule Import Data'!$B:$B,$L31) -> 0 | E31: =-SUMIFS('C Schedule Import Data'!V:V,'C Schedule Import Data'!$A:$A,$L$3,'C Schedule Import Data'!$B:$B,$L31) -> 0 | F31: =-SUMIFS('C Schedule Import Data'!W:W,'C Schedule Import Data'!$A:$A,$L$3,'C Schedule Import Data'!$B:$B,$L31) -> 0 | G31: =-SUMIFS('C Schedule Import Data'!X:X,'C Schedule Import Data'!$A:$A,$L$3,'C Schedule Import Data'!$B:$B,$L31) -> 0 | H31: =-SUMIFS('C Schedule Import Data'!Y:Y,'C Schedule Import Data'!$A:$A,$L$3,'C Schedule Import Data'!$B:$B,$L31) -> 0 | I31: 0 | K31: =-SUMIFS('C Schedule Import Data'!Z:Z,'C Schedule Import Data'!$A:$A,$L$3,'C Schedule Import Data'!$B:$B,$L31) -> 0 | L31: 2103 REV
A32: Cemeteries, Funeral Parlours and Crematoriums | C32: =-SUMIFS('C Schedule Import Data'!T:T,'C Schedule Import Data'!$A:$A,$L$3,'C Schedule Import Data'!$B:$B,$L32) -> 0 | D32: =-SUMIFS('C Schedule Import Data'!U:U,'C Schedule Import Data'!$A:$A,$L$3,'C Schedule Import Data'!$B:$B,$L32) -> 0 | E32: =-SUMIFS('C Schedule Import Data'!V:V,'C Schedule Import Data'!$A:$A,$L$3,'C Schedule Import Data'!$B:$B,$L32) -> 0 | F32: =-SUMIFS('C Schedule Import Data'!W:W,'C Schedule Import Data'!$A:$A,$L$3,'C Schedule Import Data'!$B:$B,$L32) -> 0 | G32: =-SUMIFS('C Schedule Import Data'!X:X,'C Schedule Import Data'!$A:$A,$L$3,'C Schedule Import Data'!$B:$B,$L32) -> 0 | H32: =-SUMIFS('C Schedule Import Data'!Y:Y,'C Schedule Import Data'!$A:$A,$L$3,'C Schedule Import Data'!$B:$B,$L32) -> 0 | I32: 0 | K32: =-SUMIFS('C Schedule Import Data'!Z:Z,'C Schedule Import Data'!$A:$A,$L$3,'C Schedule Import Data'!$B:$B,$L32) -> 0 | L32: 2104 REV
A33: Child Care Facilities | C33: =-SUMIFS('C Schedule Import Data'!T:T,'C Schedule Import Data'!$A:$A,$L$3,'C Schedule Import Data'!$B:$B,$L33) -> 0 | D33: =-SUMIFS('C Schedule Import Data'!U:U,'C Schedule Import Data'!$A:$A,$L$3,'C Schedule Import Data'!$B:$B,$L33) -> 0 | E33: =-SUMIFS('C Schedule Import Data'!V:V,'C Schedule Import Data'!$A:$A,$L$3,'C Schedule Import Data'!$B:$B,$L33) -> 0 | F33: =-SUMIFS('C Schedule Import Data'!W:W,'C Schedule Import Data'!$A:$A,$L$3,'C Schedule Import Data'!$B:$B,$L33) -> 0 | G33: =-SUMIFS('C Schedule Import Data'!X:X,'C Schedule Import Data'!$A:$A,$L$3,'C Schedule Import Data'!$B:$B,$L33) -> 0 | H33: =-SUMIFS('C Schedule Import Data'!Y:Y,'C Schedule Import Data'!$A:$A,$L$3,'C Schedule Import Data'!$B:$B,$L33) -> 0 | I33: 0 | K33: =-SUMIFS('C Schedule Import Data'!Z:Z,'C Schedule Import Data'!$A:$A,$L$3,'C Schedule Import Data'!$B:$B,$L33) -> 0 | L33: 2105 REV
A34: Community Halls and Facilities | C34: =-SUMIFS('C Schedule Import Data'!T:T,'C Schedule Import Data'!$A:$A,$L$3,'C Schedule Import Data'!$B:$B,$L34) -> 0 | D34: =-SUMIFS('C Schedule Import Data'!U:U,'C Schedule Import Data'!$A:$A,$L$3,'C Schedule Import Data'!$B:$B,$L34) -> 892080 | E34: =-SUMIFS('C Schedule Import Data'!V:V,'C Schedule Import Data'!$A:$A,$L$3,'C Schedule Import Data'!$B:$B,$L34) -> 892080 | F34: =-SUMIFS('C Schedule Import Data'!W:W,'C Schedule Import Data'!$A:$A,$L$3,'C Schedule Import Data'!$B:$B,$L34) -> 106037.31 | G34: =-SUMIFS('C Schedule Import Data'!X:X,'C Schedule Import Data'!$A:$A,$L$3,'C Schedule Import Data'!$B:$B,$L34) -> 69494.22 | H34: =-SUMIFS('C Schedule Import Data'!Y:Y,'C Schedule Import Data'!$A:$A,$L$3,'C Schedule Import Data'!$B:$B,$L34) -> 223017 | I34: -153522.78 | J34: -0.6883904814 | K34: =-SUMIFS('C Schedule Import Data'!Z:Z,'C Schedule Import Data'!$A:$A,$L$3,'C Schedule Import Data'!$B:$B,$L34) -> 892080 | L34: 2106 REV
A35: Consumer Protection | C35: =-SUMIFS('C Schedule Import Data'!T:T,'C Schedule Import Data'!$A:$A,$L$3,'C Schedule Import Data'!$B:$B,$L35) -> 0 | D35: =-SUMIFS('C Schedule Import Data'!U:U,'C Schedule Import Data'!$A:$A,$L$3,'C Schedule Import Data'!$B:$B,$L35) -> 0 | E35: =-SUMIFS('C Schedule Import Data'!V:V,'C Schedule Import Data'!$A:$A,$L$3,'C Schedule Import Data'!$B:$B,$L35) -> 0 | F35: =-SUMIFS('C Schedule Import Data'!W:W,'C Schedule Import Data'!$A:$A,$L$3,'C Schedule Import Data'!$B:$B,$L35) -> 0 | G35: =-SUMIFS('C Schedule Import Data'!X:X,'C Schedule Import Data'!$A:$A,$L$3,'C Schedule Import Data'!$B:$B,$L35) -> 0 | H35: =-SUMIFS('C Schedule Import Data'!Y:Y,'C Schedule Import Data'!$A:$A,$L$3,'C Schedule Import Data'!$B:$B,$L35) -> 0 | I35: 0 | K35: =-SUMIFS('C Schedule Import Data'!Z:Z,'C Schedule Import Data'!$A:$A,$L$3,'C Schedule Import Data'!$B:$B,$L35) -> 0 | L35: 2107 REV
A36: Cultural Matters | C36: =-SUMIFS('C Schedule Import Data'!T:T,'C Schedule Import Data'!$A:$A,$L$3,'C Schedule Import Data'!$B:$B,$L36) -> 0 | D36: =-SUMIFS('C Schedule Import Data'!U:U,'C Schedule Import Data'!$A:$A,$L$3,'C Schedule Import Data'!$B:$B,$L36) -> 0 | E36: =-SUMIFS('C Schedule Import Data'!V:V,'C Schedule Import Data'!$A:$A,$L$3,'C Schedule Import Data'!$B:$B,$L36) -> 0 | F36: =-SUMIFS('C Schedule Import Data'!W:W,'C Schedule Import Data'!$A:$A,$L$3,'C Schedule Import Data'!$B:$B,$L36) -> 0 | G36: =-SUMIFS('C Schedule Import Data'!X:X,'C Schedule Import Data'!$A:$A,$L$3,'C Schedule Import Data'!$B:$B,$L36) -> 0 | H36: =-SUMIFS('C Schedule Import Data'!Y:Y,'C Schedule Import Data'!$A:$A,$L$3,'C Schedule Import Data'!$B:$B,$L36) -> 0 | I36: =G36-H36 -> 0 | J36: =IF(I36=0,"",I36/H36) ->  | K36: =-SUMIFS('C Schedule Import Data'!Z:Z,'C Schedule Import Data'!$A:$A,$L$3,'C Schedule Import Data'!$B:$B,$L36) -> 0 | L36: 2108 REV
A37: Disaster Management | C37: =-SUMIFS('C Schedule Import Data'!T:T,'C Schedule Import Data'!$A:$A,$L$3,'C Schedule Import Data'!$B:$B,$L37) -> 0 | D37: =-SUMIFS('C Schedule Import Data'!U:U,'C Schedule Import Data'!$A:$A,$L$3,'C Schedule Import Data'!$B:$B,$L37) -> 0 | E37: =-SUMIFS('C Schedule Import Data'!V:V,'C Schedule Import Data'!$A:$A,$L$3,'C Schedule Import Data'!$B:$B,$L37) -> 0 | F37: =-SUMIFS('C Schedule Import Data'!W:W,'C Schedule Import Data'!$A:$A,$L$3,'C Schedule Import Data'!$B:$B,$L37) -> 0 | G37: =-SUMIFS('C Schedule Import Data'!X:X,'C Schedule Import Data'!$A:$A,$L$3,'C Schedule Import Data'!$B:$B,$L37) -> 0 | H37: =-SUMIFS('C Schedule Import Data'!Y:Y,'C Schedule Import Data'!$A:$A,$L$3,'C Schedule Import Data'!$B:$B,$L37) -> 0 | I37: 0 | K37: =-SUMIFS('C Schedule Import Data'!Z:Z,'C Schedule Import Data'!$A:$A,$L$3,'C Schedule Import Data'!$B:$B,$L37) -> 0 | L37: 2109 REV
A38: Education | C38: =-SUMIFS('C Schedule Import Data'!T:T,'C Schedule Import Data'!$A:$A,$L$3,'C Schedule Import Data'!$B:$B,$L38) -> 0 | D38: =-SUMIFS('C Schedule Import Data'!U:U,'C Schedule Import Data'!$A:$A,$L$3,'C Schedule Import Data'!$B:$B,$L38) -> 0 | E38: =-SUMIFS('C Schedule Import Data'!V:V,'C Schedule Import Data'!$A:$A,$L$3,'C Schedule Import Data'!$B:$B,$L38) -> 0 | F38: =-SUMIFS('C Schedule Import Data'!W:W,'C Schedule Import Data'!$A:$A,$L$3,'C Schedule Import Data'!$B:$B,$L38) -> 0 | G38: =-SUMIFS('C Schedule Import Data'!X:X,'C Schedule Import Data'!$A:$A,$L$3,'C Schedule Import Data'!$B:$B,$L38) -> 0 | H38: =-SUMIFS('C Schedule Import Data'!Y:Y,'C Schedule Import Data'!$A:$A,$L$3,'C Schedule Import Data'!$B:$B,$L38) -> 0 | I38: 0 | K38: =-SUMIFS('C Schedule Import Data'!Z:Z,'C Schedule Import Data'!$A:$A,$L$3,'C Schedule Import Data'!$B:$B,$L38) -> 0 | L38: 2110 REV
A39: Indigenous and Customary Law | C39: =-SUMIFS('C Schedule Import Data'!T:T,'C Schedule Import Data'!$A:$A,$L$3,'C Schedule Import Data'!$B:$B,$L39) -> 0 | D39: =-SUMIFS('C Schedule Import Data'!U:U,'C Schedule Import Data'!$A:$A,$L$3,'C Schedule Import Data'!$B:$B,$L39) -> 0 | E39: =-SUMIFS('C Schedule Import Data'!V:V,'C Schedule Import Data'!$A:$A,$L$3,'C Schedule Import Data'!$B:$B,$L39) -> 0 | F39: =-SUMIFS('C Schedule Import Data'!W:W,'C Schedule Import Data'!$A:$A,$L$3,'C Schedule Import Data'!$B:$B,$L39) -> 0 | G39: =-SUMIFS('C Schedule Import Data'!X:X,'C Schedule Import Data'!$A:$A,$L$3,'C Schedule Import Data'!$B:$B,$L39) -> 0 | H39: =-SUMIFS('C Schedule Import Data'!Y:Y,'C Schedule Import Data'!$A:$A,$L$3,'C Schedule Import Data'!$B:$B,$L39) -> 0 | I39: 0 | K39: =-SUMIFS('C Schedule Import Data'!Z:Z,'C Schedule Import Data'!$A:$A,$L$3,'C Schedule Import Data'!$B:$B,$L39) -> 0 | L39: 2111 REV
A40: Industrial Promotion | C40: =-SUMIFS('C Schedule Import Data'!T:T,'C Schedule Import Data'!$A:$A,$L$3,'C Schedule Import Data'!$B:$B,$L40) -> 0 | D40: =-SUMIFS('C Schedule Import Data'!U:U,'C Schedule Import Data'!$A:$A,$L$3,'C Schedule Import Data'!$B:$B,$L40) -> 0 | E40: =-SUMIFS('C Schedule Import Data'!V:V,'C Schedule Import Data'!$A:$A,$L$3,'C Schedule Import Data'!$B:$B,$L40) -> 0 | F40: =-SUMIFS('C Schedule Import Data'!W:W,'C Schedule Import Data'!$A:$A,$L$3,'C Schedule Import Data'!$B:$B,$L40) -> 0 | G40: =-SUMIFS('C Schedule Import Data'!X:X,'C Schedule Import Data'!$A:$A,$L$3,'C Schedule Import Data'!$B:$B,$L40) -> 0 | H40: =-SUMIFS('C Schedule Import Data'!Y:Y,'C Schedule Import Data'!$A:$A,$L$3,'C Schedule Import Data'!$B:$B,$L40) -> 0 | I40: 0 | K40: =-SUMIFS('C Schedule Import Data'!Z:Z,'C Schedule Import Data'!$A:$A,$L$3,'C Schedule Import Data'!$B:$B,$L40) -> 0 | L40: 2112 REV
A41: Language Policy | C41: =-SUMIFS('C Schedule Import Data'!T:T,'C Schedule Import Data'!$A:$A,$L$3,'C Schedule Import Data'!$B:$B,$L41) -> 0 | D41: =-SUMIFS('C Schedule Import Data'!U:U,'C Schedule Import Data'!$A:$A,$L$3,'C Schedule Import Data'!$B:$B,$L41) -> 0 | E41: =-SUMIFS('C Schedule Import Data'!V:V,'C Schedule Import Data'!$A:$A,$L$3,'C Schedule Import Data'!$B:$B,$L41) -> 0 | F41: =-SUMIFS('C Schedule Import Data'!W:W,'C Schedule Import Data'!$A:$A,$L$3,'C Schedule Import Data'!$B:$B,$L41) -> 0 | G41: =-SUMIFS('C Schedule Import Data'!X:X,'C Schedule Import Data'!$A:$A,$L$3,'C Schedule Import Data'!$B:$B,$L41) -> 0 | H41: =-SUMIFS('C Schedule Import Data'!Y:Y,'C Schedule Import Data'!$A:$A,$L$3,'C Schedule Import Data'!$B:$B,$L41) -> 0 | I41: 0 | K41: =-SUMIFS('C Schedule Import Data'!Z:Z,'C Schedule Import Data'!$A:$A,$L$3,'C Schedule Import Data'!$B:$B,$L41) -> 0 | L41: 2113 REV
A42: Libraries and Archives | C42: =-SUMIFS('C Schedule Import Data'!T:T,'C Schedule Import Data'!$A:$A,$L$3,'C Schedule Import Data'!$B:$B,$L42) -> 0 | D42: =-SUMIFS('C Schedule Import Data'!U:U,'C Schedule Import Data'!$A:$A,$L$3,'C Schedule Import Data'!$B:$B,$L42) -> 1599416 | E42: =-SUMIFS('C Schedule Import Data'!V:V,'C Schedule Import Data'!$A:$A,$L$3,'C Schedule Import Data'!$B:$B,$L42) -> 1599416 | F42: =-SUMIFS('C Schedule Import Data'!W:W,'C Schedule Import Data'!$A:$A,$L$3,'C Schedule Import Data'!$B:$B,$L42) -> 122869.84 | G42: =-SUMIFS('C Schedule Import Data'!X:X,'C Schedule Import Data'!$A:$A,$L$3,'C Schedule Import Data'!$B:$B,$L42) -> 300637.47 | H42: =-SUMIFS('C Schedule Import Data'!Y:Y,'C Schedule Import Data'!$A:$A,$L$3,'C Schedule Import Data'!$B:$B,$L42) -> 399852 | I42: -99214.53 | J42: -0.2481281324 | K42: =-SUMIFS('C Schedule Import Data'!Z:Z,'C Schedule Import Data'!$A:$A,$L$3,'C Schedule Import Data'!$B:$B,$L42) -> 1599416 | L42: 2114 REV
A43: Literacy Programmes | C43: =-SUMIFS('C Schedule Import Data'!T:T,'C Schedule Import Data'!$A:$A,$L$3,'C Schedule Import Data'!$B:$B,$L43) -> 0 | D43: =-SUMIFS('C Schedule Import Data'!U:U,'C Schedule Import Data'!$A:$A,$L$3,'C Schedule Import Data'!$B:$B,$L43) -> 0 | E43: =-SUMIFS('C Schedule Import Data'!V:V,'C Schedule Import Data'!$A:$A,$L$3,'C Schedule Import Data'!$B:$B,$L43) -> 0 | F43: =-SUMIFS('C Schedule Import Data'!W:W,'C Schedule Import Data'!$A:$A,$L$3,'C Schedule Import Data'!$B:$B,$L43) -> 0 | G43: =-SUMIFS('C Schedule Import Data'!X:X,'C Schedule Import Data'!$A:$A,$L$3,'C Schedule Import Data'!$B:$B,$L43) -> 0 | H43: =-SUMIFS('C Schedule Import Data'!Y:Y,'C Schedule Import Data'!$A:$A,$L$3,'C Schedule Import Data'!$B:$B,$L43) -> 0 | I43: 0 | K43: =-SUMIFS('C Schedule Import Data'!Z:Z,'C Schedule Import Data'!$A:$A,$L$3,'C Schedule Import Data'!$B:$B,$L43) -> 0 | L43: 2115 REV
A44: Media Services | C44: =-SUMIFS('C Schedule Import Data'!T:T,'C Schedule Import Data'!$A:$A,$L$3,'C Schedule Import Data'!$B:$B,$L44) -> 0 | D44: =-SUMIFS('C Schedule Import Data'!U:U,'C Schedule Import Data'!$A:$A,$L$3,'C Schedule Import Data'!$B:$B,$L44) -> 0 | E44: =-SUMIFS('C Schedule Import Data'!V:V,'C Schedule Import Data'!$A:$A,$L$3,'C Schedule Import Data'!$B:$B,$L44) -> 0 | F44: =-SUMIFS('C Schedule Import Data'!W:W,'C Schedule Import Data'!$A:$A,$L$3,'C Schedule Import Data'!$B:$B,$L44) -> 0 | G44: =-SUMIFS('C Schedule Import Data'!X:X,'C Schedule Import Data'!$A:$A,$L$3,'C Schedule Import Data'!$B:$B,$L44) -> 0 | H44: =-SUMIFS('C Schedule Import Data'!Y:Y,'C Schedule Import Data'!$A:$A,$L$3,'C Schedule Import Data'!$B:$B,$L44) -> 0 | I44: 0 | K44: =-SUMIFS('C Schedule Import Data'!Z:Z,'C Schedule Import Data'!$A:$A,$L$3,'C Schedule Import Data'!$B:$B,$L44) -> 0 | L44: 2116 REV
A45: Museums and Art Galleries | C45: =-SUMIFS('C Schedule Import Data'!T:T,'C Schedule Import Data'!$A:$A,$L$3,'C Schedule Import Data'!$B:$B,$L45) -> 0 | D45: =-SUMIFS('C Schedule Import Data'!U:U,'C Schedule Import Data'!$A:$A,$L$3,'C Schedule Import Data'!$B:$B,$L45) -> 0 | E45: =-SUMIFS('C Schedule Import Data'!V:V,'C Schedule Import Data'!$A:$A,$L$3,'C Schedule Import Data'!$B:$B,$L45) -> 0 | F45: =-SUMIFS('C Schedule Import Data'!W:W,'C Schedule Import Data'!$A:$A,$L$3,'C Schedule Import Data'!$B:$B,$L45) -> 0 | G45: =-SUMIFS('C Schedule Import Data'!X:X,'C Schedule Import Data'!$A:$A,$L$3,'C Schedule Import Data'!$B:$B,$L45) -> 0 | H45: =-SUMIFS('C Schedule Import Data'!Y:Y,'C Schedule Import Data'!$A:$A,$L$3,'C Schedule Import Data'!$B:$B,$L45) -> 0 | I45: 0 | K45: =-SUMIFS('C Schedule Import Data'!Z:Z,'C Schedule Import Data'!$A:$A,$L$3,'C Schedule Import Data'!$B:$B,$L45) -> 0 | L45: 2117 REV
A46: Population Development | C46: =-SUMIFS('C Schedule Import Data'!T:T,'C Schedule Import Data'!$A:$A,$L$3,'C Schedule Import Data'!$B:$B,$L46) -> 0 | D46: =-SUMIFS('C Schedule Import Data'!U:U,'C Schedule Import Data'!$A:$A,$L$3,'C Schedule Import Data'!$B:$B,$L46) -> 0 | E46: =-SUMIFS('C Schedule Import Data'!V:V,'C Schedule Import Data'!$A:$A,$L$3,'C Schedule Import Data'!$B:$B,$L46) -> 0 | F46: =-SUMIFS('C Schedule Import Data'!W:W,'C Schedule Import Data'!$A:$A,$L$3,'C Schedule Import Data'!$B:$B,$L46) -> 0 | G46: =-SUMIFS('C Schedule Import Data'!X:X,'C Schedule Import Data'!$A:$A,$L$3,'C Schedule Import Data'!$B:$B,$L46) -> 0 | H46: =-SUMIFS('C Schedule Import Data'!Y:Y,'C Schedule Import Data'!$A:$A,$L$3,'C Schedule Import Data'!$B:$B,$L46) -> 0 | I46: 0 | K46: =-SUMIFS('C Schedule Import Data'!Z:Z,'C Schedule Import Data'!$A:$A,$L$3,'C Schedule Import Data'!$B:$B,$L46) -> 0 | L46: 2118 REV
A47: Provincial Cultural Matters | C47: =-SUMIFS('C Schedule Import Data'!T:T,'C Schedule Import Data'!$A:$A,$L$3,'C Schedule Import Data'!$B:$B,$L47) -> 0 | D47: =-SUMIFS('C Schedule Import Data'!U:U,'C Schedule Import Data'!$A:$A,$L$3,'C Schedule Import Data'!$B:$B,$L47) -> 0 | E47: =-SUMIFS('C Schedule Import Data'!V:V,'C Schedule Import Data'!$A:$A,$L$3,'C Schedule Import Data'!$B:$B,$L47) -> 0 | F47: =-SUMIFS('C Schedule Import Data'!W:W,'C Schedule Import Data'!$A:$A,$L$3,'C Schedule Import Data'!$B:$B,$L47) -> 0 | G47: =-SUMIFS('C Schedule Import Data'!X:X,'C Schedule Import Data'!$A:$A,$L$3,'C Schedule Import Data'!$B:$B,$L47) -> 0 | H47: =-SUMIFS('C Schedule Import Data'!Y:Y,'C Schedule Import Data'!$A:$A,$L$3,'C Schedule Import Data'!$B:$B,$L47) -> 0 | I47: 0 | K47: =-SUMIFS('C Schedule Import Data'!Z:Z,'C Schedule Import Data'!$A:$A,$L$3,'C Schedule Import Data'!$B:$B,$L47) -> 0 | L47: 2119 REV
A48: Theatres | C48: =-SUMIFS('C Schedule Import Data'!T:T,'C Schedule Import Data'!$A:$A,$L$3,'C Schedule Import Data'!$B:$B,$L48) -> 0 | D48: =-SUMIFS('C Schedule Import Data'!U:U,'C Schedule Import Data'!$A:$A,$L$3,'C Schedule Import Data'!$B:$B,$L48) -> 0 | E48: =-SUMIFS('C Schedule Import Data'!V:V,'C Schedule Import Data'!$A:$A,$L$3,'C Schedule Import Data'!$B:$B,$L48) -> 0 | F48: =-SUMIFS('C Schedule Import Data'!W:W,'C Schedule Import Data'!$A:$A,$L$3,'C Schedule Import Data'!$B:$B,$L48) -> 0 | G48: =-SUMIFS('C Schedule Import Data'!X:X,'C Schedule Import Data'!$A:$A,$L$3,'C Schedule Import Data'!$B:$B,$L48) -> 0 | H48: =-SUMIFS('C Schedule Import Data'!Y:Y,'C Schedule Import Data'!$A:$A,$L$3,'C Schedule Import Data'!$B:$B,$L48) -> 0 | I48: 0 | K48: =-SUMIFS('C Schedule Import Data'!Z:Z,'C Schedule Import Data'!$A:$A,$L$3,'C Schedule Import Data'!$B:$B,$L48) -> 0 | L48: 2120 REV
A49: Zoo's | C49: =-SUMIFS('C Schedule Import Data'!T:T,'C Schedule Import Data'!$A:$A,$L$3,'C Schedule Import Data'!$B:$B,$L49) -> 0 | D49: =-SUMIFS('C Schedule Import Data'!U:U,'C Schedule Import Data'!$A:$A,$L$3,'C Schedule Import Data'!$B:$B,$L49) -> 0 | E49: =-SUMIFS('C Schedule Import Data'!V:V,'C Schedule Import Data'!$A:$A,$L$3,'C Schedule Import Data'!$B:$B,$L49) -> 0 | F49: =-SUMIFS('C Schedule Import Data'!W:W,'C Schedule Import Data'!$A:$A,$L$3,'C Schedule Import Data'!$B:$B,$L49) -> 0 | G49: =-SUMIFS('C Schedule Import Data'!X:X,'C Schedule Import Data'!$A:$A,$L$3,'C Schedule Import Data'!$B:$B,$L49) -> 0 | H49: =-SUMIFS('C Schedule Import Data'!Y:Y,'C Schedule Import Data'!$A:$A,$L$3,'C Schedule Import Data'!$B:$B,$L49) -> 0 | I49: 0 | K49: =-SUMIFS('C Schedule Import Data'!Z:Z,'C Schedule Import Data'!$A:$A,$L$3,'C Schedule Import Data'!$B:$B,$L49) -> 0 | L49: 2121 REV
A50: Sport and recreation | C50: =SUM(C51:C55) -> 0 | D50: =SUM(D51:D55) -> 58000 | E50: 58000 | F50: 0 | G50: 0 | H50: 14499 | I50: =G50-H50 -> -14499 | J50: =IF(I50=0,"",I50/H50) -> -1 | K50: 58000 | L50: 2200 REV
A51: Beaches and Jetties | C51: =-SUMIFS('C Schedule Import Data'!T:T,'C Schedule Import Data'!$A:$A,$L$3,'C Schedule Import Data'!$B:$B,$L51) -> 0 | D51: =-SUMIFS('C Schedule Import Data'!U:U,'C Schedule Import Data'!$A:$A,$L$3,'C Schedule Import Data'!$B:$B,$L51) -> 0 | E51: =-SUMIFS('C Schedule Import Data'!V:V,'C Schedule Import Data'!$A:$A,$L$3,'C Schedule Import Data'!$B:$B,$L51) -> 0 | F51: =-SUMIFS('C Schedule Import Data'!W:W,'C Schedule Import Data'!$A:$A,$L$3,'C Schedule Import Data'!$B:$B,$L51) -> 0 | G51: =-SUMIFS('C Schedule Import Data'!X:X,'C Schedule Import Data'!$A:$A,$L$3,'C Schedule Import Data'!$B:$B,$L51) -> 0 | H51: =-SUMIFS('C Schedule Import Data'!Y:Y,'C Schedule Import Data'!$A:$A,$L$3,'C Schedule Import Data'!$B:$B,$L51) -> 0 | I51: 0 | K51: =-SUMIFS('C Schedule Import Data'!Z:Z,'C Schedule Import Data'!$A:$A,$L$3,'C Schedule Import Data'!$B:$B,$L51) -> 0 | L51: 2201 REV
A52: Casinos, Racing, Gambling, Wagering | C52: =-SUMIFS('C Schedule Import Data'!T:T,'C Schedule Import Data'!$A:$A,$L$3,'C Schedule Import Data'!$B:$B,$L52) -> 0 | D52: =-SUMIFS('C Schedule Import Data'!U:U,'C Schedule Import Data'!$A:$A,$L$3,'C Schedule Import Data'!$B:$B,$L52) -> 0 | E52: =-SUMIFS('C Schedule Import Data'!V:V,'C Schedule Import Data'!$A:$A,$L$3,'C Schedule Import Data'!$B:$B,$L52) -> 0 | F52: =-SUMIFS('C Schedule Import Data'!W:W,'C Schedule Import Data'!$A:$A,$L$3,'C Schedule Import Data'!$B:$B,$L52) -> 0 | G52: =-SUMIFS('C Schedule Import Data'!X:X,'C Schedule Import Data'!$A:$A,$L$3,'C Schedule Import Data'!$B:$B,$L52) -> 0 | H52: =-SUMIFS('C Schedule Import Data'!Y:Y,'C Schedule Import Data'!$A:$A,$L$3,'C Schedule Import Data'!$B:$B,$L52) -> 0 | I52: 0 | K52: =-SUMIFS('C Schedule Import Data'!Z:Z,'C Schedule Import Data'!$A:$A,$L$3,'C Schedule Import Data'!$B:$B,$L52) -> 0 | L52: 2202 REV
A53: Community Parks (including Nurseries) | C53: =-SUMIFS('C Schedule Import Data'!T:T,'C Schedule Import Data'!$A:$A,$L$3,'C Schedule Import Data'!$B:$B,$L53) -> 0 | D53: =-SUMIFS('C Schedule Import Data'!U:U,'C Schedule Import Data'!$A:$A,$L$3,'C Schedule Import Data'!$B:$B,$L53) -> 0 | E53: =-SUMIFS('C Schedule Import Data'!V:V,'C Schedule Import Data'!$A:$A,$L$3,'C Schedule Import Data'!$B:$B,$L53) -> 0 | F53: =-SUMIFS('C Schedule Import Data'!W:W,'C Schedule Import Data'!$A:$A,$L$3,'C Schedule Import Data'!$B:$B,$L53) -> 0 | G53: =-SUMIFS('C Schedule Import Data'!X:X,'C Schedule Import Data'!$A:$A,$L$3,'C Schedule Import Data'!$B:$B,$L53) -> 0 | H53: =-SUMIFS('C Schedule Import Data'!Y:Y,'C Schedule Import Data'!$A:$A,$L$3,'C Schedule Import Data'!$B:$B,$L53) -> 0 | I53: 0 | K53: =-SUMIFS('C Schedule Import Data'!Z:Z,'C Schedule Import Data'!$A:$A,$L$3,'C Schedule Import Data'!$B:$B,$L53) -> 0 | L53: 2203 REV
A54: Recreational Facilities | C54: =-SUMIFS('C Schedule Import Data'!T:T,'C Schedule Import Data'!$A:$A,$L$3,'C Schedule Import Data'!$B:$B,$L54) -> 0 | D54: =-SUMIFS('C Schedule Import Data'!U:U,'C Schedule Import Data'!$A:$A,$L$3,'C Schedule Import Data'!$B:$B,$L54) -> 0 | E54: =-SUMIFS('C Schedule Import Data'!V:V,'C Schedule Import Data'!$A:$A,$L$3,'C Schedule Import Data'!$B:$B,$L54) -> 0 | F54: =-SUMIFS('C Schedule Import Data'!W:W,'C Schedule Import Data'!$A:$A,$L$3,'C Schedule Import Data'!$B:$B,$L54) -> 0 | G54: =-SUMIFS('C Schedule Import Data'!X:X,'C Schedule Import Data'!$A:$A,$L$3,'C Schedule Import Data'!$B:$B,$L54) -> 0 | H54: =-SUMIFS('C Schedule Import Data'!Y:Y,'C Schedule Import Data'!$A:$A,$L$3,'C Schedule Import Data'!$B:$B,$L54) -> 0 | I54: 0 | K54: =-SUMIFS('C Schedule Import Data'!Z:Z,'C Schedule Import Data'!$A:$A,$L$3,'C Schedule Import Data'!$B:$B,$L54) -> 0 | L54: 2204 REV
A55: Sports Grounds and Stadiums | C55: =-SUMIFS('C Schedule Import Data'!T:T,'C Schedule Import Data'!$A:$A,$L$3,'C Schedule Import Data'!$B:$B,$L55) -> 0 | D55: =-SUMIFS('C Schedule Import Data'!U:U,'C Schedule Import Data'!$A:$A,$L$3,'C Schedule Import Data'!$B:$B,$L55) -> 58000 | E55: =-SUMIFS('C Schedule Import Data'!V:V,'C Schedule Import Data'!$A:$A,$L$3,'C Schedule Import Data'!$B:$B,$L55) -> 58000 | F55: =-SUMIFS('C Schedule Import Data'!W:W,'C Schedule Import Data'!$A:$A,$L$3,'C Schedule Import Data'!$B:$B,$L55) -> 0 | G55: =-SUMIFS('C Schedule Import Data'!X:X,'C Schedule Import Data'!$A:$A,$L$3,'C Schedule Import Data'!$B:$B,$L55) -> 0 | H55: =-SUMIFS('C Schedule Import Data'!Y:Y,'C Schedule Import Data'!$A:$A,$L$3,'C Schedule Import Data'!$B:$B,$L55) -> 14499 | I55: -14499 | J55: -1 | K55: =-SUMIFS('C Schedule Import Data'!Z:Z,'C Schedule Import Data'!$A:$A,$L$3,'C Schedule Import Data'!$B:$B,$L55) -> 58000 | L55: 2205 REV
A56: Public safety | C56: =SUM(C57:C62) -> 0 | D56: =SUM(D57:D62) -> 3826300 | E56: 3826300 | F56: 178800.09 | G56: 666940.67 | H56: 956571 | I56: -289630.33 | J56: -0.3027797518 | K56: 3826300 | L56: 2300 REV
A57: Civil Defence | C57: =-SUMIFS('C Schedule Import Data'!T:T,'C Schedule Import Data'!$A:$A,$L$3,'C Schedule Import Data'!$B:$B,$L57) -> 0 | D57: =-SUMIFS('C Schedule Import Data'!U:U,'C Schedule Import Data'!$A:$A,$L$3,'C Schedule Import Data'!$B:$B,$L57) -> 3800000 | E57: =-SUMIFS('C Schedule Import Data'!V:V,'C Schedule Import Data'!$A:$A,$L$3,'C Schedule Import Data'!$B:$B,$L57) -> 3800000 | F57: =-SUMIFS('C Schedule Import Data'!W:W,'C Schedule Import Data'!$A:$A,$L$3,'C Schedule Import Data'!$B:$B,$L57) -> 178300.09 | G57: =-SUMIFS('C Schedule Import Data'!X:X,'C Schedule Import Data'!$A:$A,$L$3,'C Schedule Import Data'!$B:$B,$L57) -> 659090.67 | H57: =-SUMIFS('C Schedule Import Data'!Y:Y,'C Schedule Import Data'!$A:$A,$L$3,'C Schedule Import Data'!$B:$B,$L57) -> 949998 | I57: -290907.33 | J57: -0.3062188868 | K57: =-SUMIFS('C Schedule Import Data'!Z:Z,'C Schedule Import Data'!$A:$A,$L$3,'C Schedule Import Data'!$B:$B,$L57) -> 3800000 | L57: 2301 REV
A58: Cleansing | C58: =-SUMIFS('C Schedule Import Data'!T:T,'C Schedule Import Data'!$A:$A,$L$3,'C Schedule Import Data'!$B:$B,$L58) -> 0 | D58: =-SUMIFS('C Schedule Import Data'!U:U,'C Schedule Import Data'!$A:$A,$L$3,'C Schedule Import Data'!$B:$B,$L58) -> 0 | E58: =-SUMIFS('C Schedule Import Data'!V:V,'C Schedule Import Data'!$A:$A,$L$3,'C Schedule Import Data'!$B:$B,$L58) -> 0 | F58: =-SUMIFS('C Schedule Import Data'!W:W,'C Schedule Import Data'!$A:$A,$L$3,'C Schedule Import Data'!$B:$B,$L58) -> 0 | G58: =-SUMIFS('C Schedule Import Data'!X:X,'C Schedule Import Data'!$A:$A,$L$3,'C Schedule Import Data'!$B:$B,$L58) -> 0 | H58: =-SUMIFS('C Schedule Import Data'!Y:Y,'C Schedule Import Data'!$A:$A,$L$3,'C Schedule Import Data'!$B:$B,$L58) -> 0 | I58: 0 | K58: =-SUMIFS('C Schedule Import Data'!Z:Z,'C Schedule Import Data'!$A:$A,$L$3,'C Schedule Import Data'!$B:$B,$L58) -> 0 | L58: 2302 REV
A59: Control of Public Nuisances | C59: =-SUMIFS('C Schedule Import Data'!T:T,'C Schedule Import Data'!$A:$A,$L$3,'C Schedule Import Data'!$B:$B,$L59) -> 0 | D59: =-SUMIFS('C Schedule Import Data'!U:U,'C Schedule Import Data'!$A:$A,$L$3,'C Schedule Import Data'!$B:$B,$L59) -> 0 | E59: =-SUMIFS('C Schedule Import Data'!V:V,'C Schedule Import Data'!$A:$A,$L$3,'C Schedule Import Data'!$B:$B,$L59) -> 0 | F59: =-SUMIFS('C Schedule Import Data'!W:W,'C Schedule Import Data'!$A:$A,$L$3,'C Schedule Import Data'!$B:$B,$L59) -> 500 | G59: =-SUMIFS('C Schedule Import Data'!X:X,'C Schedule Import Data'!$A:$A,$L$3,'C Schedule Import Data'!$B:$B,$L59) -> 7850 | H59: =-SUMIFS('C Schedule Import Data'!Y:Y,'C Schedule Import Data'!$A:$A,$L$3,'C Schedule Import Data'!$B:$B,$L59) -> 0 | I59: =G59-H59 -> 7850 | J59: =IF(I59=0,"",I59/H59) ->  | K59: =-SUMIFS('C Schedule Import Data'!Z:Z,'C Schedule Import Data'!$A:$A,$L$3,'C Schedule Import Data'!$B:$B,$L59) -> 0 | L59: 2303 REV
A60: Fencing and Fences | C60: =-SUMIFS('C Schedule Import Data'!T:T,'C Schedule Import Data'!$A:$A,$L$3,'C Schedule Import Data'!$B:$B,$L60) -> 0 | D60: =-SUMIFS('C Schedule Import Data'!U:U,'C Schedule Import Data'!$A:$A,$L$3,'C Schedule Import Data'!$B:$B,$L60) -> 0 | E60: =-SUMIFS('C Schedule Import Data'!V:V,'C Schedule Import Data'!$A:$A,$L$3,'C Schedule Import Data'!$B:$B,$L60) -> 0 | F60: =-SUMIFS('C Schedule Import Data'!W:W,'C Schedule Import Data'!$A:$A,$L$3,'C Schedule Import Data'!$B:$B,$L60) -> 0 | G60: =-SUMIFS('C Schedule Import Data'!X:X,'C Schedule Import Data'!$A:$A,$L$3,'C Schedule Import Data'!$B:$B,$L60) -> 0 | H60: =-SUMIFS('C Schedule Import Data'!Y:Y,'C Schedule Import Data'!$A:$A,$L$3,'C Schedule Import Data'!$B:$B,$L60) -> 0 | I60: 0 | K60: =-SUMIFS('C Schedule Import Data'!Z:Z,'C Schedule Import Data'!$A:$A,$L$3,'C Schedule Import Data'!$B:$B,$L60) -> 0 | L60: 2304 REV
A61: Fire Fighting and Protection | C61: =-SUMIFS('C Schedule Import Data'!T:T,'C Schedule Import Data'!$A:$A,$L$3,'C Schedule Import Data'!$B:$B,$L61) -> 0 | D61: =-SUMIFS('C Schedule Import Data'!U:U,'C Schedule Import Data'!$A:$A,$L$3,'C Schedule Import Data'!$B:$B,$L61) -> 26300 | E61: =-SUMIFS('C Schedule Import Data'!V:V,'C Schedule Import Data'!$A:$A,$L$3,'C Schedule Import Data'!$B:$B,$L61) -> 26300 | F61: =-SUMIFS('C Schedule Import Data'!W:W,'C Schedule Import Data'!$A:$A,$L$3,'C Schedule Import Data'!$B:$B,$L61) -> 0 | G61: =-SUMIFS('C Schedule Import Data'!X:X,'C Schedule Import Data'!$A:$A,$L$3,'C Schedule Import Data'!$B:$B,$L61) -> 0 | H61: =-SUMIFS('C Schedule Import Data'!Y:Y,'C Schedule Import Data'!$A:$A,$L$3,'C Schedule Import Data'!$B:$B,$L61) -> 6573 | I61: -6573 | J61: -1 | K61: =-SUMIFS('C Schedule Import Data'!Z:Z,'C Schedule Import Data'!$A:$A,$L$3,'C Schedule Import Data'!$B:$B,$L61) -> 26300 | L61: 2305 REV
A62: Licensing and Control of Animals | C62: =-SUMIFS('C Schedule Import Data'!T:T,'C Schedule Import Data'!$A:$A,$L$3,'C Schedule Import Data'!$B:$B,$L62) -> 0 | D62: =-SUMIFS('C Schedule Import Data'!U:U,'C Schedule Import Data'!$A:$A,$L$3,'C Schedule Import Data'!$B:$B,$L62) -> 0 | E62: =-SUMIFS('C Schedule Import Data'!V:V,'C Schedule Import Data'!$A:$A,$L$3,'C Schedule Import Data'!$B:$B,$L62) -> 0 | F62: =-SUMIFS('C Schedule Import Data'!W:W,'C Schedule Import Data'!$A:$A,$L$3,'C Schedule Import Data'!$B:$B,$L62) -> 0 | G62: =-SUMIFS('C Schedule Import Data'!X:X,'C Schedule Import Data'!$A:$A,$L$3,'C Schedule Import Data'!$B:$B,$L62) -> 0 | H62: =-SUMIFS('C Schedule Import Data'!Y:Y,'C Schedule Import Data'!$A:$A,$L$3,'C Schedule Import Data'!$B:$B,$L62) -> 0 | I62: 0 | K62: =-SUMIFS('C Schedule Import Data'!Z:Z,'C Schedule Import Data'!$A:$A,$L$3,'C Schedule Import Data'!$B:$B,$L62) -> 0 | L62: 2306 REV
A63: Housing | C63: =SUM(C64:C65) -> 0 | D63: 852096 | E63: 852096 | F63: 16782.11 | G63: 593182.01 | H63: 213024 | I63: =G63-H63 -> 380158.01 | J63: =IF(I63=0,"",I63/H63) -> 1.78457831 | K63: =SUM(K64:K65) -> 852096 | L63: 2400 REV
A64: Housing | C64: =-SUMIFS('C Schedule Import Data'!T:T,'C Schedule Import Data'!$A:$A,$L$3,'C Schedule Import Data'!$B:$B,$L64) -> 0 | D64: =-SUMIFS('C Schedule Import Data'!U:U,'C Schedule Import Data'!$A:$A,$L$3,'C Schedule Import Data'!$B:$B,$L64) -> 852096 | E64: =-SUMIFS('C Schedule Import Data'!V:V,'C Schedule Import Data'!$A:$A,$L$3,'C Schedule Import Data'!$B:$B,$L64) -> 852096 | F64: =-SUMIFS('C Schedule Import Data'!W:W,'C Schedule Import Data'!$A:$A,$L$3,'C Schedule Import Data'!$B:$B,$L64) -> 16782.11 | G64: =-SUMIFS('C Schedule Import Data'!X:X,'C Schedule Import Data'!$A:$A,$L$3,'C Schedule Import Data'!$B:$B,$L64) -> 593182.01 | H64: =-SUMIFS('C Schedule Import Data'!Y:Y,'C Schedule Import Data'!$A:$A,$L$3,'C Schedule Import Data'!$B:$B,$L64) -> 213024 | I64: =G64-H64 -> 380158.01 | J64: =IF(I64=0,"",I64/H64) -> 1.78457831 | K64: =-SUMIFS('C Schedule Import Data'!Z:Z,'C Schedule Import Data'!$A:$A,$L$3,'C Schedule Import Data'!$B:$B,$L64) -> 852096 | L64: 2401 REV
A65: Informal Settlements | C65: =-SUMIFS('C Schedule Import Data'!T:T,'C Schedule Import Data'!$A:$A,$L$3,'C Schedule Import Data'!$B:$B,$L65) -> 0 | D65: =-SUMIFS('C Schedule Import Data'!U:U,'C Schedule Import Data'!$A:$A,$L$3,'C Schedule Import Data'!$B:$B,$L65) -> 0 | E65: =-SUMIFS('C Schedule Import Data'!V:V,'C Schedule Import Data'!$A:$A,$L$3,'C Schedule Import Data'!$B:$B,$L65) -> 0 | F65: =-SUMIFS('C Schedule Import Data'!W:W,'C Schedule Import Data'!$A:$A,$L$3,'C Schedule Import Data'!$B:$B,$L65) -> 0 | G65: =-SUMIFS('C Schedule Import Data'!X:X,'C Schedule Import Data'!$A:$A,$L$3,'C Schedule Import Data'!$B:$B,$L65) -> 0 | H65: =-SUMIFS('C Schedule Import Data'!Y:Y,'C Schedule Import Data'!$A:$A,$L$3,'C Schedule Import Data'!$B:$B,$L65) -> 0 | I65: =G65-H65 -> 0 | J65: =IF(I65=0,"",I65/H65) ->  | K65: =-SUMIFS('C Schedule Import Data'!Z:Z,'C Schedule Import Data'!$A:$A,$L$3,'C Schedule Import Data'!$B:$B,$L65) -> 0 | L65: 2402 REV
A66: Health | C66: =SUM(C67:C73) -> 0 | D66: 0 | E66: 0 | F66: 0 | G66: 0 | H66: 0 | I66: 0 | K66: =SUM(K67:K73) -> 0 | L66: 2500 REV
A67: Ambulance | C67: =-SUMIFS('C Schedule Import Data'!T:T,'C Schedule Import Data'!$A:$A,$L$3,'C Schedule Import Data'!$B:$B,$L67) -> 0 | D67: =-SUMIFS('C Schedule Import Data'!U:U,'C Schedule Import Data'!$A:$A,$L$3,'C Schedule Import Data'!$B:$B,$L67) -> 0 | E67: =-SUMIFS('C Schedule Import Data'!V:V,'C Schedule Import Data'!$A:$A,$L$3,'C Schedule Import Data'!$B:$B,$L67) -> 0 | F67: =-SUMIFS('C Schedule Import Data'!W:W,'C Schedule Import Data'!$A:$A,$L$3,'C Schedule Import Data'!$B:$B,$L67) -> 0 | G67: =-SUMIFS('C Schedule Import Data'!X:X,'C Schedule Import Data'!$A:$A,$L$3,'C Schedule Import Data'!$B:$B,$L67) -> 0 | H67: =-SUMIFS('C Schedule Import Data'!Y:Y,'C Schedule Import Data'!$A:$A,$L$3,'C Schedule Import Data'!$B:$B,$L67) -> 0 | I67: 0 | K67: =-SUMIFS('C Schedule Import Data'!Z:Z,'C Schedule Import Data'!$A:$A,$L$3,'C Schedule Import Data'!$B:$B,$L67) -> 0 | L67: 2501 REV
A68: Health Services | C68: =-SUMIFS('C Schedule Import Data'!T:T,'C Schedule Import Data'!$A:$A,$L$3,'C Schedule Import Data'!$B:$B,$L68) -> 0 | D68: =-SUMIFS('C Schedule Import Data'!U:U,'C Schedule Import Data'!$A:$A,$L$3,'C Schedule Import Data'!$B:$B,$L68) -> 0 | E68: =-SUMIFS('C Schedule Import Data'!V:V,'C Schedule Import Data'!$A:$A,$L$3,'C Schedule Import Data'!$B:$B,$L68) -> 0 | F68: =-SUMIFS('C Schedule Import Data'!W:W,'C Schedule Import Data'!$A:$A,$L$3,'C Schedule Import Data'!$B:$B,$L68) -> 0 | G68: =-SUMIFS('C Schedule Import Data'!X:X,'C Schedule Import Data'!$A:$A,$L$3,'C Schedule Import Data'!$B:$B,$L68) -> 0 | H68: =-SUMIFS('C Schedule Import Data'!Y:Y,'C Schedule Import Data'!$A:$A,$L$3,'C Schedule Import Data'!$B:$B,$L68) -> 0 | I68: 0 | K68: =-SUMIFS('C Schedule Import Data'!Z:Z,'C Schedule Import Data'!$A:$A,$L$3,'C Schedule Import Data'!$B:$B,$L68) -> 0 | L68: 2502 REV
A69: Laboratory Services | C69: =-SUMIFS('C Schedule Import Data'!T:T,'C Schedule Import Data'!$A:$A,$L$3,'C Schedule Import Data'!$B:$B,$L69) -> 0 | D69: =-SUMIFS('C Schedule Import Data'!U:U,'C Schedule Import Data'!$A:$A,$L$3,'C Schedule Import Data'!$B:$B,$L69) -> 0 | E69: =-SUMIFS('C Schedule Import Data'!V:V,'C Schedule Import Data'!$A:$A,$L$3,'C Schedule Import Data'!$B:$B,$L69) -> 0 | F69: =-SUMIFS('C Schedule Import Data'!W:W,'C Schedule Import Data'!$A:$A,$L$3,'C Schedule Import Data'!$B:$B,$L69) -> 0 | G69: =-SUMIFS('C Schedule Import Data'!X:X,'C Schedule Import Data'!$A:$A,$L$3,'C Schedule Import Data'!$B:$B,$L69) -> 0 | H69: =-SUMIFS('C Schedule Import Data'!Y:Y,'C Schedule Import Data'!$A:$A,$L$3,'C Schedule Import Data'!$B:$B,$L69) -> 0 | I69: =G69-H69 -> 0 | J69: =IF(I69=0,"",I69/H69) ->  | K69: =-SUMIFS('C Schedule Import Data'!Z:Z,'C Schedule Import Data'!$A:$A,$L$3,'C Schedule Import Data'!$B:$B,$L69) -> 0 | L69: 2503 REV
A70: Food Control | C70: =-SUMIFS('C Schedule Import Data'!T:T,'C Schedule Import Data'!$A:$A,$L$3,'C Schedule Import Data'!$B:$B,$L70) -> 0 | D70: =-SUMIFS('C Schedule Import Data'!U:U,'C Schedule Import Data'!$A:$A,$L$3,'C Schedule Import Data'!$B:$B,$L70) -> 0 | E70: =-SUMIFS('C Schedule Import Data'!V:V,'C Schedule Import Data'!$A:$A,$L$3,'C Schedule Import Data'!$B:$B,$L70) -> 0 | F70: =-SUMIFS('C Schedule Import Data'!W:W,'C Schedule Import Data'!$A:$A,$L$3,'C Schedule Import Data'!$B:$B,$L70) -> 0 | G70: =-SUMIFS('C Schedule Import Data'!X:X,'C Schedule Import Data'!$A:$A,$L$3,'C Schedule Import Data'!$B:$B,$L70) -> 0 | H70: =-SUMIFS('C Schedule Import Data'!Y:Y,'C Schedule Import Data'!$A:$A,$L$3,'C Schedule Import Data'!$B:$B,$L70) -> 0 | I70: =G70-H70 -> 0 | J70: =IF(I70=0,"",I70/H70) ->  | K70: =-SUMIFS('C Schedule Import Data'!Z:Z,'C Schedule Import Data'!$A:$A,$L$3,'C Schedule Import Data'!$B:$B,$L70) -> 0 | L70: 2504 REV
A71: Health Surveillance and Prevention of Communicable Diseases including immunizations | C71: =-SUMIFS('C Schedule Import Data'!T:T,'C Schedule Import Data'!$A:$A,$L$3,'C Schedule Import Data'!$B:$B,$L71) -> 0 | D71: =-SUMIFS('C Schedule Import Data'!U:U,'C Schedule Import Data'!$A:$A,$L$3,'C Schedule Import Data'!$B:$B,$L71) -> 0 | E71: =-SUMIFS('C Schedule Import Data'!V:V,'C Schedule Import Data'!$A:$A,$L$3,'C Schedule Import Data'!$B:$B,$L71) -> 0 | F71: =-SUMIFS('C Schedule Import Data'!W:W,'C Schedule Import Data'!$A:$A,$L$3,'C Schedule Import Data'!$B:$B,$L71) -> 0 | G71: =-SUMIFS('C Schedule Import Data'!X:X,'C Schedule Import Data'!$A:$A,$L$3,'C Schedule Import Data'!$B:$B,$L71) -> 0 | H71: =-SUMIFS('C Schedule Import Data'!Y:Y,'C Schedule Import Data'!$A:$A,$L$3,'C Schedule Import Data'!$B:$B,$L71) -> 0 | I71: 0 | K71: =-SUMIFS('C Schedule Import Data'!Z:Z,'C Schedule Import Data'!$A:$A,$L$3,'C Schedule Import Data'!$B:$B,$L71) -> 0 | L71: 2505 REV
A72: Vector Control | C72: =-SUMIFS('C Schedule Import Data'!T:T,'C Schedule Import Data'!$A:$A,$L$3,'C Schedule Import Data'!$B:$B,$L72) -> 0 | D72: =-SUMIFS('C Schedule Import Data'!U:U,'C Schedule Import Data'!$A:$A,$L$3,'C Schedule Import Data'!$B:$B,$L72) -> 0 | E72: =-SUMIFS('C Schedule Import Data'!V:V,'C Schedule Import Data'!$A:$A,$L$3,'C Schedule Import Data'!$B:$B,$L72) -> 0 | F72: =-SUMIFS('C Schedule Import Data'!W:W,'C Schedule Import Data'!$A:$A,$L$3,'C Schedule Import Data'!$B:$B,$L72) -> 0 | G72: =-SUMIFS('C Schedule Import Data'!X:X,'C Schedule Import Data'!$A:$A,$L$3,'C Schedule Import Data'!$B:$B,$L72) -> 0 | H72: =-SUMIFS('C Schedule Import Data'!Y:Y,'C Schedule Import Data'!$A:$A,$L$3,'C Schedule Import Data'!$B:$B,$L72) -> 0 | I72: 0 | K72: =-SUMIFS('C Schedule Import Data'!Z:Z,'C Schedule Import Data'!$A:$A,$L$3,'C Schedule Import Data'!$B:$B,$L72) -> 0 | L72: 2506 REV
A73: Chemical Safety | C73: =-SUMIFS('C Schedule Import Data'!T:T,'C Schedule Import Data'!$A:$A,$L$3,'C Schedule Import Data'!$B:$B,$L73) -> 0 | D73: =-SUMIFS('C Schedule Import Data'!U:U,'C Schedule Import Data'!$A:$A,$L$3,'C Schedule Import Data'!$B:$B,$L73) -> 0 | E73: =-SUMIFS('C Schedule Import Data'!V:V,'C Schedule Import Data'!$A:$A,$L$3,'C Schedule Import Data'!$B:$B,$L73) -> 0 | F73: =-SUMIFS('C Schedule Import Data'!W:W,'C Schedule Import Data'!$A:$A,$L$3,'C Schedule Import Data'!$B:$B,$L73) -> 0 | G73: =-SUMIFS('C Schedule Import Data'!X:X,'C Schedule Import Data'!$A:$A,$L$3,'C Schedule Import Data'!$B:$B,$L73) -> 0 | H73: =-SUMIFS('C Schedule Import Data'!Y:Y,'C Schedule Import Data'!$A:$A,$L$3,'C Schedule Import Data'!$B:$B,$L73) -> 0 | I73: 0 | K73: =-SUMIFS('C Schedule Import Data'!Z:Z,'C Schedule Import Data'!$A:$A,$L$3,'C Schedule Import Data'!$B:$B,$L73) -> 0 | L73: 2507 REV
A74: Economic and environmental services | C74: =C75+C86+C93 -> 0 | D74: =D75+D86+D93 -> 29944300 | E74: 29944300 | F74: 621746.04 | G74: 2357122.17 | H74: 7486068 | I74: -5128945.83 | J74: -0.6851321455 | K74: 29944300 | L74: 3000 REV
A75: Planning and development | C75: =SUM(C76:C85) -> 0 | D75: 27554780 | E75: 27554780 | F75: 450526.74 | G75: 450833.87 | H75: 6888693 | I75: -6437859.13 | J75: -0.9345545127 | K75: =SUM(K76:K85) -> 27554780 | L75: 3100 REV
A76: Billboards | C76: =-SUMIFS('C Schedule Import Data'!T:T,'C Schedule Import Data'!$A:$A,$L$3,'C Schedule Import Data'!$B:$B,$L76) -> 0 | D76: =-SUMIFS('C Schedule Import Data'!U:U,'C Schedule Import Data'!$A:$A,$L$3,'C Schedule Import Data'!$B:$B,$L76) -> 0 | E76: =-SUMIFS('C Schedule Import Data'!V:V,'C Schedule Import Data'!$A:$A,$L$3,'C Schedule Import Data'!$B:$B,$L76) -> 0 | F76: =-SUMIFS('C Schedule Import Data'!W:W,'C Schedule Import Data'!$A:$A,$L$3,'C Schedule Import Data'!$B:$B,$L76) -> 0 | G76: =-SUMIFS('C Schedule Import Data'!X:X,'C Schedule Import Data'!$A:$A,$L$3,'C Schedule Import Data'!$B:$B,$L76) -> 0 | H76: =-SUMIFS('C Schedule Import Data'!Y:Y,'C Schedule Import Data'!$A:$A,$L$3,'C Schedule Import Data'!$B:$B,$L76) -> 0 | I76: =G76-H76 -> 0 | J76: =IF(I76=0,"",I76/H76) ->  | K76: =-SUMIFS('C Schedule Import Data'!Z:Z,'C Schedule Import Data'!$A:$A,$L$3,'C Schedule Import Data'!$B:$B,$L76) -> 0 | L76: 3101 REV
A77: Corporate Wide Strategic Planning (IDPs, LEDs) | C77: =-SUMIFS('C Schedule Import Data'!T:T,'C Schedule Import Data'!$A:$A,$L$3,'C Schedule Import Data'!$B:$B,$L77) -> 0 | D77: =-SUMIFS('C Schedule Import Data'!U:U,'C Schedule Import Data'!$A:$A,$L$3,'C Schedule Import Data'!$B:$B,$L77) -> 0 | E77: =-SUMIFS('C Schedule Import Data'!V:V,'C Schedule Import Data'!$A:$A,$L$3,'C Schedule Import Data'!$B:$B,$L77) -> 0 | F77: =-SUMIFS('C Schedule Import Data'!W:W,'C Schedule Import Data'!$A:$A,$L$3,'C Schedule Import Data'!$B:$B,$L77) -> 0 | G77: =-SUMIFS('C Schedule Import Data'!X:X,'C Schedule Import Data'!$A:$A,$L$3,'C Schedule Import Data'!$B:$B,$L77) -> 0 | H77: =-SUMIFS('C Schedule Import Data'!Y:Y,'C Schedule Import Data'!$A:$A,$L$3,'C Schedule Import Data'!$B:$B,$L77) -> 0 | I77: 0 | K77: =-SUMIFS('C Schedule Import Data'!Z:Z,'C Schedule Import Data'!$A:$A,$L$3,'C Schedule Import Data'!$B:$B,$L77) -> 0 | L77: 3102 REV
A78: Central City Improvement District | C78: =-SUMIFS('C Schedule Import Data'!T:T,'C Schedule Import Data'!$A:$A,$L$3,'C Schedule Import Data'!$B:$B,$L78) -> 0 | D78: =-SUMIFS('C Schedule Import Data'!U:U,'C Schedule Import Data'!$A:$A,$L$3,'C Schedule Import Data'!$B:$B,$L78) -> 0 | E78: =-SUMIFS('C Schedule Import Data'!V:V,'C Schedule Import Data'!$A:$A,$L$3,'C Schedule Import Data'!$B:$B,$L78) -> 0 | F78: =-SUMIFS('C Schedule Import Data'!W:W,'C Schedule Import Data'!$A:$A,$L$3,'C Schedule Import Data'!$B:$B,$L78) -> 0 | G78: =-SUMIFS('C Schedule Import Data'!X:X,'C Schedule Import Data'!$A:$A,$L$3,'C Schedule Import Data'!$B:$B,$L78) -> 0 | H78: =-SUMIFS('C Schedule Import Data'!Y:Y,'C Schedule Import Data'!$A:$A,$L$3,'C Schedule Import Data'!$B:$B,$L78) -> 0 | I78: 0 | K78: =-SUMIFS('C Schedule Import Data'!Z:Z,'C Schedule Import Data'!$A:$A,$L$3,'C Schedule Import Data'!$B:$B,$L78) -> 0 | L78: 3103 REV
A79: Development Facilitation | C79: =-SUMIFS('C Schedule Import Data'!T:T,'C Schedule Import Data'!$A:$A,$L$3,'C Schedule Import Data'!$B:$B,$L79) -> 0 | D79: =-SUMIFS('C Schedule Import Data'!U:U,'C Schedule Import Data'!$A:$A,$L$3,'C Schedule Import Data'!$B:$B,$L79) -> 0 | E79: =-SUMIFS('C Schedule Import Data'!V:V,'C Schedule Import Data'!$A:$A,$L$3,'C Schedule Import Data'!$B:$B,$L79) -> 0 | F79: =-SUMIFS('C Schedule Import Data'!W:W,'C Schedule Import Data'!$A:$A,$L$3,'C Schedule Import Data'!$B:$B,$L79) -> 0 | G79: =-SUMIFS('C Schedule Import Data'!X:X,'C Schedule Import Data'!$A:$A,$L$3,'C Schedule Import Data'!$B:$B,$L79) -> 0 | H79: =-SUMIFS('C Schedule Import Data'!Y:Y,'C Schedule Import Data'!$A:$A,$L$3,'C Schedule Import Data'!$B:$B,$L79) -> 0 | I79: =G79-H79 -> 0 | J79: =IF(I79=0,"",I79/H79) ->  | K79: =-SUMIFS('C Schedule Import Data'!Z:Z,'C Schedule Import Data'!$A:$A,$L$3,'C Schedule Import Data'!$B:$B,$L79) -> 0 | L79: 3104 REV
A80: Economic Development/Planning | C80: =-SUMIFS('C Schedule Import Data'!T:T,'C Schedule Import Data'!$A:$A,$L$3,'C Schedule Import Data'!$B:$B,$L80) -> 0 | D80: =-SUMIFS('C Schedule Import Data'!U:U,'C Schedule Import Data'!$A:$A,$L$3,'C Schedule Import Data'!$B:$B,$L80) -> 26454780 | E80: =-SUMIFS('C Schedule Import Data'!V:V,'C Schedule Import Data'!$A:$A,$L$3,'C Schedule Import Data'!$B:$B,$L80) -> 26454780 | F80: =-SUMIFS('C Schedule Import Data'!W:W,'C Schedule Import Data'!$A:$A,$L$3,'C Schedule Import Data'!$B:$B,$L80) -> 445046.79 | G80: =-SUMIFS('C Schedule Import Data'!X:X,'C Schedule Import Data'!$A:$A,$L$3,'C Schedule Import Data'!$B:$B,$L80) -> 445245.05 | H80: =-SUMIFS('C Schedule Import Data'!Y:Y,'C Schedule Import Data'!$A:$A,$L$3,'C Schedule Import Data'!$B:$B,$L80) -> 6613695 | I80: =G80-H80 -> -6168449.95 | J80: =IF(I80=0,"",I80/H80) -> -0.9326783213 | K80: =-SUMIFS('C Schedule Import Data'!Z:Z,'C Schedule Import Data'!$A:$A,$L$3,'C Schedule Import Data'!$B:$B,$L80) -> 26454780 | L80: 3105 REV
A81: Regional Planning and Development | C81: =-SUMIFS('C Schedule Import Data'!T:T,'C Schedule Import Data'!$A:$A,$L$3,'C Schedule Import Data'!$B:$B,$L81) -> 0 | D81: =-SUMIFS('C Schedule Import Data'!U:U,'C Schedule Import Data'!$A:$A,$L$3,'C Schedule Import Data'!$B:$B,$L81) -> 0 | E81: =-SUMIFS('C Schedule Import Data'!V:V,'C Schedule Import Data'!$A:$A,$L$3,'C Schedule Import Data'!$B:$B,$L81) -> 0 | F81: =-SUMIFS('C Schedule Import Data'!W:W,'C Schedule Import Data'!$A:$A,$L$3,'C Schedule Import Data'!$B:$B,$L81) -> 0 | G81: =-SUMIFS('C Schedule Import Data'!X:X,'C Schedule Import Data'!$A:$A,$L$3,'C Schedule Import Data'!$B:$B,$L81) -> 0 | H81: =-SUMIFS('C Schedule Import Data'!Y:Y,'C Schedule Import Data'!$A:$A,$L$3,'C Schedule Import Data'!$B:$B,$L81) -> 0 | I81: =G81-H81 -> 0 | J81: =IF(I81=0,"",I81/H81) ->  | K81: =-SUMIFS('C Schedule Import Data'!Z:Z,'C Schedule Import Data'!$A:$A,$L$3,'C Schedule Import Data'!$B:$B,$L81) -> 0 | L81: 3106 REV
A82: Town Planning, Building Regulations and Enforcement, and City Engineer | C82: =-SUMIFS('C Schedule Import Data'!T:T,'C Schedule Import Data'!$A:$A,$L$3,'C Schedule Import Data'!$B:$B,$L82) -> 0 | D82: =-SUMIFS('C Schedule Import Data'!U:U,'C Schedule Import Data'!$A:$A,$L$3,'C Schedule Import Data'!$B:$B,$L82) -> 1100000 | E82: =-SUMIFS('C Schedule Import Data'!V:V,'C Schedule Import Data'!$A:$A,$L$3,'C Schedule Import Data'!$B:$B,$L82) -> 1100000 | F82: =-SUMIFS('C Schedule Import Data'!W:W,'C Schedule Import Data'!$A:$A,$L$3,'C Schedule Import Data'!$B:$B,$L82) -> 5479.95 | G82: =-SUMIFS('C Schedule Import Data'!X:X,'C Schedule Import Data'!$A:$A,$L$3,'C Schedule Import Data'!$B:$B,$L82) -> 5588.82 | H82: =-SUMIFS('C Schedule Import Data'!Y:Y,'C Schedule Import Data'!$A:$A,$L$3,'C Schedule Import Data'!$B:$B,$L82) -> 274998 | I82: =G82-H82 -> -269409.18 | J82: =IF(I82=0,"",I82/H82) -> -0.9796768704 | K82: =-SUMIFS('C Schedule Import Data'!Z:Z,'C Schedule Import Data'!$A:$A,$L$3,'C Schedule Import Data'!$B:$B,$L82) -> 1100000 | L82: 3107 REV
A83: Project Management Unit | C83: =-SUMIFS('C Schedule Import Data'!T:T,'C Schedule Import Data'!$A:$A,$L$3,'C Schedule Import Data'!$B:$B,$L83) -> 0 | D83: =-SUMIFS('C Schedule Import Data'!U:U,'C Schedule Import Data'!$A:$A,$L$3,'C Schedule Import Data'!$B:$B,$L83) -> 0 | E83: =-SUMIFS('C Schedule Import Data'!V:V,'C Schedule Import Data'!$A:$A,$L$3,'C Schedule Import Data'!$B:$B,$L83) -> 0 | F83: =-SUMIFS('C Schedule Import Data'!W:W,'C Schedule Import Data'!$A:$A,$L$3,'C Schedule Import Data'!$B:$B,$L83) -> 0 | G83: =-SUMIFS('C Schedule Import Data'!X:X,'C Schedule Import Data'!$A:$A,$L$3,'C Schedule Import Data'!$B:$B,$L83) -> 0 | H83: =-SUMIFS('C Schedule Import Data'!Y:Y,'C Schedule Import Data'!$A:$A,$L$3,'C Schedule Import Data'!$B:$B,$L83) -> 0 | I83: 0 | K83: =-SUMIFS('C Schedule Import Data'!Z:Z,'C Schedule Import Data'!$A:$A,$L$3,'C Schedule Import Data'!$B:$B,$L83) -> 0 | L83: 3108 REV
A84: Provincial Planning | C84: =-SUMIFS('C Schedule Import Data'!T:T,'C Schedule Import Data'!$A:$A,$L$3,'C Schedule Import Data'!$B:$B,$L84) -> 0 | D84: =-SUMIFS('C Schedule Import Data'!U:U,'C Schedule Import Data'!$A:$A,$L$3,'C Schedule Import Data'!$B:$B,$L84) -> 0 | E84: =-SUMIFS('C Schedule Import Data'!V:V,'C Schedule Import Data'!$A:$A,$L$3,'C Schedule Import Data'!$B:$B,$L84) -> 0 | F84: =-SUMIFS('C Schedule Import Data'!W:W,'C Schedule Import Data'!$A:$A,$L$3,'C Schedule Import Data'!$B:$B,$L84) -> 0 | G84: =-SUMIFS('C Schedule Import Data'!X:X,'C Schedule Import Data'!$A:$A,$L$3,'C Schedule Import Data'!$B:$B,$L84) -> 0 | H84: =-SUMIFS('C Schedule Import Data'!Y:Y,'C Schedule Import Data'!$A:$A,$L$3,'C Schedule Import Data'!$B:$B,$L84) -> 0 | I84: 0 | K84: =-SUMIFS('C Schedule Import Data'!Z:Z,'C Schedule Import Data'!$A:$A,$L$3,'C Schedule Import Data'!$B:$B,$L84) -> 0 | L84: 3109 REV
A85: Support to Local Municipalities | C85: =-SUMIFS('C Schedule Import Data'!T:T,'C Schedule Import Data'!$A:$A,$L$3,'C Schedule Import Data'!$B:$B,$L85) -> 0 | D85: =-SUMIFS('C Schedule Import Data'!U:U,'C Schedule Import Data'!$A:$A,$L$3,'C Schedule Import Data'!$B:$B,$L85) -> 0 | E85: =-SUMIFS('C Schedule Import Data'!V:V,'C Schedule Import Data'!$A:$A,$L$3,'C Schedule Import Data'!$B:$B,$L85) -> 0 | F85: =-SUMIFS('C Schedule Import Data'!W:W,'C Schedule Import Data'!$A:$A,$L$3,'C Schedule Import Data'!$B:$B,$L85) -> 0 | G85: =-SUMIFS('C Schedule Import Data'!X:X,'C Schedule Import Data'!$A:$A,$L$3,'C Schedule Import Data'!$B:$B,$L85) -> 0 | H85: =-SUMIFS('C Schedule Import Data'!Y:Y,'C Schedule Import Data'!$A:$A,$L$3,'C Schedule Import Data'!$B:$B,$L85) -> 0 | I85: 0 | K85: =-SUMIFS('C Schedule Import Data'!Z:Z,'C Schedule Import Data'!$A:$A,$L$3,'C Schedule Import Data'!$B:$B,$L85) -> 0 | L85: 3110 REV
A86: Road transport | C86: =SUM(C87:C92) -> 0 | D86: =SUM(D87:D92) -> 2389520 | E86: 2389520 | F86: 171219.3 | G86: 1906288.3 | H86: 597375 | I86: 1308913.3 | J86: 2.191108265 | K86: 2389520 | L86: 3200 REV
A87: Police Forces, Traffic and Street Parking Control | C87: =-SUMIFS('C Schedule Import Data'!T:T,'C Schedule Import Data'!$A:$A,$L$3,'C Schedule Import Data'!$B:$B,$L87) -> 0 | D87: =-SUMIFS('C Schedule Import Data'!U:U,'C Schedule Import Data'!$A:$A,$L$3,'C Schedule Import Data'!$B:$B,$L87) -> 63120 | E87: =-SUMIFS('C Schedule Import Data'!V:V,'C Schedule Import Data'!$A:$A,$L$3,'C Schedule Import Data'!$B:$B,$L87) -> 63120 | F87: =-SUMIFS('C Schedule Import Data'!W:W,'C Schedule Import Data'!$A:$A,$L$3,'C Schedule Import Data'!$B:$B,$L87) -> 4382.64 | G87: =-SUMIFS('C Schedule Import Data'!X:X,'C Schedule Import Data'!$A:$A,$L$3,'C Schedule Import Data'!$B:$B,$L87) -> 11339.27 | H87: =-SUMIFS('C Schedule Import Data'!Y:Y,'C Schedule Import Data'!$A:$A,$L$3,'C Schedule Import Data'!$B:$B,$L87) -> 15777 | I87: -4437.73 | J87: -0.2812784433 | K87: =-SUMIFS('C Schedule Import Data'!Z:Z,'C Schedule Import Data'!$A:$A,$L$3,'C Schedule Import Data'!$B:$B,$L87) -> 63120 | L87: 3201 REV
A88: Pounds | C88: =-SUMIFS('C Schedule Import Data'!T:T,'C Schedule Import Data'!$A:$A,$L$3,'C Schedule Import Data'!$B:$B,$L88) -> 0 | D88: =-SUMIFS('C Schedule Import Data'!U:U,'C Schedule Import Data'!$A:$A,$L$3,'C Schedule Import Data'!$B:$B,$L88) -> 0 | E88: =-SUMIFS('C Schedule Import Data'!V:V,'C Schedule Import Data'!$A:$A,$L$3,'C Schedule Import Data'!$B:$B,$L88) -> 0 | F88: =-SUMIFS('C Schedule Import Data'!W:W,'C Schedule Import Data'!$A:$A,$L$3,'C Schedule Import Data'!$B:$B,$L88) -> 0 | G88: =-SUMIFS('C Schedule Import Data'!X:X,'C Schedule Import Data'!$A:$A,$L$3,'C Schedule Import Data'!$B:$B,$L88) -> 0 | H88: =-SUMIFS('C Schedule Import Data'!Y:Y,'C Schedule Import Data'!$A:$A,$L$3,'C Schedule Import Data'!$B:$B,$L88) -> 0 | I88: =G88-H88 -> 0 | J88: =IF(I88=0,"",I88/H88) ->  | K88: =-SUMIFS('C Schedule Import Data'!Z:Z,'C Schedule Import Data'!$A:$A,$L$3,'C Schedule Import Data'!$B:$B,$L88) -> 0 | L88: 3202 REV
A89: Public Transport | C89: =-SUMIFS('C Schedule Import Data'!T:T,'C Schedule Import Data'!$A:$A,$L$3,'C Schedule Import Data'!$B:$B,$L89) -> 0 | D89: =-SUMIFS('C Schedule Import Data'!U:U,'C Schedule Import Data'!$A:$A,$L$3,'C Schedule Import Data'!$B:$B,$L89) -> 0 | E89: =-SUMIFS('C Schedule Import Data'!V:V,'C Schedule Import Data'!$A:$A,$L$3,'C Schedule Import Data'!$B:$B,$L89) -> 0 | F89: =-SUMIFS('C Schedule Import Data'!W:W,'C Schedule Import Data'!$A:$A,$L$3,'C Schedule Import Data'!$B:$B,$L89) -> 0 | G89: =-SUMIFS('C Schedule Import Data'!X:X,'C Schedule Import Data'!$A:$A,$L$3,'C Schedule Import Data'!$B:$B,$L89) -> 0 | H89: =-SUMIFS('C Schedule Import Data'!Y:Y,'C Schedule Import Data'!$A:$A,$L$3,'C Schedule Import Data'!$B:$B,$L89) -> 0 | I89: 0 | K89: =-SUMIFS('C Schedule Import Data'!Z:Z,'C Schedule Import Data'!$A:$A,$L$3,'C Schedule Import Data'!$B:$B,$L89) -> 0 | L89: 3203 REV
A90: Road and Traffic Regulation | C90: =-SUMIFS('C Schedule Import Data'!T:T,'C Schedule Import Data'!$A:$A,$L$3,'C Schedule Import Data'!$B:$B,$L90) -> 0 | D90: =-SUMIFS('C Schedule Import Data'!U:U,'C Schedule Import Data'!$A:$A,$L$3,'C Schedule Import Data'!$B:$B,$L90) -> 736400 | E90: =-SUMIFS('C Schedule Import Data'!V:V,'C Schedule Import Data'!$A:$A,$L$3,'C Schedule Import Data'!$B:$B,$L90) -> 736400 | F90: =-SUMIFS('C Schedule Import Data'!W:W,'C Schedule Import Data'!$A:$A,$L$3,'C Schedule Import Data'!$B:$B,$L90) -> 28545.66 | G90: =-SUMIFS('C Schedule Import Data'!X:X,'C Schedule Import Data'!$A:$A,$L$3,'C Schedule Import Data'!$B:$B,$L90) -> 128066.55 | H90: =-SUMIFS('C Schedule Import Data'!Y:Y,'C Schedule Import Data'!$A:$A,$L$3,'C Schedule Import Data'!$B:$B,$L90) -> 184098 | I90: -56031.45 | J90: -0.304356647 | K90: =-SUMIFS('C Schedule Import Data'!Z:Z,'C Schedule Import Data'!$A:$A,$L$3,'C Schedule Import Data'!$B:$B,$L90) -> 736400 | L90: 3204 REV
A91: Roads | C91: =-SUMIFS('C Schedule Import Data'!T:T,'C Schedule Import Data'!$A:$A,$L$3,'C Schedule Import Data'!$B:$B,$L91) -> 0 | D91: =-SUMIFS('C Schedule Import Data'!U:U,'C Schedule Import Data'!$A:$A,$L$3,'C Schedule Import Data'!$B:$B,$L91) -> 1590000 | E91: =-SUMIFS('C Schedule Import Data'!V:V,'C Schedule Import Data'!$A:$A,$L$3,'C Schedule Import Data'!$B:$B,$L91) -> 1590000 | F91: =-SUMIFS('C Schedule Import Data'!W:W,'C Schedule Import Data'!$A:$A,$L$3,'C Schedule Import Data'!$B:$B,$L91) -> 138291 | G91: =-SUMIFS('C Schedule Import Data'!X:X,'C Schedule Import Data'!$A:$A,$L$3,'C Schedule Import Data'!$B:$B,$L91) -> 1766882.48 | H91: =-SUMIFS('C Schedule Import Data'!Y:Y,'C Schedule Import Data'!$A:$A,$L$3,'C Schedule Import Data'!$B:$B,$L91) -> 397500 | I91: 1369382.48 | J91: 3.444987371 | K91: =-SUMIFS('C Schedule Import Data'!Z:Z,'C Schedule Import Data'!$A:$A,$L$3,'C Schedule Import Data'!$B:$B,$L91) -> 1590000 | L91: 3205 REV
A92: Taxi Ranks | C92: =-SUMIFS('C Schedule Import Data'!T:T,'C Schedule Import Data'!$A:$A,$L$3,'C Schedule Import Data'!$B:$B,$L92) -> 0 | D92: =-SUMIFS('C Schedule Import Data'!U:U,'C Schedule Import Data'!$A:$A,$L$3,'C Schedule Import Data'!$B:$B,$L92) -> 0 | E92: =-SUMIFS('C Schedule Import Data'!V:V,'C Schedule Import Data'!$A:$A,$L$3,'C Schedule Import Data'!$B:$B,$L92) -> 0 | F92: =-SUMIFS('C Schedule Import Data'!W:W,'C Schedule Import Data'!$A:$A,$L$3,'C Schedule Import Data'!$B:$B,$L92) -> 0 | G92: =-SUMIFS('C Schedule Import Data'!X:X,'C Schedule Import Data'!$A:$A,$L$3,'C Schedule Import Data'!$B:$B,$L92) -> 0 | H92: =-SUMIFS('C Schedule Import Data'!Y:Y,'C Schedule Import Data'!$A:$A,$L$3,'C Schedule Import Data'!$B:$B,$L92) -> 0 | I92: 0 | K92: =-SUMIFS('C Schedule Import Data'!Z:Z,'C Schedule Import Data'!$A:$A,$L$3,'C Schedule Import Data'!$B:$B,$L92) -> 0 | L92: 3206 REV
A93: Environmental protection | C93: =SUM(C94:C99) -> 0 | D93: =SUM(D94:D99) -> 0 | E93: 0 | F93: 0 | G93: 0 | H93: 0 | I93: 0 | K93: 0 | L93: 3300 REV
A94: Biodiversity and Landscape | C94: =-SUMIFS('C Schedule Import Data'!T:T,'C Schedule Import Data'!$A:$A,$L$3,'C Schedule Import Data'!$B:$B,$L94) -> 0 | D94: =-SUMIFS('C Schedule Import Data'!U:U,'C Schedule Import Data'!$A:$A,$L$3,'C Schedule Import Data'!$B:$B,$L94) -> 0 | E94: =-SUMIFS('C Schedule Import Data'!V:V,'C Schedule Import Data'!$A:$A,$L$3,'C Schedule Import Data'!$B:$B,$L94) -> 0 | F94: =-SUMIFS('C Schedule Import Data'!W:W,'C Schedule Import Data'!$A:$A,$L$3,'C Schedule Import Data'!$B:$B,$L94) -> 0 | G94: =-SUMIFS('C Schedule Import Data'!X:X,'C Schedule Import Data'!$A:$A,$L$3,'C Schedule Import Data'!$B:$B,$L94) -> 0 | H94: =-SUMIFS('C Schedule Import Data'!Y:Y,'C Schedule Import Data'!$A:$A,$L$3,'C Schedule Import Data'!$B:$B,$L94) -> 0 | I94: 0 | K94: =-SUMIFS('C Schedule Import Data'!Z:Z,'C Schedule Import Data'!$A:$A,$L$3,'C Schedule Import Data'!$B:$B,$L94) -> 0 | L94: 3301 REV
A95: Coastal Protection | C95: =-SUMIFS('C Schedule Import Data'!T:T,'C Schedule Import Data'!$A:$A,$L$3,'C Schedule Import Data'!$B:$B,$L95) -> 0 | D95: =-SUMIFS('C Schedule Import Data'!U:U,'C Schedule Import Data'!$A:$A,$L$3,'C Schedule Import Data'!$B:$B,$L95) -> 0 | E95: =-SUMIFS('C Schedule Import Data'!V:V,'C Schedule Import Data'!$A:$A,$L$3,'C Schedule Import Data'!$B:$B,$L95) -> 0 | F95: =-SUMIFS('C Schedule Import Data'!W:W,'C Schedule Import Data'!$A:$A,$L$3,'C Schedule Import Data'!$B:$B,$L95) -> 0 | G95: =-SUMIFS('C Schedule Import Data'!X:X,'C Schedule Import Data'!$A:$A,$L$3,'C Schedule Import Data'!$B:$B,$L95) -> 0 | H95: =-SUMIFS('C Schedule Import Data'!Y:Y,'C Schedule Import Data'!$A:$A,$L$3,'C Schedule Import Data'!$B:$B,$L95) -> 0 | I95: 0 | K95: =-SUMIFS('C Schedule Import Data'!Z:Z,'C Schedule Import Data'!$A:$A,$L$3,'C Schedule Import Data'!$B:$B,$L95) -> 0 | L95: 3302 REV
A96: Indigenous Forests | C96: =-SUMIFS('C Schedule Import Data'!T:T,'C Schedule Import Data'!$A:$A,$L$3,'C Schedule Import Data'!$B:$B,$L96) -> 0 | D96: =-SUMIFS('C Schedule Import Data'!U:U,'C Schedule Import Data'!$A:$A,$L$3,'C Schedule Import Data'!$B:$B,$L96) -> 0 | E96: =-SUMIFS('C Schedule Import Data'!V:V,'C Schedule Import Data'!$A:$A,$L$3,'C Schedule Import Data'!$B:$B,$L96) -> 0 | F96: =-SUMIFS('C Schedule Import Data'!W:W,'C Schedule Import Data'!$A:$A,$L$3,'C Schedule Import Data'!$B:$B,$L96) -> 0 | G96: =-SUMIFS('C Schedule Import Data'!X:X,'C Schedule Import Data'!$A:$A,$L$3,'C Schedule Import Data'!$B:$B,$L96) -> 0 | H96: =-SUMIFS('C Schedule Import Data'!Y:Y,'C Schedule Import Data'!$A:$A,$L$3,'C Schedule Import Data'!$B:$B,$L96) -> 0 | I96: =G96-H96 -> 0 | J96: =IF(I96=0,"",I96/H96) ->  | K96: =-SUMIFS('C Schedule Import Data'!Z:Z,'C Schedule Import Data'!$A:$A,$L$3,'C Schedule Import Data'!$B:$B,$L96) -> 0 | L96: 3303 REV
A97: Nature Conservation | C97: =-SUMIFS('C Schedule Import Data'!T:T,'C Schedule Import Data'!$A:$A,$L$3,'C Schedule Import Data'!$B:$B,$L97) -> 0 | D97: =-SUMIFS('C Schedule Import Data'!U:U,'C Schedule Import Data'!$A:$A,$L$3,'C Schedule Import Data'!$B:$B,$L97) -> 0 | E97: =-SUMIFS('C Schedule Import Data'!V:V,'C Schedule Import Data'!$A:$A,$L$3,'C Schedule Import Data'!$B:$B,$L97) -> 0 | F97: =-SUMIFS('C Schedule Import Data'!W:W,'C Schedule Import Data'!$A:$A,$L$3,'C Schedule Import Data'!$B:$B,$L97) -> 0 | G97: =-SUMIFS('C Schedule Import Data'!X:X,'C Schedule Import Data'!$A:$A,$L$3,'C Schedule Import Data'!$B:$B,$L97) -> 0 | H97: =-SUMIFS('C Schedule Import Data'!Y:Y,'C Schedule Import Data'!$A:$A,$L$3,'C Schedule Import Data'!$B:$B,$L97) -> 0 | I97: =G97-H97 -> 0 | J97: =IF(I97=0,"",I97/H97) ->  | K97: =-SUMIFS('C Schedule Import Data'!Z:Z,'C Schedule Import Data'!$A:$A,$L$3,'C Schedule Import Data'!$B:$B,$L97) -> 0 | L97: 3304 REV
A98: Pollution Control | C98: =-SUMIFS('C Schedule Import Data'!T:T,'C Schedule Import Data'!$A:$A,$L$3,'C Schedule Import Data'!$B:$B,$L98) -> 0 | D98: =-SUMIFS('C Schedule Import Data'!U:U,'C Schedule Import Data'!$A:$A,$L$3,'C Schedule Import Data'!$B:$B,$L98) -> 0 | E98: =-SUMIFS('C Schedule Import Data'!V:V,'C Schedule Import Data'!$A:$A,$L$3,'C Schedule Import Data'!$B:$B,$L98) -> 0 | F98: =-SUMIFS('C Schedule Import Data'!W:W,'C Schedule Import Data'!$A:$A,$L$3,'C Schedule Import Data'!$B:$B,$L98) -> 0 | G98: =-SUMIFS('C Schedule Import Data'!X:X,'C Schedule Import Data'!$A:$A,$L$3,'C Schedule Import Data'!$B:$B,$L98) -> 0 | H98: =-SUMIFS('C Schedule Import Data'!Y:Y,'C Schedule Import Data'!$A:$A,$L$3,'C Schedule Import Data'!$B:$B,$L98) -> 0 | I98: 0 | K98: =-SUMIFS('C Schedule Import Data'!Z:Z,'C Schedule Import Data'!$A:$A,$L$3,'C Schedule Import Data'!$B:$B,$L98) -> 0 | L98: 3305 REV
A99: Soil Conservation | C99: =-SUMIFS('C Schedule Import Data'!T:T,'C Schedule Import Data'!$A:$A,$L$3,'C Schedule Import Data'!$B:$B,$L99) -> 0 | D99: =-SUMIFS('C Schedule Import Data'!U:U,'C Schedule Import Data'!$A:$A,$L$3,'C Schedule Import Data'!$B:$B,$L99) -> 0 | E99: =-SUMIFS('C Schedule Import Data'!V:V,'C Schedule Import Data'!$A:$A,$L$3,'C Schedule Import Data'!$B:$B,$L99) -> 0 | F99: =-SUMIFS('C Schedule Import Data'!W:W,'C Schedule Import Data'!$A:$A,$L$3,'C Schedule Import Data'!$B:$B,$L99) -> 0 | G99: =-SUMIFS('C Schedule Import Data'!X:X,'C Schedule Import Data'!$A:$A,$L$3,'C Schedule Import Data'!$B:$B,$L99) -> 0 | H99: =-SUMIFS('C Schedule Import Data'!Y:Y,'C Schedule Import Data'!$A:$A,$L$3,'C Schedule Import Data'!$B:$B,$L99) -> 0 | I99: 0 | K99: =-SUMIFS('C Schedule Import Data'!Z:Z,'C Schedule Import Data'!$A:$A,$L$3,'C Schedule Import Data'!$B:$B,$L99) -> 0 | L99: 3306 REV
A100: Trading services | C100: =C101+C105+C109+C114 -> 0 | D100: 18090247 | E100: 18090247 | F100: 124916.59 | G100: 446891.92 | H100: 4522560 | I100: =I101+I105+I109+I114 -> -4075668.08 | J100: -0.9011860716 | K100: =K101+K105+K109+K114 -> 18090247 | L100: 4000 REV
A101: Energy sources | C101: =SUM(C102:C104) -> 0 | D101: =SUM(D102:D104) -> 16000000 | E101: 16000000 | F101: 0 | G101: 0 | H101: 3999999 | I101: -3999999 | J101: -1 | K101: 16000000 | L101: 4100 REV
A102: Electricity | C102: =-SUMIFS('C Schedule Import Data'!T:T,'C Schedule Import Data'!$A:$A,$L$3,'C Schedule Import Data'!$B:$B,$L102) -> 0 | D102: =-SUMIFS('C Schedule Import Data'!U:U,'C Schedule Import Data'!$A:$A,$L$3,'C Schedule Import Data'!$B:$B,$L102) -> 16000000 | E102: =-SUMIFS('C Schedule Import Data'!V:V,'C Schedule Import Data'!$A:$A,$L$3,'C Schedule Import Data'!$B:$B,$L102) -> 16000000 | F102: =-SUMIFS('C Schedule Import Data'!W:W,'C Schedule Import Data'!$A:$A,$L$3,'C Schedule Import Data'!$B:$B,$L102) -> 0 | G102: =-SUMIFS('C Schedule Import Data'!X:X,'C Schedule Import Data'!$A:$A,$L$3,'C Schedule Import Data'!$B:$B,$L102) -> 0 | H102: =-SUMIFS('C Schedule Import Data'!Y:Y,'C Schedule Import Data'!$A:$A,$L$3,'C Schedule Import Data'!$B:$B,$L102) -> 3999999 | I102: -3999999 | J102: -1 | K102: =-SUMIFS('C Schedule Import Data'!Z:Z,'C Schedule Import Data'!$A:$A,$L$3,'C Schedule Import Data'!$B:$B,$L102) -> 16000000 | L102: 4101 REV
A103: Street Lighting and Signal Systems | C103: =-SUMIFS('C Schedule Import Data'!T:T,'C Schedule Import Data'!$A:$A,$L$3,'C Schedule Import Data'!$B:$B,$L103) -> 0 | D103: =-SUMIFS('C Schedule Import Data'!U:U,'C Schedule Import Data'!$A:$A,$L$3,'C Schedule Import Data'!$B:$B,$L103) -> 0 | E103: =-SUMIFS('C Schedule Import Data'!V:V,'C Schedule Import Data'!$A:$A,$L$3,'C Schedule Import Data'!$B:$B,$L103) -> 0 | F103: =-SUMIFS('C Schedule Import Data'!W:W,'C Schedule Import Data'!$A:$A,$L$3,'C Schedule Import Data'!$B:$B,$L103) -> 0 | G103: =-SUMIFS('C Schedule Import Data'!X:X,'C Schedule Import Data'!$A:$A,$L$3,'C Schedule Import Data'!$B:$B,$L103) -> 0 | H103: =-SUMIFS('C Schedule Import Data'!Y:Y,'C Schedule Import Data'!$A:$A,$L$3,'C Schedule Import Data'!$B:$B,$L103) -> 0 | I103: =G103-H103 -> 0 | J103: =IF(I103=0,"",I103/H103) ->  | K103: =-SUMIFS('C Schedule Import Data'!Z:Z,'C Schedule Import Data'!$A:$A,$L$3,'C Schedule Import Data'!$B:$B,$L103) -> 0 | L103: 4102 REV
A104: Nonelectric Energy | C104: =-SUMIFS('C Schedule Import Data'!T:T,'C Schedule Import Data'!$A:$A,$L$3,'C Schedule Import Data'!$B:$B,$L104) -> 0 | D104: =-SUMIFS('C Schedule Import Data'!U:U,'C Schedule Import Data'!$A:$A,$L$3,'C Schedule Import Data'!$B:$B,$L104) -> 0 | E104: =-SUMIFS('C Schedule Import Data'!V:V,'C Schedule Import Data'!$A:$A,$L$3,'C Schedule Import Data'!$B:$B,$L104) -> 0 | F104: =-SUMIFS('C Schedule Import Data'!W:W,'C Schedule Import Data'!$A:$A,$L$3,'C Schedule Import Data'!$B:$B,$L104) -> 0 | G104: =-SUMIFS('C Schedule Import Data'!X:X,'C Schedule Import Data'!$A:$A,$L$3,'C Schedule Import Data'!$B:$B,$L104) -> 0 | H104: =-SUMIFS('C Schedule Import Data'!Y:Y,'C Schedule Import Data'!$A:$A,$L$3,'C Schedule Import Data'!$B:$B,$L104) -> 0 | I104: 0 | K104: =-SUMIFS('C Schedule Import Data'!Z:Z,'C Schedule Import Data'!$A:$A,$L$3,'C Schedule Import Data'!$B:$B,$L104) -> 0 | L104: 4103 REV
A105: Water management | C105: =SUM(C106:C108) -> 0 | D105: =SUM(D106:D108) -> 0 | E105: 0 | F105: 0 | G105: 0 | H105: 0 | I105: 0 | K105: 0 | L105: 4200 REV
A106: Water Treatment | C106: =-SUMIFS('C Schedule Import Data'!T:T,'C Schedule Import Data'!$A:$A,$L$3,'C Schedule Import Data'!$B:$B,$L106) -> 0 | D106: =-SUMIFS('C Schedule Import Data'!U:U,'C Schedule Import Data'!$A:$A,$L$3,'C Schedule Import Data'!$B:$B,$L106) -> 0 | E106: =-SUMIFS('C Schedule Import Data'!V:V,'C Schedule Import Data'!$A:$A,$L$3,'C Schedule Import Data'!$B:$B,$L106) -> 0 | F106: =-SUMIFS('C Schedule Import Data'!W:W,'C Schedule Import Data'!$A:$A,$L$3,'C Schedule Import Data'!$B:$B,$L106) -> 0 | G106: =-SUMIFS('C Schedule Import Data'!X:X,'C Schedule Import Data'!$A:$A,$L$3,'C Schedule Import Data'!$B:$B,$L106) -> 0 | H106: =-SUMIFS('C Schedule Import Data'!Y:Y,'C Schedule Import Data'!$A:$A,$L$3,'C Schedule Import Data'!$B:$B,$L106) -> 0 | I106: 0 | K106: =-SUMIFS('C Schedule Import Data'!Z:Z,'C Schedule Import Data'!$A:$A,$L$3,'C Schedule Import Data'!$B:$B,$L106) -> 0 | L106: 4201 REV
A107: Water Distribution | C107: =-SUMIFS('C Schedule Import Data'!T:T,'C Schedule Import Data'!$A:$A,$L$3,'C Schedule Import Data'!$B:$B,$L107) -> 0 | D107: =-SUMIFS('C Schedule Import Data'!U:U,'C Schedule Import Data'!$A:$A,$L$3,'C Schedule Import Data'!$B:$B,$L107) -> 0 | E107: =-SUMIFS('C Schedule Import Data'!V:V,'C Schedule Import Data'!$A:$A,$L$3,'C Schedule Import Data'!$B:$B,$L107) -> 0 | F107: =-SUMIFS('C Schedule Import Data'!W:W,'C Schedule Import Data'!$A:$A,$L$3,'C Schedule Import Data'!$B:$B,$L107) -> 0 | G107: =-SUMIFS('C Schedule Import Data'!X:X,'C Schedule Import Data'!$A:$A,$L$3,'C Schedule Import Data'!$B:$B,$L107) -> 0 | H107: =-SUMIFS('C Schedule Import Data'!Y:Y,'C Schedule Import Data'!$A:$A,$L$3,'C Schedule Import Data'!$B:$B,$L107) -> 0 | I107: =G107-H107 -> 0 | J107: =IF(I107=0,"",I107/H107) ->  | K107: =-SUMIFS('C Schedule Import Data'!Z:Z,'C Schedule Import Data'!$A:$A,$L$3,'C Schedule Import Data'!$B:$B,$L107) -> 0 | L107: 4202 REV
A108: Water Storage | C108: =-SUMIFS('C Schedule Import Data'!T:T,'C Schedule Import Data'!$A:$A,$L$3,'C Schedule Import Data'!$B:$B,$L108) -> 0 | D108: =-SUMIFS('C Schedule Import Data'!U:U,'C Schedule Import Data'!$A:$A,$L$3,'C Schedule Import Data'!$B:$B,$L108) -> 0 | E108: =-SUMIFS('C Schedule Import Data'!V:V,'C Schedule Import Data'!$A:$A,$L$3,'C Schedule Import Data'!$B:$B,$L108) -> 0 | F108: =-SUMIFS('C Schedule Import Data'!W:W,'C Schedule Import Data'!$A:$A,$L$3,'C Schedule Import Data'!$B:$B,$L108) -> 0 | G108: =-SUMIFS('C Schedule Import Data'!X:X,'C Schedule Import Data'!$A:$A,$L$3,'C Schedule Import Data'!$B:$B,$L108) -> 0 | H108: =-SUMIFS('C Schedule Import Data'!Y:Y,'C Schedule Import Data'!$A:$A,$L$3,'C Schedule Import Data'!$B:$B,$L108) -> 0 | I108: 0 | K108: =-SUMIFS('C Schedule Import Data'!Z:Z,'C Schedule Import Data'!$A:$A,$L$3,'C Schedule Import Data'!$B:$B,$L108) -> 0 | L108: 4203 REV
A109: Waste water management | C109: =SUM(C110:C113) -> 0 | D109: =SUM(D110:D113) -> 0 | E109: 0 | F109: 0 | G109: 0 | H109: 0 | I109: 0 | K109: 0 | L109: 4300 REV
A110: Public Toilets | C110: =-SUMIFS('C Schedule Import Data'!T:T,'C Schedule Import Data'!$A:$A,$L$3,'C Schedule Import Data'!$B:$B,$L110) -> 0 | D110: =-SUMIFS('C Schedule Import Data'!U:U,'C Schedule Import Data'!$A:$A,$L$3,'C Schedule Import Data'!$B:$B,$L110) -> 0 | E110: =-SUMIFS('C Schedule Import Data'!V:V,'C Schedule Import Data'!$A:$A,$L$3,'C Schedule Import Data'!$B:$B,$L110) -> 0 | F110: =-SUMIFS('C Schedule Import Data'!W:W,'C Schedule Import Data'!$A:$A,$L$3,'C Schedule Import Data'!$B:$B,$L110) -> 0 | G110: =-SUMIFS('C Schedule Import Data'!X:X,'C Schedule Import Data'!$A:$A,$L$3,'C Schedule Import Data'!$B:$B,$L110) -> 0 | H110: =-SUMIFS('C Schedule Import Data'!Y:Y,'C Schedule Import Data'!$A:$A,$L$3,'C Schedule Import Data'!$B:$B,$L110) -> 0 | I110: 0 | K110: =-SUMIFS('C Schedule Import Data'!Z:Z,'C Schedule Import Data'!$A:$A,$L$3,'C Schedule Import Data'!$B:$B,$L110) -> 0 | L110: 4301 REV
A111: Sewerage | C111: =-SUMIFS('C Schedule Import Data'!T:T,'C Schedule Import Data'!$A:$A,$L$3,'C Schedule Import Data'!$B:$B,$L111) -> 0 | D111: =-SUMIFS('C Schedule Import Data'!U:U,'C Schedule Import Data'!$A:$A,$L$3,'C Schedule Import Data'!$B:$B,$L111) -> 0 | E111: =-SUMIFS('C Schedule Import Data'!V:V,'C Schedule Import Data'!$A:$A,$L$3,'C Schedule Import Data'!$B:$B,$L111) -> 0 | F111: =-SUMIFS('C Schedule Import Data'!W:W,'C Schedule Import Data'!$A:$A,$L$3,'C Schedule Import Data'!$B:$B,$L111) -> 0 | G111: =-SUMIFS('C Schedule Import Data'!X:X,'C Schedule Import Data'!$A:$A,$L$3,'C Schedule Import Data'!$B:$B,$L111) -> 0 | H111: =-SUMIFS('C Schedule Import Data'!Y:Y,'C Schedule Import Data'!$A:$A,$L$3,'C Schedule Import Data'!$B:$B,$L111) -> 0 | I111: 0 | K111: =-SUMIFS('C Schedule Import Data'!Z:Z,'C Schedule Import Data'!$A:$A,$L$3,'C Schedule Import Data'!$B:$B,$L111) -> 0 | L111: 4302 REV
A112: Storm Water Management | C112: =-SUMIFS('C Schedule Import Data'!T:T,'C Schedule Import Data'!$A:$A,$L$3,'C Schedule Import Data'!$B:$B,$L112) -> 0 | D112: =-SUMIFS('C Schedule Import Data'!U:U,'C Schedule Import Data'!$A:$A,$L$3,'C Schedule Import Data'!$B:$B,$L112) -> 0 | E112: =-SUMIFS('C Schedule Import Data'!V:V,'C Schedule Import Data'!$A:$A,$L$3,'C Schedule Import Data'!$B:$B,$L112) -> 0 | F112: =-SUMIFS('C Schedule Import Data'!W:W,'C Schedule Import Data'!$A:$A,$L$3,'C Schedule Import Data'!$B:$B,$L112) -> 0 | G112: =-SUMIFS('C Schedule Import Data'!X:X,'C Schedule Import Data'!$A:$A,$L$3,'C Schedule Import Data'!$B:$B,$L112) -> 0 | H112: =-SUMIFS('C Schedule Import Data'!Y:Y,'C Schedule Import Data'!$A:$A,$L$3,'C Schedule Import Data'!$B:$B,$L112) -> 0 | I112: =G112-H112 -> 0 | J112: =IF(I112=0,"",I112/H112) ->  | K112: =-SUMIFS('C Schedule Import Data'!Z:Z,'C Schedule Import Data'!$A:$A,$L$3,'C Schedule Import Data'!$B:$B,$L112) -> 0 | L112: 4303 REV
A113: Waste Water Treatment | C113: =-SUMIFS('C Schedule Import Data'!T:T,'C Schedule Import Data'!$A:$A,$L$3,'C Schedule Import Data'!$B:$B,$L113) -> 0 | D113: =-SUMIFS('C Schedule Import Data'!U:U,'C Schedule Import Data'!$A:$A,$L$3,'C Schedule Import Data'!$B:$B,$L113) -> 0 | E113: =-SUMIFS('C Schedule Import Data'!V:V,'C Schedule Import Data'!$A:$A,$L$3,'C Schedule Import Data'!$B:$B,$L113) -> 0 | F113: =-SUMIFS('C Schedule Import Data'!W:W,'C Schedule Import Data'!$A:$A,$L$3,'C Schedule Import Data'!$B:$B,$L113) -> 0 | G113: =-SUMIFS('C Schedule Import Data'!X:X,'C Schedule Import Data'!$A:$A,$L$3,'C Schedule Import Data'!$B:$B,$L113) -> 0 | H113: =-SUMIFS('C Schedule Import Data'!Y:Y,'C Schedule Import Data'!$A:$A,$L$3,'C Schedule Import Data'!$B:$B,$L113) -> 0 | I113: 0 | K113: =-SUMIFS('C Schedule Import Data'!Z:Z,'C Schedule Import Data'!$A:$A,$L$3,'C Schedule Import Data'!$B:$B,$L113) -> 0 | L113: 4304 REV
A114: Waste management | C114: =SUM(C115:C118) -> 0 | D114: 2090247 | E114: 2090247 | F114: 124916.59 | G114: 446891.92 | H114: 522561 | I114: -75669.08 | J114: -0.1448043004 | K114: =SUM(K115:K118) -> 2090247 | L114: 4400 REV
A115: Recycling | C115: =-SUMIFS('C Schedule Import Data'!T:T,'C Schedule Import Data'!$A:$A,$L$3,'C Schedule Import Data'!$B:$B,$L115) -> 0 | D115: =-SUMIFS('C Schedule Import Data'!U:U,'C Schedule Import Data'!$A:$A,$L$3,'C Schedule Import Data'!$B:$B,$L115) -> 0 | E115: =-SUMIFS('C Schedule Import Data'!V:V,'C Schedule Import Data'!$A:$A,$L$3,'C Schedule Import Data'!$B:$B,$L115) -> 0 | F115: =-SUMIFS('C Schedule Import Data'!W:W,'C Schedule Import Data'!$A:$A,$L$3,'C Schedule Import Data'!$B:$B,$L115) -> 0 | G115: =-SUMIFS('C Schedule Import Data'!X:X,'C Schedule Import Data'!$A:$A,$L$3,'C Schedule Import Data'!$B:$B,$L115) -> 0 | H115: =-SUMIFS('C Schedule Import Data'!Y:Y,'C Schedule Import Data'!$A:$A,$L$3,'C Schedule Import Data'!$B:$B,$L115) -> 0 | I115: =G115-H115 -> 0 | J115: =IF(I115=0,"",I115/H115) ->  | K115: =-SUMIFS('C Schedule Import Data'!Z:Z,'C Schedule Import Data'!$A:$A,$L$3,'C Schedule Import Data'!$B:$B,$L115) -> 0 | L115: 4401 REV
A116: Solid Waste Disposal (Landfill Sites) | C116: =-SUMIFS('C Schedule Import Data'!T:T,'C Schedule Import Data'!$A:$A,$L$3,'C Schedule Import Data'!$B:$B,$L116) -> 0 | D116: =-SUMIFS('C Schedule Import Data'!U:U,'C Schedule Import Data'!$A:$A,$L$3,'C Schedule Import Data'!$B:$B,$L116) -> 0 | E116: =-SUMIFS('C Schedule Import Data'!V:V,'C Schedule Import Data'!$A:$A,$L$3,'C Schedule Import Data'!$B:$B,$L116) -> 0 | F116: =-SUMIFS('C Schedule Import Data'!W:W,'C Schedule Import Data'!$A:$A,$L$3,'C Schedule Import Data'!$B:$B,$L116) -> 0 | G116: =-SUMIFS('C Schedule Import Data'!X:X,'C Schedule Import Data'!$A:$A,$L$3,'C Schedule Import Data'!$B:$B,$L116) -> 0 | H116: =-SUMIFS('C Schedule Import Data'!Y:Y,'C Schedule Import Data'!$A:$A,$L$3,'C Schedule Import Data'!$B:$B,$L116) -> 0 | I116: =G116-H116 -> 0 | J116: =IF(I116=0,"",I116/H116) ->  | K116: =-SUMIFS('C Schedule Import Data'!Z:Z,'C Schedule Import Data'!$A:$A,$L$3,'C Schedule Import Data'!$B:$B,$L116) -> 0 | L116: 4402 REV
A117: Solid Waste Removal | C117: =-SUMIFS('C Schedule Import Data'!T:T,'C Schedule Import Data'!$A:$A,$L$3,'C Schedule Import Data'!$B:$B,$L117) -> 0 | D117: =-SUMIFS('C Schedule Import Data'!U:U,'C Schedule Import Data'!$A:$A,$L$3,'C Schedule Import Data'!$B:$B,$L117) -> 2090247 | E117: =-SUMIFS('C Schedule Import Data'!V:V,'C Schedule Import Data'!$A:$A,$L$3,'C Schedule Import Data'!$B:$B,$L117) -> 2090247 | F117: =-SUMIFS('C Schedule Import Data'!W:W,'C Schedule Import Data'!$A:$A,$L$3,'C Schedule Import Data'!$B:$B,$L117) -> 124916.59 | G117: =-SUMIFS('C Schedule Import Data'!X:X,'C Schedule Import Data'!$A:$A,$L$3,'C Schedule Import Data'!$B:$B,$L117) -> 446891.92 | H117: =-SUMIFS('C Schedule Import Data'!Y:Y,'C Schedule Import Data'!$A:$A,$L$3,'C Schedule Import Data'!$B:$B,$L117) -> 522561 | I117: -75669.08 | J117: -0.1448043004 | K117: =-SUMIFS('C Schedule Import Data'!Z:Z,'C Schedule Import Data'!$A:$A,$L$3,'C Schedule Import Data'!$B:$B,$L117) -> 2090247 | L117: 4403 REV
A118: Street Cleaning | C118: =-SUMIFS('C Schedule Import Data'!T:T,'C Schedule Import Data'!$A:$A,$L$3,'C Schedule Import Data'!$B:$B,$L118) -> 0 | D118: =-SUMIFS('C Schedule Import Data'!U:U,'C Schedule Import Data'!$A:$A,$L$3,'C Schedule Import Data'!$B:$B,$L118) -> 0 | E118: =-SUMIFS('C Schedule Import Data'!V:V,'C Schedule Import Data'!$A:$A,$L$3,'C Schedule Import Data'!$B:$B,$L118) -> 0 | F118: =-SUMIFS('C Schedule Import Data'!W:W,'C Schedule Import Data'!$A:$A,$L$3,'C Schedule Import Data'!$B:$B,$L118) -> 0 | G118: =-SUMIFS('C Schedule Import Data'!X:X,'C Schedule Import Data'!$A:$A,$L$3,'C Schedule Import Data'!$B:$B,$L118) -> 0 | H118: =-SUMIFS('C Schedule Import Data'!Y:Y,'C Schedule Import Data'!$A:$A,$L$3,'C Schedule Import Data'!$B:$B,$L118) -> 0 | I118: =G118-H118 -> 0 | J118: =IF(I118=0,"",I118/H118) ->  | K118: =-SUMIFS('C Schedule Import Data'!Z:Z,'C Schedule Import Data'!$A:$A,$L$3,'C Schedule Import Data'!$B:$B,$L118) -> 0 | L118: 4404 REV
A119: Other | C119: =SUM(C120:C125) -> 0 | D119: =SUM(D120:D125) -> 0 | E119: 0 | F119: 0 | G119: 0 | H119: 0 | I119: 0 | K119: 0 | L119: 5000 REV
A120: Abattoirs | C120: =-SUMIFS('C Schedule Import Data'!T:T,'C Schedule Import Data'!$A:$A,$L$3,'C Schedule Import Data'!$B:$B,$L120) -> 0 | D120: =-SUMIFS('C Schedule Import Data'!U:U,'C Schedule Import Data'!$A:$A,$L$3,'C Schedule Import Data'!$B:$B,$L120) -> 0 | E120: =-SUMIFS('C Schedule Import Data'!V:V,'C Schedule Import Data'!$A:$A,$L$3,'C Schedule Import Data'!$B:$B,$L120) -> 0 | F120: =-SUMIFS('C Schedule Import Data'!W:W,'C Schedule Import Data'!$A:$A,$L$3,'C Schedule Import Data'!$B:$B,$L120) -> 0 | G120: =-SUMIFS('C Schedule Import Data'!X:X,'C Schedule Import Data'!$A:$A,$L$3,'C Schedule Import Data'!$B:$B,$L120) -> 0 | H120: =-SUMIFS('C Schedule Import Data'!Y:Y,'C Schedule Import Data'!$A:$A,$L$3,'C Schedule Import Data'!$B:$B,$L120) -> 0 | I120: 0 | K120: =-SUMIFS('C Schedule Import Data'!Z:Z,'C Schedule Import Data'!$A:$A,$L$3,'C Schedule Import Data'!$B:$B,$L120) -> 0 | L120: 5001 REV
A121: Air Transport | C121: =-SUMIFS('C Schedule Import Data'!T:T,'C Schedule Import Data'!$A:$A,$L$3,'C Schedule Import Data'!$B:$B,$L121) -> 0 | D121: =-SUMIFS('C Schedule Import Data'!U:U,'C Schedule Import Data'!$A:$A,$L$3,'C Schedule Import Data'!$B:$B,$L121) -> 0 | E121: =-SUMIFS('C Schedule Import Data'!V:V,'C Schedule Import Data'!$A:$A,$L$3,'C Schedule Import Data'!$B:$B,$L121) -> 0 | F121: =-SUMIFS('C Schedule Import Data'!W:W,'C Schedule Import Data'!$A:$A,$L$3,'C Schedule Import Data'!$B:$B,$L121) -> 0 | G121: =-SUMIFS('C Schedule Import Data'!X:X,'C Schedule Import Data'!$A:$A,$L$3,'C Schedule Import Data'!$B:$B,$L121) -> 0 | H121: =-SUMIFS('C Schedule Import Data'!Y:Y,'C Schedule Import Data'!$A:$A,$L$3,'C Schedule Import Data'!$B:$B,$L121) -> 0 | I121: 0 | K121: =-SUMIFS('C Schedule Import Data'!Z:Z,'C Schedule Import Data'!$A:$A,$L$3,'C Schedule Import Data'!$B:$B,$L121) -> 0 | L121: 5002 REV
A122: Forestry | C122: =-SUMIFS('C Schedule Import Data'!T:T,'C Schedule Import Data'!$A:$A,$L$3,'C Schedule Import Data'!$B:$B,$L122) -> 0 | D122: =-SUMIFS('C Schedule Import Data'!U:U,'C Schedule Import Data'!$A:$A,$L$3,'C Schedule Import Data'!$B:$B,$L122) -> 0 | E122: =-SUMIFS('C Schedule Import Data'!V:V,'C Schedule Import Data'!$A:$A,$L$3,'C Schedule Import Data'!$B:$B,$L122) -> 0 | F122: =-SUMIFS('C Schedule Import Data'!W:W,'C Schedule Import Data'!$A:$A,$L$3,'C Schedule Import Data'!$B:$B,$L122) -> 0 | G122: =-SUMIFS('C Schedule Import Data'!X:X,'C Schedule Import Data'!$A:$A,$L$3,'C Schedule Import Data'!$B:$B,$L122) -> 0 | H122: =-SUMIFS('C Schedule Import Data'!Y:Y,'C Schedule Import Data'!$A:$A,$L$3,'C Schedule Import Data'!$B:$B,$L122) -> 0 | I122: =G122-H122 -> 0 | J122: =IF(I122=0,"",I122/H122) ->  | K122: =-SUMIFS('C Schedule Import Data'!Z:Z,'C Schedule Import Data'!$A:$A,$L$3,'C Schedule Import Data'!$B:$B,$L122) -> 0 | L122: 5003 REV
A123: Licensing and Regulation | C123: =-SUMIFS('C Schedule Import Data'!T:T,'C Schedule Import Data'!$A:$A,$L$3,'C Schedule Import Data'!$B:$B,$L123) -> 0 | D123: =-SUMIFS('C Schedule Import Data'!U:U,'C Schedule Import Data'!$A:$A,$L$3,'C Schedule Import Data'!$B:$B,$L123) -> 0 | E123: =-SUMIFS('C Schedule Import Data'!V:V,'C Schedule Import Data'!$A:$A,$L$3,'C Schedule Import Data'!$B:$B,$L123) -> 0 | F123: =-SUMIFS('C Schedule Import Data'!W:W,'C Schedule Import Data'!$A:$A,$L$3,'C Schedule Import Data'!$B:$B,$L123) -> 0 | G123: =-SUMIFS('C Schedule Import Data'!X:X,'C Schedule Import Data'!$A:$A,$L$3,'C Schedule Import Data'!$B:$B,$L123) -> 0 | H123: =-SUMIFS('C Schedule Import Data'!Y:Y,'C Schedule Import Data'!$A:$A,$L$3,'C Schedule Import Data'!$B:$B,$L123) -> 0 | I123: 0 | K123: =-SUMIFS('C Schedule Import Data'!Z:Z,'C Schedule Import Data'!$A:$A,$L$3,'C Schedule Import Data'!$B:$B,$L123) -> 0 | L123: 5004 REV
A124: Markets | C124: =-SUMIFS('C Schedule Import Data'!T:T,'C Schedule Import Data'!$A:$A,$L$3,'C Schedule Import Data'!$B:$B,$L124) -> 0 | D124: =-SUMIFS('C Schedule Import Data'!U:U,'C Schedule Import Data'!$A:$A,$L$3,'C Schedule Import Data'!$B:$B,$L124) -> 0 | E124: =-SUMIFS('C Schedule Import Data'!V:V,'C Schedule Import Data'!$A:$A,$L$3,'C Schedule Import Data'!$B:$B,$L124) -> 0 | F124: =-SUMIFS('C Schedule Import Data'!W:W,'C Schedule Import Data'!$A:$A,$L$3,'C Schedule Import Data'!$B:$B,$L124) -> 0 | G124: =-SUMIFS('C Schedule Import Data'!X:X,'C Schedule Import Data'!$A:$A,$L$3,'C Schedule Import Data'!$B:$B,$L124) -> 0 | H124: =-SUMIFS('C Schedule Import Data'!Y:Y,'C Schedule Import Data'!$A:$A,$L$3,'C Schedule Import Data'!$B:$B,$L124) -> 0 | I124: 0 | K124: =-SUMIFS('C Schedule Import Data'!Z:Z,'C Schedule Import Data'!$A:$A,$L$3,'C Schedule Import Data'!$B:$B,$L124) -> 0 | L124: 5005 REV
A125: Tourism | C125: =-SUMIFS('C Schedule Import Data'!T:T,'C Schedule Import Data'!$A:$A,$L$3,'C Schedule Import Data'!$B:$B,$L125) -> 0 | D125: =-SUMIFS('C Schedule Import Data'!U:U,'C Schedule Import Data'!$A:$A,$L$3,'C Schedule Import Data'!$B:$B,$L125) -> 0 | E125: =-SUMIFS('C Schedule Import Data'!V:V,'C Schedule Import Data'!$A:$A,$L$3,'C Schedule Import Data'!$B:$B,$L125) -> 0 | F125: =-SUMIFS('C Schedule Import Data'!W:W,'C Schedule Import Data'!$A:$A,$L$3,'C Schedule Import Data'!$B:$B,$L125) -> 0 | G125: =-SUMIFS('C Schedule Import Data'!X:X,'C Schedule Import Data'!$A:$A,$L$3,'C Schedule Import Data'!$B:$B,$L125) -> 0 | H125: =-SUMIFS('C Schedule Import Data'!Y:Y,'C Schedule Import Data'!$A:$A,$L$3,'C Schedule Import Data'!$B:$B,$L125) -> 0 | I125: =G125-H125 -> 0 | J125: =IF(I125=0,"",I125/H125) ->  | K125: =-SUMIFS('C Schedule Import Data'!Z:Z,'C Schedule Import Data'!$A:$A,$L$3,'C Schedule Import Data'!$B:$B,$L125) -> 0 | L125: 5006 REV
A126: ="Total "&A5 -> Total Revenue - Functional | B126: 2 | C126: =C6+C27+C74+C100+C119 -> 0 | D126: 203911683 | E126: 203911683 | F126: 3688849.29 | G126: 53452365.87 | H126: 50977890 | I126: =G126-H126 -> 2474475.87 | J126: =IF(I126=0,"",I126/H126) -> 0.0485401783 | K126: =K6+K27+K74+K100+K119 -> 203911683
A128: Expenditure - Functional
A129: =A6 -> Municipal governance and administration | C129: =C130+C133+C148 -> 0 | D129: 86037200 | E129: 86067200 | F129: 4203800.47 | G129: 11405371.59 | H129: 21516552 | I129: =G129-H129 -> -10111180.41 | J129: =IF(I129=0,"",I129/H129) -> -0.4699256837 | K129: 86037200 | L129: 1000 EXP
A130: =A7 -> Executive and council | C130: =SUM(C131:C132) -> 0 | D130: 22589288 | E130: 22589288 | F130: 1566513.33 | G130: 3839796.16 | H130: 5647209 | I130: -1807412.84 | J130: -0.320054179 | K130: 22589288 | L130: 1100 EXP
A131: =A8 -> Mayor and Council | C131: =SUMIFS('C Schedule Import Data'!T:T,'C Schedule Import Data'!$A:$A,$L$3,'C Schedule Import Data'!$B:$B,$L131) -> 0 | D131: =SUMIFS('C Schedule Import Data'!U:U,'C Schedule Import Data'!$A:$A,$L$3,'C Schedule Import Data'!$B:$B,$L131) -> 12288234 | E131: =SUMIFS('C Schedule Import Data'!V:V,'C Schedule Import Data'!$A:$A,$L$3,'C Schedule Import Data'!$B:$B,$L131) -> 12288234 | F131: =SUMIFS('C Schedule Import Data'!W:W,'C Schedule Import Data'!$A:$A,$L$3,'C Schedule Import Data'!$B:$B,$L131) -> 1067835.33 | G131: =SUMIFS('C Schedule Import Data'!X:X,'C Schedule Import Data'!$A:$A,$L$3,'C Schedule Import Data'!$B:$B,$L131) -> 3016102.92 | H131: =SUMIFS('C Schedule Import Data'!Y:Y,'C Schedule Import Data'!$A:$A,$L$3,'C Schedule Import Data'!$B:$B,$L131) -> 3072000 | I131: -55897.08 | J131: -0.01819566406 | K131: =SUMIFS('C Schedule Import Data'!Z:Z,'C Schedule Import Data'!$A:$A,$L$3,'C Schedule Import Data'!$B:$B,$L131) -> 12288234 | L131: 1110 EXP
A132: =A9 -> Municipal Manager, Town Secretary and Chief Executive | C132: =SUMIFS('C Schedule Import Data'!T:T,'C Schedule Import Data'!$A:$A,$L$3,'C Schedule Import Data'!$B:$B,$L132) -> 0 | D132: =SUMIFS('C Schedule Import Data'!U:U,'C Schedule Import Data'!$A:$A,$L$3,'C Schedule Import Data'!$B:$B,$L132) -> 10301054 | E132: =SUMIFS('C Schedule Import Data'!V:V,'C Schedule Import Data'!$A:$A,$L$3,'C Schedule Import Data'!$B:$B,$L132) -> 10301054 | F132: =SUMIFS('C Schedule Import Data'!W:W,'C Schedule Import Data'!$A:$A,$L$3,'C Schedule Import Data'!$B:$B,$L132) -> 498678 | G132: =SUMIFS('C Schedule Import Data'!X:X,'C Schedule Import Data'!$A:$A,$L$3,'C Schedule Import Data'!$B:$B,$L132) -> 823693.24 | H132: =SUMIFS('C Schedule Import Data'!Y:Y,'C Schedule Import Data'!$A:$A,$L$3,'C Schedule Import Data'!$B:$B,$L132) -> 2575209 | I132: -1751515.76 | J132: -0.6801450911 | K132: =SUMIFS('C Schedule Import Data'!Z:Z,'C Schedule Import Data'!$A:$A,$L$3,'C Schedule Import Data'!$B:$B,$L132) -> 10301054 | L132: 1120 EXP
A133: =A10 -> Finance and administration | C133: =SUM(C134:C147) -> 0 | D133: 63341867 | E133: 63371867 | F133: 2337915.97 | G133: 6762077.71 | H133: 15842832 | I133: -9080754.29 | J133: -0.5731774654 | K133: =SUM(K134:K147) -> 63341867 | L133: 1200 EXP
A134: =A11 -> Administrative and Corporate Support | C134: =SUMIFS('C Schedule Import Data'!T:T,'C Schedule Import Data'!$A:$A,$L$3,'C Schedule Import Data'!$B:$B,$L134) -> 0 | D134: =SUMIFS('C Schedule Import Data'!U:U,'C Schedule Import Data'!$A:$A,$L$3,'C Schedule Import Data'!$B:$B,$L134) -> 24379306 | E134: =SUMIFS('C Schedule Import Data'!V:V,'C Schedule Import Data'!$A:$A,$L$3,'C Schedule Import Data'!$B:$B,$L134) -> 24409306 | F134: =SUMIFS('C Schedule Import Data'!W:W,'C Schedule Import Data'!$A:$A,$L$3,'C Schedule Import Data'!$B:$B,$L134) -> 1385454.79 | G134: =SUMIFS('C Schedule Import Data'!X:X,'C Schedule Import Data'!$A:$A,$L$3,'C Schedule Import Data'!$B:$B,$L134) -> 4229094.15 | H134: =SUMIFS('C Schedule Import Data'!Y:Y,'C Schedule Import Data'!$A:$A,$L$3,'C Schedule Import Data'!$B:$B,$L134) -> 6102252 | I134: -1873157.85 | J134: -0.3069617331 | K134: =SUMIFS('C Schedule Import Data'!Z:Z,'C Schedule Import Data'!$A:$A,$L$3,'C Schedule Import Data'!$B:$B,$L134) -> 24379306 | L134: 1201 EXP
A135: Asset Management | C135: =SUMIFS('C Schedule Import Data'!T:T,'C Schedule Import Data'!$A:$A,$L$3,'C Schedule Import Data'!$B:$B,$L135) -> 0 | D135: =SUMIFS('C Schedule Import Data'!U:U,'C Schedule Import Data'!$A:$A,$L$3,'C Schedule Import Data'!$B:$B,$L135) -> 0 | E135: =SUMIFS('C Schedule Import Data'!V:V,'C Schedule Import Data'!$A:$A,$L$3,'C Schedule Import Data'!$B:$B,$L135) -> 0 | F135: =SUMIFS('C Schedule Import Data'!W:W,'C Schedule Import Data'!$A:$A,$L$3,'C Schedule Import Data'!$B:$B,$L135) -> 0 | G135: =SUMIFS('C Schedule Import Data'!X:X,'C Schedule Import Data'!$A:$A,$L$3,'C Schedule Import Data'!$B:$B,$L135) -> 0 | H135: =SUMIFS('C Schedule Import Data'!Y:Y,'C Schedule Import Data'!$A:$A,$L$3,'C Schedule Import Data'!$B:$B,$L135) -> 0 | I135: 0 | K135: =SUMIFS('C Schedule Import Data'!Z:Z,'C Schedule Import Data'!$A:$A,$L$3,'C Schedule Import Data'!$B:$B,$L135) -> 0 | L135: 1202 EXP
A136: Budget and Treasury Office | C136: =SUMIFS('C Schedule Import Data'!T:T,'C Schedule Import Data'!$A:$A,$L$3,'C Schedule Import Data'!$B:$B,$L136) -> 0 | D136: =SUMIFS('C Schedule Import Data'!U:U,'C Schedule Import Data'!$A:$A,$L$3,'C Schedule Import Data'!$B:$B,$L136) -> 38383961 | E136: =SUMIFS('C Schedule Import Data'!V:V,'C Schedule Import Data'!$A:$A,$L$3,'C Schedule Import Data'!$B:$B,$L136) -> 38383961 | F136: =SUMIFS('C Schedule Import Data'!W:W,'C Schedule Import Data'!$A:$A,$L$3,'C Schedule Import Data'!$B:$B,$L136) -> 950136.28 | G136: =SUMIFS('C Schedule Import Data'!X:X,'C Schedule Import Data'!$A:$A,$L$3,'C Schedule Import Data'!$B:$B,$L136) -> 2522176.05 | H136: =SUMIFS('C Schedule Import Data'!Y:Y,'C Schedule Import Data'!$A:$A,$L$3,'C Schedule Import Data'!$B:$B,$L136) -> 9595932 | I136: -7073755.95 | J136: -0.7371619505 | K136: =SUMIFS('C Schedule Import Data'!Z:Z,'C Schedule Import Data'!$A:$A,$L$3,'C Schedule Import Data'!$B:$B,$L136) -> 38383961 | L136: 1203 EXP
A137: Finance | C137: =SUMIFS('C Schedule Import Data'!T:T,'C Schedule Import Data'!$A:$A,$L$3,'C Schedule Import Data'!$B:$B,$L137) -> 0 | D137: =SUMIFS('C Schedule Import Data'!U:U,'C Schedule Import Data'!$A:$A,$L$3,'C Schedule Import Data'!$B:$B,$L137) -> 0 | E137: =SUMIFS('C Schedule Import Data'!V:V,'C Schedule Import Data'!$A:$A,$L$3,'C Schedule Import Data'!$B:$B,$L137) -> 0 | F137: =SUMIFS('C Schedule Import Data'!W:W,'C Schedule Import Data'!$A:$A,$L$3,'C Schedule Import Data'!$B:$B,$L137) -> 0 | G137: =SUMIFS('C Schedule Import Data'!X:X,'C Schedule Import Data'!$A:$A,$L$3,'C Schedule Import Data'!$B:$B,$L137) -> 0 | H137: =SUMIFS('C Schedule Import Data'!Y:Y,'C Schedule Import Data'!$A:$A,$L$3,'C Schedule Import Data'!$B:$B,$L137) -> 0 | I137: 0 | K137: =SUMIFS('C Schedule Import Data'!Z:Z,'C Schedule Import Data'!$A:$A,$L$3,'C Schedule Import Data'!$B:$B,$L137) -> 0 | L137: 1204 EXP
A138: Fleet Management | C138: =SUMIFS('C Schedule Import Data'!T:T,'C Schedule Import Data'!$A:$A,$L$3,'C Schedule Import Data'!$B:$B,$L138) -> 0 | D138: =SUMIFS('C Schedule Import Data'!U:U,'C Schedule Import Data'!$A:$A,$L$3,'C Schedule Import Data'!$B:$B,$L138) -> 0 | E138: =SUMIFS('C Schedule Import Data'!V:V,'C Schedule Import Data'!$A:$A,$L$3,'C Schedule Import Data'!$B:$B,$L138) -> 0 | F138: =SUMIFS('C Schedule Import Data'!W:W,'C Schedule Import Data'!$A:$A,$L$3,'C Schedule Import Data'!$B:$B,$L138) -> 0 | G138: =SUMIFS('C Schedule Import Data'!X:X,'C Schedule Import Data'!$A:$A,$L$3,'C Schedule Import Data'!$B:$B,$L138) -> 0 | H138: =SUMIFS('C Schedule Import Data'!Y:Y,'C Schedule Import Data'!$A:$A,$L$3,'C Schedule Import Data'!$B:$B,$L138) -> 0 | I138: 0 | K138: =SUMIFS('C Schedule Import Data'!Z:Z,'C Schedule Import Data'!$A:$A,$L$3,'C Schedule Import Data'!$B:$B,$L138) -> 0 | L138: 1205 EXP
A139: Human Resources | C139: =SUMIFS('C Schedule Import Data'!T:T,'C Schedule Import Data'!$A:$A,$L$3,'C Schedule Import Data'!$B:$B,$L139) -> 0 | D139: =SUMIFS('C Schedule Import Data'!U:U,'C Schedule Import Data'!$A:$A,$L$3,'C Schedule Import Data'!$B:$B,$L139) -> 0 | E139: =SUMIFS('C Schedule Import Data'!V:V,'C Schedule Import Data'!$A:$A,$L$3,'C Schedule Import Data'!$B:$B,$L139) -> 0 | F139: =SUMIFS('C Schedule Import Data'!W:W,'C Schedule Import Data'!$A:$A,$L$3,'C Schedule Import Data'!$B:$B,$L139) -> 0 | G139: =SUMIFS('C Schedule Import Data'!X:X,'C Schedule Import Data'!$A:$A,$L$3,'C Schedule Import Data'!$B:$B,$L139) -> 0 | H139: =SUMIFS('C Schedule Import Data'!Y:Y,'C Schedule Import Data'!$A:$A,$L$3,'C Schedule Import Data'!$B:$B,$L139) -> 0 | I139: 0 | K139: =SUMIFS('C Schedule Import Data'!Z:Z,'C Schedule Import Data'!$A:$A,$L$3,'C Schedule Import Data'!$B:$B,$L139) -> 0 | L139: 1206 EXP
A140: Information Technology | C140: =SUMIFS('C Schedule Import Data'!T:T,'C Schedule Import Data'!$A:$A,$L$3,'C Schedule Import Data'!$B:$B,$L140) -> 0 | D140: =SUMIFS('C Schedule Import Data'!U:U,'C Schedule Import Data'!$A:$A,$L$3,'C Schedule Import Data'!$B:$B,$L140) -> 0 | E140: =SUMIFS('C Schedule Import Data'!V:V,'C Schedule Import Data'!$A:$A,$L$3,'C Schedule Import Data'!$B:$B,$L140) -> 0 | F140: =SUMIFS('C Schedule Import Data'!W:W,'C Schedule Import Data'!$A:$A,$L$3,'C Schedule Import Data'!$B:$B,$L140) -> 0 | G140: =SUMIFS('C Schedule Import Data'!X:X,'C Schedule Import Data'!$A:$A,$L$3,'C Schedule Import Data'!$B:$B,$L140) -> 0 | H140: =SUMIFS('C Schedule Import Data'!Y:Y,'C Schedule Import Data'!$A:$A,$L$3,'C Schedule Import Data'!$B:$B,$L140) -> 0 | I140: 0 | K140: =SUMIFS('C Schedule Import Data'!Z:Z,'C Schedule Import Data'!$A:$A,$L$3,'C Schedule Import Data'!$B:$B,$L140) -> 0 | L140: 1207 EXP
A141: Legal Services | C141: =SUMIFS('C Schedule Import Data'!T:T,'C Schedule Import Data'!$A:$A,$L$3,'C Schedule Import Data'!$B:$B,$L141) -> 0 | D141: =SUMIFS('C Schedule Import Data'!U:U,'C Schedule Import Data'!$A:$A,$L$3,'C Schedule Import Data'!$B:$B,$L141) -> 0 | E141: =SUMIFS('C Schedule Import Data'!V:V,'C Schedule Import Data'!$A:$A,$L$3,'C Schedule Import Data'!$B:$B,$L141) -> 0 | F141: =SUMIFS('C Schedule Import Data'!W:W,'C Schedule Import Data'!$A:$A,$L$3,'C Schedule Import Data'!$B:$B,$L141) -> 0 | G141: =SUMIFS('C Schedule Import Data'!X:X,'C Schedule Import Data'!$A:$A,$L$3,'C Schedule Import Data'!$B:$B,$L141) -> 0 | H141: =SUMIFS('C Schedule Import Data'!Y:Y,'C Schedule Import Data'!$A:$A,$L$3,'C Schedule Import Data'!$B:$B,$L141) -> 0 | I141: 0 | K141: =SUMIFS('C Schedule Import Data'!Z:Z,'C Schedule Import Data'!$A:$A,$L$3,'C Schedule Import Data'!$B:$B,$L141) -> 0 | L141: 1208 EXP
A142: Marketing, Customer Relations, Publicity and Media Co-ordination | C142: =SUMIFS('C Schedule Import Data'!T:T,'C Schedule Import Data'!$A:$A,$L$3,'C Schedule Import Data'!$B:$B,$L142) -> 0 | D142: =SUMIFS('C Schedule Import Data'!U:U,'C Schedule Import Data'!$A:$A,$L$3,'C Schedule Import Data'!$B:$B,$L142) -> 0 | E142: =SUMIFS('C Schedule Import Data'!V:V,'C Schedule Import Data'!$A:$A,$L$3,'C Schedule Import Data'!$B:$B,$L142) -> 0 | F142: =SUMIFS('C Schedule Import Data'!W:W,'C Schedule Import Data'!$A:$A,$L$3,'C Schedule Import Data'!$B:$B,$L142) -> 0 | G142: =SUMIFS('C Schedule Import Data'!X:X,'C Schedule Import Data'!$A:$A,$L$3,'C Schedule Import Data'!$B:$B,$L142) -> 0 | H142: =SUMIFS('C Schedule Import Data'!Y:Y,'C Schedule Import Data'!$A:$A,$L$3,'C Schedule Import Data'!$B:$B,$L142) -> 0 | I142: 0 | K142: =SUMIFS('C Schedule Import Data'!Z:Z,'C Schedule Import Data'!$A:$A,$L$3,'C Schedule Import Data'!$B:$B,$L142) -> 0 | L142: 1209 EXP
A143: Property Services | C143: =SUMIFS('C Schedule Import Data'!T:T,'C Schedule Import Data'!$A:$A,$L$3,'C Schedule Import Data'!$B:$B,$L143) -> 0 | D143: =SUMIFS('C Schedule Import Data'!U:U,'C Schedule Import Data'!$A:$A,$L$3,'C Schedule Import Data'!$B:$B,$L143) -> 578600 | E143: =SUMIFS('C Schedule Import Data'!V:V,'C Schedule Import Data'!$A:$A,$L$3,'C Schedule Import Data'!$B:$B,$L143) -> 578600 | F143: =SUMIFS('C Schedule Import Data'!W:W,'C Schedule Import Data'!$A:$A,$L$3,'C Schedule Import Data'!$B:$B,$L143) -> 2324.9 | G143: =SUMIFS('C Schedule Import Data'!X:X,'C Schedule Import Data'!$A:$A,$L$3,'C Schedule Import Data'!$B:$B,$L143) -> 10807.51 | H143: =SUMIFS('C Schedule Import Data'!Y:Y,'C Schedule Import Data'!$A:$A,$L$3,'C Schedule Import Data'!$B:$B,$L143) -> 144648 | I143: -133840.49 | J143: -0.9252840689 | K143: =SUMIFS('C Schedule Import Data'!Z:Z,'C Schedule Import Data'!$A:$A,$L$3,'C Schedule Import Data'!$B:$B,$L143) -> 578600 | L143: 1210 EXP
A144: Risk Management | C144: =SUMIFS('C Schedule Import Data'!T:T,'C Schedule Import Data'!$A:$A,$L$3,'C Schedule Import Data'!$B:$B,$L144) -> 0 | D144: =SUMIFS('C Schedule Import Data'!U:U,'C Schedule Import Data'!$A:$A,$L$3,'C Schedule Import Data'!$B:$B,$L144) -> 0 | E144: =SUMIFS('C Schedule Import Data'!V:V,'C Schedule Import Data'!$A:$A,$L$3,'C Schedule Import Data'!$B:$B,$L144) -> 0 | F144: =SUMIFS('C Schedule Import Data'!W:W,'C Schedule Import Data'!$A:$A,$L$3,'C Schedule Import Data'!$B:$B,$L144) -> 0 | G144: =SUMIFS('C Schedule Import Data'!X:X,'C Schedule Import Data'!$A:$A,$L$3,'C Schedule Import Data'!$B:$B,$L144) -> 0 | H144: =SUMIFS('C Schedule Import Data'!Y:Y,'C Schedule Import Data'!$A:$A,$L$3,'C Schedule Import Data'!$B:$B,$L144) -> 0 | I144: 0 | K144: =SUMIFS('C Schedule Import Data'!Z:Z,'C Schedule Import Data'!$A:$A,$L$3,'C Schedule Import Data'!$B:$B,$L144) -> 0 | L144: 1211 EXP
A145: Security Services | C145: =SUMIFS('C Schedule Import Data'!T:T,'C Schedule Import Data'!$A:$A,$L$3,'C Schedule Import Data'!$B:$B,$L145) -> 0 | D145: =SUMIFS('C Schedule Import Data'!U:U,'C Schedule Import Data'!$A:$A,$L$3,'C Schedule Import Data'!$B:$B,$L145) -> 0 | E145: =SUMIFS('C Schedule Import Data'!V:V,'C Schedule Import Data'!$A:$A,$L$3,'C Schedule Import Data'!$B:$B,$L145) -> 0 | F145: =SUMIFS('C Schedule Import Data'!W:W,'C Schedule Import Data'!$A:$A,$L$3,'C Schedule Import Data'!$B:$B,$L145) -> 0 | G145: =SUMIFS('C Schedule Import Data'!X:X,'C Schedule Import Data'!$A:$A,$L$3,'C Schedule Import Data'!$B:$B,$L145) -> 0 | H145: =SUMIFS('C Schedule Import Data'!Y:Y,'C Schedule Import Data'!$A:$A,$L$3,'C Schedule Import Data'!$B:$B,$L145) -> 0 | I145: 0 | K145: =SUMIFS('C Schedule Import Data'!Z:Z,'C Schedule Import Data'!$A:$A,$L$3,'C Schedule Import Data'!$B:$B,$L145) -> 0 | L145: 1212 EXP
A146: Supply Chain Management | C146: =SUMIFS('C Schedule Import Data'!T:T,'C Schedule Import Data'!$A:$A,$L$3,'C Schedule Import Data'!$B:$B,$L146) -> 0 | D146: =SUMIFS('C Schedule Import Data'!U:U,'C Schedule Import Data'!$A:$A,$L$3,'C Schedule Import Data'!$B:$B,$L146) -> 0 | E146: =SUMIFS('C Schedule Import Data'!V:V,'C Schedule Import Data'!$A:$A,$L$3,'C Schedule Import Data'!$B:$B,$L146) -> 0 | F146: =SUMIFS('C Schedule Import Data'!W:W,'C Schedule Import Data'!$A:$A,$L$3,'C Schedule Import Data'!$B:$B,$L146) -> 0 | G146: =SUMIFS('C Schedule Import Data'!X:X,'C Schedule Import Data'!$A:$A,$L$3,'C Schedule Import Data'!$B:$B,$L146) -> 0 | H146: =SUMIFS('C Schedule Import Data'!Y:Y,'C Schedule Import Data'!$A:$A,$L$3,'C Schedule Import Data'!$B:$B,$L146) -> 0 | I146: 0 | K146: =SUMIFS('C Schedule Import Data'!Z:Z,'C Schedule Import Data'!$A:$A,$L$3,'C Schedule Import Data'!$B:$B,$L146) -> 0 | L146: 1213 EXP
A147: Valuation Service | C147: =SUMIFS('C Schedule Import Data'!T:T,'C Schedule Import Data'!$A:$A,$L$3,'C Schedule Import Data'!$B:$B,$L147) -> 0 | D147: =SUMIFS('C Schedule Import Data'!U:U,'C Schedule Import Data'!$A:$A,$L$3,'C Schedule Import Data'!$B:$B,$L147) -> 0 | E147: =SUMIFS('C Schedule Import Data'!V:V,'C Schedule Import Data'!$A:$A,$L$3,'C Schedule Import Data'!$B:$B,$L147) -> 0 | F147: =SUMIFS('C Schedule Import Data'!W:W,'C Schedule Import Data'!$A:$A,$L$3,'C Schedule Import Data'!$B:$B,$L147) -> 0 | G147: =SUMIFS('C Schedule Import Data'!X:X,'C Schedule Import Data'!$A:$A,$L$3,'C Schedule Import Data'!$B:$B,$L147) -> 0 | H147: =SUMIFS('C Schedule Import Data'!Y:Y,'C Schedule Import Data'!$A:$A,$L$3,'C Schedule Import Data'!$B:$B,$L147) -> 0 | I147: 0 | K147: =SUMIFS('C Schedule Import Data'!Z:Z,'C Schedule Import Data'!$A:$A,$L$3,'C Schedule Import Data'!$B:$B,$L147) -> 0 | L147: 1214 EXP
A148: =A25 -> Internal audit | C148: =SUM(C149:C149) -> 0 | D148: 106045 | E148: 106045 | F148: 299371.17 | G148: 803497.72 | H148: 26511 | I148: 776986.72 | J148: 29.30808796 | K148: =SUM(K149:K149) -> 106045 | L148: 1300 EXP
A149: =A26 -> Governance Function | C149: =SUMIFS('C Schedule Import Data'!T:T,'C Schedule Import Data'!$A:$A,$L$3,'C Schedule Import Data'!$B:$B,$L149) -> 0 | D149: =SUMIFS('C Schedule Import Data'!U:U,'C Schedule Import Data'!$A:$A,$L$3,'C Schedule Import Data'!$B:$B,$L149) -> 106045 | E149: =SUMIFS('C Schedule Import Data'!V:V,'C Schedule Import Data'!$A:$A,$L$3,'C Schedule Import Data'!$B:$B,$L149) -> 106045 | F149: =SUMIFS('C Schedule Import Data'!W:W,'C Schedule Import Data'!$A:$A,$L$3,'C Schedule Import Data'!$B:$B,$L149) -> 299371.17 | G149: =SUMIFS('C Schedule Import Data'!X:X,'C Schedule Import Data'!$A:$A,$L$3,'C Schedule Import Data'!$B:$B,$L149) -> 803497.72 | H149: =SUMIFS('C Schedule Import Data'!Y:Y,'C Schedule Import Data'!$A:$A,$L$3,'C Schedule Import Data'!$B:$B,$L149) -> 26511 | I149: 776986.72 | J149: 29.30808796 | K149: =SUMIFS('C Schedule Import Data'!Z:Z,'C Schedule Import Data'!$A:$A,$L$3,'C Schedule Import Data'!$B:$B,$L149) -> 106045 | L149: 1301 EXP
A150: =A27 -> Community and public safety | C150: =C151+C173+C179+C186+C189 -> 0 | D150: 26660324 | E150: 26660324 | F150: 2051433.95 | G150: 5200784.09 | H150: 6664899 | I150: -1464114.91 | J150: -0.2196754835 | K150: =K151+K173+K179+K186+K189 -> 26660324 | L150: 2000 EXP
A151: =A28 -> Community and social services | C151: =SUM(C152:C172) -> 0 | D151: 9048809 | E151: 9048809 | F151: 689050.65 | G151: 1738170.97 | H151: 2262102 | I151: -523931.03 | J151: -0.2316124693 | K151: =SUM(K152:K172) -> 9048809 | L151: 2100 EXP
A152: =A29 -> Aged Care | C152: =SUMIFS('C Schedule Import Data'!T:T,'C Schedule Import Data'!$A:$A,$L$3,'C Schedule Import Data'!$B:$B,$L152) -> 0 | D152: =SUMIFS('C Schedule Import Data'!U:U,'C Schedule Import Data'!$A:$A,$L$3,'C Schedule Import Data'!$B:$B,$L152) -> 1390000 | E152: =SUMIFS('C Schedule Import Data'!V:V,'C Schedule Import Data'!$A:$A,$L$3,'C Schedule Import Data'!$B:$B,$L152) -> 1390000 | F152: =SUMIFS('C Schedule Import Data'!W:W,'C Schedule Import Data'!$A:$A,$L$3,'C Schedule Import Data'!$B:$B,$L152) -> 96226.49 | G152: =SUMIFS('C Schedule Import Data'!X:X,'C Schedule Import Data'!$A:$A,$L$3,'C Schedule Import Data'!$B:$B,$L152) -> 391491.75 | H152: =SUMIFS('C Schedule Import Data'!Y:Y,'C Schedule Import Data'!$A:$A,$L$3,'C Schedule Import Data'!$B:$B,$L152) -> 347499 | I152: 43992.75 | J152: 0.126598206 | K152: =SUMIFS('C Schedule Import Data'!Z:Z,'C Schedule Import Data'!$A:$A,$L$3,'C Schedule Import Data'!$B:$B,$L152) -> 1390000 | L152: 2101 EXP
A153: Agricultural | C153: =SUMIFS('C Schedule Import Data'!T:T,'C Schedule Import Data'!$A:$A,$L$3,'C Schedule Import Data'!$B:$B,$L153) -> 0 | D153: =SUMIFS('C Schedule Import Data'!U:U,'C Schedule Import Data'!$A:$A,$L$3,'C Schedule Import Data'!$B:$B,$L153) -> 0 | E153: =SUMIFS('C Schedule Import Data'!V:V,'C Schedule Import Data'!$A:$A,$L$3,'C Schedule Import Data'!$B:$B,$L153) -> 0 | F153: =SUMIFS('C Schedule Import Data'!W:W,'C Schedule Import Data'!$A:$A,$L$3,'C Schedule Import Data'!$B:$B,$L153) -> 0 | G153: =SUMIFS('C Schedule Import Data'!X:X,'C Schedule Import Data'!$A:$A,$L$3,'C Schedule Import Data'!$B:$B,$L153) -> 0 | H153: =SUMIFS('C Schedule Import Data'!Y:Y,'C Schedule Import Data'!$A:$A,$L$3,'C Schedule Import Data'!$B:$B,$L153) -> 0 | I153: 0 | K153: =SUMIFS('C Schedule Import Data'!Z:Z,'C Schedule Import Data'!$A:$A,$L$3,'C Schedule Import Data'!$B:$B,$L153) -> 0 | L153: 2102 EXP
A154: Animal Care and Diseases | C154: =SUMIFS('C Schedule Import Data'!T:T,'C Schedule Import Data'!$A:$A,$L$3,'C Schedule Import Data'!$B:$B,$L154) -> 0 | D154: =SUMIFS('C Schedule Import Data'!U:U,'C Schedule Import Data'!$A:$A,$L$3,'C Schedule Import Data'!$B:$B,$L154) -> 0 | E154: =SUMIFS('C Schedule Import Data'!V:V,'C Schedule Import Data'!$A:$A,$L$3,'C Schedule Import Data'!$B:$B,$L154) -> 0 | F154: =SUMIFS('C Schedule Import Data'!W:W,'C Schedule Import Data'!$A:$A,$L$3,'C Schedule Import Data'!$B:$B,$L154) -> 0 | G154: =SUMIFS('C Schedule Import Data'!X:X,'C Schedule Import Data'!$A:$A,$L$3,'C Schedule Import Data'!$B:$B,$L154) -> 0 | H154: =SUMIFS('C Schedule Import Data'!Y:Y,'C Schedule Import Data'!$A:$A,$L$3,'C Schedule Import Data'!$B:$B,$L154) -> 0 | I154: 0 | K154: =SUMIFS('C Schedule Import Data'!Z:Z,'C Schedule Import Data'!$A:$A,$L$3,'C Schedule Import Data'!$B:$B,$L154) -> 0 | L154: 2103 EXP
A155: Cemeteries, Funeral Parlours and Crematoriums | C155: =SUMIFS('C Schedule Import Data'!T:T,'C Schedule Import Data'!$A:$A,$L$3,'C Schedule Import Data'!$B:$B,$L155) -> 0 | D155: =SUMIFS('C Schedule Import Data'!U:U,'C Schedule Import Data'!$A:$A,$L$3,'C Schedule Import Data'!$B:$B,$L155) -> 95000 | E155: =SUMIFS('C Schedule Import Data'!V:V,'C Schedule Import Data'!$A:$A,$L$3,'C Schedule Import Data'!$B:$B,$L155) -> 95000 | F155: =SUMIFS('C Schedule Import Data'!W:W,'C Schedule Import Data'!$A:$A,$L$3,'C Schedule Import Data'!$B:$B,$L155) -> 0 | G155: =SUMIFS('C Schedule Import Data'!X:X,'C Schedule Import Data'!$A:$A,$L$3,'C Schedule Import Data'!$B:$B,$L155) -> 0 | H155: =SUMIFS('C Schedule Import Data'!Y:Y,'C Schedule Import Data'!$A:$A,$L$3,'C Schedule Import Data'!$B:$B,$L155) -> 23748 | I155: -23748 | J155: -1 | K155: =SUMIFS('C Schedule Import Data'!Z:Z,'C Schedule Import Data'!$A:$A,$L$3,'C Schedule Import Data'!$B:$B,$L155) -> 95000 | L155: 2104 EXP
A156: Child Care Facilities | C156: =SUMIFS('C Schedule Import Data'!T:T,'C Schedule Import Data'!$A:$A,$L$3,'C Schedule Import Data'!$B:$B,$L156) -> 0 | D156: =SUMIFS('C Schedule Import Data'!U:U,'C Schedule Import Data'!$A:$A,$L$3,'C Schedule Import Data'!$B:$B,$L156) -> 0 | E156: =SUMIFS('C Schedule Import Data'!V:V,'C Schedule Import Data'!$A:$A,$L$3,'C Schedule Import Data'!$B:$B,$L156) -> 0 | F156: =SUMIFS('C Schedule Import Data'!W:W,'C Schedule Import Data'!$A:$A,$L$3,'C Schedule Import Data'!$B:$B,$L156) -> 0 | G156: =SUMIFS('C Schedule Import Data'!X:X,'C Schedule Import Data'!$A:$A,$L$3,'C Schedule Import Data'!$B:$B,$L156) -> 0 | H156: =SUMIFS('C Schedule Import Data'!Y:Y,'C Schedule Import Data'!$A:$A,$L$3,'C Schedule Import Data'!$B:$B,$L156) -> 0 | I156: 0 | K156: =SUMIFS('C Schedule Import Data'!Z:Z,'C Schedule Import Data'!$A:$A,$L$3,'C Schedule Import Data'!$B:$B,$L156) -> 0 | L156: 2105 EXP
A157: Community Halls and Facilities | C157: =SUMIFS('C Schedule Import Data'!T:T,'C Schedule Import Data'!$A:$A,$L$3,'C Schedule Import Data'!$B:$B,$L157) -> 0 | D157: =SUMIFS('C Schedule Import Data'!U:U,'C Schedule Import Data'!$A:$A,$L$3,'C Schedule Import Data'!$B:$B,$L157) -> 1495613 | E157: =SUMIFS('C Schedule Import Data'!V:V,'C Schedule Import Data'!$A:$A,$L$3,'C Schedule Import Data'!$B:$B,$L157) -> 1495613 | F157: =SUMIFS('C Schedule Import Data'!W:W,'C Schedule Import Data'!$A:$A,$L$3,'C Schedule Import Data'!$B:$B,$L157) -> 63363.16 | G157: =SUMIFS('C Schedule Import Data'!X:X,'C Schedule Import Data'!$A:$A,$L$3,'C Schedule Import Data'!$B:$B,$L157) -> 171578.53 | H157: =SUMIFS('C Schedule Import Data'!Y:Y,'C Schedule Import Data'!$A:$A,$L$3,'C Schedule Import Data'!$B:$B,$L157) -> 373881 | I157: -202302.47 | J157: -0.5410878595 | K157: =SUMIFS('C Schedule Import Data'!Z:Z,'C Schedule Import Data'!$A:$A,$L$3,'C Schedule Import Data'!$B:$B,$L157) -> 1495613 | L157: 2106 EXP
A158: Consumer Protection | C158: =SUMIFS('C Schedule Import Data'!T:T,'C Schedule Import Data'!$A:$A,$L$3,'C Schedule Import Data'!$B:$B,$L158) -> 0 | D158: =SUMIFS('C Schedule Import Data'!U:U,'C Schedule Import Data'!$A:$A,$L$3,'C Schedule Import Data'!$B:$B,$L158) -> 0 | E158: =SUMIFS('C Schedule Import Data'!V:V,'C Schedule Import Data'!$A:$A,$L$3,'C Schedule Import Data'!$B:$B,$L158) -> 0 | F158: =SUMIFS('C Schedule Import Data'!W:W,'C Schedule Import Data'!$A:$A,$L$3,'C Schedule Import Data'!$B:$B,$L158) -> 0 | G158: =SUMIFS('C Schedule Import Data'!X:X,'C Schedule Import Data'!$A:$A,$L$3,'C Schedule Import Data'!$B:$B,$L158) -> 0 | H158: =SUMIFS('C Schedule Import Data'!Y:Y,'C Schedule Import Data'!$A:$A,$L$3,'C Schedule Import Data'!$B:$B,$L158) -> 0 | I158: 0 | K158: =SUMIFS('C Schedule Import Data'!Z:Z,'C Schedule Import Data'!$A:$A,$L$3,'C Schedule Import Data'!$B:$B,$L158) -> 0 | L158: 2107 EXP
A159: Cultural Matters | C159: =SUMIFS('C Schedule Import Data'!T:T,'C Schedule Import Data'!$A:$A,$L$3,'C Schedule Import Data'!$B:$B,$L159) -> 0 | D159: =SUMIFS('C Schedule Import Data'!U:U,'C Schedule Import Data'!$A:$A,$L$3,'C Schedule Import Data'!$B:$B,$L159) -> 4199505 | E159: =SUMIFS('C Schedule Import Data'!V:V,'C Schedule Import Data'!$A:$A,$L$3,'C Schedule Import Data'!$B:$B,$L159) -> 4199505 | F159: =SUMIFS('C Schedule Import Data'!W:W,'C Schedule Import Data'!$A:$A,$L$3,'C Schedule Import Data'!$B:$B,$L159) -> 402897.44 | G159: =SUMIFS('C Schedule Import Data'!X:X,'C Schedule Import Data'!$A:$A,$L$3,'C Schedule Import Data'!$B:$B,$L159) -> 821030.09 | H159: =SUMIFS('C Schedule Import Data'!Y:Y,'C Schedule Import Data'!$A:$A,$L$3,'C Schedule Import Data'!$B:$B,$L159) -> 1049823 | I159: =G159-H159 -> -228792.91 | J159: =IF(I159=0,"",I159/H159) -> -0.2179347471 | K159: =SUMIFS('C Schedule Import Data'!Z:Z,'C Schedule Import Data'!$A:$A,$L$3,'C Schedule Import Data'!$B:$B,$L159) -> 4199505 | L159: 2108 EXP
A160: Disaster Management | C160: =SUMIFS('C Schedule Import Data'!T:T,'C Schedule Import Data'!$A:$A,$L$3,'C Schedule Import Data'!$B:$B,$L160) -> 0 | D160: =SUMIFS('C Schedule Import Data'!U:U,'C Schedule Import Data'!$A:$A,$L$3,'C Schedule Import Data'!$B:$B,$L160) -> 237000 | E160: =SUMIFS('C Schedule Import Data'!V:V,'C Schedule Import Data'!$A:$A,$L$3,'C Schedule Import Data'!$B:$B,$L160) -> 237000 | F160: =SUMIFS('C Schedule Import Data'!W:W,'C Schedule Import Data'!$A:$A,$L$3,'C Schedule Import Data'!$B:$B,$L160) -> 3930 | G160: =SUMIFS('C Schedule Import Data'!X:X,'C Schedule Import Data'!$A:$A,$L$3,'C Schedule Import Data'!$B:$B,$L160) -> 21583.7 | H160: =SUMIFS('C Schedule Import Data'!Y:Y,'C Schedule Import Data'!$A:$A,$L$3,'C Schedule Import Data'!$B:$B,$L160) -> 59241 | I160: =G160-H160 -> -37657.3 | J160: =IF(I160=0,"",I160/H160) -> -0.6356628011 | K160: =SUMIFS('C Schedule Import Data'!Z:Z,'C Schedule Import Data'!$A:$A,$L$3,'C Schedule Import Data'!$B:$B,$L160) -> 237000 | L160: 2109 EXP
A161: Education | C161: =SUMIFS('C Schedule Import Data'!T:T,'C Schedule Import Data'!$A:$A,$L$3,'C Schedule Import Data'!$B:$B,$L161) -> 0 | D161: =SUMIFS('C Schedule Import Data'!U:U,'C Schedule Import Data'!$A:$A,$L$3,'C Schedule Import Data'!$B:$B,$L161) -> 0 | E161: =SUMIFS('C Schedule Import Data'!V:V,'C Schedule Import Data'!$A:$A,$L$3,'C Schedule Import Data'!$B:$B,$L161) -> 0 | F161: =SUMIFS('C Schedule Import Data'!W:W,'C Schedule Import Data'!$A:$A,$L$3,'C Schedule Import Data'!$B:$B,$L161) -> 0 | G161: =SUMIFS('C Schedule Import Data'!X:X,'C Schedule Import Data'!$A:$A,$L$3,'C Schedule Import Data'!$B:$B,$L161) -> 0 | H161: =SUMIFS('C Schedule Import Data'!Y:Y,'C Schedule Import Data'!$A:$A,$L$3,'C Schedule Import Data'!$B:$B,$L161) -> 0 | I161: =G161-H161 -> 0 | J161: =IF(I161=0,"",I161/H161) ->  | K161: =SUMIFS('C Schedule Import Data'!Z:Z,'C Schedule Import Data'!$A:$A,$L$3,'C Schedule Import Data'!$B:$B,$L161) -> 0 | L161: 2110 EXP
A162: Indigenous and Customary Law | C162: =SUMIFS('C Schedule Import Data'!T:T,'C Schedule Import Data'!$A:$A,$L$3,'C Schedule Import Data'!$B:$B,$L162) -> 0 | D162: =SUMIFS('C Schedule Import Data'!U:U,'C Schedule Import Data'!$A:$A,$L$3,'C Schedule Import Data'!$B:$B,$L162) -> 0 | E162: =SUMIFS('C Schedule Import Data'!V:V,'C Schedule Import Data'!$A:$A,$L$3,'C Schedule Import Data'!$B:$B,$L162) -> 0 | F162: =SUMIFS('C Schedule Import Data'!W:W,'C Schedule Import Data'!$A:$A,$L$3,'C Schedule Import Data'!$B:$B,$L162) -> 0 | G162: =SUMIFS('C Schedule Import Data'!X:X,'C Schedule Import Data'!$A:$A,$L$3,'C Schedule Import Data'!$B:$B,$L162) -> 0 | H162: =SUMIFS('C Schedule Import Data'!Y:Y,'C Schedule Import Data'!$A:$A,$L$3,'C Schedule Import Data'!$B:$B,$L162) -> 0 | I162: 0 | K162: =SUMIFS('C Schedule Import Data'!Z:Z,'C Schedule Import Data'!$A:$A,$L$3,'C Schedule Import Data'!$B:$B,$L162) -> 0 | L162: 2111 EXP
A163: Industrial Promotion | C163: =SUMIFS('C Schedule Import Data'!T:T,'C Schedule Import Data'!$A:$A,$L$3,'C Schedule Import Data'!$B:$B,$L163) -> 0 | D163: =SUMIFS('C Schedule Import Data'!U:U,'C Schedule Import Data'!$A:$A,$L$3,'C Schedule Import Data'!$B:$B,$L163) -> 0 | E163: =SUMIFS('C Schedule Import Data'!V:V,'C Schedule Import Data'!$A:$A,$L$3,'C Schedule Import Data'!$B:$B,$L163) -> 0 | F163: =SUMIFS('C Schedule Import Data'!W:W,'C Schedule Import Data'!$A:$A,$L$3,'C Schedule Import Data'!$B:$B,$L163) -> 0 | G163: =SUMIFS('C Schedule Import Data'!X:X,'C Schedule Import Data'!$A:$A,$L$3,'C Schedule Import Data'!$B:$B,$L163) -> 0 | H163: =SUMIFS('C Schedule Import Data'!Y:Y,'C Schedule Import Data'!$A:$A,$L$3,'C Schedule Import Data'!$B:$B,$L163) -> 0 | I163: 0 | K163: =SUMIFS('C Schedule Import Data'!Z:Z,'C Schedule Import Data'!$A:$A,$L$3,'C Schedule Import Data'!$B:$B,$L163) -> 0 | L163: 2112 EXP
A164: Language Policy | C164: =SUMIFS('C Schedule Import Data'!T:T,'C Schedule Import Data'!$A:$A,$L$3,'C Schedule Import Data'!$B:$B,$L164) -> 0 | D164: =SUMIFS('C Schedule Import Data'!U:U,'C Schedule Import Data'!$A:$A,$L$3,'C Schedule Import Data'!$B:$B,$L164) -> 0 | E164: =SUMIFS('C Schedule Import Data'!V:V,'C Schedule Import Data'!$A:$A,$L$3,'C Schedule Import Data'!$B:$B,$L164) -> 0 | F164: =SUMIFS('C Schedule Import Data'!W:W,'C Schedule Import Data'!$A:$A,$L$3,'C Schedule Import Data'!$B:$B,$L164) -> 0 | G164: =SUMIFS('C Schedule Import Data'!X:X,'C Schedule Import Data'!$A:$A,$L$3,'C Schedule Import Data'!$B:$B,$L164) -> 0 | H164: =SUMIFS('C Schedule Import Data'!Y:Y,'C Schedule Import Data'!$A:$A,$L$3,'C Schedule Import Data'!$B:$B,$L164) -> 0 | I164: 0 | K164: =SUMIFS('C Schedule Import Data'!Z:Z,'C Schedule Import Data'!$A:$A,$L$3,'C Schedule Import Data'!$B:$B,$L164) -> 0 | L164: 2113 EXP
A165: Libraries and Archives | C165: =SUMIFS('C Schedule Import Data'!T:T,'C Schedule Import Data'!$A:$A,$L$3,'C Schedule Import Data'!$B:$B,$L165) -> 0 | D165: =SUMIFS('C Schedule Import Data'!U:U,'C Schedule Import Data'!$A:$A,$L$3,'C Schedule Import Data'!$B:$B,$L165) -> 1631691 | E165: =SUMIFS('C Schedule Import Data'!V:V,'C Schedule Import Data'!$A:$A,$L$3,'C Schedule Import Data'!$B:$B,$L165) -> 1631691 | F165: =SUMIFS('C Schedule Import Data'!W:W,'C Schedule Import Data'!$A:$A,$L$3,'C Schedule Import Data'!$B:$B,$L165) -> 122633.56 | G165: =SUMIFS('C Schedule Import Data'!X:X,'C Schedule Import Data'!$A:$A,$L$3,'C Schedule Import Data'!$B:$B,$L165) -> 332486.9 | H165: =SUMIFS('C Schedule Import Data'!Y:Y,'C Schedule Import Data'!$A:$A,$L$3,'C Schedule Import Data'!$B:$B,$L165) -> 407910 | I165: -75423.1 | J165: -0.1849013263 | K165: =SUMIFS('C Schedule Import Data'!Z:Z,'C Schedule Import Data'!$A:$A,$L$3,'C Schedule Import Data'!$B:$B,$L165) -> 1631691 | L165: 2114 EXP
A166: Literacy Programmes | C166: =SUMIFS('C Schedule Import Data'!T:T,'C Schedule Import Data'!$A:$A,$L$3,'C Schedule Import Data'!$B:$B,$L166) -> 0 | D166: =SUMIFS('C Schedule Import Data'!U:U,'C Schedule Import Data'!$A:$A,$L$3,'C Schedule Import Data'!$B:$B,$L166) -> 0 | E166: =SUMIFS('C Schedule Import Data'!V:V,'C Schedule Import Data'!$A:$A,$L$3,'C Schedule Import Data'!$B:$B,$L166) -> 0 | F166: =SUMIFS('C Schedule Import Data'!W:W,'C Schedule Import Data'!$A:$A,$L$3,'C Schedule Import Data'!$B:$B,$L166) -> 0 | G166: =SUMIFS('C Schedule Import Data'!X:X,'C Schedule Import Data'!$A:$A,$L$3,'C Schedule Import Data'!$B:$B,$L166) -> 0 | H166: =SUMIFS('C Schedule Import Data'!Y:Y,'C Schedule Import Data'!$A:$A,$L$3,'C Schedule Import Data'!$B:$B,$L166) -> 0 | I166: 0 | K166: =SUMIFS('C Schedule Import Data'!Z:Z,'C Schedule Import Data'!$A:$A,$L$3,'C Schedule Import Data'!$B:$B,$L166) -> 0 | L166: 2115 EXP
A167: Media Services | C167: =SUMIFS('C Schedule Import Data'!T:T,'C Schedule Import Data'!$A:$A,$L$3,'C Schedule Import Data'!$B:$B,$L167) -> 0 | D167: =SUMIFS('C Schedule Import Data'!U:U,'C Schedule Import Data'!$A:$A,$L$3,'C Schedule Import Data'!$B:$B,$L167) -> 0 | E167: =SUMIFS('C Schedule Import Data'!V:V,'C Schedule Import Data'!$A:$A,$L$3,'C Schedule Import Data'!$B:$B,$L167) -> 0 | F167: =SUMIFS('C Schedule Import Data'!W:W,'C Schedule Import Data'!$A:$A,$L$3,'C Schedule Import Data'!$B:$B,$L167) -> 0 | G167: =SUMIFS('C Schedule Import Data'!X:X,'C Schedule Import Data'!$A:$A,$L$3,'C Schedule Import Data'!$B:$B,$L167) -> 0 | H167: =SUMIFS('C Schedule Import Data'!Y:Y,'C Schedule Import Data'!$A:$A,$L$3,'C Schedule Import Data'!$B:$B,$L167) -> 0 | I167: 0 | K167: =SUMIFS('C Schedule Import Data'!Z:Z,'C Schedule Import Data'!$A:$A,$L$3,'C Schedule Import Data'!$B:$B,$L167) -> 0 | L167: 2116 EXP
A168: Museums and Art Galleries | C168: =SUMIFS('C Schedule Import Data'!T:T,'C Schedule Import Data'!$A:$A,$L$3,'C Schedule Import Data'!$B:$B,$L168) -> 0 | D168: =SUMIFS('C Schedule Import Data'!U:U,'C Schedule Import Data'!$A:$A,$L$3,'C Schedule Import Data'!$B:$B,$L168) -> 0 | E168: =SUMIFS('C Schedule Import Data'!V:V,'C Schedule Import Data'!$A:$A,$L$3,'C Schedule Import Data'!$B:$B,$L168) -> 0 | F168: =SUMIFS('C Schedule Import Data'!W:W,'C Schedule Import Data'!$A:$A,$L$3,'C Schedule Import Data'!$B:$B,$L168) -> 0 | G168: =SUMIFS('C Schedule Import Data'!X:X,'C Schedule Import Data'!$A:$A,$L$3,'C Schedule Import Data'!$B:$B,$L168) -> 0 | H168: =SUMIFS('C Schedule Import Data'!Y:Y,'C Schedule Import Data'!$A:$A,$L$3,'C Schedule Import Data'!$B:$B,$L168) -> 0 | I168: 0 | K168: =SUMIFS('C Schedule Import Data'!Z:Z,'C Schedule Import Data'!$A:$A,$L$3,'C Schedule Import Data'!$B:$B,$L168) -> 0 | L168: 2117 EXP
A169: Population Development | C169: =SUMIFS('C Schedule Import Data'!T:T,'C Schedule Import Data'!$A:$A,$L$3,'C Schedule Import Data'!$B:$B,$L169) -> 0 | D169: =SUMIFS('C Schedule Import Data'!U:U,'C Schedule Import Data'!$A:$A,$L$3,'C Schedule Import Data'!$B:$B,$L169) -> 0 | E169: =SUMIFS('C Schedule Import Data'!V:V,'C Schedule Import Data'!$A:$A,$L$3,'C Schedule Import Data'!$B:$B,$L169) -> 0 | F169: =SUMIFS('C Schedule Import Data'!W:W,'C Schedule Import Data'!$A:$A,$L$3,'C Schedule Import Data'!$B:$B,$L169) -> 0 | G169: =SUMIFS('C Schedule Import Data'!X:X,'C Schedule Import Data'!$A:$A,$L$3,'C Schedule Import Data'!$B:$B,$L169) -> 0 | H169: =SUMIFS('C Schedule Import Data'!Y:Y,'C Schedule Import Data'!$A:$A,$L$3,'C Schedule Import Data'!$B:$B,$L169) -> 0 | I169: 0 | K169: =SUMIFS('C Schedule Import Data'!Z:Z,'C Schedule Import Data'!$A:$A,$L$3,'C Schedule Import Data'!$B:$B,$L169) -> 0 | L169: 2118 EXP
A170: Provincial Cultural Matters | C170: =SUMIFS('C Schedule Import Data'!T:T,'C Schedule Import Data'!$A:$A,$L$3,'C Schedule Import Data'!$B:$B,$L170) -> 0 | D170: =SUMIFS('C Schedule Import Data'!U:U,'C Schedule Import Data'!$A:$A,$L$3,'C Schedule Import Data'!$B:$B,$L170) -> 0 | E170: =SUMIFS('C Schedule Import Data'!V:V,'C Schedule Import Data'!$A:$A,$L$3,'C Schedule Import Data'!$B:$B,$L170) -> 0 | F170: =SUMIFS('C Schedule Import Data'!W:W,'C Schedule Import Data'!$A:$A,$L$3,'C Schedule Import Data'!$B:$B,$L170) -> 0 | G170: =SUMIFS('C Schedule Import Data'!X:X,'C Schedule Import Data'!$A:$A,$L$3,'C Schedule Import Data'!$B:$B,$L170) -> 0 | H170: =SUMIFS('C Schedule Import Data'!Y:Y,'C Schedule Import Data'!$A:$A,$L$3,'C Schedule Import Data'!$B:$B,$L170) -> 0 | I170: 0 | K170: =SUMIFS('C Schedule Import Data'!Z:Z,'C Schedule Import Data'!$A:$A,$L$3,'C Schedule Import Data'!$B:$B,$L170) -> 0 | L170: 2119 EXP
A171: Theatres | C171: =SUMIFS('C Schedule Import Data'!T:T,'C Schedule Import Data'!$A:$A,$L$3,'C Schedule Import Data'!$B:$B,$L171) -> 0 | D171: =SUMIFS('C Schedule Import Data'!U:U,'C Schedule Import Data'!$A:$A,$L$3,'C Schedule Import Data'!$B:$B,$L171) -> 0 | E171: =SUMIFS('C Schedule Import Data'!V:V,'C Schedule Import Data'!$A:$A,$L$3,'C Schedule Import Data'!$B:$B,$L171) -> 0 | F171: =SUMIFS('C Schedule Import Data'!W:W,'C Schedule Import Data'!$A:$A,$L$3,'C Schedule Import Data'!$B:$B,$L171) -> 0 | G171: =SUMIFS('C Schedule Import Data'!X:X,'C Schedule Import Data'!$A:$A,$L$3,'C Schedule Import Data'!$B:$B,$L171) -> 0 | H171: =SUMIFS('C Schedule Import Data'!Y:Y,'C Schedule Import Data'!$A:$A,$L$3,'C Schedule Import Data'!$B:$B,$L171) -> 0 | I171: 0 | K171: =SUMIFS('C Schedule Import Data'!Z:Z,'C Schedule Import Data'!$A:$A,$L$3,'C Schedule Import Data'!$B:$B,$L171) -> 0 | L171: 2120 EXP
A172: Zoo's | C172: =SUMIFS('C Schedule Import Data'!T:T,'C Schedule Import Data'!$A:$A,$L$3,'C Schedule Import Data'!$B:$B,$L172) -> 0 | D172: =SUMIFS('C Schedule Import Data'!U:U,'C Schedule Import Data'!$A:$A,$L$3,'C Schedule Import Data'!$B:$B,$L172) -> 0 | E172: =SUMIFS('C Schedule Import Data'!V:V,'C Schedule Import Data'!$A:$A,$L$3,'C Schedule Import Data'!$B:$B,$L172) -> 0 | F172: =SUMIFS('C Schedule Import Data'!W:W,'C Schedule Import Data'!$A:$A,$L$3,'C Schedule Import Data'!$B:$B,$L172) -> 0 | G172: =SUMIFS('C Schedule Import Data'!X:X,'C Schedule Import Data'!$A:$A,$L$3,'C Schedule Import Data'!$B:$B,$L172) -> 0 | H172: =SUMIFS('C Schedule Import Data'!Y:Y,'C Schedule Import Data'!$A:$A,$L$3,'C Schedule Import Data'!$B:$B,$L172) -> 0 | I172: 0 | K172: =SUMIFS('C Schedule Import Data'!Z:Z,'C Schedule Import Data'!$A:$A,$L$3,'C Schedule Import Data'!$B:$B,$L172) -> 0 | L172: 2121 EXP
A173: =A50 -> Sport and recreation | C173: =SUM(C174:C178) -> 0 | D173: 585355 | E173: 585355 | F173: 3625.75 | G173: 6347.01 | H173: 146322 | I173: =G173-H173 -> -139974.99 | J173: =IF(I173=0,"",I173/H173) -> -0.9566229959 | K173: =SUM(K174:K178) -> 585355 | L173: 2200 EXP
A174: Beaches and Jetties | C174: =SUMIFS('C Schedule Import Data'!T:T,'C Schedule Import Data'!$A:$A,$L$3,'C Schedule Import Data'!$B:$B,$L174) -> 0 | D174: =SUMIFS('C Schedule Import Data'!U:U,'C Schedule Import Data'!$A:$A,$L$3,'C Schedule Import Data'!$B:$B,$L174) -> 0 | E174: =SUMIFS('C Schedule Import Data'!V:V,'C Schedule Import Data'!$A:$A,$L$3,'C Schedule Import Data'!$B:$B,$L174) -> 0 | F174: =SUMIFS('C Schedule Import Data'!W:W,'C Schedule Import Data'!$A:$A,$L$3,'C Schedule Import Data'!$B:$B,$L174) -> 0 | G174: =SUMIFS('C Schedule Import Data'!X:X,'C Schedule Import Data'!$A:$A,$L$3,'C Schedule Import Data'!$B:$B,$L174) -> 0 | H174: =SUMIFS('C Schedule Import Data'!Y:Y,'C Schedule Import Data'!$A:$A,$L$3,'C Schedule Import Data'!$B:$B,$L174) -> 0 | I174: 0 | K174: =SUMIFS('C Schedule Import Data'!Z:Z,'C Schedule Import Data'!$A:$A,$L$3,'C Schedule Import Data'!$B:$B,$L174) -> 0 | L174: 2201 EXP
A175: Casinos, Racing, Gambling, Wagering | C175: =SUMIFS('C Schedule Import Data'!T:T,'C Schedule Import Data'!$A:$A,$L$3,'C Schedule Import Data'!$B:$B,$L175) -> 0 | D175: =SUMIFS('C Schedule Import Data'!U:U,'C Schedule Import Data'!$A:$A,$L$3,'C Schedule Import Data'!$B:$B,$L175) -> 0 | E175: =SUMIFS('C Schedule Import Data'!V:V,'C Schedule Import Data'!$A:$A,$L$3,'C Schedule Import Data'!$B:$B,$L175) -> 0 | F175: =SUMIFS('C Schedule Import Data'!W:W,'C Schedule Import Data'!$A:$A,$L$3,'C Schedule Import Data'!$B:$B,$L175) -> 0 | G175: =SUMIFS('C Schedule Import Data'!X:X,'C Schedule Import Data'!$A:$A,$L$3,'C Schedule Import Data'!$B:$B,$L175) -> 0 | H175: =SUMIFS('C Schedule Import Data'!Y:Y,'C Schedule Import Data'!$A:$A,$L$3,'C Schedule Import Data'!$B:$B,$L175) -> 0 | I175: 0 | K175: =SUMIFS('C Schedule Import Data'!Z:Z,'C Schedule Import Data'!$A:$A,$L$3,'C Schedule Import Data'!$B:$B,$L175) -> 0 | L175: 2202 EXP
A176: Community Parks (including Nurseries) | C176: =SUMIFS('C Schedule Import Data'!T:T,'C Schedule Import Data'!$A:$A,$L$3,'C Schedule Import Data'!$B:$B,$L176) -> 0 | D176: =SUMIFS('C Schedule Import Data'!U:U,'C Schedule Import Data'!$A:$A,$L$3,'C Schedule Import Data'!$B:$B,$L176) -> 0 | E176: =SUMIFS('C Schedule Import Data'!V:V,'C Schedule Import Data'!$A:$A,$L$3,'C Schedule Import Data'!$B:$B,$L176) -> 0 | F176: =SUMIFS('C Schedule Import Data'!W:W,'C Schedule Import Data'!$A:$A,$L$3,'C Schedule Import Data'!$B:$B,$L176) -> 0 | G176: =SUMIFS('C Schedule Import Data'!X:X,'C Schedule Import Data'!$A:$A,$L$3,'C Schedule Import Data'!$B:$B,$L176) -> 0 | H176: =SUMIFS('C Schedule Import Data'!Y:Y,'C Schedule Import Data'!$A:$A,$L$3,'C Schedule Import Data'!$B:$B,$L176) -> 0 | I176: 0 | K176: =SUMIFS('C Schedule Import Data'!Z:Z,'C Schedule Import Data'!$A:$A,$L$3,'C Schedule Import Data'!$B:$B,$L176) -> 0 | L176: 2203 EXP
A177: Recreational Facilities | C177: =SUMIFS('C Schedule Import Data'!T:T,'C Schedule Import Data'!$A:$A,$L$3,'C Schedule Import Data'!$B:$B,$L177) -> 0 | D177: =SUMIFS('C Schedule Import Data'!U:U,'C Schedule Import Data'!$A:$A,$L$3,'C Schedule Import Data'!$B:$B,$L177) -> 585355 | E177: =SUMIFS('C Schedule Import Data'!V:V,'C Schedule Import Data'!$A:$A,$L$3,'C Schedule Import Data'!$B:$B,$L177) -> 585355 | F177: =SUMIFS('C Schedule Import Data'!W:W,'C Schedule Import Data'!$A:$A,$L$3,'C Schedule Import Data'!$B:$B,$L177) -> 3625.75 | G177: =SUMIFS('C Schedule Import Data'!X:X,'C Schedule Import Data'!$A:$A,$L$3,'C Schedule Import Data'!$B:$B,$L177) -> 6347.01 | H177: =SUMIFS('C Schedule Import Data'!Y:Y,'C Schedule Import Data'!$A:$A,$L$3,'C Schedule Import Data'!$B:$B,$L177) -> 146322 | I177: -139974.99 | J177: -0.9566229959 | K177: =SUMIFS('C Schedule Import Data'!Z:Z,'C Schedule Import Data'!$A:$A,$L$3,'C Schedule Import Data'!$B:$B,$L177) -> 585355 | L177: 2204 EXP
A178: Sports Grounds and Stadiums | C178: =SUMIFS('C Schedule Import Data'!T:T,'C Schedule Import Data'!$A:$A,$L$3,'C Schedule Import Data'!$B:$B,$L178) -> 0 | D178: =SUMIFS('C Schedule Import Data'!U:U,'C Schedule Import Data'!$A:$A,$L$3,'C Schedule Import Data'!$B:$B,$L178) -> 0 | E178: =SUMIFS('C Schedule Import Data'!V:V,'C Schedule Import Data'!$A:$A,$L$3,'C Schedule Import Data'!$B:$B,$L178) -> 0 | F178: =SUMIFS('C Schedule Import Data'!W:W,'C Schedule Import Data'!$A:$A,$L$3,'C Schedule Import Data'!$B:$B,$L178) -> 0 | G178: =SUMIFS('C Schedule Import Data'!X:X,'C Schedule Import Data'!$A:$A,$L$3,'C Schedule Import Data'!$B:$B,$L178) -> 0 | H178: =SUMIFS('C Schedule Import Data'!Y:Y,'C Schedule Import Data'!$A:$A,$L$3,'C Schedule Import Data'!$B:$B,$L178) -> 0 | I178: 0 | K178: =SUMIFS('C Schedule Import Data'!Z:Z,'C Schedule Import Data'!$A:$A,$L$3,'C Schedule Import Data'!$B:$B,$L178) -> 0 | L178: 2205 EXP
A179: Public safety | C179: =SUM(C180:C185) -> 0 | D179: 14966986 | E179: 14966986 | F179: 1129589.42 | G179: 3057047.17 | H179: 3741693 | I179: -684645.83 | J179: -0.1829775532 | K179: =SUM(K180:K185) -> 14966986 | L179: 2300 EXP
A180: Civil Defence | C180: =SUMIFS('C Schedule Import Data'!T:T,'C Schedule Import Data'!$A:$A,$L$3,'C Schedule Import Data'!$B:$B,$L180) -> 0 | D180: =SUMIFS('C Schedule Import Data'!U:U,'C Schedule Import Data'!$A:$A,$L$3,'C Schedule Import Data'!$B:$B,$L180) -> 7783196 | E180: =SUMIFS('C Schedule Import Data'!V:V,'C Schedule Import Data'!$A:$A,$L$3,'C Schedule Import Data'!$B:$B,$L180) -> 7783196 | F180: =SUMIFS('C Schedule Import Data'!W:W,'C Schedule Import Data'!$A:$A,$L$3,'C Schedule Import Data'!$B:$B,$L180) -> 600110.64 | G180: =SUMIFS('C Schedule Import Data'!X:X,'C Schedule Import Data'!$A:$A,$L$3,'C Schedule Import Data'!$B:$B,$L180) -> 1543477.05 | H180: =SUMIFS('C Schedule Import Data'!Y:Y,'C Schedule Import Data'!$A:$A,$L$3,'C Schedule Import Data'!$B:$B,$L180) -> 1945767 | I180: -402289.95 | J180: -0.2067513479 | K180: =SUMIFS('C Schedule Import Data'!Z:Z,'C Schedule Import Data'!$A:$A,$L$3,'C Schedule Import Data'!$B:$B,$L180) -> 7783196 | L180: 2301 EXP
A181: Cleansing | C181: =SUMIFS('C Schedule Import Data'!T:T,'C Schedule Import Data'!$A:$A,$L$3,'C Schedule Import Data'!$B:$B,$L181) -> 0 | D181: =SUMIFS('C Schedule Import Data'!U:U,'C Schedule Import Data'!$A:$A,$L$3,'C Schedule Import Data'!$B:$B,$L181) -> 0 | E181: =SUMIFS('C Schedule Import Data'!V:V,'C Schedule Import Data'!$A:$A,$L$3,'C Schedule Import Data'!$B:$B,$L181) -> 0 | F181: =SUMIFS('C Schedule Import Data'!W:W,'C Schedule Import Data'!$A:$A,$L$3,'C Schedule Import Data'!$B:$B,$L181) -> 0 | G181: =SUMIFS('C Schedule Import Data'!X:X,'C Schedule Import Data'!$A:$A,$L$3,'C Schedule Import Data'!$B:$B,$L181) -> 0 | H181: =SUMIFS('C Schedule Import Data'!Y:Y,'C Schedule Import Data'!$A:$A,$L$3,'C Schedule Import Data'!$B:$B,$L181) -> 0 | I181: 0 | K181: =SUMIFS('C Schedule Import Data'!Z:Z,'C Schedule Import Data'!$A:$A,$L$3,'C Schedule Import Data'!$B:$B,$L181) -> 0 | L181: 2302 EXP
A182: =A59 -> Control of Public Nuisances | C182: =SUMIFS('C Schedule Import Data'!T:T,'C Schedule Import Data'!$A:$A,$L$3,'C Schedule Import Data'!$B:$B,$L182) -> 0 | D182: =SUMIFS('C Schedule Import Data'!U:U,'C Schedule Import Data'!$A:$A,$L$3,'C Schedule Import Data'!$B:$B,$L182) -> 0 | E182: =SUMIFS('C Schedule Import Data'!V:V,'C Schedule Import Data'!$A:$A,$L$3,'C Schedule Import Data'!$B:$B,$L182) -> 0 | F182: =SUMIFS('C Schedule Import Data'!W:W,'C Schedule Import Data'!$A:$A,$L$3,'C Schedule Import Data'!$B:$B,$L182) -> 0 | G182: =SUMIFS('C Schedule Import Data'!X:X,'C Schedule Import Data'!$A:$A,$L$3,'C Schedule Import Data'!$B:$B,$L182) -> 0 | H182: =SUMIFS('C Schedule Import Data'!Y:Y,'C Schedule Import Data'!$A:$A,$L$3,'C Schedule Import Data'!$B:$B,$L182) -> 0 | I182: =G182-H182 -> 0 | J182: =IF(I182=0,"",I182/H182) ->  | K182: =SUMIFS('C Schedule Import Data'!Z:Z,'C Schedule Import Data'!$A:$A,$L$3,'C Schedule Import Data'!$B:$B,$L182) -> 0 | L182: 2303 EXP
A183: Fencing and Fences | C183: =SUMIFS('C Schedule Import Data'!T:T,'C Schedule Import Data'!$A:$A,$L$3,'C Schedule Import Data'!$B:$B,$L183) -> 0 | D183: =SUMIFS('C Schedule Import Data'!U:U,'C Schedule Import Data'!$A:$A,$L$3,'C Schedule Import Data'!$B:$B,$L183) -> 0 | E183: =SUMIFS('C Schedule Import Data'!V:V,'C Schedule Import Data'!$A:$A,$L$3,'C Schedule Import Data'!$B:$B,$L183) -> 0 | F183: =SUMIFS('C Schedule Import Data'!W:W,'C Schedule Import Data'!$A:$A,$L$3,'C Schedule Import Data'!$B:$B,$L183) -> 0 | G183: =SUMIFS('C Schedule Import Data'!X:X,'C Schedule Import Data'!$A:$A,$L$3,'C Schedule Import Data'!$B:$B,$L183) -> 0 | H183: =SUMIFS('C Schedule Import Data'!Y:Y,'C Schedule Import Data'!$A:$A,$L$3,'C Schedule Import Data'!$B:$B,$L183) -> 0 | I183: 0 | K183: =SUMIFS('C Schedule Import Data'!Z:Z,'C Schedule Import Data'!$A:$A,$L$3,'C Schedule Import Data'!$B:$B,$L183) -> 0 | L183: 2304 EXP
A184: Fire Fighting and Protection | C184: =SUMIFS('C Schedule Import Data'!T:T,'C Schedule Import Data'!$A:$A,$L$3,'C Schedule Import Data'!$B:$B,$L184) -> 0 | D184: =SUMIFS('C Schedule Import Data'!U:U,'C Schedule Import Data'!$A:$A,$L$3,'C Schedule Import Data'!$B:$B,$L184) -> 7183790 | E184: =SUMIFS('C Schedule Import Data'!V:V,'C Schedule Import Data'!$A:$A,$L$3,'C Schedule Import Data'!$B:$B,$L184) -> 7183790 | F184: =SUMIFS('C Schedule Import Data'!W:W,'C Schedule Import Data'!$A:$A,$L$3,'C Schedule Import Data'!$B:$B,$L184) -> 529478.78 | G184: =SUMIFS('C Schedule Import Data'!X:X,'C Schedule Import Data'!$A:$A,$L$3,'C Schedule Import Data'!$B:$B,$L184) -> 1513570.12 | H184: =SUMIFS('C Schedule Import Data'!Y:Y,'C Schedule Import Data'!$A:$A,$L$3,'C Schedule Import Data'!$B:$B,$L184) -> 1795926 | I184: -282355.88 | J184: -0.1572202195 | K184: =SUMIFS('C Schedule Import Data'!Z:Z,'C Schedule Import Data'!$A:$A,$L$3,'C Schedule Import Data'!$B:$B,$L184) -> 7183790 | L184: 2305 EXP
A185: Licensing and Control of Animals | C185: =SUMIFS('C Schedule Import Data'!T:T,'C Schedule Import Data'!$A:$A,$L$3,'C Schedule Import Data'!$B:$B,$L185) -> 0 | D185: =SUMIFS('C Schedule Import Data'!U:U,'C Schedule Import Data'!$A:$A,$L$3,'C Schedule Import Data'!$B:$B,$L185) -> 0 | E185: =SUMIFS('C Schedule Import Data'!V:V,'C Schedule Import Data'!$A:$A,$L$3,'C Schedule Import Data'!$B:$B,$L185) -> 0 | F185: =SUMIFS('C Schedule Import Data'!W:W,'C Schedule Import Data'!$A:$A,$L$3,'C Schedule Import Data'!$B:$B,$L185) -> 0 | G185: =SUMIFS('C Schedule Import Data'!X:X,'C Schedule Import Data'!$A:$A,$L$3,'C Schedule Import Data'!$B:$B,$L185) -> 0 | H185: =SUMIFS('C Schedule Import Data'!Y:Y,'C Schedule Import Data'!$A:$A,$L$3,'C Schedule Import Data'!$B:$B,$L185) -> 0 | I185: 0 | K185: =SUMIFS('C Schedule Import Data'!Z:Z,'C Schedule Import Data'!$A:$A,$L$3,'C Schedule Import Data'!$B:$B,$L185) -> 0 | L185: 2306 EXP
A186: Housing | C186: =SUM(C187:C188) -> 0 | D186: 2059174 | E186: 2059174 | F186: 229168.13 | G186: 399218.94 | H186: 514782 | I186: =G186-H186 -> -115563.06 | J186: =IF(I186=0,"",I186/H186) -> -0.2244893178 | K186: =SUM(K187:K188) -> 2059174 | L186: 2400 EXP
A187: Housing | C187: =SUMIFS('C Schedule Import Data'!T:T,'C Schedule Import Data'!$A:$A,$L$3,'C Schedule Import Data'!$B:$B,$L187) -> 0 | D187: =SUMIFS('C Schedule Import Data'!U:U,'C Schedule Import Data'!$A:$A,$L$3,'C Schedule Import Data'!$B:$B,$L187) -> 2059174 | E187: =SUMIFS('C Schedule Import Data'!V:V,'C Schedule Import Data'!$A:$A,$L$3,'C Schedule Import Data'!$B:$B,$L187) -> 2059174 | F187: =SUMIFS('C Schedule Import Data'!W:W,'C Schedule Import Data'!$A:$A,$L$3,'C Schedule Import Data'!$B:$B,$L187) -> 229168.13 | G187: =SUMIFS('C Schedule Import Data'!X:X,'C Schedule Import Data'!$A:$A,$L$3,'C Schedule Import Data'!$B:$B,$L187) -> 399218.94 | H187: =SUMIFS('C Schedule Import Data'!Y:Y,'C Schedule Import Data'!$A:$A,$L$3,'C Schedule Import Data'!$B:$B,$L187) -> 514782 | I187: =G187-H187 -> -115563.06 | J187: =IF(I187=0,"",I187/H187) -> -0.2244893178 | K187: =SUMIFS('C Schedule Import Data'!Z:Z,'C Schedule Import Data'!$A:$A,$L$3,'C Schedule Import Data'!$B:$B,$L187) -> 2059174 | L187: 2401 EXP
A188: Informal Settlements | C188: =SUMIFS('C Schedule Import Data'!T:T,'C Schedule Import Data'!$A:$A,$L$3,'C Schedule Import Data'!$B:$B,$L188) -> 0 | D188: =SUMIFS('C Schedule Import Data'!U:U,'C Schedule Import Data'!$A:$A,$L$3,'C Schedule Import Data'!$B:$B,$L188) -> 0 | E188: =SUMIFS('C Schedule Import Data'!V:V,'C Schedule Import Data'!$A:$A,$L$3,'C Schedule Import Data'!$B:$B,$L188) -> 0 | F188: =SUMIFS('C Schedule Import Data'!W:W,'C Schedule Import Data'!$A:$A,$L$3,'C Schedule Import Data'!$B:$B,$L188) -> 0 | G188: =SUMIFS('C Schedule Import Data'!X:X,'C Schedule Import Data'!$A:$A,$L$3,'C Schedule Import Data'!$B:$B,$L188) -> 0 | H188: =SUMIFS('C Schedule Import Data'!Y:Y,'C Schedule Import Data'!$A:$A,$L$3,'C Schedule Import Data'!$B:$B,$L188) -> 0 | I188: =G188-H188 -> 0 | J188: =IF(I188=0,"",I188/H188) ->  | K188: =SUMIFS('C Schedule Import Data'!Z:Z,'C Schedule Import Data'!$A:$A,$L$3,'C Schedule Import Data'!$B:$B,$L188) -> 0 | L188: 2402 EXP
A189: Health | C189: =SUM(C190:C196) -> 0 | D189: 0 | E189: 0 | F189: 0 | G189: 0 | H189: 0 | I189: 0 | K189: =SUM(K190:K196) -> 0 | L189: 2500 EXP
A190: =A67 -> Ambulance | C190: =SUMIFS('C Schedule Import Data'!T:T,'C Schedule Import Data'!$A:$A,$L$3,'C Schedule Import Data'!$B:$B,$L190) -> 0 | D190: =SUMIFS('C Schedule Import Data'!U:U,'C Schedule Import Data'!$A:$A,$L$3,'C Schedule Import Data'!$B:$B,$L190) -> 0 | E190: =SUMIFS('C Schedule Import Data'!V:V,'C Schedule Import Data'!$A:$A,$L$3,'C Schedule Import Data'!$B:$B,$L190) -> 0 | F190: =SUMIFS('C Schedule Import Data'!W:W,'C Schedule Import Data'!$A:$A,$L$3,'C Schedule Import Data'!$B:$B,$L190) -> 0 | G190: =SUMIFS('C Schedule Import Data'!X:X,'C Schedule Import Data'!$A:$A,$L$3,'C Schedule Import Data'!$B:$B,$L190) -> 0 | H190: =SUMIFS('C Schedule Import Data'!Y:Y,'C Schedule Import Data'!$A:$A,$L$3,'C Schedule Import Data'!$B:$B,$L190) -> 0 | I190: 0 | K190: =SUMIFS('C Schedule Import Data'!Z:Z,'C Schedule Import Data'!$A:$A,$L$3,'C Schedule Import Data'!$B:$B,$L190) -> 0 | L190: 2501 EXP
A191: Health Services | C191: =SUMIFS('C Schedule Import Data'!T:T,'C Schedule Import Data'!$A:$A,$L$3,'C Schedule Import Data'!$B:$B,$L191) -> 0 | D191: =SUMIFS('C Schedule Import Data'!U:U,'C Schedule Import Data'!$A:$A,$L$3,'C Schedule Import Data'!$B:$B,$L191) -> 0 | E191: =SUMIFS('C Schedule Import Data'!V:V,'C Schedule Import Data'!$A:$A,$L$3,'C Schedule Import Data'!$B:$B,$L191) -> 0 | F191: =SUMIFS('C Schedule Import Data'!W:W,'C Schedule Import Data'!$A:$A,$L$3,'C Schedule Import Data'!$B:$B,$L191) -> 0 | G191: =SUMIFS('C Schedule Import Data'!X:X,'C Schedule Import Data'!$A:$A,$L$3,'C Schedule Import Data'!$B:$B,$L191) -> 0 | H191: =SUMIFS('C Schedule Import Data'!Y:Y,'C Schedule Import Data'!$A:$A,$L$3,'C Schedule Import Data'!$B:$B,$L191) -> 0 | I191: 0 | K191: =SUMIFS('C Schedule Import Data'!Z:Z,'C Schedule Import Data'!$A:$A,$L$3,'C Schedule Import Data'!$B:$B,$L191) -> 0 | L191: 2502 EXP
A192: Laboratory Services | C192: =SUMIFS('C Schedule Import Data'!T:T,'C Schedule Import Data'!$A:$A,$L$3,'C Schedule Import Data'!$B:$B,$L192) -> 0 | D192: =SUMIFS('C Schedule Import Data'!U:U,'C Schedule Import Data'!$A:$A,$L$3,'C Schedule Import Data'!$B:$B,$L192) -> 0 | E192: =SUMIFS('C Schedule Import Data'!V:V,'C Schedule Import Data'!$A:$A,$L$3,'C Schedule Import Data'!$B:$B,$L192) -> 0 | F192: =SUMIFS('C Schedule Import Data'!W:W,'C Schedule Import Data'!$A:$A,$L$3,'C Schedule Import Data'!$B:$B,$L192) -> 0 | G192: =SUMIFS('C Schedule Import Data'!X:X,'C Schedule Import Data'!$A:$A,$L$3,'C Schedule Import Data'!$B:$B,$L192) -> 0 | H192: =SUMIFS('C Schedule Import Data'!Y:Y,'C Schedule Import Data'!$A:$A,$L$3,'C Schedule Import Data'!$B:$B,$L192) -> 0 | I192: 0 | K192: =SUMIFS('C Schedule Import Data'!Z:Z,'C Schedule Import Data'!$A:$A,$L$3,'C Schedule Import Data'!$B:$B,$L192) -> 0 | L192: 2503 EXP
A193: Food Control | C193: =SUMIFS('C Schedule Import Data'!T:T,'C Schedule Import Data'!$A:$A,$L$3,'C Schedule Import Data'!$B:$B,$L193) -> 0 | D193: =SUMIFS('C Schedule Import Data'!U:U,'C Schedule Import Data'!$A:$A,$L$3,'C Schedule Import Data'!$B:$B,$L193) -> 0 | E193: =SUMIFS('C Schedule Import Data'!V:V,'C Schedule Import Data'!$A:$A,$L$3,'C Schedule Import Data'!$B:$B,$L193) -> 0 | F193: =SUMIFS('C Schedule Import Data'!W:W,'C Schedule Import Data'!$A:$A,$L$3,'C Schedule Import Data'!$B:$B,$L193) -> 0 | G193: =SUMIFS('C Schedule Import Data'!X:X,'C Schedule Import Data'!$A:$A,$L$3,'C Schedule Import Data'!$B:$B,$L193) -> 0 | H193: =SUMIFS('C Schedule Import Data'!Y:Y,'C Schedule Import Data'!$A:$A,$L$3,'C Schedule Import Data'!$B:$B,$L193) -> 0 | I193: =G193-H193 -> 0 | J193: =IF(I193=0,"",I193/H193) ->  | K193: =SUMIFS('C Schedule Import Data'!Z:Z,'C Schedule Import Data'!$A:$A,$L$3,'C Schedule Import Data'!$B:$B,$L193) -> 0 | L193: 2504 EXP
A194: Health Surveillance and Prevention of Communicable Diseases including immunizations | C194: =SUMIFS('C Schedule Import Data'!T:T,'C Schedule Import Data'!$A:$A,$L$3,'C Schedule Import Data'!$B:$B,$L194) -> 0 | D194: =SUMIFS('C Schedule Import Data'!U:U,'C Schedule Import Data'!$A:$A,$L$3,'C Schedule Import Data'!$B:$B,$L194) -> 0 | E194: =SUMIFS('C Schedule Import Data'!V:V,'C Schedule Import Data'!$A:$A,$L$3,'C Schedule Import Data'!$B:$B,$L194) -> 0 | F194: =SUMIFS('C Schedule Import Data'!W:W,'C Schedule Import Data'!$A:$A,$L$3,'C Schedule Import Data'!$B:$B,$L194) -> 0 | G194: =SUMIFS('C Schedule Import Data'!X:X,'C Schedule Import Data'!$A:$A,$L$3,'C Schedule Import Data'!$B:$B,$L194) -> 0 | H194: =SUMIFS('C Schedule Import Data'!Y:Y,'C Schedule Import Data'!$A:$A,$L$3,'C Schedule Import Data'!$B:$B,$L194) -> 0 | I194: =G194-H194 -> 0 | J194: =IF(I194=0,"",I194/H194) ->  | K194: =SUMIFS('C Schedule Import Data'!Z:Z,'C Schedule Import Data'!$A:$A,$L$3,'C Schedule Import Data'!$B:$B,$L194) -> 0 | L194: 2505 EXP
A195: Vector Control | C195: =SUMIFS('C Schedule Import Data'!T:T,'C Schedule Import Data'!$A:$A,$L$3,'C Schedule Import Data'!$B:$B,$L195) -> 0 | D195: =SUMIFS('C Schedule Import Data'!U:U,'C Schedule Import Data'!$A:$A,$L$3,'C Schedule Import Data'!$B:$B,$L195) -> 0 | E195: =SUMIFS('C Schedule Import Data'!V:V,'C Schedule Import Data'!$A:$A,$L$3,'C Schedule Import Data'!$B:$B,$L195) -> 0 | F195: =SUMIFS('C Schedule Import Data'!W:W,'C Schedule Import Data'!$A:$A,$L$3,'C Schedule Import Data'!$B:$B,$L195) -> 0 | G195: =SUMIFS('C Schedule Import Data'!X:X,'C Schedule Import Data'!$A:$A,$L$3,'C Schedule Import Data'!$B:$B,$L195) -> 0 | H195: =SUMIFS('C Schedule Import Data'!Y:Y,'C Schedule Import Data'!$A:$A,$L$3,'C Schedule Import Data'!$B:$B,$L195) -> 0 | I195: 0 | K195: =SUMIFS('C Schedule Import Data'!Z:Z,'C Schedule Import Data'!$A:$A,$L$3,'C Schedule Import Data'!$B:$B,$L195) -> 0 | L195: 2506 EXP
A196: Chemical Safety | C196: =SUMIFS('C Schedule Import Data'!T:T,'C Schedule Import Data'!$A:$A,$L$3,'C Schedule Import Data'!$B:$B,$L196) -> 0 | D196: =SUMIFS('C Schedule Import Data'!U:U,'C Schedule Import Data'!$A:$A,$L$3,'C Schedule Import Data'!$B:$B,$L196) -> 0 | E196: =SUMIFS('C Schedule Import Data'!V:V,'C Schedule Import Data'!$A:$A,$L$3,'C Schedule Import Data'!$B:$B,$L196) -> 0 | F196: =SUMIFS('C Schedule Import Data'!W:W,'C Schedule Import Data'!$A:$A,$L$3,'C Schedule Import Data'!$B:$B,$L196) -> 0 | G196: =SUMIFS('C Schedule Import Data'!X:X,'C Schedule Import Data'!$A:$A,$L$3,'C Schedule Import Data'!$B:$B,$L196) -> 0 | H196: =SUMIFS('C Schedule Import Data'!Y:Y,'C Schedule Import Data'!$A:$A,$L$3,'C Schedule Import Data'!$B:$B,$L196) -> 0 | I196: 0 | K196: =SUMIFS('C Schedule Import Data'!Z:Z,'C Schedule Import Data'!$A:$A,$L$3,'C Schedule Import Data'!$B:$B,$L196) -> 0 | L196: 2507 EXP
A197: Economic and environmental services | C197: =C198+C209+C216 -> 0 | D197: 26361556 | E197: 26331557 | F197: 1675628.33 | G197: 4033699.58 | H197: 6582765 | I197: -2549065.42 | J197: -0.3872332401 | K197: =K198+K209+K216 -> 26361556 | L197: 3000 EXP
A198: Planning and development | C198: =SUM(C199:C208) -> 0 | D198: 9141241 | E198: 9111241 | F198: 497900.27 | G198: 1238998.11 | H198: 2277753 | I198: -1038754.89 | J198: -0.4560436931 | K198: =SUM(K199:K208) -> 9141241 | L198: 3100 EXP
A199: Billboards | C199: =SUMIFS('C Schedule Import Data'!T:T,'C Schedule Import Data'!$A:$A,$L$3,'C Schedule Import Data'!$B:$B,$L199) -> 0 | D199: =SUMIFS('C Schedule Import Data'!U:U,'C Schedule Import Data'!$A:$A,$L$3,'C Schedule Import Data'!$B:$B,$L199) -> 0 | E199: =SUMIFS('C Schedule Import Data'!V:V,'C Schedule Import Data'!$A:$A,$L$3,'C Schedule Import Data'!$B:$B,$L199) -> 0 | F199: =SUMIFS('C Schedule Import Data'!W:W,'C Schedule Import Data'!$A:$A,$L$3,'C Schedule Import Data'!$B:$B,$L199) -> 0 | G199: =SUMIFS('C Schedule Import Data'!X:X,'C Schedule Import Data'!$A:$A,$L$3,'C Schedule Import Data'!$B:$B,$L199) -> 0 | H199: =SUMIFS('C Schedule Import Data'!Y:Y,'C Schedule Import Data'!$A:$A,$L$3,'C Schedule Import Data'!$B:$B,$L199) -> 0 | I199: 0 | K199: =SUMIFS('C Schedule Import Data'!Z:Z,'C Schedule Import Data'!$A:$A,$L$3,'C Schedule Import Data'!$B:$B,$L199) -> 0 | L199: 3101 EXP
A200: Corporate Wide Strategic Planning (IDPs, LEDs) | C200: =SUMIFS('C Schedule Import Data'!T:T,'C Schedule Import Data'!$A:$A,$L$3,'C Schedule Import Data'!$B:$B,$L200) -> 0 | D200: =SUMIFS('C Schedule Import Data'!U:U,'C Schedule Import Data'!$A:$A,$L$3,'C Schedule Import Data'!$B:$B,$L200) -> 0 | E200: =SUMIFS('C Schedule Import Data'!V:V,'C Schedule Import Data'!$A:$A,$L$3,'C Schedule Import Data'!$B:$B,$L200) -> 0 | F200: =SUMIFS('C Schedule Import Data'!W:W,'C Schedule Import Data'!$A:$A,$L$3,'C Schedule Import Data'!$B:$B,$L200) -> 0 | G200: =SUMIFS('C Schedule Import Data'!X:X,'C Schedule Import Data'!$A:$A,$L$3,'C Schedule Import Data'!$B:$B,$L200) -> 0 | H200: =SUMIFS('C Schedule Import Data'!Y:Y,'C Schedule Import Data'!$A:$A,$L$3,'C Schedule Import Data'!$B:$B,$L200) -> 0 | I200: 0 | K200: =SUMIFS('C Schedule Import Data'!Z:Z,'C Schedule Import Data'!$A:$A,$L$3,'C Schedule Import Data'!$B:$B,$L200) -> 0 | L200: 3102 EXP
A201: Central City Improvement District | C201: =SUMIFS('C Schedule Import Data'!T:T,'C Schedule Import Data'!$A:$A,$L$3,'C Schedule Import Data'!$B:$B,$L201) -> 0 | D201: =SUMIFS('C Schedule Import Data'!U:U,'C Schedule Import Data'!$A:$A,$L$3,'C Schedule Import Data'!$B:$B,$L201) -> 0 | E201: =SUMIFS('C Schedule Import Data'!V:V,'C Schedule Import Data'!$A:$A,$L$3,'C Schedule Import Data'!$B:$B,$L201) -> 0 | F201: =SUMIFS('C Schedule Import Data'!W:W,'C Schedule Import Data'!$A:$A,$L$3,'C Schedule Import Data'!$B:$B,$L201) -> 0 | G201: =SUMIFS('C Schedule Import Data'!X:X,'C Schedule Import Data'!$A:$A,$L$3,'C Schedule Import Data'!$B:$B,$L201) -> 0 | H201: =SUMIFS('C Schedule Import Data'!Y:Y,'C Schedule Import Data'!$A:$A,$L$3,'C Schedule Import Data'!$B:$B,$L201) -> 0 | I201: 0 | K201: =SUMIFS('C Schedule Import Data'!Z:Z,'C Schedule Import Data'!$A:$A,$L$3,'C Schedule Import Data'!$B:$B,$L201) -> 0 | L201: 3103 EXP
... 56 more rows

Sheet C3-FinPerf V
A1: =muni& " - "&S71C& " - "&date -> KZN434 Ubuhlebezwe - Table C3 Monthly Budget Statement - Financial Performance (revenue and expenditure by municipal vote) - Q1 First Quarter
A2: =Vdesc -> Vote Description | B2: =head27 -> Ref | C2: =Head1 -> 2017/18 | D2: =Head2 -> Budget Year 2018/19
C3: =Head5 -> Audited Outcome | D3: =Head6 -> Original Budget | E3: =Head7 -> Adjusted Budget | F3: =Head38 -> Monthly actual | G3: =Head39 -> YearTD actual | H3: =Head40 -> YearTD budget | I3: =Head41 -> YTD variance | J3: =Head41 -> YTD variance | K3: =Head8 -> Full Year Forecast
A4: R thousands | J4: %
A5: Revenue by Vote | B5: 1
A6: ='Org structure'!A2 -> Vote 1 - EXECUTIVE & COUNCIL | C6: ='C3C'!C6 -> 0 | D6: ='C3C'!D6 -> 0 | E6: ='C3C'!E6 -> 0 | F6: ='C3C'!F6 -> 0 | G6: ='C3C'!G6 -> 0 | H6: ='C3C'!H6 -> 0 | I6: =G6-H6 -> 0 | J6: =IF(I6=0,"",I6/H6) ->  | K6: ='C3C'!K6 -> 0
A7: ='Org structure'!A3 -> Vote 2 - BUDGET & TREASURY | C7: ='C3C'!C17 -> 0 | D7: ='C3C'!D17 -> 147499244 | E7: ='C3C'!E17 -> 147499244 | F7: ='C3C'!F17 -> 2434015.28 | G7: ='C3C'!G17 -> 48889155.11 | H7: ='C3C'!H17 -> 36874800 | I7: =G7-H7 -> 12014355.11 | J7: =IF(I7=0,"",I7/H7) -> 0.3258147871 | K7: ='C3C'!K17 -> 147499244
A8: ='Org structure'!A4 -> Vote 3 - CORPORATE SERVCES | C8: ='C3C'!C28 -> 0 | D8: ='C3C'!D28 -> 1150000 | E8: ='C3C'!E28 -> 1150000 | F8: ='C3C'!F28 -> 83682.03 | G8: ='C3C'!G28 -> 128942.3 | H8: ='C3C'!H28 -> 287499 | I8: -158556.7 | J8: -0.5515034835 | K8: ='C3C'!K28 -> 1150000
A9: ='Org structure'!A5 -> Vote 4 - COMMUNITY & SOCIAL SERVICES | C9: ='C3C'!C39 -> 0 | D9: ='C3C'!D39 -> 4581743 | E9: ='C3C'!E39 -> 4581743 | F9: ='C3C'!F39 -> 353823.74 | G9: ='C3C'!G39 -> 817023.61 | H9: ='C3C'!H39 -> 1145430 | I9: -328406.39 | J9: -0.2867101351 | K9: ='C3C'!K39 -> 4581743
A10: ='Org structure'!A6 -> Vote 5 - SPORT & RECREATION/PARKS | C10: ='C3C'!C50 -> 0 | D10: ='C3C'!D50 -> 58000 | E10: ='C3C'!E50 -> 58000 | F10: ='C3C'!F50 -> 0 | G10: ='C3C'!G50 -> 0 | H10: ='C3C'!H50 -> 14499 | I10: -14499 | J10: -1 | K10: ='C3C'!K50 -> 58000
A11: ='Org structure'!A7 -> Vote 6 - PUBLIC SAFETY | C11: ='C3C'!C61 -> 0 | D11: ='C3C'!D61 -> 3826300 | E11: ='C3C'!E61 -> 3826300 | F11: ='C3C'!F61 -> 178800.09 | G11: ='C3C'!G61 -> 666940.67 | H11: ='C3C'!H61 -> 956571 | I11: -289630.33 | J11: -0.3027797518 | K11: ='C3C'!K61 -> 3826300
A12: ='Org structure'!A8 -> Vote 7 - HOUSING | C12: ='C3C'!C72 -> 0 | D12: ='C3C'!D72 -> 0 | E12: ='C3C'!E72 -> 0 | F12: ='C3C'!F72 -> 0 | G12: ='C3C'!G72 -> 0 | H12: ='C3C'!H72 -> 0 | I12: 0 | K12: ='C3C'!K72 -> 0
A13: ='Org structure'!A9 -> Vote 8 - INFRASTRUCTURE, PLANNING & DEVELOPMENT | C13: ='C3C'!C83 -> 0 | D13: ='C3C'!D83 -> 115780 | E13: ='C3C'!E83 -> 115780 | F13: ='C3C'!F83 -> 5479.95 | G13: ='C3C'!G83 -> 5787.08 | H13: ='C3C'!H83 -> 28944 | I13: -23156.92 | J13: -0.8000594251 | K13: ='C3C'!K83 -> 115780
A14: ='Org structure'!A10 -> Vote 9 - ROADS TRANSPORT | C14: ='C3C'!C94 -> 0 | D14: ='C3C'!D94 -> 46680616 | E14: ='C3C'!E94 -> 46680616 | F14: ='C3C'!F94 -> 633048.2 | G14: ='C3C'!G94 -> 2944517.1 | H14: ='C3C'!H94 -> 11670147 | I14: -8725629.9 | J14: -0.7476880882 | K14: ='C3C'!K94 -> 46680616
A15: ='Org structure'!A11 -> Vote 10 - [NAME OF VOTE 10] | C15: ='C3C'!C105 -> 0 | D15: ='C3C'!D105 -> 0 | E15: ='C3C'!E105 -> 0 | F15: ='C3C'!F105 -> 0 | G15: ='C3C'!G105 -> 0 | H15: ='C3C'!H105 -> 0 | I15: 0 | K15: ='C3C'!K105 -> 0
A16: ='Org structure'!A12 -> Vote 11 - [NAME OF VOTE 11] | C16: ='C3C'!C116 -> 0 | D16: ='C3C'!D116 -> 0 | E16: ='C3C'!E116 -> 0 | F16: ='C3C'!F116 -> 0 | G16: ='C3C'!G116 -> 0 | H16: ='C3C'!H116 -> 0 | I16: 0 | K16: ='C3C'!K116 -> 0
A17: ='Org structure'!A13 -> Vote 12 - [NAME OF VOTE 12] | C17: ='C3C'!C127 -> 0 | D17: ='C3C'!D127 -> 0 | E17: ='C3C'!E127 -> 0 | F17: ='C3C'!F127 -> 0 | G17: ='C3C'!G127 -> 0 | H17: ='C3C'!H127 -> 0 | I17: 0 | K17: ='C3C'!K127 -> 0
A18: ='Org structure'!A14 -> Vote 13 - [NAME OF VOTE 13] | C18: ='C3C'!C138 -> 0 | D18: ='C3C'!D138 -> 0 | E18: ='C3C'!E138 -> 0 | F18: ='C3C'!F138 -> 0 | G18: ='C3C'!G138 -> 0 | H18: ='C3C'!H138 -> 0 | I18: 0 | K18: ='C3C'!K138 -> 0
A19: ='Org structure'!A15 -> Vote 14 - [NAME OF VOTE 14] | C19: ='C3C'!C149 -> 0 | D19: ='C3C'!D149 -> 0 | E19: ='C3C'!E149 -> 0 | F19: ='C3C'!F149 -> 0 | G19: ='C3C'!G149 -> 0 | H19: ='C3C'!H149 -> 0 | I19: 0 | K19: ='C3C'!K149 -> 0
A20: ='Org structure'!A16 -> Vote 15 - [NAME OF VOTE 15] | C20: ='C3C'!C160 -> 0 | D20: ='C3C'!D160 -> 0 | E20: ='C3C'!E160 -> 0 | F20: ='C3C'!F160 -> 0 | G20: ='C3C'!G160 -> 0 | H20: ='C3C'!H160 -> 0 | I20: 0 | K20: ='C3C'!K160 -> 0
A21: Total Revenue by Vote | B21: 2 | C21: =SUM(C6:C20) -> 0 | D21: =SUM(D6:D20) -> 203911683 | E21: 203911683 | F21: 3688849.29 | G21: 53452365.87 | H21: 50977890 | I21: 2474475.87 | J21: 0.0485401783 | K21: =SUM(K6:K20) -> 203911683
A23: Expenditure by Vote | B23: 1
A24: ='Org structure'!A2 -> Vote 1 - EXECUTIVE & COUNCIL | C24: ='C3C'!C174 -> 0 | D24: ='C3C'!D174 -> 22695333 | E24: ='C3C'!E174 -> 22695333 | F24: ='C3C'!F174 -> 1865884.5 | G24: ='C3C'!G174 -> 4643293.88 | H24: ='C3C'!H174 -> 5673720 | I24: =G24-H24 -> -1030426.12 | J24: =IF(I24=0,"",I24/H24) -> -0.1816138477 | K24: ='C3C'!K174 -> 22695333
A25: ='Org structure'!A3 -> Vote 2 - BUDGET & TREASURY | C25: ='C3C'!C185 -> 0 | D25: ='C3C'!D185 -> 38383961 | E25: ='C3C'!E185 -> 38383961 | F25: ='C3C'!F185 -> 950136.28 | G25: ='C3C'!G185 -> 2522176.05 | H25: ='C3C'!H185 -> 9595932 | I25: -7073755.95 | J25: -0.7371619505 | K25: ='C3C'!K185 -> 38383961
A26: ='Org structure'!A4 -> Vote 3 - CORPORATE SERVCES | C26: ='C3C'!C196 -> 0 | D26: ='C3C'!D196 -> 24957906 | E26: ='C3C'!E196 -> 24987906 | F26: ='C3C'!F196 -> 1387779.69 | G26: ='C3C'!G196 -> 4239901.66 | H26: ='C3C'!H196 -> 6246900 | I26: -2006998.34 | J26: -0.3212790888 | K26: ='C3C'!K196 -> 24957906
A27: ='Org structure'!A5 -> Vote 4 - COMMUNITY & SOCIAL SERVICES | C27: ='C3C'!C207 -> 0 | D27: ='C3C'!D207 -> 19922281 | E27: ='C3C'!E207 -> 19922281 | F27: ='C3C'!F207 -> 1560996.67 | G27: ='C3C'!G207 -> 3984923.35 | H27: ='C3C'!H207 -> 4980453 | I27: -995529.65 | J27: -0.1998873697 | K27: ='C3C'!K207 -> 19922281
A28: ='Org structure'!A6 -> Vote 5 - SPORT & RECREATION/PARKS | C28: ='C3C'!C218 -> 0 | D28: ='C3C'!D218 -> 585355 | E28: ='C3C'!E218 -> 585355 | F28: ='C3C'!F218 -> 3625.75 | G28: ='C3C'!G218 -> 6347.01 | H28: ='C3C'!H218 -> 146322 | I28: -139974.99 | J28: -0.9566229959 | K28: ='C3C'!K218 -> 585355
A29: ='Org structure'!A7 -> Vote 6 - PUBLIC SAFETY | C29: ='C3C'!C229 -> 0 | D29: ='C3C'!D229 -> 14966986 | E29: ='C3C'!E229 -> 14966986 | F29: ='C3C'!F229 -> 1129589.42 | G29: ='C3C'!G229 -> 3090683.02 | H29: ='C3C'!H229 -> 3741693 | I29: -651009.98 | J29: -0.1739880797 | K29: ='C3C'!K229 -> 14966986
A30: ='Org structure'!A8 -> Vote 7 - HOUSING | C30: ='C3C'!C240 -> 0 | D30: ='C3C'!D240 -> 1207078 | E30: ='C3C'!E240 -> 1207078 | F30: ='C3C'!F240 -> 100505.3 | G30: ='C3C'!G240 -> 270556.11 | H30: ='C3C'!H240 -> 301758 | I30: -31201.89 | J30: =IF(I30=0,"",I30/H30) -> -0.1034003738 | K30: ='C3C'!K240 -> 1207078
A31: ='Org structure'!A9 -> Vote 8 - INFRASTRUCTURE, PLANNING & DEVELOPMENT | C31: ='C3C'!C251 -> 0 | D31: ='C3C'!D251 -> 7703981 | E31: ='C3C'!E251 -> 7673981 | F31: ='C3C'!F251 -> 458240.27 | G31: ='C3C'!G251 -> 1198198.11 | H31: ='C3C'!H251 -> 1918443 | I31: -720244.89 | J31: -0.3754319988 | K31: ='C3C'!K251 -> 7703981
A32: ='Org structure'!A10 -> Vote 9 - ROADS TRANSPORT | C32: ='C3C'!C262 -> 0 | D32: ='C3C'!D262 -> 35525271 | E32: ='C3C'!E262 -> 35525271 | F32: ='C3C'!F262 -> 1346050.89 | G32: ='C3C'!G262 -> 2979930.59 | H32: ='C3C'!H262 -> 8881239 | I32: -5901308.41 | J32: -0.6644690465 | K32: ='C3C'!K262 -> 35525271
A33: ='Org structure'!A11 -> Vote 10 - [NAME OF VOTE 10] | C33: ='C3C'!C273 -> 0 | D33: ='C3C'!D273 -> 0 | E33: ='C3C'!E273 -> 0 | F33: ='C3C'!F273 -> 0 | G33: ='C3C'!G273 -> 0 | H33: ='C3C'!H273 -> 0 | I33: 0 | J33: =IF(I33=0,"",I33/H33) ->  | K33: ='C3C'!K273 -> 0
A34: ='Org structure'!A12 -> Vote 11 - [NAME OF VOTE 11] | C34: ='C3C'!C284 -> 0 | D34: ='C3C'!D284 -> 0 | E34: ='C3C'!E284 -> 0 | F34: ='C3C'!F284 -> 0 | G34: ='C3C'!G284 -> 0 | H34: ='C3C'!H284 -> 0 | I34: 0 | J34: =IF(I34=0,"",I34/H34) ->  | K34: ='C3C'!K284 -> 0
A35: ='Org structure'!A13 -> Vote 12 - [NAME OF VOTE 12] | C35: ='C3C'!C295 -> 0 | D35: ='C3C'!D295 -> 0 | E35: ='C3C'!E295 -> 0 | F35: ='C3C'!F295 -> 0 | G35: ='C3C'!G295 -> 0 | H35: ='C3C'!H295 -> 0 | I35: 0 | J35: =IF(I35=0,"",I35/H35) ->  | K35: ='C3C'!K295 -> 0
A36: ='Org structure'!A14 -> Vote 13 - [NAME OF VOTE 13] | C36: ='C3C'!C306 -> 0 | D36: ='C3C'!D306 -> 0 | E36: ='C3C'!E306 -> 0 | F36: ='C3C'!F306 -> 0 | G36: ='C3C'!G306 -> 0 | H36: ='C3C'!H306 -> 0 | I36: 0 | J36: =IF(I36=0,"",I36/H36) ->  | K36: ='C3C'!K306 -> 0
A37: ='Org structure'!A15 -> Vote 14 - [NAME OF VOTE 14] | C37: ='C3C'!C317 -> 0 | D37: ='C3C'!D317 -> 0 | E37: ='C3C'!E317 -> 0 | F37: ='C3C'!F317 -> 0 | G37: ='C3C'!G317 -> 0 | H37: ='C3C'!H317 -> 0 | I37: 0 | J37: =IF(I37=0,"",I37/H37) ->  | K37: ='C3C'!K317 -> 0
A38: ='Org structure'!A16 -> Vote 15 - [NAME OF VOTE 15] | C38: ='C3C'!C328 -> 0 | D38: ='C3C'!D328 -> 0 | E38: ='C3C'!E328 -> 0 | F38: ='C3C'!F328 -> 0 | G38: ='C3C'!G328 -> 0 | H38: ='C3C'!H328 -> 0 | I38: 0 | K38: ='C3C'!K328 -> 0
A39: Total Expenditure by Vote | B39: 2 | C39: =SUM(C24:C38) -> 0 | D39: =SUM(D24:D38) -> 165948152 | E39: 165948152 | F39: 8802808.77 | G39: 22936009.78 | H39: 41486460 | I39: -18550450.22 | J39: =IF(I39=0,"",I39/H39) -> -0.4471446882 | K39: =SUM(K24:K38) -> 165948152
A40: =result -> Surplus/ (Deficit) for the year | B40: 2 | C40: =C21-C39 -> 0 | D40: 37963531 | E40: 37963531 | F40: -5113959.48 | G40: 30516356.09 | H40: 9491430 | I40: =I21-I39 -> 21024926.09 | J40: =IF(I40=0,"",I40/H40) -> 2.215148412 | K40: =K21-K39 -> 37963531
A41: =head27a -> References
A42: 1. Insert 'Vote'; e.g. Department, if different to standard classification structure
A43: 2. Must reconcile to Monthly Budget Statement - Financial Performance Statement (standard classification)

Sheet C3C
A1: =muni& " - "&S71C& " - "&"A"& " - "&date -> KZN434 Ubuhlebezwe - Table C3 Monthly Budget Statement - Financial Performance (revenue and expenditure by municipal vote) - A - Q1 First Quarter
A2: =Vdesc -> Vote Description | B2: =head27 -> Ref | C2: =Head1 -> 2017/18 | D2: =Head2 -> Budget Year 2018/19 | L2: =Head4 -> 
A3: R thousand | C3: =Head5 -> Audited Outcome | D3: =Head6 -> Original Budget | E3: =Head7 -> Adjusted Budget | F3: =Head38 -> Monthly actual | G3: =Head39 -> YearTD actual | H3: =Head40 -> YearTD budget | I3: =Head41 -> YTD variance | J3: =Head41 -> YTD variance | K3: =Head8 -> Full Year Forecast | L3: =Head12 -> Forecast 2010/11 | M3: =Head13 -> Forecast 2011/12 | N3: =Head14 -> Forecast 2012/13 | O3: =Head15 -> Forecast 2013/14 | P3: =Head16 -> Forecast 2014/15 | Q3: =Head17 -> Forecast 2015/16 | R3: =Head18 -> Forecast 2016/17 | S3: =Head19 -> Forecast 2017/18 | T3: =Head20 -> Forecast 2018/19 | U3: =Head21 -> Forecast 2019/20 | V3: =Head22 -> Forecast 2020/21 | W3: =Head23 -> Forecast 2021/22 | X3: C3C
J4: %
A5: Revenue by Vote | B5: 1
A6: ='Org structure'!A2 -> Vote 1 - EXECUTIVE & COUNCIL | C6: =SUM(C7:C16) -> 0 | D6: =SUM(D7:D16) -> 0 | E6: 0 | F6: 0 | G6: 0 | H6: 0 | I6: =G6-H6 -> 0 | J6: =IF(I6=0,"",I6/H6) ->  | K6: 0
A7: ='Org structure'!E3 -> 1.1 - Council | C7: =-SUMIFS('C Schedule Import Data'!T:T,'C Schedule Import Data'!$A:$A,$X$3,'C Schedule Import Data'!$B:$B,$X7) -> 0 | D7: =-SUMIFS('C Schedule Import Data'!U:U,'C Schedule Import Data'!$A:$A,$X$3,'C Schedule Import Data'!$B:$B,$X7) -> 0 | E7: =-SUMIFS('C Schedule Import Data'!V:V,'C Schedule Import Data'!$A:$A,$X$3,'C Schedule Import Data'!$B:$B,$X7) -> 0 | F7: =-SUMIFS('C Schedule Import Data'!W:W,'C Schedule Import Data'!$A:$A,$X$3,'C Schedule Import Data'!$B:$B,$X7) -> 0 | G7: =-SUMIFS('C Schedule Import Data'!X:X,'C Schedule Import Data'!$A:$A,$X$3,'C Schedule Import Data'!$B:$B,$X7) -> 0 | H7: =-SUMIFS('C Schedule Import Data'!Y:Y,'C Schedule Import Data'!$A:$A,$X$3,'C Schedule Import Data'!$B:$B,$X7) -> 0 | I7: =G7-H7 -> 0 | J7: =IF(I7=0,"",I7/H7) ->  | K7: =-SUMIFS('C Schedule Import Data'!Z:Z,'C Schedule Import Data'!$A:$A,$X$3,'C Schedule Import Data'!$B:$B,$X7) -> 0 | X7: 1.1 REV
A8: ='Org structure'!E4 -> 1.2 - Municipal Manager | C8: =-SUMIFS('C Schedule Import Data'!T:T,'C Schedule Import Data'!$A:$A,$X$3,'C Schedule Import Data'!$B:$B,$X8) -> 0 | D8: =-SUMIFS('C Schedule Import Data'!U:U,'C Schedule Import Data'!$A:$A,$X$3,'C Schedule Import Data'!$B:$B,$X8) -> 0 | E8: =-SUMIFS('C Schedule Import Data'!V:V,'C Schedule Import Data'!$A:$A,$X$3,'C Schedule Import Data'!$B:$B,$X8) -> 0 | F8: =-SUMIFS('C Schedule Import Data'!W:W,'C Schedule Import Data'!$A:$A,$X$3,'C Schedule Import Data'!$B:$B,$X8) -> 0 | G8: =-SUMIFS('C Schedule Import Data'!X:X,'C Schedule Import Data'!$A:$A,$X$3,'C Schedule Import Data'!$B:$B,$X8) -> 0 | H8: =-SUMIFS('C Schedule Import Data'!Y:Y,'C Schedule Import Data'!$A:$A,$X$3,'C Schedule Import Data'!$B:$B,$X8) -> 0 | I8: =G8-H8 -> 0 | J8: =IF(I8=0,"",I8/H8) ->  | K8: =-SUMIFS('C Schedule Import Data'!Z:Z,'C Schedule Import Data'!$A:$A,$X$3,'C Schedule Import Data'!$B:$B,$X8) -> 0 | X8: 1.2 REV
A9: ='Org structure'!E5 ->  | C9: =-SUMIFS('C Schedule Import Data'!T:T,'C Schedule Import Data'!$A:$A,$X$3,'C Schedule Import Data'!$B:$B,$X9) -> 0 | D9: =-SUMIFS('C Schedule Import Data'!U:U,'C Schedule Import Data'!$A:$A,$X$3,'C Schedule Import Data'!$B:$B,$X9) -> 0 | E9: =-SUMIFS('C Schedule Import Data'!V:V,'C Schedule Import Data'!$A:$A,$X$3,'C Schedule Import Data'!$B:$B,$X9) -> 0 | F9: =-SUMIFS('C Schedule Import Data'!W:W,'C Schedule Import Data'!$A:$A,$X$3,'C Schedule Import Data'!$B:$B,$X9) -> 0 | G9: =-SUMIFS('C Schedule Import Data'!X:X,'C Schedule Import Data'!$A:$A,$X$3,'C Schedule Import Data'!$B:$B,$X9) -> 0 | H9: =-SUMIFS('C Schedule Import Data'!Y:Y,'C Schedule Import Data'!$A:$A,$X$3,'C Schedule Import Data'!$B:$B,$X9) -> 0 | I9: 0 | K9: =-SUMIFS('C Schedule Import Data'!Z:Z,'C Schedule Import Data'!$A:$A,$X$3,'C Schedule Import Data'!$B:$B,$X9) -> 0 | X9: 1.3 REV
A10: ='Org structure'!E6 ->  | C10: =-SUMIFS('C Schedule Import Data'!T:T,'C Schedule Import Data'!$A:$A,$X$3,'C Schedule Import Data'!$B:$B,$X10) -> 0 | D10: =-SUMIFS('C Schedule Import Data'!U:U,'C Schedule Import Data'!$A:$A,$X$3,'C Schedule Import Data'!$B:$B,$X10) -> 0 | E10: =-SUMIFS('C Schedule Import Data'!V:V,'C Schedule Import Data'!$A:$A,$X$3,'C Schedule Import Data'!$B:$B,$X10) -> 0 | F10: =-SUMIFS('C Schedule Import Data'!W:W,'C Schedule Import Data'!$A:$A,$X$3,'C Schedule Import Data'!$B:$B,$X10) -> 0 | G10: =-SUMIFS('C Schedule Import Data'!X:X,'C Schedule Import Data'!$A:$A,$X$3,'C Schedule Import Data'!$B:$B,$X10) -> 0 | H10: =-SUMIFS('C Schedule Import Data'!Y:Y,'C Schedule Import Data'!$A:$A,$X$3,'C Schedule Import Data'!$B:$B,$X10) -> 0 | I10: 0 | K10: =-SUMIFS('C Schedule Import Data'!Z:Z,'C Schedule Import Data'!$A:$A,$X$3,'C Schedule Import Data'!$B:$B,$X10) -> 0 | X10: 1.4 REV
A11: ='Org structure'!E7 ->  | C11: =-SUMIFS('C Schedule Import Data'!T:T,'C Schedule Import Data'!$A:$A,$X$3,'C Schedule Import Data'!$B:$B,$X11) -> 0 | D11: =-SUMIFS('C Schedule Import Data'!U:U,'C Schedule Import Data'!$A:$A,$X$3,'C Schedule Import Data'!$B:$B,$X11) -> 0 | E11: =-SUMIFS('C Schedule Import Data'!V:V,'C Schedule Import Data'!$A:$A,$X$3,'C Schedule Import Data'!$B:$B,$X11) -> 0 | F11: =-SUMIFS('C Schedule Import Data'!W:W,'C Schedule Import Data'!$A:$A,$X$3,'C Schedule Import Data'!$B:$B,$X11) -> 0 | G11: =-SUMIFS('C Schedule Import Data'!X:X,'C Schedule Import Data'!$A:$A,$X$3,'C Schedule Import Data'!$B:$B,$X11) -> 0 | H11: =-SUMIFS('C Schedule Import Data'!Y:Y,'C Schedule Import Data'!$A:$A,$X$3,'C Schedule Import Data'!$B:$B,$X11) -> 0 | I11: 0 | K11: =-SUMIFS('C Schedule Import Data'!Z:Z,'C Schedule Import Data'!$A:$A,$X$3,'C Schedule Import Data'!$B:$B,$X11) -> 0 | X11: 1.5 REV
A12: ='Org structure'!E8 ->  | C12: =-SUMIFS('C Schedule Import Data'!T:T,'C Schedule Import Data'!$A:$A,$X$3,'C Schedule Import Data'!$B:$B,$X12) -> 0 | D12: =-SUMIFS('C Schedule Import Data'!U:U,'C Schedule Import Data'!$A:$A,$X$3,'C Schedule Import Data'!$B:$B,$X12) -> 0 | E12: =-SUMIFS('C Schedule Import Data'!V:V,'C Schedule Import Data'!$A:$A,$X$3,'C Schedule Import Data'!$B:$B,$X12) -> 0 | F12: =-SUMIFS('C Schedule Import Data'!W:W,'C Schedule Import Data'!$A:$A,$X$3,'C Schedule Import Data'!$B:$B,$X12) -> 0 | G12: =-SUMIFS('C Schedule Import Data'!X:X,'C Schedule Import Data'!$A:$A,$X$3,'C Schedule Import Data'!$B:$B,$X12) -> 0 | H12: =-SUMIFS('C Schedule Import Data'!Y:Y,'C Schedule Import Data'!$A:$A,$X$3,'C Schedule Import Data'!$B:$B,$X12) -> 0 | I12: 0 | K12: =-SUMIFS('C Schedule Import Data'!Z:Z,'C Schedule Import Data'!$A:$A,$X$3,'C Schedule Import Data'!$B:$B,$X12) -> 0 | X12: 1.6 REV
A13: ='Org structure'!E9 ->  | C13: =-SUMIFS('C Schedule Import Data'!T:T,'C Schedule Import Data'!$A:$A,$X$3,'C Schedule Import Data'!$B:$B,$X13) -> 0 | D13: =-SUMIFS('C Schedule Import Data'!U:U,'C Schedule Import Data'!$A:$A,$X$3,'C Schedule Import Data'!$B:$B,$X13) -> 0 | E13: =-SUMIFS('C Schedule Import Data'!V:V,'C Schedule Import Data'!$A:$A,$X$3,'C Schedule Import Data'!$B:$B,$X13) -> 0 | F13: =-SUMIFS('C Schedule Import Data'!W:W,'C Schedule Import Data'!$A:$A,$X$3,'C Schedule Import Data'!$B:$B,$X13) -> 0 | G13: =-SUMIFS('C Schedule Import Data'!X:X,'C Schedule Import Data'!$A:$A,$X$3,'C Schedule Import Data'!$B:$B,$X13) -> 0 | H13: =-SUMIFS('C Schedule Import Data'!Y:Y,'C Schedule Import Data'!$A:$A,$X$3,'C Schedule Import Data'!$B:$B,$X13) -> 0 | I13: 0 | K13: =-SUMIFS('C Schedule Import Data'!Z:Z,'C Schedule Import Data'!$A:$A,$X$3,'C Schedule Import Data'!$B:$B,$X13) -> 0 | X13: 1.7 REV
A14: ='Org structure'!E10 ->  | C14: =-SUMIFS('C Schedule Import Data'!T:T,'C Schedule Import Data'!$A:$A,$X$3,'C Schedule Import Data'!$B:$B,$X14) -> 0 | D14: =-SUMIFS('C Schedule Import Data'!U:U,'C Schedule Import Data'!$A:$A,$X$3,'C Schedule Import Data'!$B:$B,$X14) -> 0 | E14: =-SUMIFS('C Schedule Import Data'!V:V,'C Schedule Import Data'!$A:$A,$X$3,'C Schedule Import Data'!$B:$B,$X14) -> 0 | F14: =-SUMIFS('C Schedule Import Data'!W:W,'C Schedule Import Data'!$A:$A,$X$3,'C Schedule Import Data'!$B:$B,$X14) -> 0 | G14: =-SUMIFS('C Schedule Import Data'!X:X,'C Schedule Import Data'!$A:$A,$X$3,'C Schedule Import Data'!$B:$B,$X14) -> 0 | H14: =-SUMIFS('C Schedule Import Data'!Y:Y,'C Schedule Import Data'!$A:$A,$X$3,'C Schedule Import Data'!$B:$B,$X14) -> 0 | I14: 0 | K14: =-SUMIFS('C Schedule Import Data'!Z:Z,'C Schedule Import Data'!$A:$A,$X$3,'C Schedule Import Data'!$B:$B,$X14) -> 0 | X14: 1.8 REV
A15: ='Org structure'!E11 ->  | C15: =-SUMIFS('C Schedule Import Data'!T:T,'C Schedule Import Data'!$A:$A,$X$3,'C Schedule Import Data'!$B:$B,$X15) -> 0 | D15: =-SUMIFS('C Schedule Import Data'!U:U,'C Schedule Import Data'!$A:$A,$X$3,'C Schedule Import Data'!$B:$B,$X15) -> 0 | E15: =-SUMIFS('C Schedule Import Data'!V:V,'C Schedule Import Data'!$A:$A,$X$3,'C Schedule Import Data'!$B:$B,$X15) -> 0 | F15: =-SUMIFS('C Schedule Import Data'!W:W,'C Schedule Import Data'!$A:$A,$X$3,'C Schedule Import Data'!$B:$B,$X15) -> 0 | G15: =-SUMIFS('C Schedule Import Data'!X:X,'C Schedule Import Data'!$A:$A,$X$3,'C Schedule Import Data'!$B:$B,$X15) -> 0 | H15: =-SUMIFS('C Schedule Import Data'!Y:Y,'C Schedule Import Data'!$A:$A,$X$3,'C Schedule Import Data'!$B:$B,$X15) -> 0 | I15: 0 | K15: =-SUMIFS('C Schedule Import Data'!Z:Z,'C Schedule Import Data'!$A:$A,$X$3,'C Schedule Import Data'!$B:$B,$X15) -> 0 | X15: 1.9 REV
A16: ='Org structure'!E12 ->  | C16: =-SUMIFS('C Schedule Import Data'!T:T,'C Schedule Import Data'!$A:$A,$X$3,'C Schedule Import Data'!$B:$B,$X16) -> 0 | D16: =-SUMIFS('C Schedule Import Data'!U:U,'C Schedule Import Data'!$A:$A,$X$3,'C Schedule Import Data'!$B:$B,$X16) -> 0 | E16: =-SUMIFS('C Schedule Import Data'!V:V,'C Schedule Import Data'!$A:$A,$X$3,'C Schedule Import Data'!$B:$B,$X16) -> 0 | F16: =-SUMIFS('C Schedule Import Data'!W:W,'C Schedule Import Data'!$A:$A,$X$3,'C Schedule Import Data'!$B:$B,$X16) -> 0 | G16: =-SUMIFS('C Schedule Import Data'!X:X,'C Schedule Import Data'!$A:$A,$X$3,'C Schedule Import Data'!$B:$B,$X16) -> 0 | H16: =-SUMIFS('C Schedule Import Data'!Y:Y,'C Schedule Import Data'!$A:$A,$X$3,'C Schedule Import Data'!$B:$B,$X16) -> 0 | I16: 0 | K16: =-SUMIFS('C Schedule Import Data'!Z:Z,'C Schedule Import Data'!$A:$A,$X$3,'C Schedule Import Data'!$B:$B,$X16) -> 0 | X16: 1.10 REV
A17: ='Org structure'!A3 -> Vote 2 - BUDGET & TREASURY | C17: =SUM(C18:C27) -> 0 | D17: =SUM(D18:D27) -> 147499244 | E17: 147499244 | F17: 2434015.28 | G17: 48889155.11 | H17: 36874800 | I17: =G17-H17 -> 12014355.11 | J17: =IF(I17=0,"",I17/H17) -> 0.3258147871 | K17: 147499244
A18: ='Org structure'!E14 -> 2.1 - Budget & Treasury | C18: =-SUMIFS('C Schedule Import Data'!T:T,'C Schedule Import Data'!$A:$A,$X$3,'C Schedule Import Data'!$B:$B,$X18) -> 0 | D18: =-SUMIFS('C Schedule Import Data'!U:U,'C Schedule Import Data'!$A:$A,$X$3,'C Schedule Import Data'!$B:$B,$X18) -> 147499244 | E18: =-SUMIFS('C Schedule Import Data'!V:V,'C Schedule Import Data'!$A:$A,$X$3,'C Schedule Import Data'!$B:$B,$X18) -> 147499244 | F18: =-SUMIFS('C Schedule Import Data'!W:W,'C Schedule Import Data'!$A:$A,$X$3,'C Schedule Import Data'!$B:$B,$X18) -> 2434015.28 | G18: =-SUMIFS('C Schedule Import Data'!X:X,'C Schedule Import Data'!$A:$A,$X$3,'C Schedule Import Data'!$B:$B,$X18) -> 48889155.11 | H18: =-SUMIFS('C Schedule Import Data'!Y:Y,'C Schedule Import Data'!$A:$A,$X$3,'C Schedule Import Data'!$B:$B,$X18) -> 36874800 | I18: =G18-H18 -> 12014355.11 | J18: =IF(I18=0,"",I18/H18) -> 0.3258147871 | K18: =-SUMIFS('C Schedule Import Data'!Z:Z,'C Schedule Import Data'!$A:$A,$X$3,'C Schedule Import Data'!$B:$B,$X18) -> 147499244 | X18: 2.1 REV
A19: ='Org structure'!E15 ->  | C19: =-SUMIFS('C Schedule Import Data'!T:T,'C Schedule Import Data'!$A:$A,$X$3,'C Schedule Import Data'!$B:$B,$X19) -> 0 | D19: =-SUMIFS('C Schedule Import Data'!U:U,'C Schedule Import Data'!$A:$A,$X$3,'C Schedule Import Data'!$B:$B,$X19) -> 0 | E19: =-SUMIFS('C Schedule Import Data'!V:V,'C Schedule Import Data'!$A:$A,$X$3,'C Schedule Import Data'!$B:$B,$X19) -> 0 | F19: =-SUMIFS('C Schedule Import Data'!W:W,'C Schedule Import Data'!$A:$A,$X$3,'C Schedule Import Data'!$B:$B,$X19) -> 0 | G19: =-SUMIFS('C Schedule Import Data'!X:X,'C Schedule Import Data'!$A:$A,$X$3,'C Schedule Import Data'!$B:$B,$X19) -> 0 | H19: =-SUMIFS('C Schedule Import Data'!Y:Y,'C Schedule Import Data'!$A:$A,$X$3,'C Schedule Import Data'!$B:$B,$X19) -> 0 | I19: =G19-H19 -> 0 | J19: =IF(I19=0,"",I19/H19) ->  | K19: =-SUMIFS('C Schedule Import Data'!Z:Z,'C Schedule Import Data'!$A:$A,$X$3,'C Schedule Import Data'!$B:$B,$X19) -> 0 | X19: 2.2 REV
A20: ='Org structure'!E16 ->  | C20: =-SUMIFS('C Schedule Import Data'!T:T,'C Schedule Import Data'!$A:$A,$X$3,'C Schedule Import Data'!$B:$B,$X20) -> 0 | D20: =-SUMIFS('C Schedule Import Data'!U:U,'C Schedule Import Data'!$A:$A,$X$3,'C Schedule Import Data'!$B:$B,$X20) -> 0 | E20: =-SUMIFS('C Schedule Import Data'!V:V,'C Schedule Import Data'!$A:$A,$X$3,'C Schedule Import Data'!$B:$B,$X20) -> 0 | F20: =-SUMIFS('C Schedule Import Data'!W:W,'C Schedule Import Data'!$A:$A,$X$3,'C Schedule Import Data'!$B:$B,$X20) -> 0 | G20: =-SUMIFS('C Schedule Import Data'!X:X,'C Schedule Import Data'!$A:$A,$X$3,'C Schedule Import Data'!$B:$B,$X20) -> 0 | H20: =-SUMIFS('C Schedule Import Data'!Y:Y,'C Schedule Import Data'!$A:$A,$X$3,'C Schedule Import Data'!$B:$B,$X20) -> 0 | I20: 0 | K20: =-SUMIFS('C Schedule Import Data'!Z:Z,'C Schedule Import Data'!$A:$A,$X$3,'C Schedule Import Data'!$B:$B,$X20) -> 0 | X20: 2.3 REV
A21: ='Org structure'!E17 ->  | C21: =-SUMIFS('C Schedule Import Data'!T:T,'C Schedule Import Data'!$A:$A,$X$3,'C Schedule Import Data'!$B:$B,$X21) -> 0 | D21: =-SUMIFS('C Schedule Import Data'!U:U,'C Schedule Import Data'!$A:$A,$X$3,'C Schedule Import Data'!$B:$B,$X21) -> 0 | E21: =-SUMIFS('C Schedule Import Data'!V:V,'C Schedule Import Data'!$A:$A,$X$3,'C Schedule Import Data'!$B:$B,$X21) -> 0 | F21: =-SUMIFS('C Schedule Import Data'!W:W,'C Schedule Import Data'!$A:$A,$X$3,'C Schedule Import Data'!$B:$B,$X21) -> 0 | G21: =-SUMIFS('C Schedule Import Data'!X:X,'C Schedule Import Data'!$A:$A,$X$3,'C Schedule Import Data'!$B:$B,$X21) -> 0 | H21: =-SUMIFS('C Schedule Import Data'!Y:Y,'C Schedule Import Data'!$A:$A,$X$3,'C Schedule Import Data'!$B:$B,$X21) -> 0 | I21: 0 | K21: =-SUMIFS('C Schedule Import Data'!Z:Z,'C Schedule Import Data'!$A:$A,$X$3,'C Schedule Import Data'!$B:$B,$X21) -> 0 | X21: 2.4 REV
A22: ='Org structure'!E18 ->  | C22: =-SUMIFS('C Schedule Import Data'!T:T,'C Schedule Import Data'!$A:$A,$X$3,'C Schedule Import Data'!$B:$B,$X22) -> 0 | D22: =-SUMIFS('C Schedule Import Data'!U:U,'C Schedule Import Data'!$A:$A,$X$3,'C Schedule Import Data'!$B:$B,$X22) -> 0 | E22: =-SUMIFS('C Schedule Import Data'!V:V,'C Schedule Import Data'!$A:$A,$X$3,'C Schedule Import Data'!$B:$B,$X22) -> 0 | F22: =-SUMIFS('C Schedule Import Data'!W:W,'C Schedule Import Data'!$A:$A,$X$3,'C Schedule Import Data'!$B:$B,$X22) -> 0 | G22: =-SUMIFS('C Schedule Import Data'!X:X,'C Schedule Import Data'!$A:$A,$X$3,'C Schedule Import Data'!$B:$B,$X22) -> 0 | H22: =-SUMIFS('C Schedule Import Data'!Y:Y,'C Schedule Import Data'!$A:$A,$X$3,'C Schedule Import Data'!$B:$B,$X22) -> 0 | I22: 0 | K22: =-SUMIFS('C Schedule Import Data'!Z:Z,'C Schedule Import Data'!$A:$A,$X$3,'C Schedule Import Data'!$B:$B,$X22) -> 0 | X22: 2.5 REV
A23: ='Org structure'!E19 ->  | C23: =-SUMIFS('C Schedule Import Data'!T:T,'C Schedule Import Data'!$A:$A,$X$3,'C Schedule Import Data'!$B:$B,$X23) -> 0 | D23: =-SUMIFS('C Schedule Import Data'!U:U,'C Schedule Import Data'!$A:$A,$X$3,'C Schedule Import Data'!$B:$B,$X23) -> 0 | E23: =-SUMIFS('C Schedule Import Data'!V:V,'C Schedule Import Data'!$A:$A,$X$3,'C Schedule Import Data'!$B:$B,$X23) -> 0 | F23: =-SUMIFS('C Schedule Import Data'!W:W,'C Schedule Import Data'!$A:$A,$X$3,'C Schedule Import Data'!$B:$B,$X23) -> 0 | G23: =-SUMIFS('C Schedule Import Data'!X:X,'C Schedule Import Data'!$A:$A,$X$3,'C Schedule Import Data'!$B:$B,$X23) -> 0 | H23: =-SUMIFS('C Schedule Import Data'!Y:Y,'C Schedule Import Data'!$A:$A,$X$3,'C Schedule Import Data'!$B:$B,$X23) -> 0 | I23: 0 | K23: =-SUMIFS('C Schedule Import Data'!Z:Z,'C Schedule Import Data'!$A:$A,$X$3,'C Schedule Import Data'!$B:$B,$X23) -> 0 | X23: 2.6 REV
A24: ='Org structure'!E20 ->  | C24: =-SUMIFS('C Schedule Import Data'!T:T,'C Schedule Import Data'!$A:$A,$X$3,'C Schedule Import Data'!$B:$B,$X24) -> 0 | D24: =-SUMIFS('C Schedule Import Data'!U:U,'C Schedule Import Data'!$A:$A,$X$3,'C Schedule Import Data'!$B:$B,$X24) -> 0 | E24: =-SUMIFS('C Schedule Import Data'!V:V,'C Schedule Import Data'!$A:$A,$X$3,'C Schedule Import Data'!$B:$B,$X24) -> 0 | F24: =-SUMIFS('C Schedule Import Data'!W:W,'C Schedule Import Data'!$A:$A,$X$3,'C Schedule Import Data'!$B:$B,$X24) -> 0 | G24: =-SUMIFS('C Schedule Import Data'!X:X,'C Schedule Import Data'!$A:$A,$X$3,'C Schedule Import Data'!$B:$B,$X24) -> 0 | H24: =-SUMIFS('C Schedule Import Data'!Y:Y,'C Schedule Import Data'!$A:$A,$X$3,'C Schedule Import Data'!$B:$B,$X24) -> 0 | I24: 0 | K24: =-SUMIFS('C Schedule Import Data'!Z:Z,'C Schedule Import Data'!$A:$A,$X$3,'C Schedule Import Data'!$B:$B,$X24) -> 0 | X24: 2.7 REV
A25: ='Org structure'!E21 ->  | C25: =-SUMIFS('C Schedule Import Data'!T:T,'C Schedule Import Data'!$A:$A,$X$3,'C Schedule Import Data'!$B:$B,$X25) -> 0 | D25: =-SUMIFS('C Schedule Import Data'!U:U,'C Schedule Import Data'!$A:$A,$X$3,'C Schedule Import Data'!$B:$B,$X25) -> 0 | E25: =-SUMIFS('C Schedule Import Data'!V:V,'C Schedule Import Data'!$A:$A,$X$3,'C Schedule Import Data'!$B:$B,$X25) -> 0 | F25: =-SUMIFS('C Schedule Import Data'!W:W,'C Schedule Import Data'!$A:$A,$X$3,'C Schedule Import Data'!$B:$B,$X25) -> 0 | G25: =-SUMIFS('C Schedule Import Data'!X:X,'C Schedule Import Data'!$A:$A,$X$3,'C Schedule Import Data'!$B:$B,$X25) -> 0 | H25: =-SUMIFS('C Schedule Import Data'!Y:Y,'C Schedule Import Data'!$A:$A,$X$3,'C Schedule Import Data'!$B:$B,$X25) -> 0 | I25: 0 | K25: =-SUMIFS('C Schedule Import Data'!Z:Z,'C Schedule Import Data'!$A:$A,$X$3,'C Schedule Import Data'!$B:$B,$X25) -> 0 | X25: 2.8 REV
A26: ='Org structure'!E22 ->  | C26: =-SUMIFS('C Schedule Import Data'!T:T,'C Schedule Import Data'!$A:$A,$X$3,'C Schedule Import Data'!$B:$B,$X26) -> 0 | D26: =-SUMIFS('C Schedule Import Data'!U:U,'C Schedule Import Data'!$A:$A,$X$3,'C Schedule Import Data'!$B:$B,$X26) -> 0 | E26: =-SUMIFS('C Schedule Import Data'!V:V,'C Schedule Import Data'!$A:$A,$X$3,'C Schedule Import Data'!$B:$B,$X26) -> 0 | F26: =-SUMIFS('C Schedule Import Data'!W:W,'C Schedule Import Data'!$A:$A,$X$3,'C Schedule Import Data'!$B:$B,$X26) -> 0 | G26: =-SUMIFS('C Schedule Import Data'!X:X,'C Schedule Import Data'!$A:$A,$X$3,'C Schedule Import Data'!$B:$B,$X26) -> 0 | H26: =-SUMIFS('C Schedule Import Data'!Y:Y,'C Schedule Import Data'!$A:$A,$X$3,'C Schedule Import Data'!$B:$B,$X26) -> 0 | I26: 0 | K26: =-SUMIFS('C Schedule Import Data'!Z:Z,'C Schedule Import Data'!$A:$A,$X$3,'C Schedule Import Data'!$B:$B,$X26) -> 0 | X26: 2.9 REV
A27: ='Org structure'!E23 ->  | C27: =-SUMIFS('C Schedule Import Data'!T:T,'C Schedule Import Data'!$A:$A,$X$3,'C Schedule Import Data'!$B:$B,$X27) -> 0 | D27: =-SUMIFS('C Schedule Import Data'!U:U,'C Schedule Import Data'!$A:$A,$X$3,'C Schedule Import Data'!$B:$B,$X27) -> 0 | E27: =-SUMIFS('C Schedule Import Data'!V:V,'C Schedule Import Data'!$A:$A,$X$3,'C Schedule Import Data'!$B:$B,$X27) -> 0 | F27: =-SUMIFS('C Schedule Import Data'!W:W,'C Schedule Import Data'!$A:$A,$X$3,'C Schedule Import Data'!$B:$B,$X27) -> 0 | G27: =-SUMIFS('C Schedule Import Data'!X:X,'C Schedule Import Data'!$A:$A,$X$3,'C Schedule Import Data'!$B:$B,$X27) -> 0 | H27: =-SUMIFS('C Schedule Import Data'!Y:Y,'C Schedule Import Data'!$A:$A,$X$3,'C Schedule Import Data'!$B:$B,$X27) -> 0 | I27: 0 | K27: =-SUMIFS('C Schedule Import Data'!Z:Z,'C Schedule Import Data'!$A:$A,$X$3,'C Schedule Import Data'!$B:$B,$X27) -> 0 | X27: 2.10 REV
A28: ='Org structure'!A4 -> Vote 3 - CORPORATE SERVCES | C28: =SUM(C29:C38) -> 0 | D28: 1150000 | E28: 1150000 | F28: 83682.03 | G28: 128942.3 | H28: 287499 | I28: =G28-H28 -> -158556.7 | J28: =IF(I28=0,"",I28/H28) -> -0.5515034835 | K28: 1150000
A29: ='Org structure'!E25 -> 3.1 - Corporate Services/Other Admin | C29: =-SUMIFS('C Schedule Import Data'!T:T,'C Schedule Import Data'!$A:$A,$X$3,'C Schedule Import Data'!$B:$B,$X29) -> 0 | D29: =-SUMIFS('C Schedule Import Data'!U:U,'C Schedule Import Data'!$A:$A,$X$3,'C Schedule Import Data'!$B:$B,$X29) -> 1000000 | E29: =-SUMIFS('C Schedule Import Data'!V:V,'C Schedule Import Data'!$A:$A,$X$3,'C Schedule Import Data'!$B:$B,$X29) -> 1000000 | F29: =-SUMIFS('C Schedule Import Data'!W:W,'C Schedule Import Data'!$A:$A,$X$3,'C Schedule Import Data'!$B:$B,$X29) -> 82182.03 | G29: =-SUMIFS('C Schedule Import Data'!X:X,'C Schedule Import Data'!$A:$A,$X$3,'C Schedule Import Data'!$B:$B,$X29) -> 125942.3 | H29: =-SUMIFS('C Schedule Import Data'!Y:Y,'C Schedule Import Data'!$A:$A,$X$3,'C Schedule Import Data'!$B:$B,$X29) -> 249999 | I29: =G29-H29 -> -124056.7 | J29: =IF(I29=0,"",I29/H29) -> -0.4962287849 | K29: =-SUMIFS('C Schedule Import Data'!Z:Z,'C Schedule Import Data'!$A:$A,$X$3,'C Schedule Import Data'!$B:$B,$X29) -> 1000000 | X29: 3.1 REV
A30: ='Org structure'!E26 -> 3.2 - Muncipal Estates/Property Services | C30: =-SUMIFS('C Schedule Import Data'!T:T,'C Schedule Import Data'!$A:$A,$X$3,'C Schedule Import Data'!$B:$B,$X30) -> 0 | D30: =-SUMIFS('C Schedule Import Data'!U:U,'C Schedule Import Data'!$A:$A,$X$3,'C Schedule Import Data'!$B:$B,$X30) -> 150000 | E30: =-SUMIFS('C Schedule Import Data'!V:V,'C Schedule Import Data'!$A:$A,$X$3,'C Schedule Import Data'!$B:$B,$X30) -> 150000 | F30: =-SUMIFS('C Schedule Import Data'!W:W,'C Schedule Import Data'!$A:$A,$X$3,'C Schedule Import Data'!$B:$B,$X30) -> 1500 | G30: =-SUMIFS('C Schedule Import Data'!X:X,'C Schedule Import Data'!$A:$A,$X$3,'C Schedule Import Data'!$B:$B,$X30) -> 3000 | H30: =-SUMIFS('C Schedule Import Data'!Y:Y,'C Schedule Import Data'!$A:$A,$X$3,'C Schedule Import Data'!$B:$B,$X30) -> 37500 | I30: =G30-H30 -> -34500 | J30: =IF(I30=0,"",I30/H30) -> -0.92 | K30: =-SUMIFS('C Schedule Import Data'!Z:Z,'C Schedule Import Data'!$A:$A,$X$3,'C Schedule Import Data'!$B:$B,$X30) -> 150000 | X30: 3.2 REV
A31: ='Org structure'!E27 ->  | C31: =-SUMIFS('C Schedule Import Data'!T:T,'C Schedule Import Data'!$A:$A,$X$3,'C Schedule Import Data'!$B:$B,$X31) -> 0 | D31: =-SUMIFS('C Schedule Import Data'!U:U,'C Schedule Import Data'!$A:$A,$X$3,'C Schedule Import Data'!$B:$B,$X31) -> 0 | E31: =-SUMIFS('C Schedule Import Data'!V:V,'C Schedule Import Data'!$A:$A,$X$3,'C Schedule Import Data'!$B:$B,$X31) -> 0 | F31: =-SUMIFS('C Schedule Import Data'!W:W,'C Schedule Import Data'!$A:$A,$X$3,'C Schedule Import Data'!$B:$B,$X31) -> 0 | G31: =-SUMIFS('C Schedule Import Data'!X:X,'C Schedule Import Data'!$A:$A,$X$3,'C Schedule Import Data'!$B:$B,$X31) -> 0 | H31: =-SUMIFS('C Schedule Import Data'!Y:Y,'C Schedule Import Data'!$A:$A,$X$3,'C Schedule Import Data'!$B:$B,$X31) -> 0 | I31: 0 | K31: =-SUMIFS('C Schedule Import Data'!Z:Z,'C Schedule Import Data'!$A:$A,$X$3,'C Schedule Import Data'!$B:$B,$X31) -> 0 | X31: 3.3 REV
A32: ='Org structure'!E28 ->  | C32: =-SUMIFS('C Schedule Import Data'!T:T,'C Schedule Import Data'!$A:$A,$X$3,'C Schedule Import Data'!$B:$B,$X32) -> 0 | D32: =-SUMIFS('C Schedule Import Data'!U:U,'C Schedule Import Data'!$A:$A,$X$3,'C Schedule Import Data'!$B:$B,$X32) -> 0 | E32: =-SUMIFS('C Schedule Import Data'!V:V,'C Schedule Import Data'!$A:$A,$X$3,'C Schedule Import Data'!$B:$B,$X32) -> 0 | F32: =-SUMIFS('C Schedule Import Data'!W:W,'C Schedule Import Data'!$A:$A,$X$3,'C Schedule Import Data'!$B:$B,$X32) -> 0 | G32: =-SUMIFS('C Schedule Import Data'!X:X,'C Schedule Import Data'!$A:$A,$X$3,'C Schedule Import Data'!$B:$B,$X32) -> 0 | H32: =-SUMIFS('C Schedule Import Data'!Y:Y,'C Schedule Import Data'!$A:$A,$X$3,'C Schedule Import Data'!$B:$B,$X32) -> 0 | I32: 0 | K32: =-SUMIFS('C Schedule Import Data'!Z:Z,'C Schedule Import Data'!$A:$A,$X$3,'C Schedule Import Data'!$B:$B,$X32) -> 0 | X32: 3.4 REV
A33: ='Org structure'!E29 ->  | C33: =-SUMIFS('C Schedule Import Data'!T:T,'C Schedule Import Data'!$A:$A,$X$3,'C Schedule Import Data'!$B:$B,$X33) -> 0 | D33: =-SUMIFS('C Schedule Import Data'!U:U,'C Schedule Import Data'!$A:$A,$X$3,'C Schedule Import Data'!$B:$B,$X33) -> 0 | E33: =-SUMIFS('C Schedule Import Data'!V:V,'C Schedule Import Data'!$A:$A,$X$3,'C Schedule Import Data'!$B:$B,$X33) -> 0 | F33: =-SUMIFS('C Schedule Import Data'!W:W,'C Schedule Import Data'!$A:$A,$X$3,'C Schedule Import Data'!$B:$B,$X33) -> 0 | G33: =-SUMIFS('C Schedule Import Data'!X:X,'C Schedule Import Data'!$A:$A,$X$3,'C Schedule Import Data'!$B:$B,$X33) -> 0 | H33: =-SUMIFS('C Schedule Import Data'!Y:Y,'C Schedule Import Data'!$A:$A,$X$3,'C Schedule Import Data'!$B:$B,$X33) -> 0 | I33: 0 | K33: =-SUMIFS('C Schedule Import Data'!Z:Z,'C Schedule Import Data'!$A:$A,$X$3,'C Schedule Import Data'!$B:$B,$X33) -> 0 | X33: 3.5 REV
A34: ='Org structure'!E30 ->  | C34: =-SUMIFS('C Schedule Import Data'!T:T,'C Schedule Import Data'!$A:$A,$X$3,'C Schedule Import Data'!$B:$B,$X34) -> 0 | D34: =-SUMIFS('C Schedule Import Data'!U:U,'C Schedule Import Data'!$A:$A,$X$3,'C Schedule Import Data'!$B:$B,$X34) -> 0 | E34: =-SUMIFS('C Schedule Import Data'!V:V,'C Schedule Import Data'!$A:$A,$X$3,'C Schedule Import Data'!$B:$B,$X34) -> 0 | F34: =-SUMIFS('C Schedule Import Data'!W:W,'C Schedule Import Data'!$A:$A,$X$3,'C Schedule Import Data'!$B:$B,$X34) -> 0 | G34: =-SUMIFS('C Schedule Import Data'!X:X,'C Schedule Import Data'!$A:$A,$X$3,'C Schedule Import Data'!$B:$B,$X34) -> 0 | H34: =-SUMIFS('C Schedule Import Data'!Y:Y,'C Schedule Import Data'!$A:$A,$X$3,'C Schedule Import Data'!$B:$B,$X34) -> 0 | I34: 0 | K34: =-SUMIFS('C Schedule Import Data'!Z:Z,'C Schedule Import Data'!$A:$A,$X$3,'C Schedule Import Data'!$B:$B,$X34) -> 0 | X34: 3.6 REV
A35: ='Org structure'!E31 ->  | C35: =-SUMIFS('C Schedule Import Data'!T:T,'C Schedule Import Data'!$A:$A,$X$3,'C Schedule Import Data'!$B:$B,$X35) -> 0 | D35: =-SUMIFS('C Schedule Import Data'!U:U,'C Schedule Import Data'!$A:$A,$X$3,'C Schedule Import Data'!$B:$B,$X35) -> 0 | E35: =-SUMIFS('C Schedule Import Data'!V:V,'C Schedule Import Data'!$A:$A,$X$3,'C Schedule Import Data'!$B:$B,$X35) -> 0 | F35: =-SUMIFS('C Schedule Import Data'!W:W,'C Schedule Import Data'!$A:$A,$X$3,'C Schedule Import Data'!$B:$B,$X35) -> 0 | G35: =-SUMIFS('C Schedule Import Data'!X:X,'C Schedule Import Data'!$A:$A,$X$3,'C Schedule Import Data'!$B:$B,$X35) -> 0 | H35: =-SUMIFS('C Schedule Import Data'!Y:Y,'C Schedule Import Data'!$A:$A,$X$3,'C Schedule Import Data'!$B:$B,$X35) -> 0 | I35: 0 | K35: =-SUMIFS('C Schedule Import Data'!Z:Z,'C Schedule Import Data'!$A:$A,$X$3,'C Schedule Import Data'!$B:$B,$X35) -> 0 | X35: 3.7 REV
A36: ='Org structure'!E32 ->  | C36: =-SUMIFS('C Schedule Import Data'!T:T,'C Schedule Import Data'!$A:$A,$X$3,'C Schedule Import Data'!$B:$B,$X36) -> 0 | D36: =-SUMIFS('C Schedule Import Data'!U:U,'C Schedule Import Data'!$A:$A,$X$3,'C Schedule Import Data'!$B:$B,$X36) -> 0 | E36: =-SUMIFS('C Schedule Import Data'!V:V,'C Schedule Import Data'!$A:$A,$X$3,'C Schedule Import Data'!$B:$B,$X36) -> 0 | F36: =-SUMIFS('C Schedule Import Data'!W:W,'C Schedule Import Data'!$A:$A,$X$3,'C Schedule Import Data'!$B:$B,$X36) -> 0 | G36: =-SUMIFS('C Schedule Import Data'!X:X,'C Schedule Import Data'!$A:$A,$X$3,'C Schedule Import Data'!$B:$B,$X36) -> 0 | H36: =-SUMIFS('C Schedule Import Data'!Y:Y,'C Schedule Import Data'!$A:$A,$X$3,'C Schedule Import Data'!$B:$B,$X36) -> 0 | I36: 0 | K36: =-SUMIFS('C Schedule Import Data'!Z:Z,'C Schedule Import Data'!$A:$A,$X$3,'C Schedule Import Data'!$B:$B,$X36) -> 0 | X36: 3.8 REV
A37: ='Org structure'!E33 ->  | C37: =-SUMIFS('C Schedule Import Data'!T:T,'C Schedule Import Data'!$A:$A,$X$3,'C Schedule Import Data'!$B:$B,$X37) -> 0 | D37: =-SUMIFS('C Schedule Import Data'!U:U,'C Schedule Import Data'!$A:$A,$X$3,'C Schedule Import Data'!$B:$B,$X37) -> 0 | E37: =-SUMIFS('C Schedule Import Data'!V:V,'C Schedule Import Data'!$A:$A,$X$3,'C Schedule Import Data'!$B:$B,$X37) -> 0 | F37: =-SUMIFS('C Schedule Import Data'!W:W,'C Schedule Import Data'!$A:$A,$X$3,'C Schedule Import Data'!$B:$B,$X37) -> 0 | G37: =-SUMIFS('C Schedule Import Data'!X:X,'C Schedule Import Data'!$A:$A,$X$3,'C Schedule Import Data'!$B:$B,$X37) -> 0 | H37: =-SUMIFS('C Schedule Import Data'!Y:Y,'C Schedule Import Data'!$A:$A,$X$3,'C Schedule Import Data'!$B:$B,$X37) -> 0 | I37: 0 | K37: =-SUMIFS('C Schedule Import Data'!Z:Z,'C Schedule Import Data'!$A:$A,$X$3,'C Schedule Import Data'!$B:$B,$X37) -> 0 | X37: 3.9 REV
A38: ='Org structure'!E34 ->  | C38: =-SUMIFS('C Schedule Import Data'!T:T,'C Schedule Import Data'!$A:$A,$X$3,'C Schedule Import Data'!$B:$B,$X38) -> 0 | D38: =-SUMIFS('C Schedule Import Data'!U:U,'C Schedule Import Data'!$A:$A,$X$3,'C Schedule Import Data'!$B:$B,$X38) -> 0 | E38: =-SUMIFS('C Schedule Import Data'!V:V,'C Schedule Import Data'!$A:$A,$X$3,'C Schedule Import Data'!$B:$B,$X38) -> 0 | F38: =-SUMIFS('C Schedule Import Data'!W:W,'C Schedule Import Data'!$A:$A,$X$3,'C Schedule Import Data'!$B:$B,$X38) -> 0 | G38: =-SUMIFS('C Schedule Import Data'!X:X,'C Schedule Import Data'!$A:$A,$X$3,'C Schedule Import Data'!$B:$B,$X38) -> 0 | H38: =-SUMIFS('C Schedule Import Data'!Y:Y,'C Schedule Import Data'!$A:$A,$X$3,'C Schedule Import Data'!$B:$B,$X38) -> 0 | I38: 0 | K38: =-SUMIFS('C Schedule Import Data'!Z:Z,'C Schedule Import Data'!$A:$A,$X$3,'C Schedule Import Data'!$B:$B,$X38) -> 0 | X38: 3.10 REV
A39: ='Org structure'!A5 -> Vote 4 - COMMUNITY & SOCIAL SERVICES | C39: =SUM(C40:C49) -> 0 | D39: 4581743 | E39: 4581743 | F39: 353823.74 | G39: 817023.61 | H39: 1145430 | I39: =G39-H39 -> -328406.39 | J39: =IF(I39=0,"",I39/H39) -> -0.2867101351 | K39: 4581743
A40: ='Org structure'!E36 -> 4.1 - Libraries | C40: =-SUMIFS('C Schedule Import Data'!T:T,'C Schedule Import Data'!$A:$A,$X$3,'C Schedule Import Data'!$B:$B,$X40) -> 0 | D40: =-SUMIFS('C Schedule Import Data'!U:U,'C Schedule Import Data'!$A:$A,$X$3,'C Schedule Import Data'!$B:$B,$X40) -> 1599416 | E40: =-SUMIFS('C Schedule Import Data'!V:V,'C Schedule Import Data'!$A:$A,$X$3,'C Schedule Import Data'!$B:$B,$X40) -> 1599416 | F40: =-SUMIFS('C Schedule Import Data'!W:W,'C Schedule Import Data'!$A:$A,$X$3,'C Schedule Import Data'!$B:$B,$X40) -> 122869.84 | G40: =-SUMIFS('C Schedule Import Data'!X:X,'C Schedule Import Data'!$A:$A,$X$3,'C Schedule Import Data'!$B:$B,$X40) -> 300637.47 | H40: =-SUMIFS('C Schedule Import Data'!Y:Y,'C Schedule Import Data'!$A:$A,$X$3,'C Schedule Import Data'!$B:$B,$X40) -> 399852 | I40: =G40-H40 -> -99214.53 | J40: =IF(I40=0,"",I40/H40) -> -0.2481281324 | K40: =-SUMIFS('C Schedule Import Data'!Z:Z,'C Schedule Import Data'!$A:$A,$X$3,'C Schedule Import Data'!$B:$B,$X40) -> 1599416 | X40: 4.1 REV
A41: ='Org structure'!E37 -> 4.2 - Community Halls & Facilities | C41: =-SUMIFS('C Schedule Import Data'!T:T,'C Schedule Import Data'!$A:$A,$X$3,'C Schedule Import Data'!$B:$B,$X41) -> 0 | D41: =-SUMIFS('C Schedule Import Data'!U:U,'C Schedule Import Data'!$A:$A,$X$3,'C Schedule Import Data'!$B:$B,$X41) -> 0 | E41: =-SUMIFS('C Schedule Import Data'!V:V,'C Schedule Import Data'!$A:$A,$X$3,'C Schedule Import Data'!$B:$B,$X41) -> 0 | F41: =-SUMIFS('C Schedule Import Data'!W:W,'C Schedule Import Data'!$A:$A,$X$3,'C Schedule Import Data'!$B:$B,$X41) -> 0 | G41: =-SUMIFS('C Schedule Import Data'!X:X,'C Schedule Import Data'!$A:$A,$X$3,'C Schedule Import Data'!$B:$B,$X41) -> 0 | H41: =-SUMIFS('C Schedule Import Data'!Y:Y,'C Schedule Import Data'!$A:$A,$X$3,'C Schedule Import Data'!$B:$B,$X41) -> 0 | I41: =G41-H41 -> 0 | J41: =IF(I41=0,"",I41/H41) ->  | K41: =-SUMIFS('C Schedule Import Data'!Z:Z,'C Schedule Import Data'!$A:$A,$X$3,'C Schedule Import Data'!$B:$B,$X41) -> 0 | X41: 4.2 REV
A42: ='Org structure'!E38 -> 4.3 - Cemeteries | C42: =-SUMIFS('C Schedule Import Data'!T:T,'C Schedule Import Data'!$A:$A,$X$3,'C Schedule Import Data'!$B:$B,$X42) -> 0 | D42: =-SUMIFS('C Schedule Import Data'!U:U,'C Schedule Import Data'!$A:$A,$X$3,'C Schedule Import Data'!$B:$B,$X42) -> 42080 | E42: =-SUMIFS('C Schedule Import Data'!V:V,'C Schedule Import Data'!$A:$A,$X$3,'C Schedule Import Data'!$B:$B,$X42) -> 42080 | F42: =-SUMIFS('C Schedule Import Data'!W:W,'C Schedule Import Data'!$A:$A,$X$3,'C Schedule Import Data'!$B:$B,$X42) -> 1046.26 | G42: =-SUMIFS('C Schedule Import Data'!X:X,'C Schedule Import Data'!$A:$A,$X$3,'C Schedule Import Data'!$B:$B,$X42) -> 5718.79 | H42: =-SUMIFS('C Schedule Import Data'!Y:Y,'C Schedule Import Data'!$A:$A,$X$3,'C Schedule Import Data'!$B:$B,$X42) -> 10518 | I42: -4799.21 | J42: -0.4562854155 | K42: =-SUMIFS('C Schedule Import Data'!Z:Z,'C Schedule Import Data'!$A:$A,$X$3,'C Schedule Import Data'!$B:$B,$X42) -> 42080 | X42: 4.3 REV
A43: ='Org structure'!E39 -> 4.4 - Child Care | C43: =-SUMIFS('C Schedule Import Data'!T:T,'C Schedule Import Data'!$A:$A,$X$3,'C Schedule Import Data'!$B:$B,$X43) -> 0 | D43: =-SUMIFS('C Schedule Import Data'!U:U,'C Schedule Import Data'!$A:$A,$X$3,'C Schedule Import Data'!$B:$B,$X43) -> 0 | E43: =-SUMIFS('C Schedule Import Data'!V:V,'C Schedule Import Data'!$A:$A,$X$3,'C Schedule Import Data'!$B:$B,$X43) -> 0 | F43: =-SUMIFS('C Schedule Import Data'!W:W,'C Schedule Import Data'!$A:$A,$X$3,'C Schedule Import Data'!$B:$B,$X43) -> 0 | G43: =-SUMIFS('C Schedule Import Data'!X:X,'C Schedule Import Data'!$A:$A,$X$3,'C Schedule Import Data'!$B:$B,$X43) -> 0 | H43: =-SUMIFS('C Schedule Import Data'!Y:Y,'C Schedule Import Data'!$A:$A,$X$3,'C Schedule Import Data'!$B:$B,$X43) -> 0 | I43: 0 | K43: =-SUMIFS('C Schedule Import Data'!Z:Z,'C Schedule Import Data'!$A:$A,$X$3,'C Schedule Import Data'!$B:$B,$X43) -> 0 | X43: 4.4 REV
A44: ='Org structure'!E40 -> 4.5 - Thusong Centre | C44: =-SUMIFS('C Schedule Import Data'!T:T,'C Schedule Import Data'!$A:$A,$X$3,'C Schedule Import Data'!$B:$B,$X44) -> 0 | D44: =-SUMIFS('C Schedule Import Data'!U:U,'C Schedule Import Data'!$A:$A,$X$3,'C Schedule Import Data'!$B:$B,$X44) -> 850000 | E44: =-SUMIFS('C Schedule Import Data'!V:V,'C Schedule Import Data'!$A:$A,$X$3,'C Schedule Import Data'!$B:$B,$X44) -> 850000 | F44: =-SUMIFS('C Schedule Import Data'!W:W,'C Schedule Import Data'!$A:$A,$X$3,'C Schedule Import Data'!$B:$B,$X44) -> 104991.05 | G44: =-SUMIFS('C Schedule Import Data'!X:X,'C Schedule Import Data'!$A:$A,$X$3,'C Schedule Import Data'!$B:$B,$X44) -> 63775.43 | H44: =-SUMIFS('C Schedule Import Data'!Y:Y,'C Schedule Import Data'!$A:$A,$X$3,'C Schedule Import Data'!$B:$B,$X44) -> 212499 | I44: -148723.57 | J44: -0.6998789171 | K44: =-SUMIFS('C Schedule Import Data'!Z:Z,'C Schedule Import Data'!$A:$A,$X$3,'C Schedule Import Data'!$B:$B,$X44) -> 850000 | X44: 4.5 REV
A45: ='Org structure'!E41 -> 4.6 - Social Development | C45: =-SUMIFS('C Schedule Import Data'!T:T,'C Schedule Import Data'!$A:$A,$X$3,'C Schedule Import Data'!$B:$B,$X45) -> 0 | D45: =-SUMIFS('C Schedule Import Data'!U:U,'C Schedule Import Data'!$A:$A,$X$3,'C Schedule Import Data'!$B:$B,$X45) -> 0 | E45: =-SUMIFS('C Schedule Import Data'!V:V,'C Schedule Import Data'!$A:$A,$X$3,'C Schedule Import Data'!$B:$B,$X45) -> 0 | F45: =-SUMIFS('C Schedule Import Data'!W:W,'C Schedule Import Data'!$A:$A,$X$3,'C Schedule Import Data'!$B:$B,$X45) -> 0 | G45: =-SUMIFS('C Schedule Import Data'!X:X,'C Schedule Import Data'!$A:$A,$X$3,'C Schedule Import Data'!$B:$B,$X45) -> 0 | H45: =-SUMIFS('C Schedule Import Data'!Y:Y,'C Schedule Import Data'!$A:$A,$X$3,'C Schedule Import Data'!$B:$B,$X45) -> 0 | I45: 0 | K45: =-SUMIFS('C Schedule Import Data'!Z:Z,'C Schedule Import Data'!$A:$A,$X$3,'C Schedule Import Data'!$B:$B,$X45) -> 0 | X45: 4.6 REV
A46: ='Org structure'!E42 -> 4.7 - Solid Waste Removal (Refuse) | C46: =-SUMIFS('C Schedule Import Data'!T:T,'C Schedule Import Data'!$A:$A,$X$3,'C Schedule Import Data'!$B:$B,$X46) -> 0 | D46: =-SUMIFS('C Schedule Import Data'!U:U,'C Schedule Import Data'!$A:$A,$X$3,'C Schedule Import Data'!$B:$B,$X46) -> 2090247 | E46: =-SUMIFS('C Schedule Import Data'!V:V,'C Schedule Import Data'!$A:$A,$X$3,'C Schedule Import Data'!$B:$B,$X46) -> 2090247 | F46: =-SUMIFS('C Schedule Import Data'!W:W,'C Schedule Import Data'!$A:$A,$X$3,'C Schedule Import Data'!$B:$B,$X46) -> 124916.59 | G46: =-SUMIFS('C Schedule Import Data'!X:X,'C Schedule Import Data'!$A:$A,$X$3,'C Schedule Import Data'!$B:$B,$X46) -> 446891.92 | H46: =-SUMIFS('C Schedule Import Data'!Y:Y,'C Schedule Import Data'!$A:$A,$X$3,'C Schedule Import Data'!$B:$B,$X46) -> 522561 | I46: -75669.08 | J46: -0.1448043004 | K46: =-SUMIFS('C Schedule Import Data'!Z:Z,'C Schedule Import Data'!$A:$A,$X$3,'C Schedule Import Data'!$B:$B,$X46) -> 2090247 | X46: 4.7 REV
A47: ='Org structure'!E43 ->  | C47: =-SUMIFS('C Schedule Import Data'!T:T,'C Schedule Import Data'!$A:$A,$X$3,'C Schedule Import Data'!$B:$B,$X47) -> 0 | D47: =-SUMIFS('C Schedule Import Data'!U:U,'C Schedule Import Data'!$A:$A,$X$3,'C Schedule Import Data'!$B:$B,$X47) -> 0 | E47: =-SUMIFS('C Schedule Import Data'!V:V,'C Schedule Import Data'!$A:$A,$X$3,'C Schedule Import Data'!$B:$B,$X47) -> 0 | F47: =-SUMIFS('C Schedule Import Data'!W:W,'C Schedule Import Data'!$A:$A,$X$3,'C Schedule Import Data'!$B:$B,$X47) -> 0 | G47: =-SUMIFS('C Schedule Import Data'!X:X,'C Schedule Import Data'!$A:$A,$X$3,'C Schedule Import Data'!$B:$B,$X47) -> 0 | H47: =-SUMIFS('C Schedule Import Data'!Y:Y,'C Schedule Import Data'!$A:$A,$X$3,'C Schedule Import Data'!$B:$B,$X47) -> 0 | I47: 0 | K47: =-SUMIFS('C Schedule Import Data'!Z:Z,'C Schedule Import Data'!$A:$A,$X$3,'C Schedule Import Data'!$B:$B,$X47) -> 0 | X47: 4.8 REV
A48: ='Org structure'!E44 ->  | C48: =-SUMIFS('C Schedule Import Data'!T:T,'C Schedule Import Data'!$A:$A,$X$3,'C Schedule Import Data'!$B:$B,$X48) -> 0 | D48: =-SUMIFS('C Schedule Import Data'!U:U,'C Schedule Import Data'!$A:$A,$X$3,'C Schedule Import Data'!$B:$B,$X48) -> 0 | E48: =-SUMIFS('C Schedule Import Data'!V:V,'C Schedule Import Data'!$A:$A,$X$3,'C Schedule Import Data'!$B:$B,$X48) -> 0 | F48: =-SUMIFS('C Schedule Import Data'!W:W,'C Schedule Import Data'!$A:$A,$X$3,'C Schedule Import Data'!$B:$B,$X48) -> 0 | G48: =-SUMIFS('C Schedule Import Data'!X:X,'C Schedule Import Data'!$A:$A,$X$3,'C Schedule Import Data'!$B:$B,$X48) -> 0 | H48: =-SUMIFS('C Schedule Import Data'!Y:Y,'C Schedule Import Data'!$A:$A,$X$3,'C Schedule Import Data'!$B:$B,$X48) -> 0 | I48: 0 | K48: =-SUMIFS('C Schedule Import Data'!Z:Z,'C Schedule Import Data'!$A:$A,$X$3,'C Schedule Import Data'!$B:$B,$X48) -> 0 | X48: 4.9 REV
A49: ='Org structure'!E45 ->  | C49: =-SUMIFS('C Schedule Import Data'!T:T,'C Schedule Import Data'!$A:$A,$X$3,'C Schedule Import Data'!$B:$B,$X49) -> 0 | D49: =-SUMIFS('C Schedule Import Data'!U:U,'C Schedule Import Data'!$A:$A,$X$3,'C Schedule Import Data'!$B:$B,$X49) -> 0 | E49: =-SUMIFS('C Schedule Import Data'!V:V,'C Schedule Import Data'!$A:$A,$X$3,'C Schedule Import Data'!$B:$B,$X49) -> 0 | F49: =-SUMIFS('C Schedule Import Data'!W:W,'C Schedule Import Data'!$A:$A,$X$3,'C Schedule Import Data'!$B:$B,$X49) -> 0 | G49: =-SUMIFS('C Schedule Import Data'!X:X,'C Schedule Import Data'!$A:$A,$X$3,'C Schedule Import Data'!$B:$B,$X49) -> 0 | H49: =-SUMIFS('C Schedule Import Data'!Y:Y,'C Schedule Import Data'!$A:$A,$X$3,'C Schedule Import Data'!$B:$B,$X49) -> 0 | I49: 0 | K49: =-SUMIFS('C Schedule Import Data'!Z:Z,'C Schedule Import Data'!$A:$A,$X$3,'C Schedule Import Data'!$B:$B,$X49) -> 0 | X49: 4.10 REV
A50: ='Org structure'!A6 -> Vote 5 - SPORT & RECREATION/PARKS | C50: =SUM(C51:C60) -> 0 | D50: =SUM(D51:D60) -> 58000 | E50: 58000 | F50: 0 | G50: 0 | H50: 14499 | I50: =G50-H50 -> -14499 | J50: =IF(I50=0,"",I50/H50) -> -1 | K50: 58000
A51: ='Org structure'!E47 -> 5.1 - Sport & Recreation | C51: =-SUMIFS('C Schedule Import Data'!T:T,'C Schedule Import Data'!$A:$A,$X$3,'C Schedule Import Data'!$B:$B,$X51) -> 0 | D51: =-SUMIFS('C Schedule Import Data'!U:U,'C Schedule Import Data'!$A:$A,$X$3,'C Schedule Import Data'!$B:$B,$X51) -> 58000 | E51: =-SUMIFS('C Schedule Import Data'!V:V,'C Schedule Import Data'!$A:$A,$X$3,'C Schedule Import Data'!$B:$B,$X51) -> 58000 | F51: =-SUMIFS('C Schedule Import Data'!W:W,'C Schedule Import Data'!$A:$A,$X$3,'C Schedule Import Data'!$B:$B,$X51) -> 0 | G51: =-SUMIFS('C Schedule Import Data'!X:X,'C Schedule Import Data'!$A:$A,$X$3,'C Schedule Import Data'!$B:$B,$X51) -> 0 | H51: =-SUMIFS('C Schedule Import Data'!Y:Y,'C Schedule Import Data'!$A:$A,$X$3,'C Schedule Import Data'!$B:$B,$X51) -> 14499 | I51: =G51-H51 -> -14499 | J51: =IF(I51=0,"",I51/H51) -> -1 | K51: =-SUMIFS('C Schedule Import Data'!Z:Z,'C Schedule Import Data'!$A:$A,$X$3,'C Schedule Import Data'!$B:$B,$X51) -> 58000 | X51: 5.1 REV
A52: ='Org structure'!E48 -> 5.2 - Parks | C52: =-SUMIFS('C Schedule Import Data'!T:T,'C Schedule Import Data'!$A:$A,$X$3,'C Schedule Import Data'!$B:$B,$X52) -> 0 | D52: =-SUMIFS('C Schedule Import Data'!U:U,'C Schedule Import Data'!$A:$A,$X$3,'C Schedule Import Data'!$B:$B,$X52) -> 0 | E52: =-SUMIFS('C Schedule Import Data'!V:V,'C Schedule Import Data'!$A:$A,$X$3,'C Schedule Import Data'!$B:$B,$X52) -> 0 | F52: =-SUMIFS('C Schedule Import Data'!W:W,'C Schedule Import Data'!$A:$A,$X$3,'C Schedule Import Data'!$B:$B,$X52) -> 0 | G52: =-SUMIFS('C Schedule Import Data'!X:X,'C Schedule Import Data'!$A:$A,$X$3,'C Schedule Import Data'!$B:$B,$X52) -> 0 | H52: =-SUMIFS('C Schedule Import Data'!Y:Y,'C Schedule Import Data'!$A:$A,$X$3,'C Schedule Import Data'!$B:$B,$X52) -> 0 | I52: =G52-H52 -> 0 | J52: =IF(I52=0,"",I52/H52) ->  | K52: =-SUMIFS('C Schedule Import Data'!Z:Z,'C Schedule Import Data'!$A:$A,$X$3,'C Schedule Import Data'!$B:$B,$X52) -> 0 | X52: 5.2 REV
A53: ='Org structure'!E49 ->  | C53: =-SUMIFS('C Schedule Import Data'!T:T,'C Schedule Import Data'!$A:$A,$X$3,'C Schedule Import Data'!$B:$B,$X53) -> 0 | D53: =-SUMIFS('C Schedule Import Data'!U:U,'C Schedule Import Data'!$A:$A,$X$3,'C Schedule Import Data'!$B:$B,$X53) -> 0 | E53: =-SUMIFS('C Schedule Import Data'!V:V,'C Schedule Import Data'!$A:$A,$X$3,'C Schedule Import Data'!$B:$B,$X53) -> 0 | F53: =-SUMIFS('C Schedule Import Data'!W:W,'C Schedule Import Data'!$A:$A,$X$3,'C Schedule Import Data'!$B:$B,$X53) -> 0 | G53: =-SUMIFS('C Schedule Import Data'!X:X,'C Schedule Import Data'!$A:$A,$X$3,'C Schedule Import Data'!$B:$B,$X53) -> 0 | H53: =-SUMIFS('C Schedule Import Data'!Y:Y,'C Schedule Import Data'!$A:$A,$X$3,'C Schedule Import Data'!$B:$B,$X53) -> 0 | I53: 0 | K53: =-SUMIFS('C Schedule Import Data'!Z:Z,'C Schedule Import Data'!$A:$A,$X$3,'C Schedule Import Data'!$B:$B,$X53) -> 0 | X53: 5.3 REV
A54: ='Org structure'!E50 ->  | C54: =-SUMIFS('C Schedule Import Data'!T:T,'C Schedule Import Data'!$A:$A,$X$3,'C Schedule Import Data'!$B:$B,$X54) -> 0 | D54: =-SUMIFS('C Schedule Import Data'!U:U,'C Schedule Import Data'!$A:$A,$X$3,'C Schedule Import Data'!$B:$B,$X54) -> 0 | E54: =-SUMIFS('C Schedule Import Data'!V:V,'C Schedule Import Data'!$A:$A,$X$3,'C Schedule Import Data'!$B:$B,$X54) -> 0 | F54: =-SUMIFS('C Schedule Import Data'!W:W,'C Schedule Import Data'!$A:$A,$X$3,'C Schedule Import Data'!$B:$B,$X54) -> 0 | G54: =-SUMIFS('C Schedule Import Data'!X:X,'C Schedule Import Data'!$A:$A,$X$3,'C Schedule Import Data'!$B:$B,$X54) -> 0 | H54: =-SUMIFS('C Schedule Import Data'!Y:Y,'C Schedule Import Data'!$A:$A,$X$3,'C Schedule Import Data'!$B:$B,$X54) -> 0 | I54: 0 | K54: =-SUMIFS('C Schedule Import Data'!Z:Z,'C Schedule Import Data'!$A:$A,$X$3,'C Schedule Import Data'!$B:$B,$X54) -> 0 | X54: 5.4 REV
A55: ='Org structure'!E51 ->  | C55: =-SUMIFS('C Schedule Import Data'!T:T,'C Schedule Import Data'!$A:$A,$X$3,'C Schedule Import Data'!$B:$B,$X55) -> 0 | D55: =-SUMIFS('C Schedule Import Data'!U:U,'C Schedule Import Data'!$A:$A,$X$3,'C Schedule Import Data'!$B:$B,$X55) -> 0 | E55: =-SUMIFS('C Schedule Import Data'!V:V,'C Schedule Import Data'!$A:$A,$X$3,'C Schedule Import Data'!$B:$B,$X55) -> 0 | F55: =-SUMIFS('C Schedule Import Data'!W:W,'C Schedule Import Data'!$A:$A,$X$3,'C Schedule Import Data'!$B:$B,$X55) -> 0 | G55: =-SUMIFS('C Schedule Import Data'!X:X,'C Schedule Import Data'!$A:$A,$X$3,'C Schedule Import Data'!$B:$B,$X55) -> 0 | H55: =-SUMIFS('C Schedule Import Data'!Y:Y,'C Schedule Import Data'!$A:$A,$X$3,'C Schedule Import Data'!$B:$B,$X55) -> 0 | I55: 0 | K55: =-SUMIFS('C Schedule Import Data'!Z:Z,'C Schedule Import Data'!$A:$A,$X$3,'C Schedule Import Data'!$B:$B,$X55) -> 0 | X55: 5.5 REV
A56: ='Org structure'!E52 ->  | C56: =-SUMIFS('C Schedule Import Data'!T:T,'C Schedule Import Data'!$A:$A,$X$3,'C Schedule Import Data'!$B:$B,$X56) -> 0 | D56: =-SUMIFS('C Schedule Import Data'!U:U,'C Schedule Import Data'!$A:$A,$X$3,'C Schedule Import Data'!$B:$B,$X56) -> 0 | E56: =-SUMIFS('C Schedule Import Data'!V:V,'C Schedule Import Data'!$A:$A,$X$3,'C Schedule Import Data'!$B:$B,$X56) -> 0 | F56: =-SUMIFS('C Schedule Import Data'!W:W,'C Schedule Import Data'!$A:$A,$X$3,'C Schedule Import Data'!$B:$B,$X56) -> 0 | G56: =-SUMIFS('C Schedule Import Data'!X:X,'C Schedule Import Data'!$A:$A,$X$3,'C Schedule Import Data'!$B:$B,$X56) -> 0 | H56: =-SUMIFS('C Schedule Import Data'!Y:Y,'C Schedule Import Data'!$A:$A,$X$3,'C Schedule Import Data'!$B:$B,$X56) -> 0 | I56: 0 | K56: =-SUMIFS('C Schedule Import Data'!Z:Z,'C Schedule Import Data'!$A:$A,$X$3,'C Schedule Import Data'!$B:$B,$X56) -> 0 | X56: 5.6 REV
A57: ='Org structure'!E53 ->  | C57: =-SUMIFS('C Schedule Import Data'!T:T,'C Schedule Import Data'!$A:$A,$X$3,'C Schedule Import Data'!$B:$B,$X57) -> 0 | D57: =-SUMIFS('C Schedule Import Data'!U:U,'C Schedule Import Data'!$A:$A,$X$3,'C Schedule Import Data'!$B:$B,$X57) -> 0 | E57: =-SUMIFS('C Schedule Import Data'!V:V,'C Schedule Import Data'!$A:$A,$X$3,'C Schedule Import Data'!$B:$B,$X57) -> 0 | F57: =-SUMIFS('C Schedule Import Data'!W:W,'C Schedule Import Data'!$A:$A,$X$3,'C Schedule Import Data'!$B:$B,$X57) -> 0 | G57: =-SUMIFS('C Schedule Import Data'!X:X,'C Schedule Import Data'!$A:$A,$X$3,'C Schedule Import Data'!$B:$B,$X57) -> 0 | H57: =-SUMIFS('C Schedule Import Data'!Y:Y,'C Schedule Import Data'!$A:$A,$X$3,'C Schedule Import Data'!$B:$B,$X57) -> 0 | I57: 0 | K57: =-SUMIFS('C Schedule Import Data'!Z:Z,'C Schedule Import Data'!$A:$A,$X$3,'C Schedule Import Data'!$B:$B,$X57) -> 0 | X57: 5.7 REV
A58: ='Org structure'!E54 ->  | C58: =-SUMIFS('C Schedule Import Data'!T:T,'C Schedule Import Data'!$A:$A,$X$3,'C Schedule Import Data'!$B:$B,$X58) -> 0 | D58: =-SUMIFS('C Schedule Import Data'!U:U,'C Schedule Import Data'!$A:$A,$X$3,'C Schedule Import Data'!$B:$B,$X58) -> 0 | E58: =-SUMIFS('C Schedule Import Data'!V:V,'C Schedule Import Data'!$A:$A,$X$3,'C Schedule Import Data'!$B:$B,$X58) -> 0 | F58: =-SUMIFS('C Schedule Import Data'!W:W,'C Schedule Import Data'!$A:$A,$X$3,'C Schedule Import Data'!$B:$B,$X58) -> 0 | G58: =-SUMIFS('C Schedule Import Data'!X:X,'C Schedule Import Data'!$A:$A,$X$3,'C Schedule Import Data'!$B:$B,$X58) -> 0 | H58: =-SUMIFS('C Schedule Import Data'!Y:Y,'C Schedule Import Data'!$A:$A,$X$3,'C Schedule Import Data'!$B:$B,$X58) -> 0 | I58: 0 | K58: =-SUMIFS('C Schedule Import Data'!Z:Z,'C Schedule Import Data'!$A:$A,$X$3,'C Schedule Import Data'!$B:$B,$X58) -> 0 | X58: 5.8 REV
A59: ='Org structure'!E55 ->  | C59: =-SUMIFS('C Schedule Import Data'!T:T,'C Schedule Import Data'!$A:$A,$X$3,'C Schedule Import Data'!$B:$B,$X59) -> 0 | D59: =-SUMIFS('C Schedule Import Data'!U:U,'C Schedule Import Data'!$A:$A,$X$3,'C Schedule Import Data'!$B:$B,$X59) -> 0 | E59: =-SUMIFS('C Schedule Import Data'!V:V,'C Schedule Import Data'!$A:$A,$X$3,'C Schedule Import Data'!$B:$B,$X59) -> 0 | F59: =-SUMIFS('C Schedule Import Data'!W:W,'C Schedule Import Data'!$A:$A,$X$3,'C Schedule Import Data'!$B:$B,$X59) -> 0 | G59: =-SUMIFS('C Schedule Import Data'!X:X,'C Schedule Import Data'!$A:$A,$X$3,'C Schedule Import Data'!$B:$B,$X59) -> 0 | H59: =-SUMIFS('C Schedule Import Data'!Y:Y,'C Schedule Import Data'!$A:$A,$X$3,'C Schedule Import Data'!$B:$B,$X59) -> 0 | I59: 0 | K59: =-SUMIFS('C Schedule Import Data'!Z:Z,'C Schedule Import Data'!$A:$A,$X$3,'C Schedule Import Data'!$B:$B,$X59) -> 0 | X59: 5.9 REV
A60: ='Org structure'!E56 ->  | C60: =-SUMIFS('C Schedule Import Data'!T:T,'C Schedule Import Data'!$A:$A,$X$3,'C Schedule Import Data'!$B:$B,$X60) -> 0 | D60: =-SUMIFS('C Schedule Import Data'!U:U,'C Schedule Import Data'!$A:$A,$X$3,'C Schedule Import Data'!$B:$B,$X60) -> 0 | E60: =-SUMIFS('C Schedule Import Data'!V:V,'C Schedule Import Data'!$A:$A,$X$3,'C Schedule Import Data'!$B:$B,$X60) -> 0 | F60: =-SUMIFS('C Schedule Import Data'!W:W,'C Schedule Import Data'!$A:$A,$X$3,'C Schedule Import Data'!$B:$B,$X60) -> 0 | G60: =-SUMIFS('C Schedule Import Data'!X:X,'C Schedule Import Data'!$A:$A,$X$3,'C Schedule Import Data'!$B:$B,$X60) -> 0 | H60: =-SUMIFS('C Schedule Import Data'!Y:Y,'C Schedule Import Data'!$A:$A,$X$3,'C Schedule Import Data'!$B:$B,$X60) -> 0 | I60: 0 | K60: =-SUMIFS('C Schedule Import Data'!Z:Z,'C Schedule Import Data'!$A:$A,$X$3,'C Schedule Import Data'!$B:$B,$X60) -> 0 | X60: 5.10 REV
A61: ='Org structure'!A7 -> Vote 6 - PUBLIC SAFETY | C61: =SUM(C62:C71) -> 0 | D61: =SUM(D62:D71) -> 3826300 | E61: 3826300 | F61: 178800.09 | G61: 666940.67 | H61: 956571 | I61: =G61-H61 -> -289630.33 | J61: =IF(I61=0,"",I61/H61) -> -0.3027797518 | K61: 3826300
A62: ='Org structure'!E58 -> 6.1 - Law Enforcement/Traffic | C62: =-SUMIFS('C Schedule Import Data'!T:T,'C Schedule Import Data'!$A:$A,$X$3,'C Schedule Import Data'!$B:$B,$X62) -> 0 | D62: =-SUMIFS('C Schedule Import Data'!U:U,'C Schedule Import Data'!$A:$A,$X$3,'C Schedule Import Data'!$B:$B,$X62) -> 3800000 | E62: =-SUMIFS('C Schedule Import Data'!V:V,'C Schedule Import Data'!$A:$A,$X$3,'C Schedule Import Data'!$B:$B,$X62) -> 3800000 | F62: =-SUMIFS('C Schedule Import Data'!W:W,'C Schedule Import Data'!$A:$A,$X$3,'C Schedule Import Data'!$B:$B,$X62) -> 178800.09 | G62: =-SUMIFS('C Schedule Import Data'!X:X,'C Schedule Import Data'!$A:$A,$X$3,'C Schedule Import Data'!$B:$B,$X62) -> 666940.67 | H62: =-SUMIFS('C Schedule Import Data'!Y:Y,'C Schedule Import Data'!$A:$A,$X$3,'C Schedule Import Data'!$B:$B,$X62) -> 949998 | I62: =G62-H62 -> -283057.33 | J62: =IF(I62=0,"",I62/H62) -> -0.2979557115 | K62: =-SUMIFS('C Schedule Import Data'!Z:Z,'C Schedule Import Data'!$A:$A,$X$3,'C Schedule Import Data'!$B:$B,$X62) -> 3800000 | X62: 6.1 REV
A63: ='Org structure'!E59 -> 6.2 - Disaster Management - Fire | C63: =-SUMIFS('C Schedule Import Data'!T:T,'C Schedule Import Data'!$A:$A,$X$3,'C Schedule Import Data'!$B:$B,$X63) -> 0 | D63: =-SUMIFS('C Schedule Import Data'!U:U,'C Schedule Import Data'!$A:$A,$X$3,'C Schedule Import Data'!$B:$B,$X63) -> 26300 | E63: =-SUMIFS('C Schedule Import Data'!V:V,'C Schedule Import Data'!$A:$A,$X$3,'C Schedule Import Data'!$B:$B,$X63) -> 26300 | F63: =-SUMIFS('C Schedule Import Data'!W:W,'C Schedule Import Data'!$A:$A,$X$3,'C Schedule Import Data'!$B:$B,$X63) -> 0 | G63: =-SUMIFS('C Schedule Import Data'!X:X,'C Schedule Import Data'!$A:$A,$X$3,'C Schedule Import Data'!$B:$B,$X63) -> 0 | H63: =-SUMIFS('C Schedule Import Data'!Y:Y,'C Schedule Import Data'!$A:$A,$X$3,'C Schedule Import Data'!$B:$B,$X63) -> 6573 | I63: =G63-H63 -> -6573 | J63: =IF(I63=0,"",I63/H63) -> -1 | K63: =-SUMIFS('C Schedule Import Data'!Z:Z,'C Schedule Import Data'!$A:$A,$X$3,'C Schedule Import Data'!$B:$B,$X63) -> 26300 | X63: 6.2 REV
A64: ='Org structure'!E60 ->  | C64: =-SUMIFS('C Schedule Import Data'!T:T,'C Schedule Import Data'!$A:$A,$X$3,'C Schedule Import Data'!$B:$B,$X64) -> 0 | D64: =-SUMIFS('C Schedule Import Data'!U:U,'C Schedule Import Data'!$A:$A,$X$3,'C Schedule Import Data'!$B:$B,$X64) -> 0 | E64: =-SUMIFS('C Schedule Import Data'!V:V,'C Schedule Import Data'!$A:$A,$X$3,'C Schedule Import Data'!$B:$B,$X64) -> 0 | F64: =-SUMIFS('C Schedule Import Data'!W:W,'C Schedule Import Data'!$A:$A,$X$3,'C Schedule Import Data'!$B:$B,$X64) -> 0 | G64: =-SUMIFS('C Schedule Import Data'!X:X,'C Schedule Import Data'!$A:$A,$X$3,'C Schedule Import Data'!$B:$B,$X64) -> 0 | H64: =-SUMIFS('C Schedule Import Data'!Y:Y,'C Schedule Import Data'!$A:$A,$X$3,'C Schedule Import Data'!$B:$B,$X64) -> 0 | I64: 0 | K64: =-SUMIFS('C Schedule Import Data'!Z:Z,'C Schedule Import Data'!$A:$A,$X$3,'C Schedule Import Data'!$B:$B,$X64) -> 0 | X64: 6.3 REV
A65: ='Org structure'!E61 ->  | C65: =-SUMIFS('C Schedule Import Data'!T:T,'C Schedule Import Data'!$A:$A,$X$3,'C Schedule Import Data'!$B:$B,$X65) -> 0 | D65: =-SUMIFS('C Schedule Import Data'!U:U,'C Schedule Import Data'!$A:$A,$X$3,'C Schedule Import Data'!$B:$B,$X65) -> 0 | E65: =-SUMIFS('C Schedule Import Data'!V:V,'C Schedule Import Data'!$A:$A,$X$3,'C Schedule Import Data'!$B:$B,$X65) -> 0 | F65: =-SUMIFS('C Schedule Import Data'!W:W,'C Schedule Import Data'!$A:$A,$X$3,'C Schedule Import Data'!$B:$B,$X65) -> 0 | G65: =-SUMIFS('C Schedule Import Data'!X:X,'C Schedule Import Data'!$A:$A,$X$3,'C Schedule Import Data'!$B:$B,$X65) -> 0 | H65: =-SUMIFS('C Schedule Import Data'!Y:Y,'C Schedule Import Data'!$A:$A,$X$3,'C Schedule Import Data'!$B:$B,$X65) -> 0 | I65: 0 | K65: =-SUMIFS('C Schedule Import Data'!Z:Z,'C Schedule Import Data'!$A:$A,$X$3,'C Schedule Import Data'!$B:$B,$X65) -> 0 | X65: 6.4 REV
A66: ='Org structure'!E62 ->  | C66: =-SUMIFS('C Schedule Import Data'!T:T,'C Schedule Import Data'!$A:$A,$X$3,'C Schedule Import Data'!$B:$B,$X66) -> 0 | D66: =-SUMIFS('C Schedule Import Data'!U:U,'C Schedule Import Data'!$A:$A,$X$3,'C Schedule Import Data'!$B:$B,$X66) -> 0 | E66: =-SUMIFS('C Schedule Import Data'!V:V,'C Schedule Import Data'!$A:$A,$X$3,'C Schedule Import Data'!$B:$B,$X66) -> 0 | F66: =-SUMIFS('C Schedule Import Data'!W:W,'C Schedule Import Data'!$A:$A,$X$3,'C Schedule Import Data'!$B:$B,$X66) -> 0 | G66: =-SUMIFS('C Schedule Import Data'!X:X,'C Schedule Import Data'!$A:$A,$X$3,'C Schedule Import Data'!$B:$B,$X66) -> 0 | H66: =-SUMIFS('C Schedule Import Data'!Y:Y,'C Schedule Import Data'!$A:$A,$X$3,'C Schedule Import Data'!$B:$B,$X66) -> 0 | I66: 0 | K66: =-SUMIFS('C Schedule Import Data'!Z:Z,'C Schedule Import Data'!$A:$A,$X$3,'C Schedule Import Data'!$B:$B,$X66) -> 0 | X66: 6.5 REV
A67: ='Org structure'!E63 ->  | C67: =-SUMIFS('C Schedule Import Data'!T:T,'C Schedule Import Data'!$A:$A,$X$3,'C Schedule Import Data'!$B:$B,$X67) -> 0 | D67: =-SUMIFS('C Schedule Import Data'!U:U,'C Schedule Import Data'!$A:$A,$X$3,'C Schedule Import Data'!$B:$B,$X67) -> 0 | E67: =-SUMIFS('C Schedule Import Data'!V:V,'C Schedule Import Data'!$A:$A,$X$3,'C Schedule Import Data'!$B:$B,$X67) -> 0 | F67: =-SUMIFS('C Schedule Import Data'!W:W,'C Schedule Import Data'!$A:$A,$X$3,'C Schedule Import Data'!$B:$B,$X67) -> 0 | G67: =-SUMIFS('C Schedule Import Data'!X:X,'C Schedule Import Data'!$A:$A,$X$3,'C Schedule Import Data'!$B:$B,$X67) -> 0 | H67: =-SUMIFS('C Schedule Import Data'!Y:Y,'C Schedule Import Data'!$A:$A,$X$3,'C Schedule Import Data'!$B:$B,$X67) -> 0 | I67: 0 | K67: =-SUMIFS('C Schedule Import Data'!Z:Z,'C Schedule Import Data'!$A:$A,$X$3,'C Schedule Import Data'!$B:$B,$X67) -> 0 | X67: 6.6 REV
A68: ='Org structure'!E64 ->  | C68: =-SUMIFS('C Schedule Import Data'!T:T,'C Schedule Import Data'!$A:$A,$X$3,'C Schedule Import Data'!$B:$B,$X68) -> 0 | D68: =-SUMIFS('C Schedule Import Data'!U:U,'C Schedule Import Data'!$A:$A,$X$3,'C Schedule Import Data'!$B:$B,$X68) -> 0 | E68: =-SUMIFS('C Schedule Import Data'!V:V,'C Schedule Import Data'!$A:$A,$X$3,'C Schedule Import Data'!$B:$B,$X68) -> 0 | F68: =-SUMIFS('C Schedule Import Data'!W:W,'C Schedule Import Data'!$A:$A,$X$3,'C Schedule Import Data'!$B:$B,$X68) -> 0 | G68: =-SUMIFS('C Schedule Import Data'!X:X,'C Schedule Import Data'!$A:$A,$X$3,'C Schedule Import Data'!$B:$B,$X68) -> 0 | H68: =-SUMIFS('C Schedule Import Data'!Y:Y,'C Schedule Import Data'!$A:$A,$X$3,'C Schedule Import Data'!$B:$B,$X68) -> 0 | I68: 0 | K68: =-SUMIFS('C Schedule Import Data'!Z:Z,'C Schedule Import Data'!$A:$A,$X$3,'C Schedule Import Data'!$B:$B,$X68) -> 0 | X68: 6.7 REV
A69: ='Org structure'!E65 ->  | C69: =-SUMIFS('C Schedule Import Data'!T:T,'C Schedule Import Data'!$A:$A,$X$3,'C Schedule Import Data'!$B:$B,$X69) -> 0 | D69: =-SUMIFS('C Schedule Import Data'!U:U,'C Schedule Import Data'!$A:$A,$X$3,'C Schedule Import Data'!$B:$B,$X69) -> 0 | E69: =-SUMIFS('C Schedule Import Data'!V:V,'C Schedule Import Data'!$A:$A,$X$3,'C Schedule Import Data'!$B:$B,$X69) -> 0 | F69: =-SUMIFS('C Schedule Import Data'!W:W,'C Schedule Import Data'!$A:$A,$X$3,'C Schedule Import Data'!$B:$B,$X69) -> 0 | G69: =-SUMIFS('C Schedule Import Data'!X:X,'C Schedule Import Data'!$A:$A,$X$3,'C Schedule Import Data'!$B:$B,$X69) -> 0 | H69: =-SUMIFS('C Schedule Import Data'!Y:Y,'C Schedule Import Data'!$A:$A,$X$3,'C Schedule Import Data'!$B:$B,$X69) -> 0 | I69: 0 | K69: =-SUMIFS('C Schedule Import Data'!Z:Z,'C Schedule Import Data'!$A:$A,$X$3,'C Schedule Import Data'!$B:$B,$X69) -> 0 | X69: 6.8 REV
